Workbook

Sheet Control Panel
A1: GO TO
A2: Utah | B2: Wyoming | D2: FILING INFORMATION | N2: Model Checks
A3: 1.1 | B3: 1.1 | N3: (Must Be 0)
A4: 1.2 | B4: 1.2 | F4: UTAH | J4: WYOMING | N4: ='Model Checks'!D7 -> 
A5: 1.3 pg 1 | B5: 1.3 pg 1 | E5: Current Case No. | F5: 14-057-09 | J5: 30010-136-GP-14 | N5: (If this is not 0, or very close, go to
A6: 1.3 pg 2 | B6: 1.3 pg 2 | E6: Filing Date | F6: 2014-05-05 | J6: 2014-05-01 | N6: the "Model Checks"
B7: 1.3 pg 3 | E7: Test Year Ending | F7: 2015-05-31 | J7: 2015-05-31 | N7: Tab and find the
A8: 1.4 pg 1 | B8: 1.4 pg 1 | E8: Proposed Effective Date | F8: 2014-06-01 | J8: 2014-06-01 | N8: problem.)
A9: 1.4 pg 2 | B9: 1.4 pg 2 | E9: Prior Case No. | F9: 13-057-07 | J9: 30010-129-GP-13
A10: 1.4 pg 3 | N10: Go To
A11: 1.5 | B11: 1.5 | D11: Total Increase (Decrease) | F11: ='Utah Summary-by class'!Q28 -> 83849464.17 | H11: =F11-G11 -> 83849464.17 | J11: =#REF! ->  | L11: =J11-K11 ->  | N11: Model Checks'
A12: 1.6 pg 1 | B12: 1.6 pg 1
A13: 1.6 pg 2 | B13: 1.6 pg 2
A14: 1.6 pg 3 | B14: 1.6 pg 3 | D14: Typical Customer's Bill | N14: Old Ut Data color
A15: 1.7 pg 1 | B15: 1.7 pg 1 | N15: Old Wy Data color
A16: 1.7 pg 2 | B16: 1.7 pg 2 | E16: Previous | F16: ='Ut 1.7'!F30 -> 716.34 | J16: =#REF! ->  | N16: New Data color
A17: 1.8 | B17: 1.8 | E17: Proposed | F17: ='Ut 1.7'!H30 -> 780.78 | J17: =#REF! -> 
A18: 1.9 | B18: 1.9 | E18: Difference | F18: ='Ut 1.7'!J30 -> 64.44 | H18: =F18-G18 -> 64.44 | J18: =#REF! ->  | L18: =J18-K18 -> 
A19: Monthly Inputs | E19: % Difference | F19: ='Ut 1.7'!J32 -> 9 | H19: =F19-G19 -> 9 | J19: =#REF! ->  | L19: =J19-K19 -> 
A20: Other Inputs
A21: Expenses
A22: Rate Base
D29: Exhibit Headings
D31: UTAH
F32: Questar Gas Company
F33: ="Docket No. "&F5 -> Docket No. 14-057-09
D35: WYOMING
F36: =F32 -> Questar Gas Company
F37: ="PSCW Docket No. "&J5 -> PSCW Docket No. 30010-136-GP-14
D39: Test Year (enter as text)
E40: from | F40: Jun-14
E41: to | F41: May-15

Sheet Application
A1: Application Information
B3: Utah | F3: Wyoming
A4: Utah Gas Costs | B4: ='Ut 1.5'!G41 -> 637506429.8 | E4: Wyoming Gas Costs | F4: =#REF! -> 
A5: Increase (Decrease) to Commodity | B5: ='Utah Summary-by class'!G31 -> 88121000 | E5: Increase (Decrease) to Commodity | F5: =#REF! -> 
A6: Increase (Decrease) to SNG | B6: ='Utah Summary-by class'!N31 -> -4271000
A7: Total Increase (Decrease) | B7: ='Utah Summary-by class'!Q31 -> 83849000
A8: Typical Increase in $ | B8: ='Ut 1.7'!J30 -> 64.44 | E8: Typical Increase in $ | F8: =#REF! -> 
A9: Typical Monthly Increase | B9: =B8/12 -> 5.37 | E9: Typical Monthly Increase | F9: =F8/12 -> 
A10: Typical Increase in % | B10: ='Ut 1.7'!J32/100 -> 0.09 | E10: Typical Increase in % | F10: =#REF!/100 -> 
A11: Proposed Rate Effective Date | B11: ='Control Panel'!F8 -> 2014-06-01 | E11: Proposed Rate Effective Date | F11: ='Control Panel'!J8 -> 2014-06-01
A12: Test Year Ending | B12: ='Control Panel'!F7 -> 2015-05-31 | E12: Test Year Ending | F12: ='Control Panel'!J7 -> 2015-05-31
A13: System-Wide Production Costs | B13: ='Ut 1.1'!I1447 -> 366539229 | E13: System-Wide Production Costs | F13: =#REF! -> 
A14: System-Wide Royalty Payments | B14: ='Ut 1.1'!I1442 -> 52779421.98 | E14: System-Wide Royalty Payments | F14: =#REF! -> 
A15: Wexpro Operators Service Fee | B15: ='Ut 1.1'!I1444 -> 313759807 | E15: Wexpro Operators Service Fee | F15: =#REF! -> 
A16: Purchased Gas Costs | B16: ='Ut 1.2'!G24 -> 206687913 | E16: Purchased Gas Costs | F16: =#REF! -> 
A17: Purchased Gas Costs per Dth | B17: ='Ut 1.2'!F24 -> 4.87132063 | E17: Purchased Gas Costs per Dth | F17: =#REF! -> 
A18: Contracted Dth | B18: ='Ut 1.2'!E17 -> 18530000 | C18: Dth | E18: Contracted Dth | F18: =#REF! ->  | G18: Dth
A19: Contracted Dth Costs | B19: ='Ut 1.2'!G17 -> 95684681 | E19: Contracted Dth Costs | F19: =#REF! -> 
A20: Stabailization Costs | B20: ='Ut 1.2'!G16 -> 0 | E20: Stabailization Costs | F20: =#REF! -> 
A21: Spot Market Dth | B21: ='Ut 1.2'!E19 -> 23899544 | C21: Dth | E21: Spot Market Dth | F21: =#REF! ->  | G21: Dth
A22: Spot Market Costs | B22: ='Ut 1.2'!G19 -> 111003232 | E22: Spot Market Costs | F22: =#REF! -> 
A23: Purchased Gas Dth | B23: ='Ut 1.2'!E24 -> 42429544 | C23: Dth | E23: Purchased Gas Dth | F23: =#REF! ->  | G23: Dth
A24: Future Contract Dth | B24: ='Ut 1.2'!E21 -> 4.656612873e-10 | C24: Dth | E24: Future Contract Dth | F24: =#REF! ->  | G24: Dth
A25: Future Contract Costs | B25: ='Ut 1.2'!G21 -> 0 | E25: Future Contract Costs | F25: =#REF! -> 
A26: Transportation & Gathering Costs | B26: ='Ut 1.3 p1'!M61 -> 85008333 | E26: Transportation & Gathering Costs | F26: =#REF! -> 
A27: Transportation Costs | B27: ='Ut 1.3 p1'!M29 -> 62337576 | E27: Kern River Transportation Costs | F27: =#REF! -> 
A28: Capacity Release Credits | B28: =-'Ut 1.3 p1'!L20 -> 200098 | E28: Capacity Release Credits | F28: =-#REF! -> 
A29: Transportation Commodity Costs | B29: ='Ut 1.3 p1'!M44 -> 514978 | E29: Transportation Commodity Costs | F29: =#REF! -> 
E30: QGM Gathering Costs | F30: =#REF! -> 
A31: Other Trans. & Gathering Costs | B31: ='Ut 1.3 p1'!L54 -> 2414086 | E31: Other Trans. & Gathering Costs | F31: =#REF! -> 
A32: CO2 Processing Costs
A33: Storage & Working Gas Costs | B33: ='Ut 1.3 p1'!L55 -> 3045913 | E33: Storage & Working Gas Costs | F33: =#REF! -> 
A34: Total Other Costs | B34: ='Ut 1.3 p1'!M56 -> 7820809
A35: Storage Costs | B35: ='Ut 1.3 p2'!K56 -> 20829309.12 | E35: Storage Costs | F35: =#REF! -> 
A36: Storage Demand | B36: ='Ut 1.3 p2'!J20 -> 16725058
A37: Storage Commodity | B37: ='Ut 1.3 p2'!J27 -> 144951
A38: Working Storage Gas Return | B38: ='Ut 1.3 p2'!K53 -> 3534015.118 | E38: Working Storage Gas Return | F38: =#REF! -> 
A39: Total Other Revenues | B39: ='Ut 1.4 p3'!H28 -> 33804782
E40: Production Depreciation & Amort. | F40: =#REF! -> 
E41: Return on Production Plant | F41: =#REF! -> 
E42: Total Production Return & Exp. | F42: =#REF! -> 
A43: Utah Gas Costs | B43: ='Ut 1.5'!G41 -> 637506429.8 | E43: Wyoming Gas Costs | F43: =#REF! -> 
A44: Utah Gas Costs | B44: =B43 -> 637506429.8 | E44: Core Customer Gas Costs | F44: =#REF! -> 
A45: Utah Net Gas Costs | B45: ='Ut 1.6 p1'!J16 -> 624903984.6 | E45: Core Customer Unit Cost of Gas | F45: =#REF! -> 
A46: Commodity Portion of Gas Costs | B46: ='Ut 1.6 p1'!J28 -> 526106338.5
A47: Firm Gas Cost | B47: ='Ut 1.6 p1'!F34 -> 5.05224
A48: Current Amortization | B48: ='Ut 1.6 p1'!H35 -> 0.02986 | E48: Current Amortization | F48: =#REF! -> 
A49: Previous Case No. | B49: ='Ut 1.6 p1'!H32 -> 13-057-07
A50: Forecasted 191 Account Balance | B50: ='Ut 1.6 p1'!D55 -> 23288891 | E50: Forecasted 191 Account Balance | F50: =#REF! -> 
A51: Proposed Amortization | B51: ='Ut 1.6 p1'!F35 -> 0.2236448756 | E51: Proposed Amortization | F51: =#REF! -> 
A52: Total Unit Cost in Rates | B52: ='Ut 1.6 p1'!F36 -> 5.275884876 | E52: Total Unit Cost in Rates | F52: =#REF! -> 
A53: Increase in Unit Cost In Rates | B53: ='Ut 1.6 p1'!J36 -> 0.8462348756
A54: Test Year SNG Costs | B54: ='Ut 1.6 p2'!F14 -> 98797646.15
A55: Forested 191 SNG Balance | B55: ='Ut 1.6 p2'!F15 -> -5896338
A56: Total SNG | B56: ='Ut 1.6 p2'!F16 -> 92901308.15
A57: Forecasted Current SNG Revenues | B57: ='Ut 1.6 p2'!F19 -> 97172322.02
A58: % Change in SNG Rates | B58: =-ROUND('Ut 1.6 p2'!F35,2)/100 -> 0.0441
A59: Average Monthly Increase | B59: ='Ut 1.7'!J30/12 -> 5.37 | E59: Typical Increase in $ | F59: =#REF! -> 
A60: Typical Increase in % | B60: ='Ut 1.7'!J32/100 -> 0.09 | E60: Typical Increase in % | F60: =#REF!/100 -> 
A61: Company Owned Gas % | E61: Company Owned Gas % | F61: =Calculations!P176 -> 0.6369323036
A62: Utah Gas Costs | B62: ='Ut 1.5'!G41 -> 637506429.8 | E62: Wyoming Gas Costs | F62: =#REF! -> 

Sheet Monthly Inputs
A1: MONTHLY INPUTS | E1: Col. E-F, copy from col. J-K (or appropriate columns), rows 3 through 81, before updating test year
G2: TEST YEAR COLUMNS | S2: 12-Month
E3: Apr14 | F3: May14 | G3: Jun14 | H3: Jul14 | I3: Aug14 | J3: Sep14 | K3: Oct14 | L3: Nov14 | M3: Dec14 | N3: Jan15 | O3: Feb15 | P3: Mar15 | Q3: Apr15 | R3: May15 | S3: Total
E4: =MONTH(E3) -> 4 | F4: =MONTH(F3) -> 5 | G4: =MONTH(G3) -> 6 | H4: 7 | I4: 8 | J4: 9 | K4: 10 | L4: 11 | M4: 12 | N4: 1 | O4: 2 | P4: 3 | Q4: 4 | R4: 5
A5: QGC Company Produced Gas In MDth | G5: Scott Nelsen | I5: Updated: | J5: 2014-04-21
A6: WEXPRO I
B7: Prior Company | E7: 557.42 | F7: 220.05 | G7: ='[1]COSg 1013 to 914'!$F$5 -> 226.55 | H7: ='[1]COSg 1013 to 914'!$F$6 -> 259.17 | I7: ='[1]COSg 1013 to 914'!$F$7 -> 202.52 | J7: ='[1]COSg 1013 to 914'!$F$8 -> 198.14 | K7: ='[1]COSg 1013 to 914'!$F$9 -> 399.55 | L7: ='[1]COSg 1013 to 914'!$F$10 -> 393.16 | M7: ='[1]COSg 1013 to 914'!$F$11 -> 519.48 | N7: ='[1]COSg 1013 to 914'!$F$12 -> 552.49 | O7: ='[1]COSg 1013 to 914'!$F$13 -> 511.54 | P7: ='[1]COSg 1013 to 914'!$F$14 -> 560.35 | Q7: ='[1]COSg 1013 to 914'!$F$15 -> 456.59 | R7: ='[1]COSg 1013 to 914'!$F$16 -> 181 | S7: =SUM(G7:R7) -> 4460.54 | U7: ScottN
B8: D24 & D21 | E8: 6263.971 | F8: 6609.6206 | G8: ='[1]COSg 1013 to 914'!$E$5+'[1]COSg 1013 to 914'!$G$5 -> 5521.4899 | H8: ='[1]COSg 1013 to 914'!$E$6+'[1]COSg 1013 to 914'!$G$6 -> 5519.7684 | I8: ='[1]COSg 1013 to 914'!$E$7+'[1]COSg 1013 to 914'!$G$7 -> 5452.6532 | J8: ='[1]COSg 1013 to 914'!$E$8+'[1]COSg 1013 to 914'!$G$8 -> 5155.7735 | K8: ='[1]COSg 1013 to 914'!$E$9+'[1]COSg 1013 to 914'!$G$9 -> 5167.1333 | L8: ='[1]COSg 1013 to 914'!$E$10+'[1]COSg 1013 to 914'!$G$10 -> 5010.7088 | M8: ='[1]COSg 1013 to 914'!$E$11+'[1]COSg 1013 to 914'!$G$11 -> 5214.3854 | N8: ='[1]COSg 1013 to 914'!$E$12+'[1]COSg 1013 to 914'!$G$12 -> 5014.3058 | O8: ='[1]COSg 1013 to 914'!$E$13+'[1]COSg 1013 to 914'!$G$13 -> 4394.8811 | P8: ='[1]COSg 1013 to 914'!$E$14+'[1]COSg 1013 to 914'!$G$14 -> 4752.8027 | Q8: ='[1]COSg 1013 to 914'!$E$15+'[1]COSg 1013 to 914'!$G$15 -> 4721.897 | R8: ='[1]COSg 1013 to 914'!$E$16+'[1]COSg 1013 to 914'!$G$16 -> 5411.4312 | S8: =SUM(G8:R8) -> 61337.2303 | U8: ScottN
B9: Total Prior Company & D24 | E9: 6821.391 | F9: 6829.6706 | G9: =SUM(G7:G8) -> 5748.0399 | H9: =SUM(H7:H8) -> 5778.9384 | I9: 5655.1732 | J9: 5353.9135 | K9: 5566.6833 | L9: 5403.8688 | M9: 5733.8654 | N9: 5566.7958 | O9: 4906.4211 | P9: 5313.1527 | Q9: 5178.487 | R9: 5592.4312 | S9: =SUM(G9:R9) -> 65797.7703
S10: Delete yellow after links are fixed in 191 forecast
B11: Brady | E11: 6.73 | F11: 8.5603 | G11: ='[1]COSg 1013 to 914'!$D$5 -> 7.5588 | H11: ='[1]COSg 1013 to 914'!$D$6 -> 6.732 | I11: ='[1]COSg 1013 to 914'!$D$7 -> 4.6318 | J11: ='[1]COSg 1013 to 914'!$D$8 -> 3.4591 | K11: ='[1]COSg 1013 to 914'!$D$9 -> 2.1625 | L11: ='[1]COSg 1013 to 914'!$D$10 -> 2.2798 | M11: ='[1]COSg 1013 to 914'!$D$11 -> 0.9416 | N11: ='[1]COSg 1013 to 914'!$D$12 -> 5.3447 | O11: ='[1]COSg 1013 to 914'!$D$13 -> 4.2761 | P11: ='[1]COSg 1013 to 914'!$D$14 -> 5.3775 | Q11: ='[1]COSg 1013 to 914'!$D$15 -> 4.7795 | R11: ='[1]COSg 1013 to 914'!$D$16 -> 6.4514 | S11: =SUM(G11:R11) -> 53.9948 | U11: ScottN
B12: Total Company Produced Gas (MDth) | E12: 6828.121 | F12: 6838.2309 | G12: =SUM(G9:G11) -> 5755.5987 | H12: =SUM(H9:H11) -> 5785.6704 | I12: 5659.805 | J12: 5357.3726 | K12: 5568.8458 | L12: 5406.1486 | M12: 5734.807 | N12: 5572.1405 | O12: 4910.6972 | P12: 5318.5302 | Q12: 5183.2665 | R12: =SUM(R9:R11) -> 5598.8826 | S12: =SUM(G12:R12) -> 65851.7651 | T12: =SUM(S9+S11) -> 65851.7651 | U12: =IF((S12*1000)=S16,"Ok","Check !!") -> Check !!
B16: Company Production In Dth | E16: 6828121 | F16: 6838230.9 | G16: 6164492 | H16: 6201349 | I16: 6051447 | J16: 5847084 | K16: 5899016 | L16: 5998134 | M16: 6017348 | N16: 5864966 | O16: 5177612 | P16: 5613942 | Q16: 5413002 | R16: 5568254 | S16: =SUM(G16:R16) -> 69816646 | U16: ScottN | V16: For this pass through only we used Mike Neese Production #'s since we didn't have an updated IRP
B17: Birch Cr Gathering | E17: 0 | F17: 0 | G17: =G16/$S$16*$S$17 -> 0 | H17: =H16/$S$16*$S$17 -> 0 | I17: =I16/$S$16*$S$17 -> 0 | J17: 0 | K17: 0 | L17: 0 | M17: 0 | N17: 0 | O17: 0 | P17: 0 | Q17: 0 | R17: =R16/$S$16*$S$17 -> 0 | S17: ='Other Inputs'!$D$164 -> 0
B18: QGM Gathering | E18: =E16/$S$16*$S$18 -> 4192886.754 | F18: =F16/$S$16*$S$18 -> 4199094.855 | G18: =G16/$S$16*$S$18 -> 3785377.683 | H18: =H16/$S$16*$S$18 -> 3808010.151 | I18: 3715961.092 | J18: 3590469.626 | K18: 3622359.072 | L18: 3683223.627 | M18: 3695022.207 | N18: 3601450.275 | O18: 3179372.593 | P18: 3447306.082 | Q18: 3323916.548 | R18: =R16/$S$16*$S$18 -> 3419250.836 | S18: ='Other Inputs'!$D$178 -> 42871719.79
A21: WEXPRO II
B22: Company Production In Dth | E22: 435046 | F22: 440112 | G22: 417332 | H22: 422879 | I22: 414971 | J22: 394330 | K22: 400353 | L22: 380879 | M22: 387110 | N22: 380935 | O22: 338735 | P22: 369368 | Q22: 352198 | R22: 358722 | S22: =SUM(G22:R22) -> 4617812 | U22: ScottN | V22: For this pass through only we used Mike Neese Production #'s since we didn't have an updated IRP
B23: Samson Gathering | E23: =E22/$S$22*$S$23 -> 435046.0261 | F23: 440112.0264 | G23: 417332.025 | H23: 422879.0253 | I23: 414971.0249 | J23: 394330.0236 | K23: 400353.024 | L23: 380879.0228 | M23: 387110.0232 | N23: 380935.0228 | O23: 338735.0203 | P23: 369368.0221 | Q23: 352198.0211 | R23: =R22/$S$22*$S$23 -> 358722.0215 | S23: ='Other Inputs'!D181 -> 4617812.277
D30: 1000
B32: Injections in Dth
C33: Chalk Creek | E33: 0 | F33: 0 | G33: ='[1]COSg 1013 to 914'!$D$62*1000 -> 0 | H33: ='[1]COSg 1013 to 914'!$D$63*1000 -> 0 | I33: ='[1]COSg 1013 to 914'!$D$64*1000 -> 0 | J33: ='[1]COSg 1013 to 914'!$D$65*1000 -> 143921 | K33: ='[1]COSg 1013 to 914'!$D$66*1000 -> 181406 | L33: ='[1]COSg 1013 to 914'!$D$67*1000 -> 0 | M33: ='[1]COSg 1013 to 914'!$D$68*1000 -> 0 | N33: ='[1]COSg 1013 to 914'!$D$69*1000 -> 0 | O33: ='[1]COSg 1013 to 914'!$D$70*1000 -> 0 | P33: ='[1]COSg 1013 to 914'!$D$71*1000 -> 0 | Q33: ='[1]COSg 1013 to 914'!$D$72*1000 -> 0 | R33: ='[1]COSg 1013 to 914'!$D$73*1000 -> 0 | S33: =SUM(G33:R33) -> 325327 | U33: ScottN
C34: Clay Basin | E34: 255930 | F34: 1814630 | G34: =('[1]COSg 1013 to 914'!$D$43*1000)+14719 -> 2539739 | H34: =('[1]COSg 1013 to 914'!$D$44*1000)+587202 -> 2992222 | I34: =('[1]COSg 1013 to 914'!$D$45*1000)+484875 -> 2695425 | J34: ='[1]COSg 1013 to 914'!$D$46*1000 -> 1927450 | K34: ='[1]COSg 1013 to 914'!$D$47*1000 -> 1862260 | L34: ='[1]COSg 1013 to 914'!$D$48*1000 -> 363100 | M34: ='[1]COSg 1013 to 914'!$D$49*1000 -> 0 | N34: ='[1]COSg 1013 to 914'!$D$50*1000 -> 0 | O34: ='[1]COSg 1013 to 914'!$D$51*1000 -> 0 | P34: ='[1]COSg 1013 to 914'!$D$52*1000 -> 0 | Q34: ='[1]COSg 1013 to 914'!$D$53*1000 -> 269360 | R34: =('[1]COSg 1013 to 914'!$D$54*1000)+196563 -> 1168493 | S34: =SUM(G34:R34) -> 13818049 | U34: ScottN
C35: Coalville | E35: 0 | F35: 0 | G35: ='[1]COSg 1013 to 914'!$D$81*1000 -> 0 | H35: ='[1]COSg 1013 to 914'!$D$82*1000 -> 0 | I35: ='[1]COSg 1013 to 914'!$D$83*1000 -> 157777 | J35: ='[1]COSg 1013 to 914'!$D$84*1000 -> 281370 | K35: ='[1]COSg 1013 to 914'!$D$85*1000 -> 265704 | L35: ='[1]COSg 1013 to 914'!$D$86*1000 -> 28425 | M35: ='[1]COSg 1013 to 914'!$D$87*1000 -> 0 | N35: ='[1]COSg 1013 to 914'!$D$88*1000 -> 0 | O35: ='[1]COSg 1013 to 914'!$D$89*1000 -> 0 | P35: ='[1]COSg 1013 to 914'!$D$90*1000 -> 0 | Q35: ='[1]COSg 1013 to 914'!$E$91*1000 -> 0 | R35: ='[1]COSg 1013 to 914'!$E$92*1000 -> 0 | S35: 733276 | U35: ScottN
C36: Leroy | E36: 0 | F36: 0 | G36: ='[1]COSg 1013 to 914'!$D$100*1000 -> 0 | H36: ='[1]COSg 1013 to 914'!$D$101*1000 -> 0 | I36: ='[1]COSg 1013 to 914'!$D$102*1000 -> 0 | J36: ='[1]COSg 1013 to 914'!$D$103*1000 -> 603926 | K36: ='[1]COSg 1013 to 914'!$D$104*1000 -> 312266 | L36: ='[1]COSg 1013 to 914'!$D$105*1000 -> 0 | M36: ='[1]COSg 1013 to 914'!$D$106*1000 -> 0 | N36: ='[1]COSg 1013 to 914'!$D$107*1000 -> 0 | O36: ='[1]COSg 1013 to 914'!$D$108*1000 -> 0 | P36: ='[1]COSg 1013 to 914'!$D$109*1000 -> 0 | Q36: ='[1]COSg 1013 to 914'!$D$110*1000 -> 0 | R36: ='[1]COSg 1013 to 914'!$D$111*1000 -> 0 | S36: 916192 | U36: ScottN
C37: Ryckman | E37: 214920 | F37: 370410 | G37: ='[1]COSg 1013 to 914'!$D$119*1000 -> 358462 | H37: ='[1]COSg 1013 to 914'!$D$120*1000 -> 370410 | I37: ='[1]COSg 1013 to 914'!$D$121*1000 -> 370410 | J37: ='[1]COSg 1013 to 914'!$D$122*1000 -> 358462 | K37: ='[1]COSg 1013 to 914'!$D$123*1000 -> 0 | L37: ='[1]COSg 1013 to 914'!$D$124*1000 -> 0 | M37: ='[1]COSg 1013 to 914'!$D$125*1000 -> 0 | N37: ='[1]COSg 1013 to 914'!$D$126*1000 -> 0 | O37: ='[1]COSg 1013 to 914'!$D$127*1000 -> 0 | P37: ='[1]COSg 1013 to 914'!$D$128*1000 -> 0 | Q37: ='[1]COSg 1013 to 914'!$D$129*1000 -> 0 | R37: ='[1]COSg 1013 to 914'!$D$130*1000 -> 0 | S37: 1457744 | U37: ScottN
C38: Total Injections | E38: 470850 | F38: 2185040 | G38: =SUM(G33:G37) -> 2898201 | H38: 3362632 | I38: 3223612 | J38: 3315129 | K38: 2621636 | L38: 391525 | M38: 0 | N38: 0 | O38: 0 | P38: 0 | Q38: 269360 | R38: 1168493 | S38: 17250588
B40: Withdrawls In Dth
C41: Chalk Creek | E41: 0 | F41: 0 | G41: ='[1]COSg 1013 to 914'!$E$62*1000 -> 0 | H41: ='[1]COSg 1013 to 914'!$E$63*1000 -> 0 | I41: ='[1]COSg 1013 to 914'!$E$64*1000 -> 0 | J41: ='[1]COSg 1013 to 914'!$E$65*1000 -> 0 | K41: ='[1]COSg 1013 to 914'!$E$66*1000 -> 0 | L41: ='[1]COSg 1013 to 914'!$E$67*1000 -> 0 | M41: ='[1]COSg 1013 to 914'!$E$68*1000 -> 0 | N41: ='[1]COSg 1013 to 914'!$E$69*1000 -> 324899 | O41: ='[1]COSg 1013 to 914'!$E$70*1000 -> 0 | P41: ='[1]COSg 1013 to 914'!$E$71*1000 -> 0 | Q41: ='[1]COSg 1013 to 914'!$E$72*1000 -> 0 | R41: ='[1]COSg 1013 to 914'!$E$73*1000 -> 0 | S41: =SUM(G41:R41) -> 324899 | U41: ScottN
C42: Clay Basin | E42: 252680 | F42: 145370 | G42: ='[1]COSg 1013 to 914'!$E$43*1000 -> 0 | H42: ='[1]COSg 1013 to 914'!$E$44*1000 -> 0 | I42: ='[1]COSg 1013 to 914'!$E$45*1000 -> 0 | J42: ='[1]COSg 1013 to 914'!$E$46*1000 -> 0 | K42: ='[1]COSg 1013 to 914'!$E$47*1000 -> 6880 | L42: ='[1]COSg 1013 to 914'!$E$48*1000 -> 0 | M42: ='[1]COSg 1013 to 914'!$E$49*1000 -> 3561320 | N42: ='[1]COSg 1013 to 914'!$E$50*1000 -> 5073660 | O42: ='[1]COSg 1013 to 914'!$E$51*1000 -> 3567490 | P42: ='[1]COSg 1013 to 914'!$E$52*1000 -> 314840 | Q42: ='[1]COSg 1013 to 914'!$E$53*1000 -> 265940 | R42: ='[1]COSg 1013 to 914'!$E$54*1000 -> 157170 | S42: =SUM(G42:R42) -> 12947300 | U42: ScottN
C43: Coalville | E43: 0 | F43: 0 | G43: ='[1]COSg 1013 to 914'!$E$81*1000 -> 0 | H43: ='[1]COSg 1013 to 914'!$E$82*1000 -> 0 | I43: ='[1]COSg 1013 to 914'!$E$83*1000 -> 0 | J43: ='[1]COSg 1013 to 914'!$E$84*1000 -> 0 | K43: ='[1]COSg 1013 to 914'!$E$85*1000 -> 0 | L43: ='[1]COSg 1013 to 914'!$E$86*1000 -> 0 | M43: ='[1]COSg 1013 to 914'!$E$87*1000 -> 0 | N43: ='[1]COSg 1013 to 914'!$E$88*1000 -> 729858 | O43: ='[1]COSg 1013 to 914'!$E$89*1000 -> 0 | P43: ='[1]COSg 1013 to 914'!$E$90*1000 -> 0 | Q43: ='[1]COSg 1013 to 914'!$E$91*1000 -> 0 | R43: ='[1]COSg 1013 to 914'!$E$92*1000 -> 0 | S43: 729858 | U43: ScottN
C44: Leroy | E44: 0 | F44: 0 | G44: ='[1]COSg 1013 to 914'!$E$100*1000 -> 0 | H44: ='[1]COSg 1013 to 914'!$E$101*1000 -> 0 | I44: ='[1]COSg 1013 to 914'!$E$102*1000 -> 0 | J44: ='[1]COSg 1013 to 914'!$E$103*1000 -> 0 | K44: ='[1]COSg 1013 to 914'!$E$104*1000 -> 0 | L44: ='[1]COSg 1013 to 914'!$E$105*1000 -> 0 | M44: ='[1]COSg 1013 to 914'!$E$106*1000 -> 0 | N44: ='[1]COSg 1013 to 914'!$E$107*1000 -> 919517 | O44: ='[1]COSg 1013 to 914'!$E$108*1000 -> 0 | P44: ='[1]COSg 1013 to 914'!$E$109*1000 -> 0 | Q44: ='[1]COSg 1013 to 914'!$E$110*1000 -> 0 | R44: ='[1]COSg 1013 to 914'!$E$111*1000 -> 0 | S44: 919517 | U44: ScottN
C45: Ryckman | E45: 0 | F45: 0 | G45: ='[1]COSg 1013 to 914'!$E$119*1000 -> 0 | H45: ='[1]COSg 1013 to 914'!$E$120*1000 -> 0 | I45: ='[1]COSg 1013 to 914'!$E$121*1000 -> 0 | J45: ='[1]COSg 1013 to 914'!$E$122*1000 -> 0 | K45: ='[1]COSg 1013 to 914'!$E$123*1000 -> 0 | L45: ='[1]COSg 1013 to 914'!$E$124*1000 -> 498000 | M45: ='[1]COSg 1013 to 914'!$E$125*1000 -> 514600 | N45: ='[1]COSg 1013 to 914'!$E$126*1000 -> 514600 | O45: ='[1]COSg 1013 to 914'!$E$127*1000 -> 464800 | P45: ='[1]COSg 1013 to 914'!$E$128*1000 -> 0 | Q45: ='[1]COSg 1013 to 914'!$E$129*1000 -> 0 | R45: ='[1]COSg 1013 to 914'!$E$130*1000 -> 0 | S45: 1992000 | U45: ScottN
C46: Total Withdrawls | E46: 252680 | F46: 145370 | G46: =SUM(G41:G45) -> 0 | H46: 0 | I46: 0 | J46: 0 | K46: 6880 | L46: 498000 | M46: 4075920 | N46: 7562534 | O46: 4032290 | P46: 314840 | Q46: 265940 | R46: 157170 | S46: 16913574
B48: Lost & Unaccounted for on QPC
A51: Injection and Withdrawl Used, Lost and Unaccounted For
D52: Gas Use
D53: %
B54: Injections in Dth
C55: Chalk Creek | D55: ='Other Inputs'!E139 -> 0.0133 | E55: 0 | F55: 0 | G55: =G33*-$D55 -> 0 | H55: =H33*-$D55 -> 0 | I55: =I33*-$D55 -> 0 | J55: =J33*-$D55 -> -1914.1493 | K55: -2412.6998 | L55: 0 | M55: 0 | N55: 0 | O55: 0 | P55: 0 | Q55: 0 | R55: 0 | S55: =SUM(G55:R55) -> -4326.8491
C56: Clay Basin | D56: ='Other Inputs'!E148 -> 0.02047 | E56: -5238.8871 | F56: -37145.4761 | G56: =G34*-$D56 -> -51988.45733 | H56: =H34*-$D56 -> -61250.78434 | I56: =I34*-$D56 -> -55175.34975 | J56: =J34*-$D56 -> -39454.9015 | K56: -38120.4622 | L56: -7432.657 | M56: 0 | N56: =N34*-$D56 -> 0 | O56: 0 | P56: 0 | Q56: -5513.7992 | R56: -23919.05171 | S56: =SUM(G56:R56) -> -282855.463
C57: Coalville | D57: ='Other Inputs'!E151 -> 0.0176 | E57: 0 | F57: 0 | G57: =G35*-$D57 -> 0 | H57: 0 | I57: -2776.8752 | J57: -4952.112 | K57: -4676.3904 | L57: -500.28 | M57: 0 | N57: 0 | O57: 0 | P57: 0 | Q57: 0 | R57: 0 | S57: =SUM(G57:R57) -> -12905.6576
C58: Leroy | D58: ='Other Inputs'!E145 -> 0.0319 | E58: 0 | F58: 0 | G58: =G36*-$D58 -> 0 | H58: 0 | I58: 0 | J58: -19265.2394 | K58: -9961.2854 | L58: 0 | M58: 0 | N58: 0 | O58: 0 | P58: 0 | Q58: 0 | R58: 0 | S58: =SUM(G58:R58) -> -29226.5248
C59: Ryckman | D59: ='Other Inputs'!E142 -> 0.025 | E59: -5373 | F59: -9260.25 | G59: -8961.55 | H59: -9260.25 | I59: -9260.25 | J59: -8961.55 | K59: 0 | L59: 0 | M59: 0 | N59: 0 | O59: 0 | P59: 0 | Q59: 0 | R59: 0 | S59: =SUM(G59:R59) -> -36443.6
C60: Total Injections | E60: -10611.8871 | F60: -46405.7261 | G60: =SUM(G55:G59) -> -60950.00733 | H60: -70511.03434 | I60: -67212.47495 | J60: -74547.9522 | K60: -55170.8378 | L60: -7932.937 | M60: 0 | N60: 0 | O60: 0 | P60: 0 | Q60: -5513.7992 | R60: -23919.05171 | S60: =SUM(S55:S59) -> -365758.0945
B62: Withdrawls In Dth
C63: Chalk Creek | D63: ='Other Inputs'!E140 -> 0.012 | E63: 0 | F63: 0 | G63: =G41*-$D63 -> 0 | H63: 0 | I63: 0 | J63: 0 | K63: 0 | L63: 0 | M63: 0 | N63: -3898.788 | O63: 0 | P63: 0 | Q63: 0 | R63: 0 | S63: =SUM(G63:R63) -> -3898.788
C64: Clay Basin | D64: ='Other Inputs'!E149 -> 0.0079 | E64: -1996.172 | F64: -1148.423 | G64: =G42*-$D64 -> 0 | H64: 0 | I64: 0 | J64: 0 | K64: -54.352 | L64: 0 | M64: -28134.428 | N64: -40081.914 | O64: -28183.171 | P64: -2487.236 | Q64: -2100.926 | R64: -1241.643 | S64: =SUM(G64:R64) -> -102283.67
C65: Coalville | D65: ='Other Inputs'!E152 -> 0.013 | E65: 0 | F65: 0 | G65: =G43*-$D65 -> 0 | H65: 0 | I65: 0 | J65: 0 | K65: =K43*-$D65 -> 0 | L65: 0 | M65: 0 | N65: -9488.154 | O65: 0 | P65: 0 | Q65: 0 | R65: 0 | S65: =SUM(G65:R65) -> -9488.154
C66: Leroy | D66: ='Other Inputs'!E146 -> 0.0354 | E66: 0 | F66: 0 | G66: =G44*-$D66 -> 0 | H66: 0 | I66: 0 | J66: 0 | K66: 0 | L66: 0 | M66: 0 | N66: -32550.9018 | O66: 0 | P66: 0 | Q66: 0 | R66: 0 | S66: =SUM(G66:R66) -> -32550.9018
C67: Ryckman | D67: ='Other Inputs'!E143 -> 0 | E67: 0 | F67: 0 | G67: 0 | H67: 0 | I67: 0 | J67: 0 | K67: 0 | L67: 0 | M67: 0 | N67: =N45*-$D67 -> 0 | O67: 0 | P67: 0 | Q67: 0 | R67: 0 | S67: =SUM(G67:R67) -> 0
C68: Total Withdrawls | E68: -1996.172 | F68: -1148.423 | G68: =SUM(G63:G67) -> 0 | H68: 0 | I68: 0 | J68: 0 | K68: =SUM(K63:K67) -> -54.352 | L68: 0 | M68: -28134.428 | N68: -86019.7578 | O68: -28183.171 | P68: -2487.236 | Q68: -2100.926 | R68: -1241.643 | S68: =SUM(S63:S67) -> -148221.5138
B70: QPC Transportation Loss
C71: Chalk Creek | D71: ='Other Inputs'!$E$290 -> 0.0172 | E71: 0 | F71: 0 | G71: =G41*-$D71 -> 0 | H71: 0 | I71: 0 | J71: 0 | K71: 0 | L71: 0 | M71: 0 | N71: -5588.2628 | O71: 0 | P71: 0 | Q71: 0 | R71: 0 | S71: =SUM(G71:R71) -> -5588.2628
C72: Clay Basin | D72: ='Other Inputs'!$E$290 -> 0.0172 | E72: -4346.096 | F72: -2500.364 | G72: =G42*-$D72 -> 0 | H72: 0 | I72: 0 | J72: 0 | K72: -118.336 | L72: 0 | M72: -61254.704 | N72: -87266.952 | O72: -61360.828 | P72: -5415.248 | Q72: -4574.168 | R72: -2703.324 | S72: =SUM(G72:R72) -> -222693.56
C73: Coalville | D73: ='Other Inputs'!$E$290 -> 0.0172 | E73: 0 | F73: 0 | G73: =G43*-$D73 -> 0 | H73: 0 | I73: 0 | J73: 0 | K73: 0 | L73: 0 | M73: 0 | N73: -12553.5576 | O73: 0 | P73: 0 | Q73: 0 | R73: 0 | S73: =SUM(G73:R73) -> -12553.5576
C74: Leroy | D74: ='Other Inputs'!$E$290 -> 0.0172 | E74: 0 | F74: 0 | G74: =G44*-$D74 -> 0 | H74: 0 | I74: 0 | J74: 0 | K74: 0 | L74: 0 | M74: 0 | N74: -15815.6924 | O74: 0 | P74: 0 | Q74: 0 | R74: 0 | S74: =SUM(G74:R74) -> -15815.6924
C75: Ryckman | D75: ='Other Inputs'!$E$290 -> 0.0172 | E75: 0 | F75: 0 | G75: 0 | H75: 0 | I75: 0 | J75: 0 | K75: 0 | L75: -8565.6 | M75: -8851.12 | N75: =N45*-$D75 -> -8851.12 | O75: -7994.56 | P75: 0 | Q75: 0 | R75: 0 | S75: =SUM(G75:R75) -> -34262.4
C76: Total Withdrawls | E76: -4346.096 | F76: -2500.364 | G76: =SUM(G71:G75) -> 0 | H76: 0 | I76: 0 | J76: 0 | K76: -118.336 | L76: -8565.6 | M76: -70105.824 | N76: -130075.5848 | O76: -69355.388 | P76: -5415.248 | Q76: -4574.168 | R76: -2703.324 | S76: -290913.4728
B79: Total Injections & Withdrawls | E79: -12608.0591 | F79: -47554.1491 | G79: =G60+G68 -> -60950.00733 | H79: =H60+H68 -> -70511.03434 | I79: =I60+I68 -> -67212.47495 | J79: -74547.9522 | K79: =K60+K68 -> -55225.1898 | L79: -7932.937 | M79: -28134.428 | N79: -86019.7578 | O79: -28183.171 | P79: -2487.236 | Q79: -7614.7252 | R79: -25160.69471 | S79: =S60+S68 -> -513979.6083
R81: Fuel Factor | S81: =-S79/(S46+S38) -> 0.01504440847
S83: 12-Month
E84: =E3 -> Apr14 | F84: May14 | G84: Jun14 | H84: Jul14 | I84: Aug14 | J84: Sep14 | K84: Oct14 | L84: Nov14 | M84: Dec14 | N84: Jan15 | O84: Feb15 | P84: Mar15 | Q84: Apr15 | R84: May15 | S84: Total
I86: Updated: | J86: 2014-04-21 | K86: EXH 1.2
A87: Natural Gas Spot Price Forecast - Average of GI, Cera & Pira | E87: (Forecast --->) | G87: (Forecast --->)
B88: Kern River Opal, Wyoming | E88: 4.28 | F88: =TRANSPOSE('Graph (Ex 1.10) Inputs'!F2:F14) -> 4.81 | G88: 4.69 | H88: 4.905 | I88: 4.815 | J88: 4.72 | K88: 4.72 | L88: 4.82 | M88: 4.965 | N88: 4.875 | O88: 4.78 | P88: 4.525 | Q88: 4.175 | R88: 4.055
B91: Spot Purchases from IRP | G91: =471.368-471.368 -> 0 | H91: =54.476-54.476 -> 0 | I91: =130.634-130.634 -> 0 | J91: =2028.701-512.626 -> 1516.075 | K91: =3876.959-339.772 -> 3537.187 | L91: =6504.522-2628.004 -> 3876.518 | M91: =7381.126-4519.39 -> 2861.736 | N91: =7106.032-6342.179 -> 763.853 | O91: =7288.346-5195.603 -> 2092.743 | P91: =6816.705-1369.059 -> 5447.646 | Q91: =4228.61-424.824 -> 3803.786 | R91: 0 | S91: =SUM(G91:R91) -> 23899.544 | U91: Scott N
C92: In DTH | G92: =G91*1000 -> 0 | H92: =H91*1000 -> 0 | I92: 0 | J92: 1516075 | K92: 3537187 | L92: 3876518 | M92: 2861736 | N92: 763853 | O92: 2092743 | P92: 5447646 | Q92: 3803786 | R92: 0 | S92: =SUM(G92:R92) -> 23899544
C93: In $ | G93: =G92*G88 -> 0 | H93: 0 | I93: 0 | J93: 7155874 | K93: =K92*K88 -> 16695522.64 | L93: 18684816.76 | M93: 14208519.24 | N93: 3723783.375 | O93: 10003311.54 | P93: 24650598.15 | Q93: 15880806.55 | R93: 0 | S93: =SUM(G93:R93) -> 111003232.3
A96: CONTRACT PURCHASES | G96: 1000000 | I96: Updated: | J96: 2014-04-28
B97: RESET FORMULAS TO Brent's WORKSHEET
B98: Peaking Purchases (DTH) | G98: ='[2]Peaking Purchases'!$L$10 -> 0 | H98: ='[2]Peaking Purchases'!$N$10 -> 0 | I98: ='[2]Peaking Purchases'!$P$10 -> 0 | J98: ='[2]Peaking Purchases'!$R$10 -> 0 | K98: ='[2]Peaking Purchases'!$T$10 -> 0 | L98: ='[2]Peaking Purchases'!$V$10 -> 1000000 | M98: ='[2]Peaking Purchases'!$X$10 -> 4000000 | N98: ='[2]Peaking Purchases'!$Z$10 -> 5000000 | O98: ='[2]Peaking Purchases'!$AB$10 -> 4000000 | P98: ='[2]Peaking Purchases'!$AD$10 -> 0 | Q98: ='[2]Peaking Purchases'!$AF$10 -> 0 | R98: ='[2]Peaking Purchases'!$AH$10 -> 0 | S98: =SUM(G98:R98) -> 14000000 | T98: =S99/S98 -> 5.194645882
B99: Peaking Purchases ($) | G99: ='[2]Peaking Purchases'!$M$10 -> 0 | H99: ='[2]Peaking Purchases'!$O$10 -> 0 | I99: ='[2]Peaking Purchases'!$Q$10 -> 0 | J99: ='[2]Peaking Purchases'!$S$10 -> 0 | K99: ='[2]Peaking Purchases'!$U$10 -> 0 | L99: ='[2]Peaking Purchases'!$W$10 -> 5142055.075 | M99: ='[2]Peaking Purchases'!$Y$10 -> 21208456.22 | N99: ='[2]Peaking Purchases'!$AA$10 -> 25977040.34 | O99: ='[2]Peaking Purchases'!$AC$10 -> 20397490.72 | P99: ='[2]Peaking Purchases'!$AE$10 -> 0 | Q99: ='[2]Peaking Purchases'!$AG$10 -> 0 | R99: ='[2]Peaking Purchases'!$AI$10 -> 0 | S99: =SUM(G99:R99) -> 72725042.35
B101: Term Purchases (DTH) | G101: ='[2]Term Purchases'!$K$8 -> 0 | H101: ='[2]Term Purchases'!$M$8 -> 0 | I101: ='[2]Term Purchases'!$O$8 -> 0 | J101: ='[2]Term Purchases'!$Q$8 -> 0 | K101: ='[2]Term Purchases'!$S$8 -> 0 | L101: ='[2]Term Purchases'!$U$8 -> 900000 | M101: ='[2]Term Purchases'!$W$8 -> 930000 | N101: ='[2]Term Purchases'!$Y$8 -> 930000 | O101: ='[2]Term Purchases'!$AA$8 -> 840000 | P101: ='[2]Term Purchases'!$AC$8 -> 930000 | Q101: ='[2]Term Purchases'!$AE$8 -> 0 | R101: ='[2]Term Purchases'!$AG$8 -> 0 | S101: =SUM(G101:R101) -> 4530000
B102: Term Purchases ($) | G102: ='[2]Term Purchases'!$L$8 -> 0 | H102: ='[2]Term Purchases'!$N$8 -> 0 | I102: ='[2]Term Purchases'!$P$8 -> 0 | J102: ='[2]Term Purchases'!$R$8 -> 0 | K102: ='[2]Term Purchases'!$T$8 -> 0 | L102: ='[2]Term Purchases'!$V$8 -> 4586670 | M102: ='[2]Term Purchases'!$X$8 -> 4879059 | N102: ='[2]Term Purchases'!$Z$8 -> 4786059 | O102: ='[2]Term Purchases'!$AB$8 -> 4247292 | P102: ='[2]Term Purchases'!$AD$8 -> 4460559 | Q102: ='[2]Term Purchases'!$AF$8 -> 0 | R102: ='[2]Term Purchases'!$AH$8 -> 0 | S102: =SUM(G102:R102) -> 22959639 | T102: =S102/S101 -> 5.06835298
B103: Stabilization Costs (Winter Months - Oct to Mar) | G103: 0 | H103: 0 | I103: 0 | J103: 0 | K103: 0 | L103: 0 | M103: 0 | N103: 0 | O103: 0 | P103: 0 | Q103: 0 | R103: 0 | S103: =SUM(G103:R103) -> 0
B106: Total Purchases (DTH) | E106: =E98+E101 -> 0 | F106: 0 | G106: 0 | H106: =H98+H101 -> 0 | I106: 0 | J106: 0 | K106: 0 | L106: =L98+L101 -> 1900000 | M106: 4930000 | N106: 5930000 | O106: 4840000 | P106: 930000 | Q106: 0 | R106: 0 | S106: =SUM(G106:R106) -> 18530000 | T106: =S101/S106 -> 0.2444684296
B107: Total Purchases ($) | E107: 0 | F107: 0 | G107: 0 | H107: 0 | I107: 0 | J107: 0 | K107: 0 | L107: =L99+L102 -> 9728725.075 | M107: 26087515.22 | N107: 30763099.34 | O107: 24644782.72 | P107: 4460559 | Q107: 0 | R107: 0 | S107: =SUM(G107:R107) -> 95684681.35
A110: Typical Customer Monthly Usage in Dth
B111: Utah | G111: =VLOOKUP(MONTH(G3),$F$125:$G$136,2,FALSE) -> 3.1 | H111: 2 | I111: 1.8 | J111: 2 | K111: 3.1 | L111: 6.3 | M111: 11.5 | N111: 14.9 | O111: 12.5 | P111: 10.1 | Q111: 8.3 | R111: 4.4 | S111: =SUM(G111:R111) -> 80
B112: Wyoming | G112: =VLOOKUP(MONTH(G3),$F$125:$H$136,3,FALSE) -> 3.7 | H112: 2.3 | I112: 1.7 | J112: 2.1 | K112: 4.1 | L112: 8 | M112: 12.3 | N112: 14.7 | O112: 14.1 | P112: 11.8 | Q112: 9.4 | R112: 5.8 | S112: =SUM(G112:R112) -> 90
A114: INPUTS FROM WEXPRO | G114: =G3 -> Jun14 | H114: =H3 -> Jul14 | I114: Aug14 | J114: Sep14 | K114: Oct14 | L114: Nov14 | M114: Dec14 | N114: Jan15 | O114: Feb15 | P114: Mar15 | Q114: Apr15 | R114: May15 | S114: 12-Month
G115: =G3 -> Jun14 | H115: =H3 -> Jul14 | I115: Aug14 | J115: Sep14 | K115: Oct14 | L115: Nov14 | M115: Dec14 | N115: Jan15 | O115: Feb15 | P115: Mar15 | Q115: Apr15 | R115: May15 | S115: Total
A116: Wexpro I Operator Fee (Wexpro forecast) | E116: Updated Mike Neese 4/23/2014 | G116: 26895732 | H116: 26996590 | I116: 26235885 | J116: 26088493 | K116: 26190191 | L116: 25599350 | M116: 26056971 | N116: 26687539 | O116: 26509901 | P116: 25977309 | Q116: 25309587 | R116: 25212259 | S116: =SUM(G116:R116) -> 313759807
A118: Wexpro II Operator Fee (Wexpro forecast) | E118: Updated Mike Neese 4/23/2014 | G118: =2276737-(G22/$S$22*'Ut 1.3 p1'!$L$53) -> 2063380.207 | H118: =2291804-(H22/$S$22*'Ut 1.3 p1'!$L$53) -> 2075611.359 | I118: =2094099-(I22/$S$22*'Ut 1.3 p1'!$L$53) -> 1881949.245 | J118: =2101059-(J22/$S$22*'Ut 1.3 p1'!$L$53) -> 1899461.748 | K118: =2075805-(K22/$S$22*'Ut 1.3 p1'!$L$53) -> 1871128.55 | L118: =2018164-(L22/$S$22*'Ut 1.3 p1'!$L$53) -> 1823443.437 | M118: =2023460-(M22/$S$22*'Ut 1.3 p1'!$L$53) -> 1825553.901 | N118: =2053364-(N22/$S$22*'Ut 1.3 p1'!$L$53) -> 1858614.808 | O118: =2057102-(O22/$S$22*'Ut 1.3 p1'!$L$53) -> 1883927.134 | P118: =2026557-(P22/$S$22*'Ut 1.3 p1'!$L$53) -> 1837721.32 | Q118: =1911873-(Q22/$S$22*'Ut 1.3 p1'!$L$53) -> 1731815.31 | R118: =2072686-(R22/$S$22*'Ut 1.3 p1'!$L$53) -> 1889292.981 | S118: =SUM(G118:R118) -> 22641900
F124: Typical UPC | G124: UT | H124: WY
F125: 1 | G125: 14.9 | H125: 14.7
F126: 2 | G126: 12.5 | H126: 14.1
F127: 3 | G127: 10.1 | H127: 11.8
F128: 4 | G128: 8.3 | H128: 9.4
F129: 5 | G129: 4.4 | H129: 5.8
F130: 6 | G130: 3.1 | H130: 3.7
F131: 7 | G131: 2 | H131: 2.3
F132: 8 | G132: 1.8 | H132: 1.7
F133: 9 | G133: 2 | H133: 2.1
F134: 10 | G134: 3.1 | H134: 4.1
F135: 11 | G135: 6.3 | H135: 8
F136: 12 | G136: 11.5 | H136: 12.3
F137: Total | G137: =SUM(G125:G136) -> 80 | H137: =SUM(H125:H136) -> 90

Sheet Graph (Ex 1.10) Inputs
C1: ACTUAL | D1: CERA | E1: PIRA | F1: AVG
B2: 2014-05-01 | D2: 4.96 | E2: 4.66 | F2: =(AVERAGE(D2:E2)) -> 4.81
B3: 2014-06-01 | D3: 4.77 | E3: 4.61 | F3: 4.69
B4: 2014-07-01 | D4: 5.09 | E4: 4.72 | F4: 4.905
B5: 2014-08-01 | D5: 4.9 | E5: 4.73 | F5: =(AVERAGE(D5:E5)) -> 4.815
B6: 2014-09-01 | D6: 4.74 | E6: 4.7 | F6: 4.72
B7: 2014-10-01 | D7: 4.66 | E7: 4.78 | F7: 4.72
B8: 2014-11-01 | D8: 4.79 | E8: 4.85 | F8: 4.82
B9: 2014-12-01 | D9: 4.96 | E9: 4.97 | F9: 4.965
B10: 2015-01-01 | D10: 4.86 | E10: 4.89 | F10: 4.875
B11: 2015-02-01 | D11: 4.78 | E11: 4.78 | F11: 4.78
B12: 2015-03-01 | D12: 4.49 | E12: 4.56 | F12: 4.525
B13: 2015-04-01 | D13: 4.26 | E13: 4.09 | F13: 4.175
B14: 2015-05-01 | D14: 4.22 | E14: 3.89 | F14: 4.055
D17: Price Forecasts
B19: Make sure all pricing is in Whole number @ 2 decimal places only

Sheet Other Inputs
H1: Used In
A2: INPUT SECTION | H2: Ut | I2: Wy | J2: Source
A3: INPUTS FROM QUESTAR PIPELINE TARIFF AND CONTRACTS
B5: QPC Storage Commodity Rates | E5: Rate | F5: Effective
B6: Peaking Injections | E6: 0.03872 | F6: 2014-01-01 | H6: 1.3.2 | I6: 1.3p2 | J6: QPC Tariff Statement of Rates
B7: Peaking Withdrawals | E7: 0.03872 | F7: =$F$6 -> 2014-01-01 | H7: 1.3.2 | I7: 1.3p2 | J7: =J6 -> QPC Tariff Statement of Rates
B8: Ryckman Injections | E8: 0.015 | F8: =$F$6 -> 2014-01-01 | J8: Glen W
B9: Ryckman Withdrawals | E9: 0.01 | F9: 2014-01-01 | J9: Glen W
B10: Clay Basin Injections | E10: 0.01049 | F10: 2014-01-01 | H10: 1.3.2 | I10: 1.3p2 | J10: QPC Tariff Statement of Rates
B11: Clay Basin Withdrawals | E11: 0.01781 | F11: =$F$6 -> 2014-01-01 | H11: 1.3.2 | I11: 1.3p2 | J11: =J10 -> QPC Tariff Statement of Rates
B13: QPC Storage Field Reservation Charges
B14: Peaking Storage Fields Demand (Leroy, Chalk Creek, Coalville) | E14: 2.87375 | F14: =$F$6 -> 2014-01-01 | H14: 1.3.2 | I14: 1.3p2 | J14: =$J$6 -> QPC Tariff Statement of Rates
B15: Ryckman | E15: 0.09 | F15: =$F$6 -> 2014-01-01 | J15: Glen W
B16: Clay Basin Demand | E16: 2.85338 | F16: =$F$6 -> 2014-01-01 | H16: 1.3.2 | I16: 1.3p2 | J16: =$J$6 -> QPC Tariff Statement of Rates
B17: Clay Basin Capacity | E17: 0.02378 | F17: =$F$6 -> 2014-01-01 | H17: 1.3.2 | I17: 1.3p2 | J17: =$J$6 -> QPC Tariff Statement of Rates
J20: used in Exhibit 1.3
B21: FIRM TRANSPORTATION | D21: Contract Dth | E21: Months | F21: Maximum Rate | G21: Effective
B22: T-1 Transportation - Yearly (MT241) | D22: =798902 -> 798902 | E22: 12 | F22: 5.28804 | G22: 1/1/2014 | H22: 1.3p1 | J22: =$J$6 -> QPC Tariff Statement of Rates | N22: 4000000
B23: T-1 Transportation - Yearly (Mainline 104) | D23: 30000 | E23: 12 | F23: 5.28804 | G23: =$G$22 -> 1/1/2014 | H23: Jan | J23: =$J$6 -> QPC Tariff Statement of Rates | N23: 28100
B24: T-1 Transportation - Yearly (Tieline 112) | D24: 12000 | E24: 12 | F24: 5.28804 | G24: =$G$22 -> 1/1/2014 | H24: 1.3p1 | J24: =$J$6 -> QPC Tariff Statement of Rates | N24: =N21/N22 -> 0
B25: T-1 Transportation - Nov-Mar | D25: 75000 | E25: 5 | F25: 6.80887 | G25: =$G$22 -> 1/1/2014 | J25: Rate from Glen | N25: =N22/N23 -> 142.3487544
B26: Total Yearly T-1 Transportation | D26: =SUM(D22:D25) -> 915902 | E26: 12
B28: T-1 Transportation - Seasonal(BASE TARIFF RATE LOW LOAD) Mainline 104 | D28: 0 | E28: 0 | F28: 0 | J28: not using currently - ck with Glen
B30: No-Notice Transportation (BASE TARIFF RATE) | D30: 203542 | E30: 12 | F30: 0.86753 | G30: =$G$22 -> 1/1/2014 | H30: 1.3p1 | J30: =$J$6 -> QPC Tariff Statement of Rates
B31: GRI - Yearly (SURCHARGE LOW LOAD CUSTOMERS MAXIMUM) | D31: =D26 -> 915902 | E31: 12 | F31: 0 | G31: =$G$22 -> 1/1/2014 | H31: 1.3p1 | J31: =$J$6 -> QPC Tariff Statement of Rates
B32: GRI - Seasonal (No GRI currently) | D32: 30000 | E32: 3 | F32: =+F31 -> 0 | G32: =$G$22 -> 1/1/2014 | H32: 1.3p1 | J32: =$J$6 -> QPC Tariff Statement of Rates
B33: GRI | D33: 52000 | E33: 12 | F33: =+F31 -> 0 | G33: =$G$22 -> 1/1/2014 | H33: 1.3p1 | J33: =$J$6 -> QPC Tariff Statement of Rates
B35: TRANSPORTATION COMMODITY
B36: PIPELINE USAGE CHARGE TO VOLUMETRIC RELEASES
B37: QPC Commodity
B38: QPC Firm Transportation Usage Charge (Max & Min) (BASE TARIFF RATE) | F38: 0.00267 | G38: 2014-01-01 | H38: 1.3p1 | J38: =$J$6 -> QPC Tariff Statement of Rates
B39: QPC (ANNUAL CHARGE ADJUSTMENT) | F39: =+F44 -> 0.0012 | G39: 2013-06-27 | H39: 1.3p1 | J39: FERC Website
B40: QPC GRI SURCHARGE (not used currently) | F40: 0 | G40: =G38 -> 2014-01-01 | H40: 1.3p1 | J40: =$J$6 -> QPC Tariff Statement of Rates
E41: Current | F41: Proposed
B42: INTER TRANS (T-2 PIPELINE BASE TARIFF) MAX | D42: Base Tariff | E42: 0.17652 | F42: 0.17652 | G42: 2014-01-01 | J42: =$J$6 -> QPC Tariff Statement of Rates
C43: (not used currently) | D43: GRI Surcharge | E43: 0 | F43: 0 | G43: =G42 -> 2014-01-01 | J43: =$J$6 -> QPC Tariff Statement of Rates
D44: Annual Charge | E44: 0.0012 | F44: 0.0012 | G44: 2013-06-27 | J44: ferc.gov
D45: Total | E45: =SUM(E42:E44) -> 0.17772 | F45: =SUM(F42:F44) -> 0.17772
B48: Utah | E48: =ROUND((E45)/(1-$E287),5) -> 0.1786 | F48: =ROUND((F45)/(1-E287),5) -> 0.1786 | H48: 1.6.3 | J48: Before Adjustment for Bad Debt (Transport grossed up for QGC fuel)
B49: Wyoming | F49: =ROUND((F45)/(1-E288),5) -> 0.18043
A51: INPUTS FROM KERN RIVER PIPELINE TARIFF AND CONTRACTS
B52: Kern River 2003 Expansion | D52: Contract Dth | E52: Months | F52: Maximum Rate | G52: Effective
F53: 0.4717 | G53: 2014-04-01 | J53: KR Tariff 5-A
B54: Jan - Dec | D54: 3000 | E54: 12 | F54: =F53*E57/E54 -> 14.34754167 | H54: 1.3.1
B55: November - March | D55: 50000 | E55: 5 | F55: =F54 -> 14.34754167 | H55: Jan
B56: Jan - Dec | D56: 1885 | E56: 12 | F56: =F57*E57/E56 -> 17.74204167
B57: Days in Tariff Rate | E57: 365 | F57: 0.5833 | G57: =G53 -> 2014-04-01 | J57: e.g., if rates effective Jan 1 in a leap year, then use 366
B59: Kern River 2003 Expansion | E59: Days in TEST PERIOD
B60: Jan - Dec | C60: =[3]mostrecent_12!$M$24 -> 0.9863198695 | D60: =D54+D56 -> 4885 | E60: 365 | F60: 0.0044 | G60: =G57 -> 2014-04-01 | H60: 1.3p1 | J60: KR Tariff 5-A
B61: November - March | C61: =C60 -> 0.9863198695 | D61: =D55 -> 50000 | E61: 151 | F61: 0.0044 | G61: =G57 -> 2014-04-01 | H61: 1.3p1 | J61: KR Tariff 5-A
A63: INPUTS FROM QUESTAR GAS TARIFF
B65: I-Sales Commodity Rates | E65: I-2 -eliminated | F65: IS | J65: =31*5 -> 155
B66: Effective Date | E66: 11/1/2005 | F66: 7/31/2009 | J66: =J65*0.75 -> 116.25
B67: Commodity Rate | E67: 0 | F67: =ROUND((7353080/1941997),5) -> 3.78635 | G67: Should this just be utah | J67: =J65*0.15 -> 23.25
B68: CO2 Refund | E68: 0 | F68: 0 | J68: =J65*0.1 -> 15.5
B69: Net Commodity Rate | E69: =SUM(E67:E68) -> 0 | F69: =SUM(F67:F68) -> 3.78635
A71: Current SNG Rates
B72: UTAH | E72: Current SNG Base | F72: Current SNG Amort. | G72: Current SNG Total | J72: Effective
B73: GS | D73: Winter | E73: 1.10168 | F73: 0 | G73: =E73+F73 -> 1.10168 | J73: 2014-03-01
D74: Summer | E74: 0.51725 | F74: 0 | G74: =E74+F74 -> 0.51725 | J74: =J73 -> 2014-03-01
B76: FS | D76: Winter | E76: 1.07299 | F76: 0 | G76: =E76+F76 -> 1.07299 | J76: 2014-03-01
D77: Summer | E77: 0.51723 | F77: 0 | G77: =E77+F77 -> 0.51723 | J77: =J76 -> 2014-03-01
B79: F-4 | C79: (not used) | E79: 0 | F79: 0 | G79: =E79+F79 -> 0 | J79: 2010-08-01
B81: NGV | E81: 0.795 | F81: 0 | G81: =E81+F81 -> 0.795 | J81: 2014-03-01
B83: (This includes bad debt adjustment) IS | E83: 0.17984 | F83: 0 | G83: =E83+F83 -> 0.17984 | J83: 2014-03-01
B86: ES | C86: (not used) | E86: 0 | F86: 0 | G86: =E86+F86 -> 0 | J86: 2013-12-01
A88: Current Rates
B89: Utah GS | J89: Effective
B90: Block 1 | D90: Summer | G90: 7.09743 | J90: 2014-03-01
B91: Block 2 | D91: Summer | G91: 6.0881 | J91: =$J$90 -> 2014-03-01
B92: Block 1 | D92: Winter | G92: 8.31891 | J92: =$J$90 -> 2014-03-01
B93: Block 2 | D93: Winter | G93: 7.3086 | J93: =$J$90 -> 2014-03-01
B94: #1 BSF | G94: 6.75 | J94: =J90 -> 2014-03-01
B96: Wyoming GS
B97: Block 1 | G97: 7.07816 | J97: 2013-10-01
B98: Block 2 | G98: 6.82961 | J98: =J97 -> 2013-10-01
B99: BSF | G99: 11 | J99: =J97 -> 2013-10-01
A101: INPUTS FROM PREVIOUS PASSTHROUGH CASE
B102: PRIOR PERIOD COMPANY PRODUCTION AVERAGE GAS COST
E103: PROPOSED | F103: PRIOR CASE | G103: Most Recent
B104: VOLUMES DTH | E104: ='Monthly Inputs'!S16+'Monthly Inputs'!S22 -> 74434458 | F104: 81743587 | G104: EXH 1.1 | J104: LAST CASE IN WHICH RATES CHANGED
B105: AMOUNT | E105: =+D188 -> 366539229 | F105: 367163103 | G105: EXH 1.1
B106: AVG COST | E106: =+E105/E104 -> 4.924321864 | F106: =ROUND(+F105/F104,5) -> 4.49164
B108: Utah Cost of Gas by Component
B109: Unit Cost Of Gas (Line 9) | F109: 4.39979 | J109: Exhibit 1.6 pg 1 (Prior case)
B110: 191 Account Amortization (Line 10) | F110: 0.02986 | J110: Exhibit 1.6 pg 1 (Prior case )
B111: Total Unit Cost In Rates (Line 11) | F111: =SUM(F109:F110) -> 4.42965
B113: I-2 Commodity Cost (excluding bad debt) | E113: 0
B115: Wyoming Cost of Gas by Component
B116: Unit Cost Of Gas (Line 9) | F116: 5.07057 | J116: (WY) Exhibit 1.6 pg 1
B117: 191 Account Amortization (Line 10) | F117: 0.00363 | J117: (WY) Exhibit 1.6 pg 1
B118: Total Unit Cost In Rates (Line 11) | F118: =F116+F117 -> 5.0742 | J118: (WY) Exhibit 1.6 pg 1
A123: INPUTS FROM 191 ACCOUNT MONTH END BALANCE ACTUAL OR FORECAST | E123: Utah | F123: Wyoming
E124: 2014 | F124: 2014-03-31
H125: 1.6.2
D126: current yr /mo(text)
B127: March 2014 191 account (Actual/Forecast) | D127: 2014 | E127: -2607447 | F127: 687011 | H127: 1.6.1 | J127: 191 Account Forecast/Actual
B128: Supplier Non-Gas Cost Under (Over) Collected through March 2014 (act/fcst) | D128: March | E128: -25896338 | H128: 1.6.2 | J128: 191 Account Year-End (sometimes through current period)
B129: Commodity Cost Under (Over) Collected during YEAR (Act/Fcst) | E129: =E127-E128 -> 23288891
A131: INPUTS FROM IRP
B132: #1 Peak Day Demand Forecast | E132: 2013 | F132: Source
B133: Utah | E133: =E135-E134 -> 1241468.003 | F133: 2013 IRP
B134: Wyoming | E134: =[4]Sheet1!$C$33 -> 33139.80297
B135: System Total Peak Day Demand Forecast | E135: =[4]Sheet1!$B$33 -> 1274607.806 | H135: 1.5 | I135: 1.5
A138: STORAGE FIELD INPUTS | E138: Storage
B139: Chalk Creek Injections Factor | E139: 0.0133 | H139: Scott Nelson Monthly IRP
B140: Chalk Creek Withdrawls Factor | E140: 0.012 | H140: Scott Nelson Monthly IRP
B142: Ryckman Injections Factor | E142: 0.025 | H142: Scott Nelson Monthly IRP
B143: Ryckman Withdrawls Factor | E143: 0 | H143: Scott Nelson Monthly IRP
B145: Leroy Injections Factor | E145: 0.0319 | H145: Scott Nelson Monthly IRP
B146: Leroy Withdrawls Factor | E146: 0.0354 | H146: Scott Nelson Monthly IRP
B148: Clay Basin Injections Factor | E148: 0.02047 | H148: Scott Nelson Monthly IRP
B149: Clay Basin Withdrawls Factor | E149: 0.0079 | H149: Scott Nelson Monthly IRP
B151: Coalville Injections Factor | E151: 0.0176 | H151: Scott Nelson Monthly IRP
B152: Coalville Withdrawls Factor | E152: 0.013 | H152: Scott Nelson Monthly IRP
B154: QPC Storage Field Reservation Charges | E154: Monthly Dth
B155: Peaking Storage Fields Maximum Daily Withdrawal Qty (Leroy, Chalk Creek, Coalville) | E155: 184625 | H155: From Glen Watkins (Contract Amounts) (See Ex 1.3 pg 2 if not changed)
B156: Ryckman Maximum Storage Qty | E156: 2500000 | H156: From Glen Watkins (Contract Amounts) (See Ex 1.3 pg 2 if not changed)
B157: Clay Basin Minimum Required Deliverability | E157: 111827 | H157: From Glen Watkins (Contract Amounts) (See Ex 1.3 pg 2 if not changed)
B158: Clay Basin Capacity | E158: 13419000 | H158: From Glen Watkins (Contract Amounts) (See Ex 1.3 pg 2 if not changed)
A160: OTHER INPUTS FROM GLEN, TOM, TINA & Al | D160: Revenue
B161: OTHER GATHERING
B166: Total Forecasted Birch Creek | D166: =[5]Sheet2!$G$30 -> 347711.43 | E166: 2014-03-31 | J166: Birch Creek from Jesse
B168: Other gathering | D168: =[5]Sheet2!$F$5 -> 2066374.2 | E168: 2014-03-31 | H168: JanB | J168: Jesse Query
B169: Total Gathering | D169: =SUM(D166:D168) -> 2414085.63 | H169: 1.3.1 | I169: 1.3P1
B171: Other Transportation | D171: =[5]Sheet2!$F$11 -> 3045912.83 | E171: 2014-03-31 | H171: 1.3.1 | J171: Jesse Query
B173: Forecast Future Contracts Premium over spot price | E173: 0.02 | F173: Verified with Tina 04/22/14
D175: Commodity | E175: Mo. Demand
D176: Charge | E176: Charge | F176: Effective
B177: QEP Gathering Rates -System wide Gathering agreement #163 (SWGA) | D177: 0.12579 | E177: 745178 | F177: 2013-09-01 | I177: 1.3p1 | J177: QEP Rates (Changes every Sep 1)
B178: QGC Gathering Throughput Dth From Exhibit 1.1 Backup | D178: ='Ex 1.1 Data'!E1 -> 42871719.79 | E178: 12 | I178: 1.3p1 | J178: Ex. 1.1 updated on 11-17-2010
B180: Gathering Rate | D180: 0.51124 | I180: 1.3p1 | J180: Samson Rate (Will this amount change? Ask Mike Neese)
B181: Wexpro II Gathering Throughput Dth From Exhibit 1.1 Backup | D181: ='Ex 1.1 Data'!L1 -> 4617812.277 | I181: 1.3p1 | J181: Ex. 1.1 backup calucated each time
A183: OTHER INPUTS FROM JIM LIVSEY | D183: Volume (Dth) | E183: Revenue
A184: WEXPRO I
B185: Questar Gas Production 1/ | D185: Current
B186: Test Year Royalties | D186: ='Ut 1.1'!I1442 -> 52779421.98 | H186: 1.4.1 | I186: 1.4P1 | J186: Exhibit 1.1
B187: Operator Service Fee | D187: ='Monthly Inputs'!S116 -> 313759807 | H187: 1.4.1 | I187: 1.4P1 | J187: Jim Livsey (Updated on 11-10-2010
B188: Total Questar Gas Production Costs | D188: =SUM(D186:D187) -> 366539229
B190: Total Questar Gas Production Dth | D190: ='Ut 1.1'!F1447 -> 69816646 | J190: this formula changes each time
F191: Hot | G191: Hot
B192: Other Revenue Credits | D192: 1 | E192: 2 | F192: 2 | G192: 2 | I192: 1
D193: Historical | E193: Forecast | F193: =HLOOKUP(F$192,$D$192:$E$200,$I193) -> Forecast | G193: =HLOOKUP(G$192,$D$192:$E$200,$I193) -> Forecast | I193: 2
D194: 12 Mo Ending | E194: 12 Mo Ending | F194: Utah | G194: Wyoming | I194: 3
B195: 483 Sales for Resale | E195: 4562669 | F195: =HLOOKUP(F$192,$D$192:$E$200,$I195) -> 4562669 | G195: =HLOOKUP(G$192,$D$192:$E$200,$I195) -> 4562669 | I195: 4 | J195: Wexpro (Mike Neese)
B196: 490 Incidental Plant Prod Sales | E196: 6127680 | F196: =HLOOKUP(F$192,$D$192:$E$200,$I196) -> 6127680 | G196: 6127680 | I196: 5 | J196: Wexpro (Mike Neese)
B197: 492 Incidental Gasoline_Oil Sales | E197: 1296259 | F197: 1296259 | G197: 1296259 | I197: 6 | J197: Wexpro (Mike Neese)
B198: 4951 Overriding Royalty Revenue from Celsius | E198: 22012615 | F198: 22012615 | G198: 22012615 | I198: 7 | J198: Wexpro (Mike Neese)
B199: 4952 Oil Revenue Received from Wexpro | E199: 0 | F199: 0 | G199: 0 | I199: 8 | J199: Wexpro (Mike Neese)
B200: 758001 Gas Well Royalities - Other | E200: -194441 | F200: -194441 | G200: -194441 | I200: 9 | J200: Wexpro (Mike Neese)
B203: Total Other Revenue Credits | D203: =SUM(D195:D200) -> 0 | E203: =SUM(E195:E200) -> 33804782 | F203: =SUM(F195:F200) -> 33804782 | G203: =SUM(G195:G200) -> 33804782
A205: WEXPRO II
B206: Questar Gas Production 1/ | D206: Current
B207: Test Year Royalties | D207: ='Ut 1.1'!I1538 -> 3172380.062 | H207: 1.4.1 | I207: 1.4P1 | J207: Exhibit 1.1
B208: Operator Service Fee | D208: ='Monthly Inputs'!S118 -> 22641900 | H208: 1.4.1 | I208: 1.4P1 | J208: Jim Livsey (Updated on 11-10-2010
B209: Total Questar Gas Production Costs | D209: =SUM(D207:D208) -> 25814280.06
B211: Total Questar Gas Production Dth | D211: ='Ut 1.1'!F1543 -> 4617812 | J211: this formula changes each time
F212: Hot | G212: Hot
B213: Other Revenue Credits | D213: 1 | E213: 2 | F213: 2 | G213: 2 | I213: 1
D214: Historical | E214: Forecast | F214: =HLOOKUP(F$192,$D$192:$E$200,$I214) -> Forecast | G214: =HLOOKUP(G$192,$D$192:$E$200,$I214) -> Forecast | I214: 2
D215: 12 Mo Ending | E215: 12 Mo Ending | F215: Utah | G215: Wyoming | I215: 3
B216: 483 Sales for Resale | E216: 0 | F216: =HLOOKUP(F$213,$D$213:$E$221,$I216) -> 0 | G216: 0 | I216: 4 | J216: Wexpro (Mike Neese)
B217: 490 Incidental Plant Prod Sales | E217: 1963385 | F217: 1963385 | G217: 1963385 | I217: 5 | J217: Wexpro (Mike Neese)
B218: 492 Incidental Gasoline_Oil Sales | E218: 1505180 | F218: 1505180 | G218: 1505180 | I218: 6 | J218: Wexpro (Mike Neese)
B219: 4951 Overriding Royalty Revenue from Celsius | E219: 0 | F219: 0 | G219: 0 | I219: 7 | J219: Wexpro (Mike Neese)
B220: 4952 Oil Revenue Received from Wexpro | E220: 0 | F220: 0 | G220: 0 | I220: 8 | J220: Wexpro (Mike Neese)
B221: 758001 Gas Well Royalities - Other | E221: -225778 | F221: -225778 | G221: -225778 | I221: 9 | J221: Wexpro (Mike Neese)
B224: Total Other Revenue Credits | D224: =SUM(D216:D221) -> 0 | E224: =SUM(E216:E222) -> 3242787 | F224: =SUM(F216:F221) -> 3242787 | G224: =SUM(G216:G221) -> 3242787
E226: Proceeds | F226: Dths | G226: Price
B227: Sales of Wexpro Gas | E227: ='[6]Shut in vs Sales - Normal'!$G$186 -> 4214101.025 | F227: ='[6]Shut in vs Sales - Normal'!$B$186 -> 924183.99 | G227: =E227/F227 -> 4.55980743 | J227: Will S. Updated sales vs. shut ins
A229: SUMMARY INPUTS FROM REVRUN, RATE BASE, EXPENSES, ETC.
B231: Supplier Non-Gas Costs Recovered at Current Rates 3/ | E231: ='RevRun Fcst'!T$199 -> 97175726 | H231: 1.6.2 | J231: Dave's Revrun
B232: MT Supplier Non-Gas | E232: ='RevRun Fcst'!T142 -> 1983 | J232: Dave's Revrun
B233: Net Supplier Non-Gas | E233: =E231-E232 -> 97173743
B234: UT Current Int Sales SNG Rate - not including Bad Debt adj. | E234: ='RevRun Fcst'!T93+'RevRun Fcst'!T111 -> 2631447 | F234: 0.1793 | J234: Revrun (D210); SNG from last case in which rates changed (see Exh. 1.6, p. 2, line 6c col. C)
E236: ='Rate Base'!$U$8 -> 2014-03-31 | F236: update to most current
B237: Account 164-1 - Gas Stored Underground | D237: Dth | E237: Ending Balance | F237: $ per Dth
D238: ='Rate Base'!T295 -> -1353916 | E238: ='Rate Base'!T216 -> 6166884.89 | F238: =+E238/D238 -> -4.554850441 | H238: 1.4.2
A241: UT CET and DSM AMORTIZATION FILING INPUTS
E242: Base DNG | F242: Current DNG
B243: GS Rates (Base rates are before CET, DSM, & EA Amortizations) | D243: Summer Blk 1 | E243: 1.7346 | F243: 2.15053
D244: Summer Blk 2 | E244: 0.7346 | F244: 1.1412
D245: Winter Blk 1 | E245: 2.36887 | F245: 2.78758
D246: Winter Blk 2 | E246: 1.36887 | F246: 1.77727 | J246: Base DNG Rate from latest general rate case Docket 13-057-05
J247: Current Rates Effective 03-1-14
D248: Energy Assistance | E248: 0.01419 | F248: Current Rate 3/1/2014 GS Rate
E249: 0.01174 | F249: Current Rate 3/1/2014 FS Rate
E250: 0.00657 | F250: Current Rate 3/1/2014 IS Rate
E251: 0.2679 | F251: Current Rate 3/1/2014 NGV Rate
E252: Ending Balance | F252: Date
B253: CET Balance (Account 191.9) | E253: -1886289.514 | F253: 2011-07-31 | J253: Accounting
B254: DSM Expense Deferral Balance (Account 182.4) | E254: 42000000 | F254: 2011-03-31 | J254: Accounting
B256: GS Block Usage in Dth | D256: Winter Blk 1 | E256: 52526064 | J256: Block out from Dave's REVRUN
D257: Winter Blk 2 | E257: 14984828 | J257: (used Gary's "Rate Design Model - Bill Factor Input.xls" &
D258: Summer Blk 1 | E258: 23076373 | J258: Dave's "PT0802.bk" files) Updated March 31, 2010
D259: Summer Blk 2 | E259: 4705902
A261: WY CET and DSM AMORTIZATION FILING INPUTS
E262: Base DNG | F262: Current DNG
B263: GS Rates (Base rates are before CET and DSM Amortizations) | D263: Blk 1 | E263: 1.96545 | F263: 1.96545
D264: Blk 2 | E264: 1.71545 | F264: 1.71545
... 35 more rows

Sheet Calculations
A1: GAS BALANCE FOR 12 MONTHS ENDING: _________________
D3: SALES VOLUMES IN DECATHERMS (12 Months of Forecast)
D4: Forecast | E4: Forecast | F4: Forecast | G4: Forecast | H4: Forecast | I4: Forecast | J4: Forecast | K4: Forecast | L4: Forecast | M4: Forecast | N4: Forecast | O4: Forecast | P4: 12-Month
A5: RATE CLASS | D5: ='Monthly Inputs'!G3 -> Jun14 | E5: ='Monthly Inputs'!H3 -> Jul14 | F5: ='Monthly Inputs'!I3 -> Aug14 | G5: ='Monthly Inputs'!J3 -> Sep14 | H5: ='Monthly Inputs'!K3 -> Oct14 | I5: ='Monthly Inputs'!L3 -> Nov14 | J5: ='Monthly Inputs'!M3 -> Dec14 | K5: ='Monthly Inputs'!N3 -> Jan15 | L5: ='Monthly Inputs'!O3 -> Feb15 | M5: ='Monthly Inputs'!P3 -> Mar15 | N5: ='Monthly Inputs'!Q3 -> Apr15 | O5: ='Monthly Inputs'!R3 -> May15 | P5: Total
A6: UTAH | D6: =MONTH(D5) -> 6 | E6: =MONTH(E5) -> 7 | F6: 8 | G6: 9 | H6: 10 | I6: 11 | J6: 12 | K6: 1 | L6: 2 | M6: 3 | N6: 4 | O6: 5
B7: GSR | D7: ='RevRun Fcst'!H21 -> 2521104 | E7: ='RevRun Fcst'!I21 -> 2187359 | F7: ='RevRun Fcst'!J21 -> 2171705 | G7: ='RevRun Fcst'!K21 -> 3234158 | H7: ='RevRun Fcst'!L21 -> 5920023 | I7: ='RevRun Fcst'!M21 -> 10566136 | J7: ='RevRun Fcst'!N21 -> 16270023 | K7: ='RevRun Fcst'!O21 -> 18228968 | L7: ='RevRun Fcst'!P21 -> 14585640 | M7: ='RevRun Fcst'!Q21 -> 10988206 | N7: ='RevRun Fcst'!R21 -> 8132632 | O7: ='RevRun Fcst'!S21 -> 3769679 | P7: =SUM(D7:O7) -> 98575633
B8: GSC | D8: ='RevRun Fcst'!H30 -> 0 | E8: ='RevRun Fcst'!I30 -> 0 | F8: ='RevRun Fcst'!J30 -> 0 | G8: ='RevRun Fcst'!K30 -> 0 | H8: ='RevRun Fcst'!L30 -> 0 | I8: ='RevRun Fcst'!M30 -> 0 | J8: ='RevRun Fcst'!N30 -> 0 | K8: ='RevRun Fcst'!O30 -> 0 | L8: ='RevRun Fcst'!P30 -> 0 | M8: ='RevRun Fcst'!Q30 -> 0 | N8: ='RevRun Fcst'!R30 -> 0 | O8: ='RevRun Fcst'!S30 -> 0 | P8: 0
B9: GSS | D9: ='RevRun Fcst'!H39 -> 0 | E9: ='RevRun Fcst'!I39 -> 0 | F9: ='RevRun Fcst'!J39 -> 0 | G9: ='RevRun Fcst'!K39 -> 0 | H9: ='RevRun Fcst'!L39 -> 0 | I9: ='RevRun Fcst'!M39 -> 0 | J9: ='RevRun Fcst'!N39 -> 0 | K9: ='RevRun Fcst'!O39 -> 0 | L9: ='RevRun Fcst'!P39 -> 0 | M9: ='RevRun Fcst'!Q39 -> 0 | N9: ='RevRun Fcst'!R39 -> 0 | O9: ='RevRun Fcst'!S39 -> 0 | P9: 0
B10: F-1 | D10: ='RevRun Fcst'!H48 -> 357065 | E10: ='RevRun Fcst'!I48 -> 312294 | F10: ='RevRun Fcst'!J48 -> 292504 | G10: ='RevRun Fcst'!K48 -> 347360 | H10: ='RevRun Fcst'!L48 -> 366583 | I10: ='RevRun Fcst'!M48 -> 490676 | J10: ='RevRun Fcst'!N48 -> 531054 | K10: ='RevRun Fcst'!O48 -> 529877 | L10: ='RevRun Fcst'!P48 -> 466603 | M10: ='RevRun Fcst'!Q48 -> 431512 | N10: ='RevRun Fcst'!R48 -> 399806 | O10: ='RevRun Fcst'!S48 -> 338836 | P10: 4864170
B11: F-4 | D11: ='RevRun Fcst'!H75 -> 0 | E11: ='RevRun Fcst'!I75 -> 0 | F11: ='RevRun Fcst'!J75 -> 0 | G11: ='RevRun Fcst'!K75 -> 0 | H11: ='RevRun Fcst'!L75 -> 0 | I11: ='RevRun Fcst'!M75 -> 0 | J11: ='RevRun Fcst'!N75 -> 0 | K11: ='RevRun Fcst'!O75 -> 0 | L11: ='RevRun Fcst'!P75 -> 0 | M11: ='RevRun Fcst'!Q75 -> 0 | N11: ='RevRun Fcst'!R75 -> 0 | O11: ='RevRun Fcst'!S75 -> 0 | P11: 0
B12: NGV | D12: ='RevRun Fcst'!H66 -> 39790 | E12: ='RevRun Fcst'!I66 -> 53125 | F12: ='RevRun Fcst'!J66 -> 63198 | G12: ='RevRun Fcst'!K66 -> 53654 | H12: ='RevRun Fcst'!L66 -> 59598 | I12: ='RevRun Fcst'!M66 -> 61446 | J12: ='RevRun Fcst'!N66 -> 53716 | K12: ='RevRun Fcst'!O66 -> 60298 | L12: ='RevRun Fcst'!P66 -> 53716 | M12: ='RevRun Fcst'!Q66 -> 59262 | N12: ='RevRun Fcst'!R66 -> 71589 | O12: ='RevRun Fcst'!S66 -> 64159 | P12: 693551
A13: Total Firm Sales | D13: =SUM(D7:D12) -> 2917959 | E13: 2552778 | F13: =SUM(F7:F12) -> 2527407 | G13: 3635172 | H13: 6346204 | I13: 11118258 | J13: 16854793 | K13: 18819143 | L13: 15105959 | M13: 11478980 | N13: 8604027 | O13: 4172674 | P13: =SUM(P7:P12) -> 104133354
B15: I-4 | D15: ='RevRun Fcst'!H93 -> 247991 | E15: ='RevRun Fcst'!I93 -> 223222 | F15: ='RevRun Fcst'!J93 -> 234115 | G15: ='RevRun Fcst'!K93 -> 230928 | H15: ='RevRun Fcst'!L93 -> 204977 | I15: ='RevRun Fcst'!M93 -> 241715 | J15: ='RevRun Fcst'!N93 -> 214279 | K15: ='RevRun Fcst'!O93 -> 233746 | L15: ='RevRun Fcst'!P93 -> 205064 | M15: ='RevRun Fcst'!Q93 -> 202331 | N15: ='RevRun Fcst'!R93 -> 196821 | O15: ='RevRun Fcst'!S93 -> 196258 | P15: =SUM(D15:O15) -> 2631447
B16: IS-4 | D16: ='RevRun Fcst'!H111 -> 0 | E16: ='RevRun Fcst'!I111 -> 0 | F16: ='RevRun Fcst'!J111 -> 0 | G16: ='RevRun Fcst'!K111 -> 0 | H16: ='RevRun Fcst'!L111 -> 0 | I16: ='RevRun Fcst'!M111 -> 0 | J16: ='RevRun Fcst'!N111 -> 0 | K16: ='RevRun Fcst'!O111 -> 0 | L16: ='RevRun Fcst'!P111 -> 0 | M16: ='RevRun Fcst'!Q111 -> 0 | N16: ='RevRun Fcst'!R111 -> 0 | O16: ='RevRun Fcst'!S111 -> 0 | P16: =SUM(D16:O16) -> 0
A17: Total Interruptible Sales | D17: =SUM(D15:D16) -> 247991 | E17: 223222 | F17: 234115 | G17: 230928 | H17: 204977 | I17: 241715 | J17: 214279 | K17: 233746 | L17: 205064 | M17: 202331 | N17: 196821 | O17: 196258 | P17: 2631447
A20: Total Utah Sales | D20: =+D13+D17 -> 3165950 | E20: =+E13+E17 -> 2776000 | F20: =+F13+F17 -> 2761522 | G20: 3866100 | H20: 6551181 | I20: 11359973 | J20: 17069072 | K20: 19052889 | L20: 15311023 | M20: 11681311 | N20: 8800848 | O20: 4368932 | P20: =+P13+P17 -> 106764801
A22: Total Utah Transportation | D22: ='RevRun Fcst'!H204 -> 7012743 | E22: ='RevRun Fcst'!I204 -> 6898822 | F22: ='RevRun Fcst'!J204 -> 7359064 | G22: ='RevRun Fcst'!K204 -> 6483092 | H22: ='RevRun Fcst'!L204 -> 7241269 | I22: ='RevRun Fcst'!M204 -> 7056933 | J22: ='RevRun Fcst'!N204 -> 7705963 | K22: ='RevRun Fcst'!O204 -> 7689286 | L22: ='RevRun Fcst'!P204 -> 7500978 | M22: ='RevRun Fcst'!Q204 -> 7079799 | N22: ='RevRun Fcst'!R204 -> 6806329 | O22: ='RevRun Fcst'!S204 -> 7395440 | P22: =SUM(D22:O22) -> 86229718
A25: Total Utah Sales & Trans | D25: =+D20+D22 -> 10178693 | E25: 9674822 | F25: 10120586 | G25: 10349192 | H25: 13792450 | I25: 18416906 | J25: 24775035 | K25: 26742175 | L25: 22812001 | M25: 18761110 | N25: 15607177 | O25: 11764372 | P25: 192994519
A27: WYOMING
A28: GS-1 | D28: ='RevRun Fcst'!H244 -> 95974 | E28: ='RevRun Fcst'!I244 -> 56096 | F28: ='RevRun Fcst'!J244 -> 62062 | G28: ='RevRun Fcst'!K244 -> 127054 | H28: ='RevRun Fcst'!L244 -> 184416 | I28: ='RevRun Fcst'!M244 -> 377830 | J28: ='RevRun Fcst'!N244 -> 523710 | K28: ='RevRun Fcst'!O244 -> 663861 | L28: ='RevRun Fcst'!P244 -> 559136 | M28: ='RevRun Fcst'!Q244 -> 478460 | N28: ='RevRun Fcst'!R244 -> 322019 | O28: ='RevRun Fcst'!S244 -> 177264 | P28: =SUM(D28:O28) -> 3627882
A29: GS-W | D29: ='RevRun Fcst'!H271 -> 0 | E29: ='RevRun Fcst'!I271 -> 0 | F29: ='RevRun Fcst'!J271 -> 0 | G29: ='RevRun Fcst'!K271 -> 0 | H29: ='RevRun Fcst'!L271 -> 0 | I29: ='RevRun Fcst'!M271 -> 0 | J29: ='RevRun Fcst'!N271 -> 0 | K29: ='RevRun Fcst'!O271 -> 0 | L29: ='RevRun Fcst'!P271 -> 0 | M29: ='RevRun Fcst'!Q271 -> 0 | N29: ='RevRun Fcst'!R271 -> 0 | O29: ='RevRun Fcst'!S271 -> 0 | P29: =SUM(D29:O29) -> 0
A30: F-1 | D30: ='RevRun Fcst'!H253 -> 13723 | E30: ='RevRun Fcst'!I253 -> 11406 | F30: ='RevRun Fcst'!J253 -> 11284 | G30: ='RevRun Fcst'!K253 -> 13193 | H30: ='RevRun Fcst'!L253 -> 15437 | I30: ='RevRun Fcst'!M253 -> 22037 | J30: ='RevRun Fcst'!N253 -> 26354 | K30: ='RevRun Fcst'!O253 -> 32327 | L30: ='RevRun Fcst'!P253 -> 26756 | M30: ='RevRun Fcst'!Q253 -> 25962 | N30: ='RevRun Fcst'!R253 -> 21453 | O30: ='RevRun Fcst'!S253 -> 15318 | P30: =SUM(D30:O30) -> 235250
A31: NGV | D31: ='RevRun Fcst'!H262 -> 1014 | E31: ='RevRun Fcst'!I262 -> 1497 | F31: ='RevRun Fcst'!J262 -> 1613 | G31: ='RevRun Fcst'!K262 -> 1530 | H31: ='RevRun Fcst'!L262 -> 1673 | I31: ='RevRun Fcst'!M262 -> 1470 | J31: ='RevRun Fcst'!N262 -> 1065 | K31: ='RevRun Fcst'!O262 -> 675 | L31: ='RevRun Fcst'!P262 -> 723 | M31: ='RevRun Fcst'!Q262 -> 918 | N31: ='RevRun Fcst'!R262 -> 1167 | O31: ='RevRun Fcst'!S262 -> 1271 | P31: =SUM(D31:O31) -> 14616
A32: Total Firm Sales | D32: =SUM(D28:D31) -> 110711 | E32: 68999 | F32: 74959 | G32: 141777 | H32: 201526 | I32: 401337 | J32: 551129 | K32: 696863 | L32: 586615 | M32: 505340 | N32: 344639 | O32: 193853 | P32: 3877748
A34: I-2 | D34: ='RevRun Fcst'!H280 -> 6544 | E34: ='RevRun Fcst'!I280 -> 6679 | F34: ='RevRun Fcst'!J280 -> 7493 | G34: ='RevRun Fcst'!K280 -> 7472 | H34: ='RevRun Fcst'!L280 -> 10037 | I34: ='RevRun Fcst'!M280 -> 13176 | J34: ='RevRun Fcst'!N280 -> 17633 | K34: ='RevRun Fcst'!O280 -> 16502 | L34: ='RevRun Fcst'!P280 -> 17098 | M34: ='RevRun Fcst'!Q280 -> 17180 | N34: ='RevRun Fcst'!R280 -> 13922 | O34: ='RevRun Fcst'!S280 -> 11281 | P34: =SUM(D34:O34) -> 145017
A35: I-4 | D35: ='RevRun Fcst'!H289 -> 0 | E35: ='RevRun Fcst'!I289 -> 0 | F35: ='RevRun Fcst'!J289 -> 0 | G35: ='RevRun Fcst'!K289 -> 0 | H35: ='RevRun Fcst'!L289 -> 0 | I35: ='RevRun Fcst'!M289 -> 0 | J35: ='RevRun Fcst'!N289 -> 0 | K35: ='RevRun Fcst'!O289 -> 0 | L35: ='RevRun Fcst'!P289 -> 0 | M35: ='RevRun Fcst'!Q289 -> 0 | N35: ='RevRun Fcst'!R289 -> 0 | O35: ='RevRun Fcst'!S289 -> 0 | P35: =SUM(D35:O35) -> 0
A36: Total Interruptible Sales | D36: =SUM(D34:D35) -> 6544 | E36: 6679 | F36: 7493 | G36: 7472 | H36: 10037 | I36: 13176 | J36: 17633 | K36: 16502 | L36: 17098 | M36: 17180 | N36: 13922 | O36: 11281 | P36: 145017
A39: Total Wyoming Sales | D39: =+D32+D36 -> 117255 | E39: 75678 | F39: 82452 | G39: 149249 | H39: 211563 | I39: 414513 | J39: 568762 | K39: 713365 | L39: 603713 | M39: 522520 | N39: 358561 | O39: 205134 | P39: 4022765
A41: Total Wyoming Transportation | D41: ='RevRun Fcst'!H328 -> 23587 | E41: ='RevRun Fcst'!I328 -> 38083 | F41: ='RevRun Fcst'!J328 -> 146169 | G41: ='RevRun Fcst'!K328 -> 39685 | H41: ='RevRun Fcst'!L328 -> 30229 | I41: ='RevRun Fcst'!M328 -> 70542 | J41: ='RevRun Fcst'!N328 -> 58356 | K41: ='RevRun Fcst'!O328 -> 52378 | L41: ='RevRun Fcst'!P328 -> 59649 | M41: ='RevRun Fcst'!Q328 -> 58841 | N41: ='RevRun Fcst'!R328 -> 34107 | O41: ='RevRun Fcst'!S328 -> 46396 | P41: =SUM(D41:O41) -> 658022
A44: Total Wyoming Sales & Trans | D44: =+D39+D41 -> 140842 | E44: 113761 | F44: 228621 | G44: 188934 | H44: 241792 | I44: 485055 | J44: 627118 | K44: 765743 | L44: 663362 | M44: 581361 | N44: 392668 | O44: 251530 | P44: 4680787
A47: Total System Sales and Trans | D47: =+D25+D44 -> 10319535 | E47: 9788583 | F47: 10349207 | G47: 10538126 | H47: 14034242 | I47: 18901961 | J47: 25402153 | K47: 27507918 | L47: 23475363 | M47: 19342471 | N47: 15999845 | O47: =+O25+O44 -> 12015902 | P47: 197675306
A49: Usage by Season
C50: Month | D50: =MONTH(D5) -> 6 | E50: 7 | F50: 8 | G50: 9 | H50: 10 | I50: 11 | J50: 12 | K50: 1 | L50: 2 | M50: 3 | N50: 4 | O50: 5
A51: GS | C51: Season (0=Winter, 1=Summer) | D51: =IF(D$50<4,0,IF(D$50>10,0,1)) -> 1 | E51: =IF(E$50<4,0,IF(E$50>10,0,1)) -> 1 | F51: 1 | G51: 1 | H51: 1 | I51: 0 | J51: 0 | K51: 0 | L51: 0 | M51: 0 | N51: 1 | O51: 1 | P51: Total
B52: Winter | D52: =IF(D51=0,D7+D8,0) -> 0 | E52: =IF(E51=0,E7+E8,0) -> 0 | F52: 0 | G52: 0 | H52: 0 | I52: 10566136 | J52: 16270023 | K52: 18228968 | L52: 14585640 | M52: 10988206 | N52: 0 | O52: 0 | P52: =SUM(D52:O52) -> 70638973 | Q52: =SUM(G52:I52) -> 10566136
B53: Summer | D53: =IF(D51=1,D7+D8,0) -> 2521104 | E53: 2187359 | F53: 2171705 | G53: 3234158 | H53: 5920023 | I53: 0 | J53: 0 | K53: 0 | L53: 0 | M53: 0 | N53: 8132632 | O53: 3769679 | P53: =SUM(D53:O53) -> 27936660 | Q53: =P52+P53-Q52 -> 88009497
A54: GSS
B55: Winter | D55: =IF(D51=0,D9,0) -> 0 | E55: 0 | F55: 0 | G55: 0 | H55: 0 | I55: 0 | J55: 0 | K55: 0 | L55: 0 | M55: 0 | N55: 0 | O55: 0 | P55: =SUM(D55:O55) -> 0
B56: Summer | D56: =IF(D51=1,D9,0) -> 0 | E56: 0 | F56: 0 | G56: 0 | H56: 0 | I56: 0 | J56: 0 | K56: 0 | L56: 0 | M56: 0 | N56: 0 | O56: 0 | P56: =SUM(D56:O56) -> 0
A57: F-S
B58: Winter | D58: =IF(D51=0,D10,0) -> 0 | E58: 0 | F58: 0 | G58: 0 | H58: 0 | I58: 490676 | J58: 531054 | K58: 529877 | L58: 466603 | M58: 431512 | N58: 0 | O58: 0 | P58: =SUM(D58:O58) -> 2449722 | Q58: =SUM(G58:I58) -> 490676
B59: Summer | D59: =IF(D51=1,D10,0) -> 357065 | E59: 312294 | F59: 292504 | G59: 347360 | H59: 366583 | I59: 0 | J59: 0 | K59: 0 | L59: 0 | M59: 0 | N59: 399806 | O59: 338836 | P59: =SUM(D59:O59) -> 2414448 | Q59: =P58+P59-Q58 -> 4373494
B62: Rates: R050201.R1 | C62: WYOMING NON-CORE DNG REVENUES FROM DEMAND FORECAST AND CURRENTLY EFFECTIVE I-SALES GAS COST RATES
D63: Forecast | E63: Forecast | F63: Forecast | G63: Forecast | H63: Forecast | I63: Forecast | J63: Forecast | K63: Forecast | L63: Forecast | M63: Forecast | N63: Forecast | O63: Forecast | P63: 12-Month
D64: ='Monthly Inputs'!G3 -> Jun14 | E64: ='Monthly Inputs'!H3 -> Jul14 | F64: ='Monthly Inputs'!I3 -> Aug14 | G64: ='Monthly Inputs'!J3 -> Sep14 | H64: ='Monthly Inputs'!K3 -> Oct14 | I64: ='Monthly Inputs'!L3 -> Nov14 | J64: ='Monthly Inputs'!M3 -> Dec14 | K64: ='Monthly Inputs'!N3 -> Jan15 | L64: ='Monthly Inputs'!O3 -> Feb15 | M64: ='Monthly Inputs'!P3 -> Mar15 | N64: ='Monthly Inputs'!Q3 -> Apr15 | O64: ='Monthly Inputs'!R3 -> May15 | P64: Total
A65: I-2 & 1-4 (Non-Gas Revenue) (Yearly) | D65: ='RevRun Fcst'!H273+'RevRun Fcst'!H282 -> 1756 | E65: ='RevRun Fcst'!I273+'RevRun Fcst'!I282 -> 1774 | F65: ='RevRun Fcst'!J273+'RevRun Fcst'!J282 -> 1886 | G65: ='RevRun Fcst'!K273+'RevRun Fcst'!K282 -> 1884 | H65: ='RevRun Fcst'!L273+'RevRun Fcst'!L282 -> 2238 | I65: ='RevRun Fcst'!M273+'RevRun Fcst'!M282 -> 2671 | J65: ='RevRun Fcst'!N273+'RevRun Fcst'!N282 -> 3288 | K65: ='RevRun Fcst'!O273+'RevRun Fcst'!O282 -> 3131 | L65: ='RevRun Fcst'!P273+'RevRun Fcst'!P282 -> 3213 | M65: ='RevRun Fcst'!Q273+'RevRun Fcst'!Q282 -> 3225 | N65: ='RevRun Fcst'!R273+'RevRun Fcst'!R282 -> 2775 | O65: ='RevRun Fcst'!S273+'RevRun Fcst'!S282 -> 2410 | P65: =SUM(D65:O65) -> 30251
A66: IC (Total Revenue) (Yearly) | D66: =ROUND(D41*$P66/$P41,0) -> 3473 | E66: 5607 | F66: 21521 | G66: 5843 | H66: 4451 | I66: 10386 | J66: 8592 | K66: 7712 | L66: 8782 | M66: 8663 | N66: 5022 | O66: =P66-SUM(D66:N66) -> 6829 | P66: ='RevRun Fcst'!T300+'RevRun Fcst'!T314 -> 96881
A68: ="I-2 Gas Cost (Rate Effective "&'Other Inputs'!E66&")" -> I-2 Gas Cost (Rate Effective 11/1/2005) | D68: ='Other Inputs'!E69 -> 0 | E68: =+D68 -> 0 | F68: 0 | G68: 0 | H68: 0 | I68: 0 | J68: 0 | K68: 0 | L68: 0 | M68: 0 | N68: 0 | O68: 0
A69: ="I-4 Gas Cost (Rate Effective "&'Other Inputs'!F66&")" -> I-4 Gas Cost (Rate Effective 7/31/2009) | D69: ='Other Inputs'!F69 -> 3.78635 | E69: =+D69 -> 3.78635 | F69: 3.78635 | G69: 3.78635 | H69: 3.78635 | I69: 3.78635 | J69: 3.78635 | K69: 3.78635 | L69: 3.78635 | M69: 3.78635 | N69: 3.78635 | O69: 3.78635
D72: ALLOCATION BASES
D73: DEMAND | G73: OTHER COST
A74: Utah Peak Day Demand | D74: =+D76-D75 -> 1241468.003 | E74: =D74/D76 -> 0.974 | G74: Utah Sales | H74: =+P20 -> 106764801 | I74: =H74/H76 -> 0.9636893819
A75: Wyoming Peak Day Demand | D75: ='Other Inputs'!E134 -> 33139.80297 | E75: =1-E74 -> 0.026 | G75: Wyoming Sales | H75: =+P39 -> 4022765 | I75: =1-I74 -> 0.03631061811
A76: Peak Day Demand | D76: ='Other Inputs'!E135 -> 1274607.806 | E76: =ROUND(D76/D$76,4) -> 1 | G76: Total Sales | H76: =+H74+H75 -> 110787566 | I76: =ROUND(H76/H$76,4) -> 1
D79: Financial Report Information (Latest 12 Months of Actual Expenses and 13 Months of Rate Base)
D80: Actual | E80: Actual | F80: Actual | G80: Actual | H80: Actual | I80: Actual | J80: Actual | K80: Actual | L80: Actual | M80: Actual | N80: Actual | O80: Actual
A81: Accounts | D81: =Expenses!J9 -> 2013-07-01 | E81: =Expenses!K9 -> 2013-08-01 | F81: =Expenses!L9 -> 2013-09-01 | G81: =Expenses!M9 -> 2013-10-01 | H81: =Expenses!N9 -> 2013-11-01 | I81: =Expenses!O9 -> 2013-12-01 | J81: =Expenses!P9 -> 2014-01-01 | K81: =Expenses!Q9 -> 2014-02-01 | L81: =Expenses!R9 -> 2014-03-01 | M81: =Expenses!G9 -> 2013-04-01 | N81: =Expenses!H9 -> 2013-05-01 | O81: =Expenses!I9 -> 2013-06-01 | P81: =+'Monthly Inputs'!S3 -> Total
A82: EXPENSES
B83: Gas Use In Dth (Acct 810 & 812) | D83: 0 | E83: 0 | F83: 0 | G83: 0 | H83: 0 | I83: 0 | J83: 0 | K83: 0 | L83: 0 | M83: 0 | N83: 0 | O83: 0 | P83: =SUM(D83:O83) -> 0
B85: Other Revenue (Yearly)
B86: Sales for Resale (account 483) | D86: =Expenses!J445 -> 408699.34 | E86: =Expenses!K445 -> 311284.08 | F86: =Expenses!L445 -> -970738.18 | G86: =Expenses!M445 -> 324291.84 | H86: =Expenses!N445 -> 362637.2 | I86: =Expenses!O445 -> 342993.8 | J86: =Expenses!P445 -> 285805.45 | K86: =Expenses!Q445 -> 390027.42 | L86: =Expenses!R445 -> 355732.67 | M86: =Expenses!G445 -> 338310.58 | N86: =Expenses!H445 -> 504981.94 | O86: =Expenses!I445 -> 432068.8 | P86: =SUM(D86:O86) -> 3086094.94
B87: Incidental Plant Prod Sales (Acct 490) | D87: =Expenses!J446 -> 498368.33 | E87: =Expenses!K446 -> 390690.85 | F87: =Expenses!L446 -> 462491.88 | G87: =Expenses!M446 -> 434707.72 | H87: =Expenses!N446 -> 377417.25 | I87: =Expenses!O446 -> 480344.33 | J87: =Expenses!P446 -> 531955.12 | K87: =Expenses!Q446 -> 512794.7 | L87: =Expenses!R446 -> 462317.5 | M87: =Expenses!G446 -> 306941.19 | N87: =Expenses!H446 -> 274702.79 | O87: =Expenses!I446 -> 308716.86 | P87: =SUM(D87:O87) -> 5041448.52
B88: Gas Processed by Others (account 491) | D88: =Expenses!J461 -> 0 | E88: =Expenses!K461 -> 0 | F88: =Expenses!L461 -> 0 | G88: =Expenses!M461 -> 0 | H88: =Expenses!N461 -> 0 | I88: =Expenses!O461 -> 0 | J88: =Expenses!P461 -> 0 | K88: =Expenses!Q461 -> 0 | L88: =Expenses!R461 -> 0 | M88: =Expenses!G461 -> 0 | N88: =Expenses!H461 -> 0 | O88: =Expenses!I461 -> 0 | P88: =SUM(D88:O88) -> 0
B89: Gasoline - Oil Sales (account 492) | D89: =Expenses!J447 -> 60582.99 | E89: =Expenses!K447 -> 88547.55 | F89: =Expenses!L447 -> 109110.73 | G89: =Expenses!M447 -> 78843.62 | H89: =Expenses!N447 -> 48797.86 | I89: =Expenses!O447 -> 113138.41 | J89: =Expenses!P447 -> 146049.28 | K89: =Expenses!Q447 -> 248347.57 | L89: =Expenses!R447 -> 94501.64 | M89: =Expenses!G447 -> 88072.58 | N89: =Expenses!H447 -> 55532.79 | O89: =Expenses!I447 -> 119641.89 | P89: =SUM(D89:O89) -> 1251166.91
B90: Gasoline - Oil Cost (account 758.001) | D90: =-Expenses!J450 -> -9577.64 | E90: =-Expenses!K450 -> -14577.83 | F90: =-Expenses!L450 -> -16274.63 | G90: =-Expenses!M450 -> -10695.31 | H90: =-Expenses!N450 -> -7621.21 | I90: =-Expenses!O450 -> -17353.49 | J90: =-Expenses!P450 -> -20538.29 | K90: =-Expenses!Q450 -> -18198.9 | L90: =-Expenses!R450 -> -13823.09 | M90: =-Expenses!G450 -> -13087.04 | N90: =-Expenses!H450 -> -8649.37 | O90: =-Expenses!I450 -> -17711.14 | P90: =SUM(D90:O90) -> -168107.94
B93: Overriding Royalty (account 495-1) | D93: =Expenses!J448 -> 1608362.51 | E93: =Expenses!K448 -> 1693028.4 | F93: =Expenses!L448 -> 1647864.39 | G93: =Expenses!M448 -> 1653109.41 | H93: =Expenses!N448 -> 2081244.23 | I93: =Expenses!O448 -> 1492067.2 | J93: =Expenses!P448 -> 1408789.02 | K93: =Expenses!Q448 -> 1378706.02 | L93: =Expenses!R448 -> 1611841.58 | M93: =Expenses!G448 -> 1284920.3 | N93: =Expenses!H448 -> 1451540.82 | O93: =Expenses!I448 -> 1566087.47 | P93: =SUM(D93:O93) -> 18877561.35
B94: Wexpro Revenue Sharing (account 495-2) | D94: =Expenses!J449 -> 60846 | E94: =Expenses!K449 -> 119754 | F94: =Expenses!L449 -> 0 | G94: =Expenses!M449 -> 0 | H94: =Expenses!N449 -> 0 | I94: =Expenses!O449 -> 0 | J94: =Expenses!P449 -> 33771 | K94: =Expenses!Q449 -> 0 | L94: =Expenses!R449 -> 0 | M94: =Expenses!G449 -> 0 | N94: =Expenses!H449 -> 0 | O94: =Expenses!I449 -> 114123 | P94: =SUM(D94:O94) -> 328494
P95: Page 2 of 6
C96: Actual | D96: Actual | E96: Actual | F96: Actual | G96: Actual | H96: Actual | I96: Actual | J96: Actual | K96: Actual | L96: Actual | M96: Actual | N96: Actual | O96: Actual | P96: 13-Month
A97: Accounts | C97: ='Rate Base'!H8 -> 2013-03-31 | D97: ='Rate Base'!I8 -> 2013-04-30 | E97: ='Rate Base'!J8 -> 2013-05-31 | F97: ='Rate Base'!K8 -> 2013-06-30 | G97: ='Rate Base'!L8 -> 2013-07-31 | H97: ='Rate Base'!M8 -> 2013-08-31 | I97: ='Rate Base'!N8 -> 2013-09-30 | J97: ='Rate Base'!O8 -> 2013-10-31 | K97: ='Rate Base'!P8 -> 2013-11-30 | L97: ='Rate Base'!Q8 -> 2013-12-31 | M97: ='Rate Base'!R8 -> 2014-01-31 | N97: ='Rate Base'!S8 -> 2014-02-28 | O97: ='Rate Base'!T8 -> 2014-03-31 | P97: Average
A98: RATE BASE - PRODUCTION
B99: Acct 164 (Working Gas) - Production | C99: ='Rate Base'!H216 -> 9537533.75 | D99: ='Rate Base'!I216 -> 8232525.14 | E99: ='Rate Base'!J216 -> 12269219.92 | F99: ='Rate Base'!K216 -> 19135966.09 | G99: ='Rate Base'!L216 -> 32164740.16 | H99: ='Rate Base'!M216 -> 46052383.98 | I99: ='Rate Base'!N216 -> 56496783.48 | J99: ='Rate Base'!O216 -> 64325936.47 | K99: ='Rate Base'!P216 -> 58898100.36 | L99: ='Rate Base'!Q216 -> 39172683.37 | M99: ='Rate Base'!R216 -> 29848683.37 | N99: ='Rate Base'!S216 -> 18583033.52 | O99: ='Rate Base'!T216 -> 6166884.89 | P99: =(((+C99+O99)/2)+SUM(D99:N99))/12 -> 32752688.76
B100: Acct 101 - Production | C100: ='Rate Base'!H158 -> 81179889.44 | D100: ='Rate Base'!I158 -> 81179889.44 | E100: ='Rate Base'!J158 -> 81179889.44 | F100: ='Rate Base'!K158 -> 81179889.44 | G100: ='Rate Base'!L158 -> 81179889.44 | H100: ='Rate Base'!M158 -> 81179889.44 | I100: ='Rate Base'!N158 -> 81179889.44 | J100: ='Rate Base'!O158 -> 81179889.44 | K100: ='Rate Base'!P158 -> 81179889.44 | L100: ='Rate Base'!Q158 -> 81179889.44 | M100: ='Rate Base'!R158 -> 81179889.44 | N100: ='Rate Base'!S158 -> 81179889.44 | O100: ='Rate Base'!T158 -> 81179889.44 | P100: 81179889.44
B101: Acct 108 - Production | C101: ='Rate Base'!H176 -> -67473761 | D101: ='Rate Base'!I176 -> -67548101.75 | E101: ='Rate Base'!J176 -> -67622527.39 | F101: ='Rate Base'!K176 -> -67677208.27 | G101: ='Rate Base'!L176 -> -67700284.75 | H101: ='Rate Base'!M176 -> -67730549.63 | I101: ='Rate Base'!N176 -> -67777089.28 | J101: ='Rate Base'!O176 -> -67811857.43 | K101: ='Rate Base'!P176 -> -67843367.93 | L101: ='Rate Base'!Q176 -> -67886609.88 | M101: ='Rate Base'!R176 -> -67961140.79 | N101: ='Rate Base'!S176 -> -68050568.86 | O101: ='Rate Base'!T176 -> -68129649.47 | P101: -67784250.93
B102: Acct 111 - Production | C102: ='Rate Base'!H183 -> -6065028.64 | D102: ='Rate Base'!I183 -> -6066837.28 | E102: ='Rate Base'!J183 -> -6068648.16 | F102: ='Rate Base'!K183 -> -6069939.9 | G102: ='Rate Base'!L183 -> -6140026.64 | H102: ='Rate Base'!M183 -> -6071047.41 | I102: ='Rate Base'!N183 -> -6071574.3 | J102: ='Rate Base'!O183 -> -6072342.48 | K102: ='Rate Base'!P183 -> -6073025 | L102: ='Rate Base'!Q183 -> -6074498.01 | M102: ='Rate Base'!R183 -> -6076311.65 | N102: ='Rate Base'!S183 -> -6078507.36 | O102: ='Rate Base'!T183 -> -6080432.19 | P102: -6077957.384
B103: Acct 2550 - Production | C103: ='Rate Base'!H251 -> -32048.24 | D103: ='Rate Base'!I251 -> -30219.95 | E103: ='Rate Base'!J251 -> -28391.66 | F103: ='Rate Base'!K251 -> -26563.37 | G103: ='Rate Base'!L251 -> -24735.08 | H103: ='Rate Base'!M251 -> -22906.79 | I103: ='Rate Base'!N251 -> -21078.5 | J103: ='Rate Base'!O251 -> -19250.21 | K103: ='Rate Base'!P251 -> -17421.92 | L103: ='Rate Base'!Q251 -> -15593.63 | M103: ='Rate Base'!R251 -> -14689.99 | N103: ='Rate Base'!S251 -> -13786.35 | O103: ='Rate Base'!T251 -> -12882.71 | P103: -21425.24375
B104: Acct 2820 - Production | C104: ='Rate Base'!H258 -> -2090782.82 | D104: ='Rate Base'!I258 -> -2080266.75 | E104: ='Rate Base'!J258 -> -2049743.21 | F104: ='Rate Base'!K258 -> -1967453.1 | G104: ='Rate Base'!L258 -> -1943531.09 | H104: ='Rate Base'!M258 -> -1847428.76 | I104: ='Rate Base'!N258 -> -1819346.2 | J104: ='Rate Base'!O258 -> -1721431.91 | K104: ='Rate Base'!P258 -> -2077877.9 | L104: ='Rate Base'!Q258 -> -1969223.29 | M104: ='Rate Base'!R258 -> -1964136.38 | N104: ='Rate Base'!S258 -> -1959322.05 | O104: ='Rate Base'!T258 -> -1954845.67 | P104: -1951881.24
B105: Acct 2821 - Production | C105: ='Rate Base'!H265 -> -761345.31 | D105: ='Rate Base'!I265 -> -761345.31 | E105: ='Rate Base'!J265 -> -761345.31 | F105: ='Rate Base'!K265 -> -761345.31 | G105: ='Rate Base'!L265 -> -761345.31 | H105: ='Rate Base'!M265 -> -761345.31 | I105: ='Rate Base'!N265 -> -761345.31 | J105: ='Rate Base'!O265 -> -761345.31 | K105: ='Rate Base'!P265 -> -743900.31 | L105: ='Rate Base'!Q265 -> -743900.31 | M105: ='Rate Base'!R265 -> -743900.31 | N105: ='Rate Base'!S265 -> -743900.31 | O105: ='Rate Base'!T265 -> -743900.31 | P105: -754803.435
D107: Production | H107: Acct 101 | I107: Acct 108 | J107: Acct 111 | K107: Acct 2550 | L107: Acct 2820 | M107: Acct 2821 | N107: Total
B108: Depreciation - Acct 403 | D108: =Expenses!S385 -> 674222.1 | F108: Thirteen month average | H108: =P100 -> 81179889.44 | I108: =P101 -> -67784250.93 | J108: =P102 -> -6077957.384 | K108: =P103 -> -21425.24375 | L108: =P104 -> -1951881.24 | M108: =P105 -> -754803.435 | N108: =SUM(H108:M108) -> 4589571.204
B109: Amortization & Depletion - Acct 404 | D109: =Expenses!S392 -> 15403.55 | F109: =CONCATENATE("Wexpro Red. @ ",-'Other Inputs'!E282*100," %") -> Wexpro Red. @ 6.3 % | H109: =H108*'Other Inputs'!$E$282 -> -5114333.035 | I109: =I108*'Other Inputs'!$E$282 -> 4270407.809 | J109: =J108*'Other Inputs'!$E$282 -> 382911.3152 | N109: =SUM(H109:M109) -> -461013.9108
B110: Utah Pre-Tax Return on Production Assets | D110: =+N111 -> 445471.332 | M110: =SUM(N108:N109) -> 4128557.293
B111: Utah Production Cost | D111: =SUM(D108:D110) -> 1135096.982 | M111: ="Utah Pre-Tax Rate of Return on Production Assets ("&'Other Inputs'!E285&")" -> Utah Pre-Tax Rate of Return on Production Assets (0.1079) | N111: =M110*'Other Inputs'!E285 -> 445471.332
M112: ="Wyoming Pre-Tax Rate of Return on Production Assets ("&'Other Inputs'!E284&")" -> Wyoming Pre-Tax Rate of Return on Production Assets (0.1088) | N112: =M110*'Other Inputs'!E284 -> 449187.0335
A114: TACTICAL PLAN INFORMATION (IRP) | P114: 12-Month
D115: ='Monthly Inputs'!G3 -> Jun14 | E115: ='Monthly Inputs'!H3 -> Jul14 | F115: ='Monthly Inputs'!I3 -> Aug14 | G115: ='Monthly Inputs'!J3 -> Sep14 | H115: ='Monthly Inputs'!K3 -> Oct14 | I115: ='Monthly Inputs'!L3 -> Nov14 | J115: ='Monthly Inputs'!M3 -> Dec14 | K115: ='Monthly Inputs'!N3 -> Jan15 | L115: ='Monthly Inputs'!O3 -> Feb15 | M115: ='Monthly Inputs'!P3 -> Mar15 | N115: ='Monthly Inputs'!Q3 -> Apr15 | O115: ='Monthly Inputs'!R3 -> May15 | P115: Total
A116: COMPANY PRODUCTION
B117: Prior Company
B118: D24 Wells
B119: Brady & Powel
B120: Total Company Production Wexpro I & II | D120: ='Monthly Inputs'!G16+'Monthly Inputs'!G22 -> 6581824 | E120: ='Monthly Inputs'!H16+'Monthly Inputs'!H22 -> 6624228 | F120: ='Monthly Inputs'!I16+'Monthly Inputs'!I22 -> 6466418 | G120: ='Monthly Inputs'!J16+'Monthly Inputs'!J22 -> 6241414 | H120: ='Monthly Inputs'!K16+'Monthly Inputs'!K22 -> 6299369 | I120: ='Monthly Inputs'!L16+'Monthly Inputs'!L22 -> 6379013 | J120: ='Monthly Inputs'!M16+'Monthly Inputs'!M22 -> 6404458 | K120: ='Monthly Inputs'!N16+'Monthly Inputs'!N22 -> 6245901 | L120: ='Monthly Inputs'!O16+'Monthly Inputs'!O22 -> 5516347 | M120: ='Monthly Inputs'!P16+'Monthly Inputs'!P22 -> 5983310 | N120: ='Monthly Inputs'!Q16+'Monthly Inputs'!Q22 -> 5765200 | O120: ='Monthly Inputs'!R16+'Monthly Inputs'!R22 -> 5926976 | P120: =SUM(D120:O120) -> 74434458
A122: STORAGE INJECTIONS
B123: Chalk Creek | D123: ='Monthly Inputs'!G33 -> 0 | E123: ='Monthly Inputs'!H33 -> 0 | F123: ='Monthly Inputs'!I33 -> 0 | G123: ='Monthly Inputs'!J33 -> 143921 | H123: ='Monthly Inputs'!K33 -> 181406 | I123: ='Monthly Inputs'!L33 -> 0 | J123: ='Monthly Inputs'!M33 -> 0 | K123: ='Monthly Inputs'!N33 -> 0 | L123: ='Monthly Inputs'!O33 -> 0 | M123: ='Monthly Inputs'!P33 -> 0 | N123: ='Monthly Inputs'!Q33 -> 0 | O123: ='Monthly Inputs'!R33 -> 0 | P123: =SUM(D123:O123) -> 325327
B124: Coalville | D124: ='Monthly Inputs'!G35 -> 0 | E124: ='Monthly Inputs'!H35 -> 0 | F124: ='Monthly Inputs'!I35 -> 157777 | G124: ='Monthly Inputs'!J35 -> 281370 | H124: ='Monthly Inputs'!K35 -> 265704 | I124: ='Monthly Inputs'!L35 -> 28425 | J124: ='Monthly Inputs'!M35 -> 0 | K124: ='Monthly Inputs'!N35 -> 0 | L124: ='Monthly Inputs'!O35 -> 0 | M124: ='Monthly Inputs'!P35 -> 0 | N124: ='Monthly Inputs'!Q35 -> 0 | O124: ='Monthly Inputs'!R35 -> 0 | P124: =SUM(D124:O124) -> 733276
B125: Leroy | D125: ='Monthly Inputs'!G36 -> 0 | E125: ='Monthly Inputs'!H36 -> 0 | F125: ='Monthly Inputs'!I36 -> 0 | G125: ='Monthly Inputs'!J36 -> 603926 | H125: ='Monthly Inputs'!K36 -> 312266 | I125: ='Monthly Inputs'!L36 -> 0 | J125: ='Monthly Inputs'!M36 -> 0 | K125: ='Monthly Inputs'!N36 -> 0 | L125: ='Monthly Inputs'!O36 -> 0 | M125: ='Monthly Inputs'!P36 -> 0 | N125: ='Monthly Inputs'!Q36 -> 0 | O125: ='Monthly Inputs'!R36 -> 0 | P125: =SUM(D125:O125) -> 916192
B126: Ryckman | D126: ='Monthly Inputs'!G37 -> 358462 | E126: ='Monthly Inputs'!H37 -> 370410 | F126: ='Monthly Inputs'!I37 -> 370410 | G126: ='Monthly Inputs'!J37 -> 358462 | H126: ='Monthly Inputs'!K37 -> 0 | I126: ='Monthly Inputs'!L37 -> 0 | J126: ='Monthly Inputs'!M37 -> 0 | K126: ='Monthly Inputs'!N37 -> 0 | L126: ='Monthly Inputs'!O37 -> 0 | M126: ='Monthly Inputs'!P37 -> 0 | N126: ='Monthly Inputs'!Q37 -> 0 | O126: ='Monthly Inputs'!R37 -> 0 | P126: =SUM(D126:O126) -> 1457744
B127: Total Peaking Storage | D127: =SUM(D123:D126) -> 358462 | E127: 370410 | F127: 528187 | G127: 1387679 | H127: 759376 | I127: 28425 | J127: 0 | K127: 0 | L127: 0 | M127: 0 | N127: 0 | O127: 0 | P127: 3432539
B128: Clay Basin | D128: ='Monthly Inputs'!G34 -> 2539739 | E128: ='Monthly Inputs'!H34 -> 2992222 | F128: ='Monthly Inputs'!I34 -> 2695425 | G128: ='Monthly Inputs'!J34 -> 1927450 | H128: ='Monthly Inputs'!K34 -> 1862260 | I128: ='Monthly Inputs'!L34 -> 363100 | J128: ='Monthly Inputs'!M34 -> 0 | K128: ='Monthly Inputs'!N34 -> 0 | L128: ='Monthly Inputs'!O34 -> 0 | M128: ='Monthly Inputs'!P34 -> 0 | N128: ='Monthly Inputs'!Q34 -> 269360 | O128: ='Monthly Inputs'!R34 -> 1168493 | P128: =SUM(D128:O128) -> 13818049
B129: Total Storage Injections | D129: =SUM(D127:D128) -> 2898201 | E129: =SUM(E127:E128) -> 3362632 | F129: 3223612 | G129: 3315129 | H129: 2621636 | I129: 391525 | J129: 0 | K129: 0 | L129: 0 | M129: 0 | N129: 269360 | O129: 1168493 | P129: 17250588
A130: STORAGE WITHDRAWLS
B131: Chalk Creek | D131: ='Monthly Inputs'!G41 -> 0 | E131: ='Monthly Inputs'!H41 -> 0 | F131: ='Monthly Inputs'!I41 -> 0 | G131: ='Monthly Inputs'!J41 -> 0 | H131: ='Monthly Inputs'!K41 -> 0 | I131: ='Monthly Inputs'!L41 -> 0 | J131: ='Monthly Inputs'!M41 -> 0 | K131: ='Monthly Inputs'!N41 -> 324899 | L131: ='Monthly Inputs'!O41 -> 0 | M131: ='Monthly Inputs'!P41 -> 0 | N131: ='Monthly Inputs'!Q41 -> 0 | O131: ='Monthly Inputs'!R41 -> 0 | P131: =SUM(D131:O131) -> 324899
B132: Coalville | D132: ='Monthly Inputs'!G43 -> 0 | E132: ='Monthly Inputs'!H43 -> 0 | F132: ='Monthly Inputs'!I43 -> 0 | G132: ='Monthly Inputs'!J43 -> 0 | H132: ='Monthly Inputs'!K43 -> 0 | I132: ='Monthly Inputs'!L43 -> 0 | J132: ='Monthly Inputs'!M43 -> 0 | K132: ='Monthly Inputs'!N43 -> 729858 | L132: ='Monthly Inputs'!O43 -> 0 | M132: ='Monthly Inputs'!P43 -> 0 | N132: ='Monthly Inputs'!Q43 -> 0 | O132: ='Monthly Inputs'!R43 -> 0 | P132: =SUM(D132:O132) -> 729858
B133: Leroy | D133: ='Monthly Inputs'!G44 -> 0 | E133: ='Monthly Inputs'!H44 -> 0 | F133: ='Monthly Inputs'!I44 -> 0 | G133: ='Monthly Inputs'!J44 -> 0 | H133: ='Monthly Inputs'!K44 -> 0 | I133: ='Monthly Inputs'!L44 -> 0 | J133: ='Monthly Inputs'!M44 -> 0 | K133: ='Monthly Inputs'!N44 -> 919517 | L133: ='Monthly Inputs'!O44 -> 0 | M133: ='Monthly Inputs'!P44 -> 0 | N133: ='Monthly Inputs'!Q44 -> 0 | O133: ='Monthly Inputs'!R44 -> 0 | P133: =SUM(D133:O133) -> 919517
B134: Ryckman | D134: ='Monthly Inputs'!G45 -> 0 | E134: ='Monthly Inputs'!H45 -> 0 | F134: ='Monthly Inputs'!I45 -> 0 | G134: ='Monthly Inputs'!J45 -> 0 | H134: ='Monthly Inputs'!K45 -> 0 | I134: ='Monthly Inputs'!L45 -> 498000 | J134: ='Monthly Inputs'!M45 -> 514600 | K134: ='Monthly Inputs'!N45 -> 514600 | L134: ='Monthly Inputs'!O45 -> 464800 | M134: ='Monthly Inputs'!P45 -> 0 | N134: ='Monthly Inputs'!Q45 -> 0 | O134: ='Monthly Inputs'!R45 -> 0 | P134: =SUM(D134:O134) -> 1992000
B135: Total Peaking Storage | D135: =SUM(D131:D134) -> 0 | E135: =SUM(E131:E134) -> 0 | F135: 0 | G135: 0 | H135: 0 | I135: 498000 | J135: 514600 | K135: 2488874 | L135: 464800 | M135: 0 | N135: 0 | O135: 0 | P135: 3966274
B136: Clay Basin | D136: ='Monthly Inputs'!G42 -> 0 | E136: ='Monthly Inputs'!H42 -> 0 | F136: ='Monthly Inputs'!I42 -> 0 | G136: ='Monthly Inputs'!J42 -> 0 | H136: ='Monthly Inputs'!K42 -> 6880 | I136: ='Monthly Inputs'!L42 -> 0 | J136: ='Monthly Inputs'!M42 -> 3561320 | K136: ='Monthly Inputs'!N42 -> 5073660 | L136: ='Monthly Inputs'!O42 -> 3567490 | M136: ='Monthly Inputs'!P42 -> 314840 | N136: ='Monthly Inputs'!Q42 -> 265940 | O136: ='Monthly Inputs'!R42 -> 157170 | P136: =SUM(D136:O136) -> 12947300
B137: Total Storage Withdrawls | D137: =SUM(D135:D136) -> 0 | E137: 0 | F137: 0 | G137: 0 | H137: 6880 | I137: 498000 | J137: 4075920 | K137: 7562534 | L137: 4032290 | M137: 314840 | N137: 265940 | O137: 157170 | P137: 16913574
A140: Gas Supply and Demand | D140: =D4 -> Forecast | E140: Forecast | F140: Forecast | G140: Forecast | H140: Forecast | I140: Forecast | J140: Forecast | K140: Forecast | L140: Forecast | M140: Forecast | N140: Forecast | O140: Forecast | P140: 12-Month
A141: Demand | D141: =D5 -> Jun14 | E141: Jul14 | F141: Aug14 | G141: Sep14 | H141: Oct14 | I141: Nov14 | J141: Dec14 | K141: Jan15 | L141: Feb15 | M141: Mar15 | N141: Apr15 | O141: May15 | P141: Total
A143: Utah Sales | D143: =+D20 -> 3165950 | E143: 2776000 | F143: =+F20 -> 2761522 | G143: 3866100 | H143: 6551181 | I143: 11359973 | J143: 17069072 | K143: 19052889 | L143: 15311023 | M143: 11681311 | N143: 8800848 | O143: 4368932 | P143: =SUM(D143:O143) -> 106764801
A144: Wyoming Sales | D144: =+D39 -> 117255 | E144: 75678 | F144: 82452 | G144: 149249 | H144: 211563 | I144: 414513 | J144: 568762 | K144: 713365 | L144: 603713 | M144: 522520 | N144: 358561 | O144: 205134 | P144: =SUM(D144:O144) -> 4022765
A145: Total Sales | D145: =+D143+D144 -> 3283205 | E145: 2851678 | F145: 2843974 | G145: 4015349 | H145: 6762744 | I145: 11774486 | J145: 17637834 | K145: 19766254 | L145: 15914736 | M145: 12203831 | N145: 9159409 | O145: 4574066 | P145: 110787566
A147: Distribution Use (Offices) | C147: Check formulas for correct month | D147: =ROUND(O83,0) -> 0 | E147: =ROUND(D83,0) -> 0 | F147: =ROUND(E83,0) -> 0 | G147: 0 | H147: 0 | I147: 0 | J147: 0 | K147: 0 | L147: 0 | M147: 0 | N147: 0 | O147: 0 | P147: =SUM(D147:O147) -> 0 | Q147: =(O145/O150)-1 -> -0.004939986173
A148: Distribution Lost and Unaccounted for | D148: =+D150-D145-D147 -> 16300 | E148: =+E150-E145-E147 -> 14157 | F148: 14119 | G148: 19934 | H148: 33574 | I148: 58455 | J148: 87563 | K148: 98130 | L148: 79009 | M148: 60586 | N148: 45472 | O148: =+O150-O145-O147 -> 22708 | P148: =SUM(D148:O148) -> 550007
A150: Total City Gate | D150: =ROUND((D145+D147)/(1-'Other Inputs'!$E$287),0) -> 3299505 | E150: =ROUND((E145+E147)/(1-'Other Inputs'!$E$287),0) -> 2865835 | F150: =ROUND((F145+F147)/(1-'Other Inputs'!$E$287),0) -> 2858093 | G150: =ROUND((G145+G147)/(1-'Other Inputs'!$E$287),0) -> 4035283 | H150: =ROUND((H145+H147)/(1-'Other Inputs'!$E$287),0) -> 6796318 | I150: =ROUND((I145+I147)/(1-'Other Inputs'!$E$287),0) -> 11832941 | J150: =ROUND((J145+J147)/(1-'Other Inputs'!$E$287),0) -> 17725397 | K150: =ROUND((K145+K147)/(1-'Other Inputs'!$E$287),0) -> 19864384 | L150: =ROUND((L145+L147)/(1-'Other Inputs'!$E$287),0) -> 15993745 | M150: =ROUND((M145+M147)/(1-'Other Inputs'!$E$287),0) -> 12264417 | N150: =ROUND((N145+N147)/(1-'Other Inputs'!$E$287),0) -> 9204881 | O150: =ROUND((O145+O147)/(1-'Other Inputs'!$E$287),0) -> 4596774 | P150: =SUM(D150:O150) -> 111337573
A152: Peaking Injection | D152: =+D127 -> 358462 | E152: 370410 | F152: 528187 | G152: 1387679 | H152: 759376 | I152: 28425 | J152: 0 | K152: 0 | L152: 0 | M152: =+M127 -> 0 | N152: 0 | O152: 0 | P152: =SUM(D152:O152) -> 3432539
A153: Clay Basin Injection | D153: =+D128 -> 2539739 | E153: 2992222 | F153: 2695425 | G153: 1927450 | H153: 1862260 | I153: 363100 | J153: 0 | K153: 0 | L153: 0 | M153: 0 | N153: 269360 | O153: 1168493 | P153: =SUM(D153:O153) -> 13818049
A154: Storage Lost & Unaccounted For | D154: =-'Monthly Inputs'!G60 -> 60950.00733 | E154: =-'Monthly Inputs'!H60 -> 70511.03434 | F154: =-'Monthly Inputs'!I60 -> 67212.47495 | G154: =-'Monthly Inputs'!J60 -> 74547.9522 | H154: =-'Monthly Inputs'!K60 -> 55170.8378 | I154: =-'Monthly Inputs'!L60 -> 7932.937 | J154: =-'Monthly Inputs'!M60 -> 0 | K154: =-'Monthly Inputs'!N60 -> 0 | L154: =-'Monthly Inputs'!O60 -> 0 | M154: =-'Monthly Inputs'!P60 -> 0 | N154: =-'Monthly Inputs'!Q60 -> 5513.7992 | O154: =-'Monthly Inputs'!R60 -> 23919.05171 | P154: =SUM(D154:O154) -> 365758.0945
A155: Total Demand | D155: =SUM(D150:D154) -> 6258656.007 | E155: =SUM(E150:E154) -> 6298978.034 | F155: 6148917.475 | G155: 7424959.952 | H155: =SUM(H150:H154) -> 9473124.838 | I155: 12232398.94 | J155: 17725397 | K155: 19864384 | L155: 15993745 | M155: 12264417 | N155: 9479754.799 | O155: =SUM(O150:O154) -> 5789186.052 | P155: =SUM(D155:O155) -> 128953919.1
A157: Supply
A158: Company Production | D158: =+D120 -> 6581824 | E158: 6624228 | F158: 6466418 | G158: 6241414 | H158: 6299369 | I158: 6379013 | J158: 6404458 | K158: 6245901 | L158: 5516347 | M158: 5983310 | N158: 5765200 | O158: 5926976 | P158: =SUM(D158:O158) -> 74434458
A159: Co Prod Lost & Unaccounted For | D159: =ROUND(D158*(-'Other Inputs'!$E$289-'Other Inputs'!$E$290),0) -> -323168 | E159: =ROUND(E158*(-'Other Inputs'!$E$289-'Other Inputs'!$E$290),0) -> -325250 | F159: =ROUND(F158*(-'Other Inputs'!$E$289-'Other Inputs'!$E$290),0) -> -317501 | G159: =ROUND(G158*(-'Other Inputs'!$E$289-'Other Inputs'!$E$290),0) -> -306453 | H159: =ROUND(H158*(-'Other Inputs'!$E$289-'Other Inputs'!$E$290),0) -> -309299 | I159: =ROUND(I158*(-'Other Inputs'!$E$289-'Other Inputs'!$E$290),0) -> -313210 | J159: =ROUND(J158*(-'Other Inputs'!$E$289-'Other Inputs'!$E$290),0) -> -314459 | K159: =ROUND(K158*(-'Other Inputs'!$E$289-'Other Inputs'!$E$290),0) -> -306674 | L159: =ROUND(L158*(-'Other Inputs'!$E$289-'Other Inputs'!$E$290),0) -> -270853 | M159: =ROUND(M158*(-'Other Inputs'!$E$289-'Other Inputs'!$E$290),0) -> -293781 | N159: =ROUND(N158*(-'Other Inputs'!$E$289-'Other Inputs'!$E$290),0) -> -283071 | O159: =ROUND(O158*(-'Other Inputs'!$E$289-'Other Inputs'!$E$290),0) -> -291015 | P159: =SUM(D159:O159) -> -3654734
A160: Company Production @ City Gate | D160: =SUM(D158:D159) -> 6258656 | E160: =SUM(E158:E159) -> 6298978 | F160: 6148917 | G160: 5934961 | H160: 5990070 | I160: 6065803 | J160: 6089999 | K160: 5939227 | L160: 5245494 | M160: 5689529 | N160: 5482129 | O160: 5635961 | P160: =SUM(D160:O160) -> 70779724
A162: Peaking Withdrawal | D162: =+D135 -> 0 | E162: 0 | F162: 0 | G162: 0 | H162: 0 | I162: 498000 | J162: 514600 | K162: 2488874 | L162: 464800 | M162: 0 | N162: 0 | O162: 0 | P162: =SUM(D162:O162) -> 3966274
A163: Clay Basin Withdrawal | D163: =+D136 -> 0 | E163: 0 | F163: =+F136 -> 0 | G163: 0 | H163: 6880 | I163: 0 | J163: 3561320 | K163: 5073660 | L163: 3567490 | M163: 314840 | N163: 265940 | O163: 157170 | P163: =SUM(D163:O163) -> 12947300
A164: QPC Transportation Loss on Storage | D164: ='Monthly Inputs'!G76+'Monthly Inputs'!G68 -> 0 | E164: ='Monthly Inputs'!H76+'Monthly Inputs'!H68 -> 0 | F164: ='Monthly Inputs'!I76+'Monthly Inputs'!I68 -> 0 | G164: ='Monthly Inputs'!J76+'Monthly Inputs'!J68 -> 0 | H164: ='Monthly Inputs'!K76+'Monthly Inputs'!K68 -> -172.688 | I164: ='Monthly Inputs'!L76+'Monthly Inputs'!L68 -> -8565.6 | J164: ='Monthly Inputs'!M76+'Monthly Inputs'!M68 -> -98240.252 | K164: ='Monthly Inputs'!N76+'Monthly Inputs'!N68 -> -216095.3426 | L164: ='Monthly Inputs'!O76+'Monthly Inputs'!O68 -> -97538.559 | M164: ='Monthly Inputs'!P76+'Monthly Inputs'!P68 -> -7902.484 | N164: ='Monthly Inputs'!Q76+'Monthly Inputs'!Q68 -> -6675.094 | O164: ='Monthly Inputs'!R76+'Monthly Inputs'!R68 -> -3944.967 | P164: =SUM(D164:O164) -> -439134.9866 | R164: =4761675+168421 -> 4930096
A165: Storage Lost & Unaccounted For | D165: ='Monthly Inputs'!G60 -> -60950.00733 | E165: ='Monthly Inputs'!H60 -> -70511.03434 | F165: ='Monthly Inputs'!I60 -> -67212.47495 | G165: ='Monthly Inputs'!J60 -> -74547.9522 | H165: ='Monthly Inputs'!K60 -> -55170.8378 | I165: ='Monthly Inputs'!L60 -> -7932.937 | J165: ='Monthly Inputs'!M60 -> 0 | K165: ='Monthly Inputs'!N60 -> 0 | L165: ='Monthly Inputs'!O60 -> 0 | M165: ='Monthly Inputs'!P60 -> 0 | N165: ='Monthly Inputs'!Q60 -> -5513.7992 | O165: ='Monthly Inputs'!R60 -> -23919.05171 | P165: =SUM(D165:O165) -> -365758.0945
A166: Storage Supply @ City Gate | D166: =SUM(D162:D165) -> -60950.00733 | E166: =SUM(E162:E165) -> -70511.03434 | F166: -67212.47495 | G166: -74547.9522 | H166: -48463.5258 | I166: 481501.463 | J166: 3977679.748 | K166: 7346438.657 | L166: 3934751.441 | M166: 306937.516 | N166: 253751.1068 | O166: 129305.9813 | P166: 16108680.92
A168: Gas Purchased @ City Gate | D168: =D155-D160-D166-D154 -> 0.007330000401 | E168: =E155-E160-E166-E154 -> 0.03433999978 | F168: =F155-F160-F166-F154 -> 0.4749499997 | G168: =G155-G160-G166-G154 -> 1489998.952 | H168: =H155-H160-H166-H154 -> 3476347.526 | I168: =I155-I160-I166-I154 -> 5677161.537 | J168: 7657718.252 | K168: 6578718.343 | L168: =L155-L160-L166-L154 -> 6813499.559 | M168: =M155-M160-M166-M154 -> 6267950.484 | N168: 3738360.893 | O168: 0.01871000027 | P168: =SUM(D168:O168) -> 41699756.08
A169: Gas Reimbursement | D169: =+D170-D168 -> -0.007330000401 | E169: =+E170-E168 -> -0.03433999978 | F169: -0.4749499997 | G169: 26076.0478 | H169: 60839.4742 | I169: 99356.463 | J169: 134017.748 | K169: 115134.6574 | L169: 119243.441 | M169: 109695.516 | N169: 65425.1068 | O169: -0.01871000027 | P169: =SUM(D169:O169) -> 729787.9189
A170: Gas Purchased - Dth ( /.98) | D170: =ROUND(D168/(1-'Other Inputs'!$E$290),0) -> 0 | E170: =ROUND(E168/(1-'Other Inputs'!$E$290),0) -> 0 | F170: =ROUND(F168/(1-'Other Inputs'!$E$290),0) -> 0 | G170: =ROUND(G168/(1-'Other Inputs'!$E$290),0) -> 1516075 | H170: =ROUND(H168/(1-'Other Inputs'!$E$290),0) -> 3537187 | I170: =ROUND(I168/(1-'Other Inputs'!$E$290),0) -> 5776518 | J170: =ROUND(J168/(1-'Other Inputs'!$E$290),0) -> 7791736 | K170: =ROUND(K168/(1-'Other Inputs'!$E$290),0) -> 6693853 | L170: =ROUND(L168/(1-'Other Inputs'!$E$290),0) -> 6932743 | M170: =ROUND(M168/(1-'Other Inputs'!$E$290),0) -> 6377646 | N170: =ROUND(N168/(1-'Other Inputs'!$E$290),0) -> 3803786 | O170: =ROUND(O168/(1-'Other Inputs'!$E$290),0) -> 0 | P170: =SUM(D170:O170) -> 42429544
A172: Transported Volumes - total | D172: =+D160+D168+D137+D164 -> 6258656.007 | E172: =+E160+E168+E137+E164 -> 6298978.034 | F172: 6148917.475 | G172: 7424959.952 | H172: 9473124.838 | I172: 12232398.94 | J172: 17725397 | K172: 19864384 | L172: 15993745 | M172: 12264417 | N172: 9479754.799 | O172: =+O160+O168+O137+O164 -> 5789186.052 | P172: =+P160+P168+P137+P164 -> 128953919.1
A173: Kern transported volumes | D173: =HLOOKUP(MONTH(D5),kernrivertrans,6,FALSE) -> 88768.78825 | E173: 91727.74786 | F173: 91727.74786 | G173: 88768.78825 | H173: 91727.74786 | I173: 1568248.592 | J173: 1620523.546 | K173: 1620523.546 | L173: 1463698.686 | M173: 1620523.546 | N173: 88768.78825 | O173: 91727.74786
A174: Storage Fuel % | C174: =(P154-P165)/(P162+P163+P152+P153) -> 0.02141179957
A176: Company Production as % of Total Supply / Demand | D176: =D158/(D170+D158) -> 1 | E176: 1 | F176: =F158/(F170+F158) -> 1 | G176: 0.8045662714 | H176: =H158/(H170+H158) -> 0.6404039178 | I176: 0.5247827512 | J176: 0.451139087 | K176: 0.482690861 | L176: 0.4431124685 | M176: 0.4840491302 | N176: 0.6024880797 | O176: 1 | P176: =P158/(P170+P158) -> 0.6369323036
A178: PURCHASES BREAKDOWN
A179: Spot Market Purchases | D179: ='Monthly Inputs'!G92 -> 0 | E179: ='Monthly Inputs'!H92 -> 0 | F179: ='Monthly Inputs'!I92 -> 0 | G179: ='Monthly Inputs'!J92 -> 1516075 | H179: ='Monthly Inputs'!K92 -> 3537187 | I179: ='Monthly Inputs'!L92 -> 3876518 | J179: ='Monthly Inputs'!M92 -> 2861736 | K179: ='Monthly Inputs'!N92 -> 763853 | L179: ='Monthly Inputs'!O92 -> 2092743 | M179: ='Monthly Inputs'!P92 -> 5447646 | N179: ='Monthly Inputs'!Q92 -> 3803786 | O179: ='Monthly Inputs'!R92 -> 0 | P179: =SUM(D179:O179) -> 23899544
A180: Spot Market Purchases Cost | D180: ='Monthly Inputs'!G93 -> 0 | E180: ='Monthly Inputs'!H93 -> 0 | F180: ='Monthly Inputs'!I93 -> 0 | G180: ='Monthly Inputs'!J93 -> 7155874 | H180: ='Monthly Inputs'!K93 -> 16695522.64 | I180: ='Monthly Inputs'!L93 -> 18684816.76 | J180: ='Monthly Inputs'!M93 -> 14208519.24 | K180: ='Monthly Inputs'!N93 -> 3723783.375 | L180: ='Monthly Inputs'!O93 -> 10003311.54 | M180: ='Monthly Inputs'!P93 -> 24650598.15 | N180: ='Monthly Inputs'!Q93 -> 15880806.55 | O180: ='Monthly Inputs'!R93 -> 0 | P180: =SUM(D180:O180) -> 111003232.3
A182: Contract Purchases (Dth) | D182: ='Monthly Inputs'!G101 -> 0 | E182: ='Monthly Inputs'!H101 -> 0 | F182: ='Monthly Inputs'!I101 -> 0 | G182: ='Monthly Inputs'!J101 -> 0 | H182: ='Monthly Inputs'!K101 -> 0 | I182: ='Monthly Inputs'!L101 -> 900000 | J182: ='Monthly Inputs'!M101 -> 930000 | K182: ='Monthly Inputs'!N101 -> 930000 | L182: ='Monthly Inputs'!O101 -> 840000 | M182: ='Monthly Inputs'!P101 -> 930000 | N182: ='Monthly Inputs'!Q101 -> 0 | O182: ='Monthly Inputs'!R101 -> 0 | P182: =SUM(D182:O182) -> 4530000
A183: Contract Purchases Cost Including Stabalization Costs | D183: ='Monthly Inputs'!G102+'Monthly Inputs'!G103 -> 0 | E183: ='Monthly Inputs'!H102+'Monthly Inputs'!H103 -> 0 | F183: ='Monthly Inputs'!I102+'Monthly Inputs'!I103 -> 0 | G183: ='Monthly Inputs'!J102+'Monthly Inputs'!J103 -> 0 | H183: ='Monthly Inputs'!K102+'Monthly Inputs'!K103 -> 0 | I183: ='Monthly Inputs'!L102+'Monthly Inputs'!L103 -> 4586670 | J183: ='Monthly Inputs'!M102+'Monthly Inputs'!M103 -> 4879059 | K183: ='Monthly Inputs'!N102+'Monthly Inputs'!N103 -> 4786059 | L183: ='Monthly Inputs'!O102+'Monthly Inputs'!O103 -> 4247292 | M183: ='Monthly Inputs'!P102+'Monthly Inputs'!P103 -> 4460559 | N183: ='Monthly Inputs'!Q102+'Monthly Inputs'!Q103 -> 0 | O183: ='Monthly Inputs'!R102+'Monthly Inputs'!R103 -> 0 | P183: =SUM(D183:O183) -> 22959639
Q184: =P183+P186 -> 95684681.35
A185: Peak Purchases (Dth) | D185: ='Monthly Inputs'!G98 -> 0 | E185: ='Monthly Inputs'!H98 -> 0 | F185: ='Monthly Inputs'!I98 -> 0 | G185: ='Monthly Inputs'!J98 -> 0 | H185: ='Monthly Inputs'!K98 -> 0 | I185: ='Monthly Inputs'!L98 -> 1000000 | J185: ='Monthly Inputs'!M98 -> 4000000 | K185: ='Monthly Inputs'!N98 -> 5000000 | L185: ='Monthly Inputs'!O98 -> 4000000 | M185: ='Monthly Inputs'!P98 -> 0 | N185: ='Monthly Inputs'!Q98 -> 0 | O185: ='Monthly Inputs'!R98 -> 0 | P185: =SUM(D185:O185) -> 14000000
A186: Peak Purchases Cost | D186: ='Monthly Inputs'!G99 -> 0 | E186: ='Monthly Inputs'!H99 -> 0 | F186: ='Monthly Inputs'!I99 -> 0 | G186: ='Monthly Inputs'!J99 -> 0 | H186: ='Monthly Inputs'!K99 -> 0 | I186: ='Monthly Inputs'!L99 -> 5142055.075 | J186: ='Monthly Inputs'!M99 -> 21208456.22 | K186: ='Monthly Inputs'!N99 -> 25977040.34 | L186: ='Monthly Inputs'!O99 -> 20397490.72 | M186: ='Monthly Inputs'!P99 -> 0 | N186: ='Monthly Inputs'!Q99 -> 0 | O186: ='Monthly Inputs'!R99 -> 0 | P186: =SUM(D186:O186) -> 72725042.35
A188: Future Purchases | D188: =+D170-D179-D182-D185 -> 0 | E188: =+E170-E179-E182-E185 -> 0 | F188: =+F170-F179-F182-F185 -> 0 | G188: =+G170-G179-G182-G185 -> 0 | H188: =+H170-H179-H182-H185 -> 0 | I188: =+I170-I179-I182-I185 -> 0 | J188: 0 | K188: =+K170-K179-K182-K185 -> 0 | L188: 0 | M188: =+M170-M179-M182-M185 -> 0 | N188: 4.656612873e-10 | O188: 0 | P188: =SUM(D188:O188) -> 4.656612873e-10
A189: Future Purchases Cost | D189: =ROUND(D188*D196,0) -> 0 | E189: =ROUND(E188*E196,0) -> 0 | F189: =ROUND(F188*F196,0) -> 0 | G189: 0 | H189: =ROUND(H188*H196,0) -> 0 | I189: 0 | J189: 0 | K189: 0 | L189: 0 | M189: 0 | N189: 0 | O189: 0 | P189: =SUM(D189:O189) -> 0
A191: Total Purchases Cost | D191: =+D180+D183+D186+D189 -> 0 | E191: =+E180+E183+E186+E189 -> 0 | F191: =+F180+F183+F186+F189 -> 0 | G191: =+G180+G183+G186+G189 -> 7155874 | H191: =+H180+H183+H186+H189 -> 16695522.64 | I191: 28413541.83 | J191: =+J180+J183+J186+J189 -> 40296034.46 | K191: 34486882.72 | L191: 34648094.26 | M191: 29111157.15 | N191: 15880806.55 | O191: =+O180+O183+O186+O189 -> 0 | P191: 206687913.6
A193: Gas Cost
A194: Gas Cost Purchases | D194: =IF(D170=0,0,ROUND(D191/D170,5)) -> 0 | E194: =IF(E170=0,0,ROUND(E191/E170,5)) -> 0 | F194: 0 | G194: 4.72 | H194: 4.72 | I194: 4.9188 | J194: 5.17164 | K194: 5.15202 | L194: 4.99775 | M194: 4.56456 | N194: 4.175 | O194: 0
A195: Gas Cost Injection Rate - this line not used - DELETE? | D195: ='Ut Storage'!K27 -> 4.944602463 | E195: =+D195 -> 4.944602463 | F195: 4.944602463 | G195: 4.944602463 | H195: 4.944602463 | I195: 4.944602463 | J195: 4.944602463 | K195: 4.944602463 | L195: 4.944602463 | M195: 4.944602463 | N195: 4.944602463 | O195: 4.944602463
A196: =CONCATENATE("'Future Contract Price (spot + $",'Other Inputs'!E173,")") -> 'Future Contract Price (spot + $0.02) | D196: =+D228+'Other Inputs'!$E$173 -> 4.71 | E196: =+E228+'Other Inputs'!$E$173 -> 4.925 | F196: =+F228+'Other Inputs'!$E$173 -> 4.835 | G196: =+G228+'Other Inputs'!$E$173 -> 4.74 | H196: =+H228+'Other Inputs'!$E$173 -> 4.74 | I196: =+I228+'Other Inputs'!$E$173 -> 4.84 | J196: =+J228+'Other Inputs'!$E$173 -> 4.985 | K196: =+K228+'Other Inputs'!$E$173 -> 4.895 | L196: =+L228+'Other Inputs'!$E$173 -> 4.8 | M196: =+M228+'Other Inputs'!$E$173 -> 4.545 | N196: =+N228+'Other Inputs'!$E$173 -> 4.195 | O196: =+O228+'Other Inputs'!$E$173 -> 4.075
A198: System Production | D198: =+D160 -> 6258656 | E198: 6298978 | F198: 6148917 | G198: 5934961 | H198: 5990070 | I198: 6065803 | J198: 6089999 | K198: 5939227 | L198: 5245494 | M198: 5689529 | N198: 5482129 | O198: 5635961 | P198: =SUM(D198:O198) -> 70779724
A199: System Purchases | D199: =+D168 -> 0.007330000401 | E199: 0.03433999978 | F199: 0.4749499997 | G199: 1489998.952 | H199: 3476347.526 | I199: 5677161.537 | J199: 7657718.252 | K199: 6578718.343 | L199: 6813499.559 | M199: 6267950.484 | N199: 3738360.893 | O199: 0.01871000027 | P199: =SUM(D199:O199) -> 41699756.08
A200: System Gathering of Production | D200: =ROUND($P200*D$120/$P$120,0) -> 3790907 | E200: 3815330 | F200: 3724437 | G200: 3594842 | H200: 3628223 | I200: 3674095 | J200: 3688750 | K200: 3597427 | L200: 3177229 | M200: 3446183 | N200: 3320559 | O200: 3413737 | P200: ='Other Inputs'!$D$178 -> 42871719.79
A201: System Birch Creek Gathering | D201: =ROUND($P201*D$120/$P$120,0) -> 0 | E201: 0 | F201: 0 | G201: 0 | H201: 0 | I201: 0 | J201: 0 | K201: 0 | L201: 0 | M201: 0 | N201: 0 | O201: 0 | P201: ='Other Inputs'!$D$162 -> 0
A203: Utah Production | D203: =ROUND(D198*$I$74,0) -> 6031400 | E203: 6070258 | F203: 5925646 | G203: 5719459 | H203: 5772567 | I203: 5845550 | J203: 5868867 | K203: 5723570 | L203: 5055027 | M203: 5482939 | N203: 5283070 | O203: 5431316 | P203: =SUM(D203:O203) -> 68209669
A204: Utah Purchases | D204: =ROUND(D199*$I$74,0) -> 0 | E204: 0 | F204: 0 | G204: 1435896 | H204: 3350119 | I204: 5471020 | J204: 7379662 | K204: 6339841 | L204: 6566097 | M204: 6040357 | N204: 3602619 | O204: 0 | P204: =SUM(D204:O204) -> 40185611
A205: Utah Gathering | D205: =ROUND(D200*$I$74,0) -> 3653257 | E205: 3676793 | F205: 3589200 | G205: 3464311 | H205: 3496480 | I205: 3540686 | J205: 3554809 | K205: 3466802 | L205: 3061862 | M205: 3321050 | N205: 3199987 | O205: 3289782 | P205: =SUM(D205:O205) -> 41315019
A206: Utah Birch Creek Gathering | D206: =ROUND(D201*$I$74,0) -> 0 | E206: 0 | F206: 0 | G206: 0 | H206: 0 | I206: 0 | J206: 0 | K206: 0 | L206: 0 | M206: 0 | N206: 0 | O206: 0 | P206: =SUM(D206:O206) -> 0
A208: Wyoming Production | D208: =+D198-D203 -> 227256 | E208: 228720 | F208: 223271 | G208: 215502 | H208: 217503 | I208: 220253 | J208: 221132 | K208: 215657 | L208: 190467 | M208: 206590 | N208: 199059 | O208: 204645 | P208: =SUM(D208:O208) -> 2570055
A209: Wyoming Purchases | D209: =+D199-D204 -> 0.007330000401 | E209: 0.03433999978 | F209: 0.4749499997 | G209: 54102.9522 | H209: 126228.5258 | I209: 206141.537 | J209: 278056.252 | K209: 238877.3426 | L209: 247402.559 | M209: 227593.484 | N209: 135741.8932 | O209: 0.01871000027 | P209: =SUM(D209:O209) -> 1514145.081
A210: Wyoming Gathering | D210: =+D200-D205 -> 137650 | E210: 138537 | F210: 135237 | G210: 130531 | H210: 131743 | I210: 133409 | J210: 133941 | K210: 130625 | L210: 115367 | M210: 125133 | N210: 120572 | O210: 123955 | P210: =SUM(D210:O210) -> 1556700
A211: Wyoming Birch Creek Gathering | D211: =+D201-D206 -> 0 | E211: 0 | F211: 0 | G211: 0 | H211: 0 | I211: 0 | J211: 0 | K211: 0 | L211: 0 | M211: 0 | N211: 0 | O211: 0 | P211: =SUM(D211:O211) -> 0
A214: I-2, I-4 Averate Gas Cost Calculations
A215: Wyoming
B216: Wyoming I-2 Volumes | D216: =D34 -> 6544 | E216: 6679 | F216: 7493 | G216: 7472 | H216: 10037 | I216: 13176 | J216: 17633 | K216: 16502 | L216: 17098 | M216: 17180 | N216: 13922 | O216: 11281 | P216: 145017
B217: Wyoming I-4 Volumes | D217: =D35 -> 0 | E217: 0 | F217: 0 | G217: 0 | H217: 0 | I217: 0 | J217: 0 | K217: 0 | L217: 0 | M217: 0 | N217: 0 | O217: 0 | P217: 0
D218: =SUM(D216:D217) -> 6544 | E218: =SUM(E216:E217) -> 6679 | F218: 7493 | G218: 7472 | H218: 10037 | I218: 13176 | J218: 17633 | K218: 16502 | L218: 17098 | M218: 17180 | N218: 13922 | O218: 11281 | P218: 145017
B220: Global Insight Spot Price Forecast | D220: ='Monthly Inputs'!G88 -> 4.69 | E220: ='Monthly Inputs'!H88 -> 4.905 | F220: ='Monthly Inputs'!I88 -> 4.815 | G220: ='Monthly Inputs'!J88 -> 4.72 | H220: ='Monthly Inputs'!K88 -> 4.72 | I220: ='Monthly Inputs'!L88 -> 4.82 | J220: ='Monthly Inputs'!M88 -> 4.965 | K220: ='Monthly Inputs'!N88 -> 4.875 | L220: ='Monthly Inputs'!O88 -> 4.78 | M220: ='Monthly Inputs'!P88 -> 4.525 | N220: ='Monthly Inputs'!Q88 -> 4.175 | O220: ='Monthly Inputs'!R88 -> 4.055
D221: =D218*D220 -> 30691.36 | E221: =E218*E220 -> 32760.495 | F221: 36078.795 | G221: 35267.84 | H221: 47374.64 | I221: 63508.32 | J221: 87547.845 | K221: 80447.25 | L221: 81728.44 | M221: 77739.5 | N221: 58124.35 | O221: 45744.455 | P221: =SUM(D221:O221) -> 677013.29
P222: =P221/P218 -> 4.66850983
P223: =1-'Other Inputs'!$E$288 -> 0.985
P224: =1-'Other Inputs'!$E$290 -> 0.9828
P225: =P222/P223/P224 -> 4.822551779
A226: Utah
B227: Utah I-4 & IS-4 Volumes | D227: =D15+D16 -> 247991 | E227: 223222 | F227: 234115 | G227: 230928 | H227: 204977 | I227: 241715 | J227: 214279 | K227: 233746 | L227: 205064 | M227: 202331 | N227: 196821 | O227: 196258 | P227: 2631447
B228: =B220 -> Global Insight Spot Price Forecast | D228: ='Monthly Inputs'!G88 -> 4.69 | E228: ='Monthly Inputs'!H88 -> 4.905 | F228: ='Monthly Inputs'!I88 -> 4.815 | G228: ='Monthly Inputs'!J88 -> 4.72 | H228: ='Monthly Inputs'!K88 -> 4.72 | I228: ='Monthly Inputs'!L88 -> 4.82 | J228: ='Monthly Inputs'!M88 -> 4.965 | K228: ='Monthly Inputs'!N88 -> 4.875 | L228: ='Monthly Inputs'!O88 -> 4.78 | M228: ='Monthly Inputs'!P88 -> 4.525 | N228: ='Monthly Inputs'!Q88 -> 4.175 | O228: ='Monthly Inputs'!R88 -> 4.055
D229: =D227*D228 -> 1163077.79 | E229: =E227*E228 -> 1094903.91 | F229: 1127263.725 | G229: 1089980.16 | H229: 967491.44 | I229: 1165066.3 | J229: 1063895.235 | K229: 1139511.75 | L229: 980205.92 | M229: 915547.775 | N229: 821727.675 | O229: =O227*O228 -> 795826.19 | P229: =SUM(D229:O229) -> 12324497.87
P230: =P229/P227 -> 4.683544023
P231: =1-'Other Inputs'!$E$287 -> 0.99506 | Q231: QGC Lost & Unaccounted For % (Utah
P232: =1-'Other Inputs'!$E$290 -> 0.9828 | Q232: QPC Lost & Unaccounted For %
P234: =P230/P231/P232 -> 4.789169306
D236: =MONTH(D237) -> 1 | E236: =MONTH(E237) -> 2 | F236: =MONTH(F237) -> 3 | G236: 4 | H236: 5 | I236: 6 | J236: 7 | K236: 8 | L236: 9 | M236: 10 | N236: 11 | O236: 12
D237: 2011-01-01 | E237: 2011-02-01 | F237: 2011-03-01 | G237: 2011-04-01 | H237: 2011-05-01 | I237: 2011-06-01 | J237: 2011-07-01 | K237: 2010-08-01 | L237: 2010-09-01 | M237: 2010-10-01 | N237: 2010-11-01 | O237: 2010-12-01
D238: 31 | E238: 28 | F238: 31 | G238: 30 | H238: 31 | I238: 30 | J238: 31 | K238: 31 | L238: 30 | M238: 31 | N238: 30 | O238: 31
D239: ='Other Inputs'!$D$54+'Other Inputs'!$D$55 -> 53000 | E239: ='Other Inputs'!$D$54+'Other Inputs'!$D$55 -> 53000 | F239: ='Other Inputs'!$D$54+'Other Inputs'!$D$55 -> 53000 | G239: ='Other Inputs'!$D$54 -> 3000 | H239: ='Other Inputs'!$D$54 -> 3000 | I239: ='Other Inputs'!$D$54 -> 3000 | J239: ='Other Inputs'!$D$54 -> 3000 | K239: ='Other Inputs'!$D$54 -> 3000 | L239: ='Other Inputs'!$D$54 -> 3000 | M239: ='Other Inputs'!$D$54 -> 3000 | N239: ='Other Inputs'!$D$54+'Other Inputs'!$D$55 -> 53000 | O239: ='Other Inputs'!$D$54+'Other Inputs'!$D$55 -> 53000
D240: ='Other Inputs'!$C$60 -> 0.9863198695 | E240: ='Other Inputs'!$C$60 -> 0.9863198695 | F240: ='Other Inputs'!$C$60 -> 0.9863198695 | G240: ='Other Inputs'!$C$60 -> 0.9863198695 | H240: ='Other Inputs'!$C$60 -> 0.9863198695 | I240: ='Other Inputs'!$C$60 -> 0.9863198695 | J240: ='Other Inputs'!$C$60 -> 0.9863198695 | K240: ='Other Inputs'!$C$60 -> 0.9863198695 | L240: ='Other Inputs'!$C$60 -> 0.9863198695 | M240: ='Other Inputs'!$C$60 -> 0.9863198695 | N240: ='Other Inputs'!$C$60 -> 0.9863198695 | O240: ='Other Inputs'!$C$60 -> 0.9863198695
D241: =D238*D239*D240 -> 1620523.546 | E241: =E238*E239*E240 -> 1463698.686 | F241: 1620523.546 | G241: 88768.78825 | H241: 91727.74786 | I241: 88768.78825 | J241: 91727.74786 | K241: 91727.74786 | L241: 88768.78825 | M241: 91727.74786 | N241: 1568248.592 | O241: 1620523.546 | P241: =SUM(D241:O241) -> 8526735.272
D245: 0.13 | E245: 0.14 | F245: 0.05 | G245: 0.05 | H245: 0.02 | I245: 0.02 | J245: 0.02 | K245: 0.02 | L245: 0.01 | M245: 0 | N245: 0 | O245: 0
D246: =D245*(D179+D182+D185+D188) -> 0 | E246: 0 | F246: 0 | G246: 75803.75 | H246: 70743.74 | I246: 115530.36 | J246: 155834.72 | K246: 133877.06 | L246: 69327.43 | M246: 0 | N246: 0 | O246: 0

Sheet Utah Summary-by class
A1: UTAH SUMMARY
B2: NOT AN EXHIBIT !!!
A3: NEEDS TO BE UPDATED FOR GSR AND GSC RATES | Q3: Sub Total
C4: COMMODITY | J4: SNG | Q4: TOTAL
C5: Current | D5: Proposed | E5: Current | F5: Proposed | G5: Revenue | H5: % | J5: Current | K5: Proposed | L5: Current | M5: Proposed | N5: Revenue | O5: % | Q5: Revenue | R5: %
A6: RATE | B6: Dth Sales | C6: Rates | D6: Rates | E6: Revenue | F6: Revenue | G6: Difference | H6: Change | J6: Rates | K6: Rates | L6: Revenue | M6: Revenue | N6: Difference | O6: Change | Q6: Difference | R6: Change
A8: GS (W) | B8: =Calculations!P52 -> 70638973 | C8: ='Ut 1.6 p1'!$H$36 -> 4.42965 | D8: =ROUND('Ut 1.6 p1'!$F$36,5) -> 5.27588 | E8: =ROUND(B8*C8,0) -> 312905927 | F8: =ROUND(B8*D8,0) -> 372682745 | G8: =(F8-E8) -> 59776818 | J8: ='Ut 1.6 p3'!E16 -> 1.10168 | K8: ='Ut 1.6 p3'!I16 -> 1.05304 | L8: =ROUND(B8*J8,0) -> 77821544 | M8: =B8*K8 -> 74385664.13 | N8: =(M8-L8) -> -3435879.872 | Q8: =G8+N8 -> 56340938.13
A9: GS (S) | B9: =Calculations!P53 -> 27936660 | C9: ='Ut 1.6 p1'!$H$36 -> 4.42965 | D9: =D8 -> 5.27588 | E9: =ROUND(B9*C9,0) -> 123749626 | F9: =ROUND(B9*D9,0) -> 147390466 | G9: =(F9-E9) -> 23640840 | J9: ='Ut 1.6 p3'!E17 -> 0.51725 | K9: ='Ut 1.6 p3'!I17 -> 0.49441 | L9: =ROUND(B9*J9,0) -> 14450237 | M9: =B9*K9 -> 13812164.07 | N9: =(M9-L9) -> -638072.9294 | Q9: =G9+N9 -> 23002767.07
A10: Total | B10: =SUM(B8:B9) -> 98575633 | E10: =SUM(E8:E9) -> 436655553 | F10: =SUM(F8:F9) -> 520073211 | G10: =SUM(G8:G9) -> 83417658 | H10: =IF(G10=0,0,G10/E10) -> 0.1910376667 | L10: =SUM(L8:L9) -> 92271781 | M10: =SUM(M8:M9) -> 88197828.2 | N10: =SUM(N8:N9) -> -4073952.801 | O10: =IF(N10=0,0,N10/L10) -> -0.04415166541 | Q10: =SUM(Q8:Q9) -> 79343705.2 | R10: =IF(Q10=0,0,Q10/(E10+L10)) -> 0.1500087065
A13: FS | B13: =Calculations!P58 -> 2449722 | C13: ='Ut 1.6 p1'!$H$36 -> 4.42965 | D13: =D8 -> 5.27588 | E13: =ROUND(B13*C13,0) -> 10851411 | F13: =ROUND(B13*D13,0) -> 12924439 | G13: =(F13-E13) -> 2073028 | J13: ='Ut 1.6 p3'!E19 -> 1.07299 | K13: ='Ut 1.6 p3'!I19 -> 1.02562 | L13: =ROUND(B13*J13,0) -> 2628527 | M13: =B13*K13 -> 2512483.878 | N13: =(M13-L13) -> -116043.1224 | Q13: =G13+N13 -> 1956984.878
B14: =Calculations!P59 -> 2414448 | C14: ='Ut 1.6 p1'!$H$36 -> 4.42965 | D14: =D9 -> 5.27588 | E14: =ROUND(B14*C14,0) -> 10695160 | F14: =ROUND(B14*D14,0) -> 12738338 | G14: =(F14-E14) -> 2043178 | J14: ='Ut 1.6 p3'!E20 -> 0.51723 | K14: ='Ut 1.6 p3'!I20 -> 0.4944 | L14: =ROUND(B14*J14,0) -> 1248825 | M14: =B14*K14 -> 1193703.091 | N14: =(M14-L14) -> -55121.9088 | Q14: =G14+N14 -> 1988056.091
A15: Total | B15: =SUM(B13:B14) -> 4864170 | E15: =SUM(E13:E14) -> 21546571 | F15: =SUM(F13:F14) -> 25662777 | G15: =SUM(G13:G14) -> 4116206 | H15: =IF(G15=0,0,G15/E15) -> 0.1910376366 | L15: =SUM(L13:L14) -> 3877352 | M15: =SUM(M13:M14) -> 3706186.969 | N15: =SUM(N13:N14) -> -171165.0312 | O15: =IF(N15=0,0,N15/L15) -> -0.04414482646 | Q15: =SUM(Q13:Q14) -> 3945040.969 | R15: =IF(Q15=0,0,Q15/(E15+L15)) -> 0.1551704262
A19: NGV | B19: =Calculations!P12 -> 693551 | C19: ='Ut 1.6 p1'!$H$36 -> 4.42965 | D19: =D8 -> 5.27588 | E19: =ROUND(B19*C19,0) -> 3072188 | F19: =ROUND(B19*D19,0) -> 3659092 | G19: =(F19-E19) -> 586904 | H19: =IF(G19=0,0,G19/E19) -> 0.1910377881 | J19: ='Ut 1.6 p3'!E22 -> 0.795 | K19: ='Ut 1.6 p3'!I22 -> 0.7599 | L19: =ROUND(B19*J19,0) -> 551373 | M19: =ROUND(B19*K19,0) -> 527029 | N19: =(M19-L19) -> -24344 | O19: =IF(N19=0,0,N19/L19) -> -0.04415159973 | Q19: =G19+N19 -> 562560 | R19: =IF(Q19=0,0,Q19/(E19+L19)) -> 0.1552505946
G21: =G10+G15+G19 -> 88120768 | N21: =N10+N15+N19 -> -4269461.833 | Q21: =Q10+Q15+Q19 -> 83851306.17
A24: IS | B24: =Calculations!P15 -> 2631447 | E24: =ROUND(B24*C24,0) -> 0 | F24: =ROUND(B24*D24,0) -> 0 | G24: =(F24-E24) -> 0 | H24: =IF(G24=0,0,G24/E24) -> 0 | J24: ='Ut 1.6 p3'!E24 -> 0.1793 | K24: ='Ut 1.6 p3'!I24 -> 0.1786 | L24: =ROUND(B24*J24,0) -> 471818 | M24: =ROUND(B24*K24,0) -> 469976 | N24: =(M24-L24) -> -1842 | O24: =IF(N24=0,0,N24/L24) -> -0.003904047747 | Q24: =G24+N24 -> -1842 | R24: =IF(Q24=0,0,Q24/(E24+L24)) -> -0.003904047747
B26: 0 | E26: =ROUND(B26*C26,0) -> 0 | F26: =ROUND(B26*D26,0) -> 0 | G26: =(F26-E26) -> 0 | H26: =IF(G26=0,0,G26/E26) -> 0 | J26: 0 | K26: 0 | L26: =ROUND(B26*J26,0) -> 0 | M26: =ROUND(B26*K26,0) -> 0 | N26: =(M26-L26) -> 0 | O26: =IF(N26=0,0,N26/L26) -> 0 | Q26: =G26+N26 -> 0 | R26: =IF(Q26=0,0,Q26/(E26+L26)) -> 0
B27: - | E27: - | F27: - | G27: - | L27: ------------------- | M27: ------------------- | N27: ------------------- | Q27: -------------------
B28: =B10+B15+B19+B24+B26 -> 106764801 | E28: =E10+E15+E19+E24+E26 -> 461274312 | F28: =F10+F15+F19+F24+F26 -> 549395080 | G28: =G10+G15+G19+G24+G26 -> 88120768 | H28: =IF(G28=0,0,G28/E28) -> 0.1910376661 | L28: =L10+L15+L19+L24+L26 -> 97172324 | M28: =M10+M15+M19+M24+M26 -> 92901020.17 | N28: =N10+N15+N19+N24+N26 -> -4271303.833 | O28: =IF(N28=0,0,N28/L28) -> -0.04395597076 | Q28: =Q10+Q15+Q19+Q24+Q26 -> 83849464.17 | R28: =IF(Q28=0,0,Q28/(E28+L28)) -> 0.1501476753 | W28: =49300714-6927605-5328088 -> 37045021
G29: =IF(G28>0,"Commodity Increase","Commodity Decrease") -> Commodity Increase | N29: =IF(N28>0,"Increase to SNG","Decrease to SNG") -> Decrease to SNG | W29: =W28-N28 -> 41316324.83
B30: NOT AN EXHIBIT !!!
G31: =ROUND(G28,-3) -> 88121000 | N31: =ROUND(N28,-3) -> -4271000 | Q31: =ROUND(Q28,-3) -> 83849000 | W31: =W29-8603966 -> 32712358.83
G32: Rounded | N32: Rounded | Q32: Rounded
A35: FT2 | B35: ='RevRun Fcst'!S138+'RevRun Fcst'!S183 -> 0 | M35: =0.0005*B24 -> 1315.7235
M36: =M35+M28 -> 92902335.89
A37: IT | B37: ='RevRun Fcst'!S165+'RevRun Fcst'!S174 -> 3214379
A40: winter | B40: =B8+B13 -> 73088695 | J40: =L40/B40 -> 1.100718394 | L40: =L8+L13 -> 80450071
A41: summer | B41: =B9+B14 -> 30351108 | J41: =L41/B41 -> 0.5172483983 | L41: =L9+L14 -> 15699062
A42: year | B42: =B10+B15 -> 103439803 | J42: =L42/B42 -> 0.9295177505 | L42: =L10+L15 -> 96149133
B44: =B10+B15+B19 -> 104133354 | J44: =L44/B44 -> 0.9286218323 | L44: =L10+L15+L19 -> 96700506

Sheet Model Checks
B2: Model Checks
B3: If the total of all checks is not zero, or very close to zero, find the checks below that are out of balance and follow the calculations
B4: back through the model and correct any errors.
D6: Total of all Checks
D7: =ABS(SUM(D10:D2000)) -> 
B9: Forecasted Demand
C10: Utah | D10: =Calculations!P25-'RevRun Fcst'!T205 -> 0
C11: Wyoming | D11: =Calculations!P44-'RevRun Fcst'!T329 -> 0
C12: Total System | D12: =Calculations!P47-'RevRun Fcst'!T370 -> 0
B13: Forecasted Utah Demand Check by Month
C14: 1 | D14: =Calculations!D25-'RevRun Fcst'!H205 -> 0
C15: 2 | D15: =Calculations!E25-'RevRun Fcst'!I205 -> 0
C16: 3 | D16: =Calculations!F25-'RevRun Fcst'!J205 -> 0
C17: 4 | D17: =Calculations!G25-'RevRun Fcst'!K205 -> 0
C18: 5 | D18: =Calculations!H25-'RevRun Fcst'!L205 -> 0
C19: 6 | D19: =Calculations!I25-'RevRun Fcst'!M205 -> 0
C20: 7 | D20: =Calculations!J25-'RevRun Fcst'!N205 -> 0
C21: 8 | D21: =Calculations!K25-'RevRun Fcst'!O205 -> 0
C22: 9 | D22: =Calculations!L25-'RevRun Fcst'!P205 -> 0
C23: 10 | D23: =Calculations!M25-'RevRun Fcst'!Q205 -> 0
C24: 11 | D24: =Calculations!N25-'RevRun Fcst'!R205 -> 0
C25: 12 | D25: =Calculations!O25-'RevRun Fcst'!S205 -> 0
C26: Wyoming I-2 and I-4 Revenues | D26: =('RevRun Fcst'!T273+'RevRun Fcst'!T282)-Calculations!P65 -> 0
C27: System Sales Volumes | D27: =Calculations!H76-'RevRun Fcst'!T368 -> 0
C28: Utah Sales Volumes | D28: =Calculations!P20-'Utah Summary-by class'!B28 -> 0
B29: Company Production | D29: =Calculations!P120-'Monthly Inputs'!S16-'Monthly Inputs'!S22 -> 0
B30: Company Produced Gas | D30: ='Monthly Inputs'!S9-'Monthly Inputs'!S7-'Monthly Inputs'!S8 -> 0
B31: Company Produced Gas | D31: ='Monthly Inputs'!S12-'Monthly Inputs'!S11-'Monthly Inputs'!S9 -> 0
B32: Injections | D32: ='Monthly Inputs'!S38-SUM('Monthly Inputs'!S32:S37) -> 0
B33: Withdrawls | D33: ='Monthly Inputs'!S46-SUM('Monthly Inputs'!S41:S45) -> 0
B34: Injections & Withdrawls | D34: =SUM('Ut 1.3 p2'!D23:D28)-'Monthly Inputs'!S38-'Monthly Inputs'!S46 -> 0
B35: Injections | D35: =Calculations!P129-'Monthly Inputs'!S38 -> 0
B36: Withdrawls | D36: =Calculations!P137-'Monthly Inputs'!S46 -> 0
B37: Sales for Resale | D37: =Expenses!S445-Calculations!P86 -> 0
B38: Incidental Plant Prod Sales | D38: =Expenses!S446-Calculations!P87 -> 0
B39: Incidental Gas & Oil Sales | D39: =Expenses!S447-Calculations!P89 -> 0
B40: Gasoline and Oil Costs | D40: =Expenses!S450+Calculations!P90 -> 0
B41: Wexpro Revenue Sharing | D41: =Expenses!S449-Calculations!P94 -> 0
B42: Storage Gas | D42: ='Rate Base'!U216-Calculations!P99 -> 0
B43: 101 Production | D43: ='Rate Base'!U158-Calculations!P100 -> 0
B44: 108 Production | D44: ='Rate Base'!U176-Calculations!P101 -> 0
B45: 111 Production | D45: ='Rate Base'!U183-Calculations!P102 -> 0
B46: 255 Production | D46: ='Rate Base'!U251-Calculations!P103 -> 0
B47: 282 Production | D47: ='Rate Base'!U258-Calculations!P104 -> 0
B48: 282.1 Production | D48: ='Rate Base'!U265-Calculations!P105 -> 0
B49: Production Rate Base | D49: =SUM(Calculations!P99:P105)-'Rate Base'!U285 -> 0
B50: Purchased Gas Cost | D50: ='Ut 1.2'!G24-Calculations!P191 -> -0.6087415218
B51: Production Function | D51: =#REF!-Calculations!N108 -> 
B52: Production Function | D52: =#REF!-'Rate Base'!U158-'Rate Base'!U176-'Rate Base'!U183-'Rate Base'!U251-'Rate Base'!U258-'Rate Base'!U265 -> 
B53: Wexpro Reduction | D53: =#REF!-Calculations!N109 -> 
B54: Wyoming Production Return | D54: =#REF!-Calculations!N112 -> 
B55: Working Gas Rate Base | D55: =Calculations!P99-'Ut 1.3 p2'!D53 -> 0
B56: Allocations | D56: ='Ut 1.5'!E41-'Ut 1.5'!F41-'Ut 1.5'!G41+'Ut 1.5'!G39 -> 0
B58: System Sales | D58: ='SDR#1'!C10-'RevRun Fcst'!T368 -> 0
B59: Lost & Unaccounted For | D59: ='SDR#1'!C15-(('SDR#1'!C10+'SDR#1'!C11)/(1-'Other Inputs'!E287)) -> -0.6136514246
B60: Supply / Demand | D60: ='SDR#1'!C36-'SDR#1'!C15 -> 0.874270007
B61: System Sales | D61: ='SDR#3'!H36-'SDR#1'!C10 -> 0
B62: SNG Revenue | D62: ='SDR#4'!G23-'Utah Summary-by class'!L28 -> 0.7995600104
B63: Utah Sales | D63: ='SDR#3'!D36-'SDR#4'!E23 -> 0
B64: Utah Sales | D64: ='SDR#2'!G59+'Ut 1.6 p1'!J25 -> -0.9245575815
B65: Seasonal Volumes | D65: =Calculations!P52+Calculations!P53-Calculations!P7-Calculations!P8 -> 0
B66: Seasonal Volumes | D66: =Calculations!P55+Calculations!P56-Calculations!P9 -> 0
B67: Seasonal Volumes | D67: =Calculations!P58+Calculations!P59-Calculations!P10 -> 0
B68: GS-1 Sales Dth | D68: =#REF!-'SDR#4'!E12-'SDR#4'!E13 -> 

Sheet SDR#1
F1: ='Control Panel'!F32 -> Questar Gas Company
F2: ='Control Panel'!F33 -> Docket No. 14-057-09
B4: Standard Data Request #1
B5: Summary of Sources of Supply and Demand
A8: 1 | B8: DEMAND | C8: Total | D8: Utah | E8: Wyoming
A10: =A8+1 -> 2 | B10: SALES IN DTHS | C10: =D10+E10 -> 110787566 | D10: =Calculations!P20 -> 106764801 | E10: =Calculations!P39 -> 4022765
A11: =A10+1 -> 3 | B11: DIST. CO. USE & | C11: 0
A12: =A11+1 -> 4 | B12: DIST. LOST & UNACCT. (0.49%) | C12: =Calculations!P148 -> 550007
A15: =A12+1 -> 5 | B15: TOTAL | C15: =SUM(C10:C12) -> 111337573
A19: =A15+1 -> 6 | B19: SUPPLY | C19: Total | D19: Utah | E19: Wyoming
A21: =A19+1 -> 7 | B21: COMPANY PRODUCTION | C21: ='Ut 1.1'!F1447+'Ut 1.1'!F1543 -> 74434458 | D21: =$D$10/$C$10*C21 -> 71731696.82 | E21: =$E$10/$C$10*C21 -> 2702761.178
A22: =A21+1 -> 8 | B22: GAS REIMBURSEMENT | C22: =C21*-'Other Inputs'!$E$291 -> -3654731.888 | D22: =D21*-'Other Inputs'!$E$291 -> -3522026.314 | E22: =E21*-'Other Inputs'!$E$291 -> -132705.5739 | G22: =C21/C10 -> 0.6718665342 | H22: =D21/D10 -> 0.6718665342 | I22: =E21/E10 -> 0.6718665342
A25: =A22+1 -> 9 | B25: CONTRACT GAS | C25: ='Ut 1.2'!E24 -> 42429544 | D25: =$D$10/$C$10*C25 -> 40888901.03 | E25: =$E$10/$C$10*C25 -> 1540642.969
A26: =A25+1 -> 10 | B26: GAS REIMBURSEMENT | C26: =C25*-'Other Inputs'!$E$290 -> -729788.1568 | D26: =D25*-'Other Inputs'!$E$290 -> -703289.0977 | E26: =E25*-'Other Inputs'!$E$290 -> -26499.05906
A28: =A26+1 -> 11 | B28: STORAGE
A29: =A28+1 -> 12 | B29: INJECTIONS | C29: ='Ut 1.4 p2'!E22 -> -17250588 | D29: =$D$10/$C$10*C29 -> -16624208.49 | E29: =$E$10/$C$10*C29 -> -626379.513
A30: =A29+1 -> 13 | B30: WITHDRAWALS | C30: ='Ut 1.4 p2'!E21 -> 16913574 | D30: =$D$10/$C$10*C30 -> 16299431.67 | E30: =$E$10/$C$10*C30 -> 614142.3263
A31: =A30+1 -> 14 | B31: NET (INJECTIONS) WITHDRAWALS | C31: =C29+C30 -> -337014 | D31: =D29+D30 -> -324776.8133 | E31: =E29+E30 -> -12237.18665
A33: =A31+1 -> 15 | B33: Storage Fuel | C33: =Calculations!P164+Calculations!P165-1 -> -804894.0811 | D33: =D10/C10*C33 -> -775667.8795 | E33: =E10/C10*C33 -> -29226.2016
A36: =A33+1 -> 16 | B36: TOTAL SUPPLY | C36: =C21+C22+C25+C26+C29+C30+C33 -> 111337573.9 | D36: =SUM(D21:D30)+D33 -> 107294837.7 | E36: =SUM(E21:E30)+E33 -> 4042736.126
A38: =A36+1 -> 17 | B38: Company Use & Loss % | C38: =(+C36-C10)/C36 -> 0.004940002329 | D38: =(+D36-D10)/D36 -> 0.004940002329 | E38: =(+E36-E10)/E36 -> 0.004940002329
B41: Difference | C41: =C15-C36 -> -0.874270007

Sheet SDR#2
H1: ='Control Panel'!F32 -> Questar Gas Company
H2: ='Control Panel'!F33 -> Docket No. 14-057-09
A5: Standard Data Request #2
A6: Supplier Non-Gas Costs
B8: (A) | C8: (B) | D8: (C) | E8: (D) | F8: (E) | G8: (F) | T8: withdraw
A9: I. Transportation (QPC T-1) | C9: Volume (Dth) | G9: Utah Total | J9: Utah gas | K9: Utah Co. | L9: Utah gas | M9: Wyo gas | N9: Wyo Co. | O9: Wyo gas | Q9: @city gate | R9: @city gate | T9: loss | U9: Kern River
B10: Month | C10: Utah | D10: Wyoming | E10: $/dth | F10: Demand | G10: b*d+e*(Ut %) | J10: purchased | K10: production | L10: withdrawn | M10: purchased | N10: production | O10: withdrawn | P10: Total | Q10: purchased | R10: co production | S10: withdrawls | T10: =-Calculations!P164/Calculations!P137 -> 0.025963465 | U10: Transportation
B12: ='Ut Storage'!B11 -> Jun14 | C12: =J12+K12+L12-(T12+$B$43*U12)*$J$39 -> 5892103.687 | D12: =M12+N12+O12-(T12+$B$43*U12)*$K$39 -> 222007.1434 | E12: ='Other Inputs'!$F$38 -> 0.00267 | F12: =('Other Inputs'!$D$22)*('Other Inputs'!$F$22)-('Other Inputs'!$E$295/12)+('Other Inputs'!$D$30*'Other Inputs'!$F$30) -> 4384529.667 | G12: =(+C12)*E12+F12*$J$33/$L$33 -> 4286263.812 | J12: =Q12*$J$39 -> 0.007063843555 | K12: =R12*$J$39 -> 6031400.332 | L12: =S12*$J$39 -> 0 | M12: =Q12-J12 -> 0.0002661568453 | N12: =R12-K12 -> 227255.6679 | O12: =S12-L12 -> 0 | P12: =SUM(J12:O12)-U12 -> 6112106.007 | Q12: =Calculations!D168 -> 0.007330000401 | R12: =Calculations!D160 -> 6258656 | S12: =Calculations!D162+Calculations!D163 -> 0 | T12: =S12*$T$10 -> 0 | U12: =V12*W12 -> 146550 | V12: 4885 | W12: 30 | X12: =B12 -> Jun14
B13: ='Ut Storage'!B12 -> Jul14 | C13: =J13+K13+L13-(T13+$B$43*U13)*$J$39 -> 5926318.375 | D13: =M13+N13+O13-(T13+$B$43*U13)*$K$39 -> 223296.3103 | E13: ='Other Inputs'!$F$38 -> 0.00267 | F13: =('Other Inputs'!$D$22)*('Other Inputs'!$F$22)-('Other Inputs'!$E$295/12)+('Other Inputs'!$D$30*'Other Inputs'!$F$30) -> 4384529.667 | G13: 4286355.166 | J13: 0.03309309316 | K13: 6070258.215 | L13: 0 | M13: 0.001246906618 | N13: 228719.7846 | O13: 0 | P13: 6147543.034 | Q13: =Calculations!E168 -> 0.03433999978 | R13: =Calculations!E160 -> 6298978 | S13: =Calculations!E162+Calculations!E163 -> 0 | T13: =S13*$T$10 -> 0 | U13: =V13*W13 -> 151435 | V13: 4885 | W13: 31 | X13: =B13 -> Jul14
B14: ='Ut Storage'!B13 -> Aug14 | C14: 4360590.851 | D14: 164301.6433 | E14: ='Other Inputs'!$F$38 -> 0.00267 | F14: =('Other Inputs'!$D$22)*('Other Inputs'!$F$22)-('Other Inputs'!$E$295/12)+('Other Inputs'!$D$30*'Other Inputs'!$F$30) -> 4384529.667 | G14: 4282174.673 | J14: 0.4577042717 | K14: 5925646.023 | L14: 0 | M14: 0.01724572806 | N14: 223270.977 | O14: 0 | P14: 4502367.475 | Q14: =Calculations!F168 -> 0.4749499997 | R14: =Calculations!F160 -> 6148917 | S14: =Calculations!F162+Calculations!F163 -> 0 | T14: 0 | U14: 1646550 | V14: 54885 | W14: 30 | X14: Aug14
B15: ='Ut Storage'!B14 -> Sep14 | C15: 5538130.916 | D15: 208669.8894 | E15: ='Other Inputs'!$F$38 -> 0.00267 | F15: =('Other Inputs'!$D$22)*('Other Inputs'!$F$22)-('Other Inputs'!$E$295/12)+('Other Inputs'!$D$30*'Other Inputs'!$F$30) -> 4384529.667 | G15: 4285318.705 | J15: 1435896.169 | K15: 5719458.898 | L15: 0 | M15: 54102.78293 | N15: 215502.1023 | O15: 0 | P15: 5723524.952 | Q15: =Calculations!G168 -> 1489998.952 | R15: =Calculations!G160 -> 5934961 | S15: =Calculations!G162+Calculations!G163 -> 0 | T15: 0 | U15: 1701435 | V15: 54885 | W15: 31 | X15: Sep14
B16: ='Ut Storage'!B15 -> Oct14 | C16: 7511919.943 | D16: 283039.8066 | E16: ='Other Inputs'!$F$38 -> 0.00267 | F16: =('Other Inputs'!$D$22)*('Other Inputs'!$F$22)-('Other Inputs'!$E$295/12)+('Other Inputs'!$D$30*'Other Inputs'!$F$30) -> 4384529.667 | G16: 4290588.722 | J16: 3350119.198 | K16: 5772566.856 | L16: 6630.182947 | M16: 126228.3274 | N16: 217503.1442 | O16: 249.8170526 | P16: 7771862.526 | Q16: =Calculations!H168 -> 3476347.526 | R16: =Calculations!H160 -> 5990070 | S16: =Calculations!H162+Calculations!H163 -> 6880 | T16: 178.6286392 | U16: 1701435 | V16: 54885 | W16: 31 | X16: Oct14
B17: ='Ut Storage'!B16 -> Nov14 | C17: 10323308.64 | D17: 388969.4385 | E17: ='Other Inputs'!$F$38 -> 0.00267 | F17: =('Other Inputs'!$D$22)*('Other Inputs'!$F$22)-('Other Inputs'!$E$295/12)+('Other Inputs'!$D$30*'Other Inputs'!$F$30) -> 4384529.667 | G17: 4298095.13 | J17: 5471020.292 | K17: 5845549.944 | L17: 479917.3122 | M17: 206141.2445 | N17: 220253.0562 | O17: 18082.68782 | P17: 10704184.54 | Q17: =Calculations!I168 -> 5677161.537 | R17: =Calculations!I160 -> 6065803 | S17: =Calculations!I162+Calculations!I163 -> 498000 | T17: 12929.80557 | U17: 1536780 | V17: 54885 | W17: 28 | X17: Nov14
B18: ='Ut Storage'!B17 -> Dec14 | C18: 15457243.38 | D18: 582409.7182 | E18: ='Other Inputs'!$F$38 -> 0.00267 | F18: =('Other Inputs'!$D$22)*('Other Inputs'!$F$22)-('Other Inputs'!$E$295/12)+('Other Inputs'!$D$30*'Other Inputs'!$F$30) -> 4384529.667 | G18: 4311802.735 | J18: 7379661.769 | K18: 5868867.372 | L18: 3927920.825 | M18: 278056.483 | N18: 221131.628 | O18: 147999.1746 | P18: 16122202.25 | Q18: =Calculations!J168 -> 7657718.252 | R18: =Calculations!J160 -> 6089999 | S18: =Calculations!J162+Calculations!J163 -> 4075920 | T18: 105825.0063 | U18: 1701435 | V18: 54885 | W18: 31 | X18: Dec14
B19: ='Ut Storage'!B18 -> Jan15 | C19: 19022828.06 | D19: 716756.5172 | E19: ='Other Inputs'!$F$38 -> 0.00267 | F19: =('Other Inputs'!$D$22)*('Other Inputs'!$F$22)-('Other Inputs'!$E$295/12)+('Other Inputs'!$D$30*'Other Inputs'!$F$30) -> 4384529.667 | G19: 4321322.846 | J19: 6339841.013 | K19: 5723569.997 | L19: 7287933.716 | M19: 238877.3294 | N19: 215657.0034 | O19: 274600.284 | P19: 19933929.34 | Q19: =Calculations!K168 -> 6578718.343 | R19: =Calculations!K160 -> 5939227 | S19: =Calculations!K162+Calculations!K163 -> 7562534 | T19: 196349.5868 | U19: 146550 | V19: 4885 | W19: 30 | X19: Jan15
B20: ='Ut Storage'!B19 -> Feb15 | C20: 15262168.45 | D20: 575059.5374 | E20: ='Other Inputs'!$F$38 -> 0.00267 | F20: =('Other Inputs'!$D$22)*('Other Inputs'!$F$22)-('Other Inputs'!$E$295/12)+('Other Inputs'!$D$30*'Other Inputs'!$F$30) -> 4384529.667 | G20: 4311281.885 | J20: 6566097.179 | K20: 5055026.871 | L20: 3885875.058 | M20: 247402.3805 | N20: 190467.1294 | O20: 146414.9423 | P20: 15939848.56 | Q20: =Calculations!L168 -> 6813499.559 | R20: =Calculations!L160 -> 5245494 | S20: =Calculations!L162+Calculations!L163 -> 4032290 | T20: 104692.2203 | U20: 151435 | V20: 4885 | W20: 31 | X20: Feb15
B21: ='Ut Storage'!B20 -> Mar15 | C21: 11679529.8 | D21: 440070.1661 | E21: ='Other Inputs'!$F$38 -> 0.00267 | F21: =('Other Inputs'!$D$22)*('Other Inputs'!$F$22)-('Other Inputs'!$E$295/12)+('Other Inputs'!$D$30*'Other Inputs'!$F$30) -> 4384529.667 | G21: 4301716.24 | J21: 6040357.328 | K21: 5482938.685 | L21: 303407.965 | M21: 227593.1563 | N21: 206590.3147 | O21: 11432.035 | P21: 12125769.48 | Q21: =Calculations!M168 -> 6267950.484 | R21: =Calculations!M160 -> 5689529 | S21: =Calculations!M162+Calculations!M163 -> 314840 | T21: 8174.337321 | U21: 146550 | V21: 4885 | W21: 30 | X21: Mar15
B22: ='Ut Storage'!B21 -> Apr15 | C22: 8991377.877 | D22: 338783.9427 | E22: ='Other Inputs'!$F$38 -> 0.00267 | F22: =('Other Inputs'!$D$22)*('Other Inputs'!$F$22)-('Other Inputs'!$E$295/12)+('Other Inputs'!$D$30*'Other Inputs'!$F$30) -> 4384529.667 | G22: 4294538.874 | J22: 3602618.698 | K22: 5283069.507 | L22: 256283.5542 | M22: 135742.1947 | N22: 199059.4925 | O22: 9656.445779 | P22: 9334994.893 | Q22: =Calculations!N168 -> 3738360.893 | R22: =Calculations!N160 -> 5482129 | S22: =Calculations!N162+Calculations!N163 -> 265940 | T22: 6904.723883 | U22: 151435 | V22: 4885 | W22: 31 | X22: Apr15
B23: ='Ut Storage'!B22 -> May15 | C23: 5434906.471 | D23: 204780.5206 | E23: ='Other Inputs'!$F$38 -> 0.00267 | F23: =('Other Inputs'!$D$22)*('Other Inputs'!$F$22)-('Other Inputs'!$E$295/12)+('Other Inputs'!$D$30*'Other Inputs'!$F$30) -> 4384529.667 | G23: 4285043.096 | J23: 0.01803062859 | K23: 5431315.772 | L23: 151463.0602 | M23: 0.0006793716744 | N23: 204645.2275 | O23: 5706.939848 | P23: 5641696.019 | Q23: =Calculations!O168 -> 0.01871000027 | R23: =Calculations!O160 -> 5635961 | S23: =Calculations!O162+Calculations!O163 -> 157170 | T23: 4080.677794 | U23: 151435 | V23: 4885 | W23: 31 | X23: May15
C26: =SUM(C12:C23) -> 115400426.5 | D26: =SUM(D12:D23) -> 4348144.634 | G26: =SUM(G12:G23) -> 51554501.88 | J26: =SUM(J12:J25) -> 40185612.16 | K26: 68209668.47 | L26: 16299431.67 | M26: 1514143.918 | N26: 2570055.528 | O26: 614142.3263 | P26: =SUM(P12:P23) -> 120060029.1 | Q26: 41699756.08 | R26: 70779724 | S26: 16913574 | T26: 439134.9866 | U26: 9333025
C29: Months | F29: System | G29: Utah | J29: Allocation Factors
C30: or Days | D30: Dth | E30: Rate | F30: Total | G30: Total
J31: Peak Demand Allocation Base
A32: II. Transportation (ML 104 demand) | C32: ='Other Inputs'!E23 -> 12 | D32: ='Other Inputs'!D23 -> 30000 | E32: ='Other Inputs'!F23 -> 5.28804 | F32: =C32*D32*E32 -> 1903694.4 | G32: =F32*J34 -> 1854198.346 | J32: Utah | K32: Wyo | L32: Total
J33: ='Other Inputs'!E133 -> 1241468.003 | K33: ='Other Inputs'!E134 -> 33139.80297 | L33: =J33+K33 -> 1274607.806
J34: =J33/L33 -> 0.974 | K34: =K33/L33 -> 0.026
A36: III. Transportation (TL 112 demand) | C36: ='Other Inputs'!E24 -> 12 | D36: ='Other Inputs'!D24 -> 12000 | E36: ='Other Inputs'!F24 -> 5.28804 | F36: =C36*D36*E36 -> 761477.76 | G36: =F36*J34 -> 741679.3382 | J36: Dth Sales Allocation Base
C37: ='Other Inputs'!E25 -> 5 | D37: ='Other Inputs'!D25 -> 75000 | E37: ='Other Inputs'!F25 -> 6.80887 | F37: =C37*D37*E37 -> 2553326.25 | G37: =F37*J34 -> 2486939.768 | J37: Utah | K37: Wyo | L37: Total
J38: =Calculations!P20 -> 106764801 | K38: =Calculations!P39 -> 4022765 | L38: =J38+K38 -> 110787566
A39: IV. Transportation (KR 2003 Expansion) | C39: ='Other Inputs'!E54 -> 12 | D39: ='Other Inputs'!D54 -> 3000 | E39: ='Other Inputs'!F54 -> 14.34754167 | F39: =C39*D39*E39 -> 516511.5 | J39: =J38/L38 -> 0.9636893819 | K39: =K38/L38 -> 0.03631061811
C40: ='Other Inputs'!E55 -> 5 | D40: ='Other Inputs'!D55 -> 50000 | E40: ='Other Inputs'!F55 -> 14.34754167 | F40: =C40*D40*E40 -> 3586885.417 | G40: =(F39+F40+F41)*J34 -> 4387599.13
C41: ='Other Inputs'!E56 -> 12 | D41: ='Other Inputs'!D56 -> 1885 | E41: ='Other Inputs'!F56 -> 17.74204167 | F41: =C41*D41*E41 -> 401324.9825
A43: V. Trans (KR 2003 Expansion) | B43: ='Other Inputs'!C61 -> 0.9863198695 | C43: ='Other Inputs'!E60 -> 365 | D43: ='Other Inputs'!D60 -> 4885 | E43: ='Other Inputs'!F60 -> 0.0044 | F43: =B43*C43*D43*E43 -> 7737.985135
B44: ='Other Inputs'!C60 -> 0.9863198695 | C44: ='Other Inputs'!E61 -> 151 | D44: ='Other Inputs'!D61 -> 50000 | E44: ='Other Inputs'!F61 -> 0.0044 | F44: =B44*C44*D44*E44 -> 32765.54606 | G44: =(F43+F44)*J39 -> 39032.82295
A47: VI. Other Trans, Gathering & Processing | F47: ='Other Inputs'!$D$169+'Other Inputs'!$D$171 -> 5459998.46 | G47: =F47*$J$39 -> 5261742.541
A49: VII. QGM Gathering | B49: Demand | C49: ='Ut 1.3 p1'!H49 -> 12 | E49: ='Ut 1.3 p1'!J49 -> 745178 | F49: =C49*E49 -> 8942136
B50: Commodity | C50: ='Ut 1.3 p1'!F50 -> 42871719.79 | D50: ='Ut 1.3 p1'!F50 -> 42871719.79 | E50: ='Ut 1.3 p1'!J50 -> 0.12579 | F50: =C50*E50 -> 5392833.633 | G50: =(F49)*'Ut 1.5'!G51+(F50)*'Ut 1.5'!G54 -> 13906656.97
A51: Samson Gathering | B51: Commodity | D51: ='Ut 1.3 p1'!F53 -> 4617812.277 | E51: ='Ut 1.3 p1'!J53 -> 0.51124 | F51: =E51*D51 -> 2360810.348 | G51: =(F51)*'Ut 1.5'!G54 -> 2275087.865
A53: VII. Storage Demand | C53: 12 | D53: ='Other Inputs'!E155 -> 184625 | E53: ='Other Inputs'!E14 -> 2.87375 | F53: =C53*D53*E53 -> 6366793.125
C54: 12 | D54: ='Other Inputs'!E156 -> 2500000 | E54: ='Other Inputs'!E15 -> 0.09 | F54: =C54*D54*E54 -> 2700000
C55: 12 | D55: ='Other Inputs'!E157 -> 111827 | E55: ='Other Inputs'!E16 -> 2.85338 | F55: =C55*D55*E55 -> 3829019.103
C56: 12 | D56: ='Other Inputs'!E158 -> 13419000 | E56: ='Other Inputs'!E17 -> 0.02378 | F56: =C56*D56*E56 -> 3829245.84 | G56: =SUM(F53:F56)*J34 -> 16290206.56
A59: Total Supplier Non-Gas Costs | G59: =G26+G32+G36+G37+G40+G44+G47+G51+G56+G50 -> 98797645.23

Sheet SDR#3
I1: ='Control Panel'!F32 -> Questar Gas Company
I2: ='Control Panel'!F33 -> Docket No. 14-057-09
C5: Standard Data Request #3
C6: Monthly Forecasted Sales
D8: Utah Sales | F8: Wyoming Sales | H8: System Total
C9: Month | D9: Dth | F9: Dth | H9: Dth
B11: 1 | C11: =Calculations!D141 -> Jun14 | D11: =Calculations!D20 -> 3165950 | F11: =Calculations!D39 -> 117255 | H11: =SUM(D11:F11) -> 3283205
B13: =B11+1 -> 2 | C13: =Calculations!E141 -> Jul14 | D13: =Calculations!E20 -> 2776000 | F13: =Calculations!E39 -> 75678 | H13: =SUM(D13:F13) -> 2851678
B15: =B13+1 -> 3 | C15: =Calculations!F141 -> Aug14 | D15: =Calculations!F20 -> 2761522 | F15: =Calculations!F39 -> 82452 | H15: 2843974
B17: =B15+1 -> 4 | C17: =Calculations!G141 -> Sep14 | D17: =Calculations!G20 -> 3866100 | F17: =Calculations!G39 -> 149249 | H17: 4015349
B19: =B17+1 -> 5 | C19: =Calculations!H141 -> Oct14 | D19: =Calculations!H20 -> 6551181 | F19: =Calculations!H39 -> 211563 | H19: 6762744
B21: =B19+1 -> 6 | C21: =Calculations!I141 -> Nov14 | D21: =Calculations!I20 -> 11359973 | F21: =Calculations!I39 -> 414513 | H21: 11774486
B23: =B21+1 -> 7 | C23: =Calculations!J141 -> Dec14 | D23: =Calculations!J20 -> 17069072 | F23: =Calculations!J39 -> 568762 | H23: 17637834
B25: =B23+1 -> 8 | C25: =Calculations!K141 -> Jan15 | D25: =Calculations!K20 -> 19052889 | F25: =Calculations!K39 -> 713365 | H25: 19766254
B27: =B25+1 -> 9 | C27: =Calculations!L141 -> Feb15 | D27: =Calculations!L20 -> 15311023 | F27: =Calculations!L39 -> 603713 | H27: 15914736
B29: =B27+1 -> 10 | C29: =Calculations!M141 -> Mar15 | D29: =Calculations!M20 -> 11681311 | F29: =Calculations!M39 -> 522520 | H29: 12203831
B31: =B29+1 -> 11 | C31: =Calculations!N141 -> Apr15 | D31: =Calculations!N20 -> 8800848 | F31: =Calculations!N39 -> 358561 | H31: 9159409
B33: =B31+1 -> 12 | C33: =Calculations!O141 -> May15 | D33: =Calculations!O20 -> 4368932 | F33: =Calculations!O39 -> 205134 | H33: 4574066
B36: =B33+1 -> 13 | C36: Total Sales (Dth) | D36: =SUM(D11:D33) -> 106764801 | F36: =SUM(F11:F33) -> 4022765 | H36: =SUM(H11:H33) -> 110787566

Sheet SDR#4
H1: ='Control Panel'!F32 -> Questar Gas Company
H2: ='Control Panel'!F33 -> Docket No. 14-057-09
C5: Standard Data Request #4
C6: Supplier Non-Gas Costs Recovered at Current Rates
C9: (A) | D9: (B) | E9: (C) | F9: (D) | G9: (E)
B10: 1 | C10: Rate Schedule | D10: Season | E10: Sales Dth | F10: SNG Rate | G10: SNG Revenue
B12: =B10+1 -> 2 | C12: GS | D12: winter | E12: ='Utah Summary-by class'!B8 -> 70638973 | F12: ='Utah Summary-by class'!J8 -> 1.10168 | G12: =E12*F12 -> 77821543.77
B13: =B12+1 -> 3 | D13: summer | E13: ='Utah Summary-by class'!B9 -> 27936660 | F13: ='Utah Summary-by class'!J9 -> 0.51725 | G13: =E13*F13 -> 14450237.38
B15: =B13+1 -> 4 | C15: FS | D15: winter | E15: ='Utah Summary-by class'!B13 -> 2449722 | F15: ='Utah Summary-by class'!J13 -> 1.07299 | G15: =E15*F15 -> 2628527.209
B16: =B15+1 -> 5 | D16: summer | E16: ='Utah Summary-by class'!B14 -> 2414448 | F16: ='Utah Summary-by class'!J14 -> 0.51723 | G16: =E16*F16 -> 1248824.939
B18: =B16+1 -> 6 | C18: NGV | D18: annual | E18: ='Utah Summary-by class'!B19 -> 693551 | F18: ='Utah Summary-by class'!J19 -> 0.795 | G18: =E18*F18 -> 551373.045
B20: =B18+1 -> 7 | C20: IS | D20: annual | E20: ='Utah Summary-by class'!B24 -> 2631447 | F20: ='Utah Summary-by class'!J24 -> 0.1793 | G20: =E20*F20 -> 471818.4471
B23: =B20+1 -> 8 | C23: Total Supplier Non-Gas Costs | E23: =SUM(E12:E20) -> 106764801 | G23: =SUM(G12:G20) -> 97172324.8

Sheet Ut 1.1
I1: Questar Gas Company
I2: ='Control Panel'!$F$33 -> Docket No. 14-057-09
I3: Exhibit 1.1
D4: Test Year Cost of Questar Gas' Production
D5: =CONCATENATE('Control Panel'!F40," through ",'Control Panel'!F41) -> Jun-14 through May-15
B7: WEXPRO I
B8: (A) | C8: (B) | D8: (C) | E8: (D) | F8: (E) | G8: (F) | H8: (G) | I8: (H)
F9: Base Year | G9: Market | H9: Royalty | I9: Test Year
B10: Field Name | C10: Well Name | D10: Formation | E10: Price $ | F10: Dth | G10: Value $ | H10: Rate % | I10: Royalty $
A12: 1 | B12: ACE UNIT (CO) | C12: ACE UNIT 2 FT UN | D12: FORT UNION | E12: =IF(LEFT(C12,12)='Ex 1.1 Data'!$C$24,'Ex 1.1 Data'!$D$24,IF(LEFT(C12,13)='Ex 1.1 Data'!$C$25,'Ex 1.1 Data'!$D$24,'Ex 1.1 Data'!$D$26)) -> 4.578223411 | F12: 42652.645 | G12: =E12*F12 -> 195273.3379 | H12: 0.1268519763 | I12: =H12*G12 -> 24770.80883
A13: =A12+1 -> 2 | C13: ACE UNIT 10 FT UN | D13: MESAVERDE | E13: =IF(LEFT(C13,12)='Ex 1.1 Data'!$C$24,'Ex 1.1 Data'!$D$24,IF(LEFT(C13,13)='Ex 1.1 Data'!$C$25,'Ex 1.1 Data'!$D$24,'Ex 1.1 Data'!$D$26)) -> 4.578223411 | F13: 156.995 | G13: =E13*F13 -> 718.7581844 | H13: 0.1268519763 | I13: =H13*G13 -> 91.17589619
A14: =A13+1 -> 3 | C14: ACE UNIT 12 FT UN | D14: FORT UNION | E14: =IF(LEFT(C14,12)='Ex 1.1 Data'!$C$24,'Ex 1.1 Data'!$D$24,IF(LEFT(C14,13)='Ex 1.1 Data'!$C$25,'Ex 1.1 Data'!$D$24,'Ex 1.1 Data'!$D$26)) -> 4.578223411 | F14: 70074.309 | G14: 320815.842 | H14: 0.1268519763 | I14: 40696.12359
A15: 4 | C15: ACE UNIT 11 FT UN | D15: FORT UNION | E15: =IF(LEFT(C15,12)='Ex 1.1 Data'!$C$24,'Ex 1.1 Data'!$D$24,IF(LEFT(C15,13)='Ex 1.1 Data'!$C$25,'Ex 1.1 Data'!$D$24,'Ex 1.1 Data'!$D$26)) -> 4.578223411 | F15: 28002.292 | G15: 128200.7488 | H15: 0.1268519763 | I15: 16262.51835
A16: 5 | C16: ACE UNIT 13 FT UN | D16: FORT UNION | E16: =IF(LEFT(C16,12)='Ex 1.1 Data'!$C$24,'Ex 1.1 Data'!$D$24,IF(LEFT(C16,13)='Ex 1.1 Data'!$C$25,'Ex 1.1 Data'!$D$24,'Ex 1.1 Data'!$D$26)) -> 4.578223411 | F16: 44634.974 | G16: 204348.8829 | H16: 0.1268519763 | I16: 25922.05966
A17: 6 | B17: E HIAW (CO) | C17: HIAWATHA UNIT 1 FT UN | D17: FORT UNION | E17: =IF(LEFT(C17,12)='Ex 1.1 Data'!$C$24,'Ex 1.1 Data'!$D$24,IF(LEFT(C17,13)='Ex 1.1 Data'!$C$25,'Ex 1.1 Data'!$D$24,'Ex 1.1 Data'!$D$26)) -> 4.578223411 | F17: 24874.601 | G17: 113881.4806 | H17: 0.1925 | I17: 21922.18502
A18: 7 | C18: F WILSON A 2 WAS | D18: WASATCH | E18: =IF(LEFT(C18,12)='Ex 1.1 Data'!$C$24,'Ex 1.1 Data'!$D$24,IF(LEFT(C18,13)='Ex 1.1 Data'!$C$25,'Ex 1.1 Data'!$D$24,'Ex 1.1 Data'!$D$26)) -> 4.578223411 | F18: 69654.531 | G18: 318894.0045 | H18: 0.1925 | I18: 61387.09587
A19: 8 | C19: F WILSON B 3 WAS | D19: WASATCH | E19: =IF(LEFT(C19,12)='Ex 1.1 Data'!$C$24,'Ex 1.1 Data'!$D$24,IF(LEFT(C19,13)='Ex 1.1 Data'!$C$25,'Ex 1.1 Data'!$D$24,'Ex 1.1 Data'!$D$26)) -> 4.578223411 | F19: 235585.84 | G19: 1078564.608 | H19: 0.1625 | I19: 175266.7488
A20: 9 | C20: F WILSON B 6 WAS | D20: WASATCH | E20: =IF(LEFT(C20,12)='Ex 1.1 Data'!$C$24,'Ex 1.1 Data'!$D$24,IF(LEFT(C20,13)='Ex 1.1 Data'!$C$25,'Ex 1.1 Data'!$D$24,'Ex 1.1 Data'!$D$26)) -> 4.578223411 | F20: 119185.498 | G20: 545657.8372 | H20: 0.1625 | I20: 88669.39855
A21: 10 | C21: F WILSON A 9 WAS | D21: WASATCH | E21: =IF(LEFT(C21,12)='Ex 1.1 Data'!$C$24,'Ex 1.1 Data'!$D$24,IF(LEFT(C21,13)='Ex 1.1 Data'!$C$25,'Ex 1.1 Data'!$D$24,'Ex 1.1 Data'!$D$26)) -> 4.578223411 | F21: 81806.141 | G21: 374526.7899 | H21: 0.1925 | I21: 72096.40706
A22: 11 | C22: F WILSON B 12 FT UN | D22: FORT UNION | E22: =IF(LEFT(C22,12)='Ex 1.1 Data'!$C$24,'Ex 1.1 Data'!$D$24,IF(LEFT(C22,13)='Ex 1.1 Data'!$C$25,'Ex 1.1 Data'!$D$24,'Ex 1.1 Data'!$D$26)) -> 4.578223411 | F22: 68297.974 | G22: 312683.3835 | H22: 0.1625 | I22: 50811.04982
A23: 12 | C23: F WILSON B 2 UNIT (HIAW) FT UN | D23: FORT UNION | E23: =IF(LEFT(C23,12)='Ex 1.1 Data'!$C$24,'Ex 1.1 Data'!$D$24,IF(LEFT(C23,13)='Ex 1.1 Data'!$C$25,'Ex 1.1 Data'!$D$24,'Ex 1.1 Data'!$D$26)) -> 4.578223411 | F23: 48752.732 | G23: 223200.899 | H23: 0.1625 | I23: 36270.14609
A24: 13 | C24: F WILSON A 22 FT UN | D24: FORT UNION | E24: =IF(LEFT(C24,12)='Ex 1.1 Data'!$C$24,'Ex 1.1 Data'!$D$24,IF(LEFT(C24,13)='Ex 1.1 Data'!$C$25,'Ex 1.1 Data'!$D$24,'Ex 1.1 Data'!$D$26)) -> 4.578223411 | F24: 25942.769 | G24: 118771.7924 | H24: 0.1925 | I24: 22863.57003
A25: 14 | C25: STLD 3712100 NE4 2 WAS | D25: WASATCH | E25: =IF(LEFT(C25,12)='Ex 1.1 Data'!$C$24,'Ex 1.1 Data'!$D$24,IF(LEFT(C25,13)='Ex 1.1 Data'!$C$25,'Ex 1.1 Data'!$D$24,'Ex 1.1 Data'!$D$26)) -> 4.578223411 | F25: 21520.144 | G25: 98524.02707 | H25: 0.13375 | I25: 13177.58862
A26: 15 | C26: STLD 3712100 SE4 4 WAS | D26: WASATCH | E26: =IF(LEFT(C26,12)='Ex 1.1 Data'!$C$24,'Ex 1.1 Data'!$D$24,IF(LEFT(C26,13)='Ex 1.1 Data'!$C$25,'Ex 1.1 Data'!$D$24,'Ex 1.1 Data'!$D$26)) -> 4.578223411 | F26: 32514.64 | G26: 148859.2861 | H26: 0.1375 | I26: 20468.15183
A27: 16 | C27: STATE LAND 5 FT UN | D27: FORT UNION | E27: =IF(LEFT(C27,12)='Ex 1.1 Data'!$C$24,'Ex 1.1 Data'!$D$24,IF(LEFT(C27,13)='Ex 1.1 Data'!$C$25,'Ex 1.1 Data'!$D$24,'Ex 1.1 Data'!$D$26)) -> 4.578223411 | F27: 29037.194 | G27: 132938.7614 | H27: 0.13375 | I27: 17780.55933
A28: 17 | C28: G KUYKENDALL A 8 FT UN | D28: FORT UNION | E28: =IF(LEFT(C28,12)='Ex 1.1 Data'!$C$24,'Ex 1.1 Data'!$D$24,IF(LEFT(C28,13)='Ex 1.1 Data'!$C$25,'Ex 1.1 Data'!$D$24,'Ex 1.1 Data'!$D$26)) -> 4.578223411 | F28: 14274.556 | G28: 65352.10646 | H28: 0.1925 | I28: 12580.28049
A29: 18 | C29: KS WHITFORD 1 WAS | D29: WASATCH | E29: =IF(LEFT(C29,12)='Ex 1.1 Data'!$C$24,'Ex 1.1 Data'!$D$24,IF(LEFT(C29,13)='Ex 1.1 Data'!$C$25,'Ex 1.1 Data'!$D$24,'Ex 1.1 Data'!$D$26)) -> 4.578223411 | F29: 71742.57 | G29: 328453.5136 | H29: 0.155 | I29: 50910.2946
A30: 19 | C30: F WILSON B 24 FT UN | D30: FORT UNION | E30: =IF(LEFT(C30,12)='Ex 1.1 Data'!$C$24,'Ex 1.1 Data'!$D$24,IF(LEFT(C30,13)='Ex 1.1 Data'!$C$25,'Ex 1.1 Data'!$D$24,'Ex 1.1 Data'!$D$26)) -> 4.578223411 | F30: 58140.387 | G30: 266179.6809 | H30: 0.1625 | I30: 43254.19815
A31: 20 | C31: F WILSON A 26 FT UN | D31: FORT UNION | E31: =IF(LEFT(C31,12)='Ex 1.1 Data'!$C$24,'Ex 1.1 Data'!$D$24,IF(LEFT(C31,13)='Ex 1.1 Data'!$C$25,'Ex 1.1 Data'!$D$24,'Ex 1.1 Data'!$D$26)) -> 4.578223411 | F31: 193513.086 | G31: 885946.1407 | H31: 0.1925 | I31: 170544.6321
A32: 21 | C32: HIAWATHA STATELAND 6 FT UN | D32: FORT UNION | E32: =IF(LEFT(C32,12)='Ex 1.1 Data'!$C$24,'Ex 1.1 Data'!$D$24,IF(LEFT(C32,13)='Ex 1.1 Data'!$C$25,'Ex 1.1 Data'!$D$24,'Ex 1.1 Data'!$D$26)) -> 4.578223411 | F32: 8854.851 | G32: 40539.48615 | H32: 0.13375 | I32: 5422.156273
A33: 22 | C33: F WILSON A 7 UPPER WAS | D33: WASATCH | E33: =IF(LEFT(C33,12)='Ex 1.1 Data'!$C$24,'Ex 1.1 Data'!$D$24,IF(LEFT(C33,13)='Ex 1.1 Data'!$C$25,'Ex 1.1 Data'!$D$24,'Ex 1.1 Data'!$D$26)) -> 4.578223411 | F33: 599.861 | G33: 2746.297674 | H33: 0.1925 | I33: 528.6623022
A34: 23 | C34: G KUYKENDALL 9 FT UN | D34: FORT UNION | E34: =IF(LEFT(C34,12)='Ex 1.1 Data'!$C$24,'Ex 1.1 Data'!$D$24,IF(LEFT(C34,13)='Ex 1.1 Data'!$C$25,'Ex 1.1 Data'!$D$24,'Ex 1.1 Data'!$D$26)) -> 4.578223411 | F34: 36748.916 | G34: 168244.7476 | H34: 0.1925 | I34: 32387.11391
A35: 24 | C35: F WILSON A 20 FT UN | D35: FORT UNION | E35: =IF(LEFT(C35,12)='Ex 1.1 Data'!$C$24,'Ex 1.1 Data'!$D$24,IF(LEFT(C35,13)='Ex 1.1 Data'!$C$25,'Ex 1.1 Data'!$D$24,'Ex 1.1 Data'!$D$26)) -> 4.578223411 | F35: 1207.12 | G35: 5526.465044 | H35: 0.1925 | I35: 1063.844521
A36: 25 | C36: F WILSON A 20 LEW/LAN/FT UN | D36: LEWIS/LANCE/FT U | E36: =IF(LEFT(C36,12)='Ex 1.1 Data'!$C$24,'Ex 1.1 Data'!$D$24,IF(LEFT(C36,13)='Ex 1.1 Data'!$C$25,'Ex 1.1 Data'!$D$24,'Ex 1.1 Data'!$D$26)) -> 4.578223411 | F36: 22902.819 | G36: 104854.2221 | H36: 0.1925 | I36: 20184.43776
A37: 26 | C37: F WILSON 32 MESA | D37: MESAVERDE | E37: =IF(LEFT(C37,12)='Ex 1.1 Data'!$C$24,'Ex 1.1 Data'!$D$24,IF(LEFT(C37,13)='Ex 1.1 Data'!$C$25,'Ex 1.1 Data'!$D$24,'Ex 1.1 Data'!$D$26)) -> 4.578223411 | F37: 5197.056 | G37: 23793.28345 | H37: 0.1925 | I37: 4580.207064
A38: 27 | C38: F WILSON 32 LEWIS | D38: LEWIS | E38: =IF(LEFT(C38,12)='Ex 1.1 Data'!$C$24,'Ex 1.1 Data'!$D$24,IF(LEFT(C38,13)='Ex 1.1 Data'!$C$25,'Ex 1.1 Data'!$D$24,'Ex 1.1 Data'!$D$26)) -> 4.578223411 | F38: 37269.334 | G38: 170627.3374 | H38: 0.1925 | I38: 32845.76246
A39: 28 | C39: F WILSON 32 LANCE | D39: LANCE | E39: =IF(LEFT(C39,12)='Ex 1.1 Data'!$C$24,'Ex 1.1 Data'!$D$24,IF(LEFT(C39,13)='Ex 1.1 Data'!$C$25,'Ex 1.1 Data'!$D$24,'Ex 1.1 Data'!$D$26)) -> 4.578223411 | F39: 42027.1 | G39: 192409.4531 | H39: 0.1925 | I39: 37038.81973
A40: 29 | C40: HIAWATHA STLD 7 FT UN | D40: FORT UNION | E40: =IF(LEFT(C40,12)='Ex 1.1 Data'!$C$24,'Ex 1.1 Data'!$D$24,IF(LEFT(C40,13)='Ex 1.1 Data'!$C$25,'Ex 1.1 Data'!$D$24,'Ex 1.1 Data'!$D$26)) -> 4.578223411 | F40: 42502.166 | G40: 194584.4114 | H40: 0.1375 | I40: 26755.35657
A41: 30 | C41: F WILSON 33 FT UN | D41: FORT UNION | E41: =IF(LEFT(C41,12)='Ex 1.1 Data'!$C$24,'Ex 1.1 Data'!$D$24,IF(LEFT(C41,13)='Ex 1.1 Data'!$C$25,'Ex 1.1 Data'!$D$24,'Ex 1.1 Data'!$D$26)) -> 4.578223411 | F41: 551156.164 | G41: 2523316.053 | H41: 0.1925 | I41: 485738.3403
A42: 31 | C42: F WILSON 33 LEWIS | D42: LEWIS | E42: =IF(LEFT(C42,12)='Ex 1.1 Data'!$C$24,'Ex 1.1 Data'!$D$24,IF(LEFT(C42,13)='Ex 1.1 Data'!$C$25,'Ex 1.1 Data'!$D$24,'Ex 1.1 Data'!$D$26)) -> 4.578223411 | F42: 10589.859 | G42: 48482.7404 | H42: 0.1925 | I42: 9332.927526
A43: 32 | C43: F WILSON 33 LANCE | D43: LANCE | E43: =IF(LEFT(C43,12)='Ex 1.1 Data'!$C$24,'Ex 1.1 Data'!$D$24,IF(LEFT(C43,13)='Ex 1.1 Data'!$C$25,'Ex 1.1 Data'!$D$24,'Ex 1.1 Data'!$D$26)) -> 4.578223411 | F43: 10589.859 | G43: 48482.7404 | H43: 0.1925 | I43: 9332.927526
A44: 33 | C44: F WILSON 34 LEW/LAN/FT UN | D44: LEWIS/LANCE/FT U | E44: =IF(LEFT(C44,12)='Ex 1.1 Data'!$C$24,'Ex 1.1 Data'!$D$24,IF(LEFT(C44,13)='Ex 1.1 Data'!$C$25,'Ex 1.1 Data'!$D$24,'Ex 1.1 Data'!$D$26)) -> 4.578223411 | F44: 41008.909 | G44: 187747.9473 | H44: 0.1625 | I44: 30509.04143
A45: 34 | C45: F WILSON 35 MESA | D45: MESAVERDE | E45: =IF(LEFT(C45,12)='Ex 1.1 Data'!$C$24,'Ex 1.1 Data'!$D$24,IF(LEFT(C45,13)='Ex 1.1 Data'!$C$25,'Ex 1.1 Data'!$D$24,'Ex 1.1 Data'!$D$26)) -> 4.578223411 | F45: 1894.176 | G45: 8671.960908 | H45: 0.1925 | I45: 1669.352475
A46: 35 | C46: F WILSON 35 LEW/LAN/FT UN | D46: LEWIS/LANCE/FT U | E46: =IF(LEFT(C46,12)='Ex 1.1 Data'!$C$24,'Ex 1.1 Data'!$D$24,IF(LEFT(C46,13)='Ex 1.1 Data'!$C$25,'Ex 1.1 Data'!$D$24,'Ex 1.1 Data'!$D$26)) -> 4.578223411 | F46: 92827.438 | G46: 424984.7499 | H46: 0.1925 | I46: 81809.56435
A47: 36 | C47: F WILSON 29E (DD) FT UN | D47: FORT UNION | E47: =IF(LEFT(C47,12)='Ex 1.1 Data'!$C$24,'Ex 1.1 Data'!$D$24,IF(LEFT(C47,13)='Ex 1.1 Data'!$C$25,'Ex 1.1 Data'!$D$24,'Ex 1.1 Data'!$D$26)) -> 4.578223411 | F47: 32688.452 | G47: 149655.0362 | H47: 0.1625 | I47: 24318.94339
A48: 37 | C48: F WILSON 37 MESA | D48: FORT UNION | E48: =IF(LEFT(C48,12)='Ex 1.1 Data'!$C$24,'Ex 1.1 Data'!$D$24,IF(LEFT(C48,13)='Ex 1.1 Data'!$C$25,'Ex 1.1 Data'!$D$24,'Ex 1.1 Data'!$D$26)) -> 4.578223411 | F48: 13354.832 | G48: 61141.40452 | H48: 0.2325 | I48: 14215.37655
A49: 38 | C49: F WILSON 37 LEW/LNC/FTUN | D49: FORT UNION | E49: =IF(LEFT(C49,12)='Ex 1.1 Data'!$C$24,'Ex 1.1 Data'!$D$24,IF(LEFT(C49,13)='Ex 1.1 Data'!$C$25,'Ex 1.1 Data'!$D$24,'Ex 1.1 Data'!$D$26)) -> 4.578223411 | F49: 75673.069 | G49: 346448.2161 | H49: 0.1625 | I49: 56297.83512
A50: 39 | B50: HIAW DEEP (CO) | C50: HIAWATHA DEEP UNIT 1 NUGGET | D50: NUGGET | E50: =IF(LEFT(C50,12)='Ex 1.1 Data'!$C$24,'Ex 1.1 Data'!$D$24,IF(LEFT(C50,13)='Ex 1.1 Data'!$C$25,'Ex 1.1 Data'!$D$24,'Ex 1.1 Data'!$D$26)) -> 4.578223411 | F50: 42366.167 | G50: 193961.7776 | H50: 0.1723962084 | I50: 33438.27503
A51: 40 | C51: HIAWATHA DEEP UNIT 3 NUGGET | D51: NUGGET | E51: =IF(LEFT(C51,12)='Ex 1.1 Data'!$C$24,'Ex 1.1 Data'!$D$24,IF(LEFT(C51,13)='Ex 1.1 Data'!$C$25,'Ex 1.1 Data'!$D$24,'Ex 1.1 Data'!$D$26)) -> 4.578223411 | F51: 159561.124 | G51: 730506.4734 | H51: 0.1714959958 | I51: 125278.9351
A52: 41 | C52: HIAWATHA DEEP UNIT 2 NUGGET | D52: NUGGET | E52: =IF(LEFT(C52,12)='Ex 1.1 Data'!$C$24,'Ex 1.1 Data'!$D$24,IF(LEFT(C52,13)='Ex 1.1 Data'!$C$25,'Ex 1.1 Data'!$D$24,'Ex 1.1 Data'!$D$26)) -> 4.578223411 | F52: 9364.169 | G52: 42871.25774 | H52: 0.172395903 | I52: 7390.829191
A53: 42 | B53: JACKS DRAW (CO) | C53: JACKS DRAW UNIT 2 FT UN | D53: FORT UNION | E53: =IF(LEFT(C53,12)='Ex 1.1 Data'!$C$24,'Ex 1.1 Data'!$D$24,IF(LEFT(C53,13)='Ex 1.1 Data'!$C$25,'Ex 1.1 Data'!$D$24,'Ex 1.1 Data'!$D$26)) -> 4.578223411 | F53: 37392.395 | G53: 171190.7382 | H53: 0.1396875 | I53: 23913.20624
A54: 43 | C54: JACKS DRAW UNIT 3 FT UN | D54: FORT UNION | E54: =IF(LEFT(C54,12)='Ex 1.1 Data'!$C$24,'Ex 1.1 Data'!$D$24,IF(LEFT(C54,13)='Ex 1.1 Data'!$C$25,'Ex 1.1 Data'!$D$24,'Ex 1.1 Data'!$D$26)) -> 4.578223411 | F54: 8614.143 | G54: 39437.47115 | H54: 0.1396875 | I54: 5508.921751
A55: 44 | C55: JACKS DRAW UNIT 9 FT UN | D55: FORT UNION | E55: =IF(LEFT(C55,12)='Ex 1.1 Data'!$C$24,'Ex 1.1 Data'!$D$24,IF(LEFT(C55,13)='Ex 1.1 Data'!$C$25,'Ex 1.1 Data'!$D$24,'Ex 1.1 Data'!$D$26)) -> 4.578223411 | F55: 21767.762 | G55: 99657.6776 | H55: 0.1396875 | I55: 13920.93184
A56: 45 | C56: JACKS DRAW UNIT 5 FT UN | D56: FORT UNION | E56: =IF(LEFT(C56,12)='Ex 1.1 Data'!$C$24,'Ex 1.1 Data'!$D$24,IF(LEFT(C56,13)='Ex 1.1 Data'!$C$25,'Ex 1.1 Data'!$D$24,'Ex 1.1 Data'!$D$26)) -> 4.578223411 | F56: 1177.28 | G56: 5389.850858 | H56: 0.1489132823 | I56: 802.6203824
A57: 46 | C57: JACKS DRAW UNIT 8 FT UN | D57: FORT UNION | E57: =IF(LEFT(C57,12)='Ex 1.1 Data'!$C$24,'Ex 1.1 Data'!$D$24,IF(LEFT(C57,13)='Ex 1.1 Data'!$C$25,'Ex 1.1 Data'!$D$24,'Ex 1.1 Data'!$D$26)) -> 4.578223411 | F57: 2719.115 | G57: 12448.71595 | H57: 0.1489132823 | I57: 1853.779153
A58: 47 | C58: JACKS DRAW UNIT 17 FT UN | D58: FORT UNION | E58: =IF(LEFT(C58,12)='Ex 1.1 Data'!$C$24,'Ex 1.1 Data'!$D$24,IF(LEFT(C58,13)='Ex 1.1 Data'!$C$25,'Ex 1.1 Data'!$D$24,'Ex 1.1 Data'!$D$26)) -> 4.578223411 | F58: 31849.196 | G58: 145812.7348 | H58: 0.1396875 | I58: 20368.21639
A59: 48 | C59: JACKS DRAW UNIT 18 FT UN | D59: FORT UNION | E59: =IF(LEFT(C59,12)='Ex 1.1 Data'!$C$24,'Ex 1.1 Data'!$D$24,IF(LEFT(C59,13)='Ex 1.1 Data'!$C$25,'Ex 1.1 Data'!$D$24,'Ex 1.1 Data'!$D$26)) -> 4.578223411 | F59: 204686.164 | G59: 937098.988 | H59: 0.1396877 | I59: 130901.2023
A60: 49 | C60: JACKS DRAW UNIT 19 FT UN | D60: FORT UNION | E60: =IF(LEFT(C60,12)='Ex 1.1 Data'!$C$24,'Ex 1.1 Data'!$D$24,IF(LEFT(C60,13)='Ex 1.1 Data'!$C$25,'Ex 1.1 Data'!$D$24,'Ex 1.1 Data'!$D$26)) -> 4.578223411 | F60: 222523.808 | G60: 1018763.707 | H60: 0.149541643 | I60: 152347.5986
A61: 50 | C61: JACKS DRAW UNIT 20 FT UN | D61: FORT UNION | E61: =IF(LEFT(C61,12)='Ex 1.1 Data'!$C$24,'Ex 1.1 Data'!$D$24,IF(LEFT(C61,13)='Ex 1.1 Data'!$C$25,'Ex 1.1 Data'!$D$24,'Ex 1.1 Data'!$D$26)) -> 4.578223411 | F61: 190845.924 | G61: 873735.2772 | H61: 0.1396877 | I61: 122050.0713
A62: 51 | B62: LO HORSE DR (CO) | C62: LOWER HORSE DRAW 11-1 MANCOS B | D62: MANCOS B | E62: =IF(LEFT(C62,12)='Ex 1.1 Data'!$C$24,'Ex 1.1 Data'!$D$24,IF(LEFT(C62,13)='Ex 1.1 Data'!$C$25,'Ex 1.1 Data'!$D$24,'Ex 1.1 Data'!$D$26)) -> 4.578223411 | F62: 1138.102 | G62: 5210.485221 | H62: 0.125 | I62: 651.3106526
A63: 52 | C63: LOWER HORSE DRAW 12-2 MANCOS B | D63: MANCOS B | E63: =IF(LEFT(C63,12)='Ex 1.1 Data'!$C$24,'Ex 1.1 Data'!$D$24,IF(LEFT(C63,13)='Ex 1.1 Data'!$C$25,'Ex 1.1 Data'!$D$24,'Ex 1.1 Data'!$D$26)) -> 4.578223411 | F63: 27844.492 | G63: 127478.3051 | H63: 0.125 | I63: 15934.78814
A64: 53 | C64: LOWER HORSE DRAW 10-1 MANCOS B | D64: MANCOS B | E64: =IF(LEFT(C64,12)='Ex 1.1 Data'!$C$24,'Ex 1.1 Data'!$D$24,IF(LEFT(C64,13)='Ex 1.1 Data'!$C$25,'Ex 1.1 Data'!$D$24,'Ex 1.1 Data'!$D$26)) -> 4.578223411 | F64: 2069.028 | G64: 9472.472428 | H64: 0.125 | I64: 1184.059054
A65: 54 | C65: LOWER HORSE DRAW 10-2 MB SILT | D65: MANCOS B SILT | E65: =IF(LEFT(C65,12)='Ex 1.1 Data'!$C$24,'Ex 1.1 Data'!$D$24,IF(LEFT(C65,13)='Ex 1.1 Data'!$C$25,'Ex 1.1 Data'!$D$24,'Ex 1.1 Data'!$D$26)) -> 4.578223411 | F65: 4486.081 | G65: 20538.28106 | H65: 0.125 | I65: 2567.285132
A66: 55 | C66: LOWER HORSE FED 11-5 MANCOS B | D66: MANCOS B | E66: =IF(LEFT(C66,12)='Ex 1.1 Data'!$C$24,'Ex 1.1 Data'!$D$24,IF(LEFT(C66,13)='Ex 1.1 Data'!$C$25,'Ex 1.1 Data'!$D$24,'Ex 1.1 Data'!$D$26)) -> 4.578223411 | F66: 25771.459 | G66: 117987.4969 | H66: 0.125 | I66: 14748.43712
A67: 56 | C67: LOWER HORSE FED 11-5 MB SILT | D67: MANCOS B SILT | E67: =IF(LEFT(C67,12)='Ex 1.1 Data'!$C$24,'Ex 1.1 Data'!$D$24,IF(LEFT(C67,13)='Ex 1.1 Data'!$C$25,'Ex 1.1 Data'!$D$24,'Ex 1.1 Data'!$D$26)) -> 4.578223411 | F67: 16828.883 | G67: 77046.38614 | H67: 0.125 | I67: 9630.798267
A68: 57 | B68: POWDER WASH (CO) | C68: CARL ALLEN B 4 WAS | D68: WASATCH | E68: =IF(LEFT(C68,12)='Ex 1.1 Data'!$C$24,'Ex 1.1 Data'!$D$24,IF(LEFT(C68,13)='Ex 1.1 Data'!$C$25,'Ex 1.1 Data'!$D$24,'Ex 1.1 Data'!$D$26)) -> 4.578223411 | F68: 623.939 | G68: 2856.532137 | H68: 0.1100461 | I68: 314.3502212
A69: 58 | C69: CARL ALLEN B 6 FT UN | D69: FORT UNION | E69: =IF(LEFT(C69,12)='Ex 1.1 Data'!$C$24,'Ex 1.1 Data'!$D$24,IF(LEFT(C69,13)='Ex 1.1 Data'!$C$25,'Ex 1.1 Data'!$D$24,'Ex 1.1 Data'!$D$26)) -> 4.578223411 | F69: 25974.55 | G69: 118917.2929 | H69: 0.1100461 | I69: 13086.38431
A70: 59 | C70: CARL ALLEN B 6 LOWER FT UN | D70: FORT UNION | E70: =IF(LEFT(C70,12)='Ex 1.1 Data'!$C$24,'Ex 1.1 Data'!$D$24,IF(LEFT(C70,13)='Ex 1.1 Data'!$C$25,'Ex 1.1 Data'!$D$24,'Ex 1.1 Data'!$D$26)) -> 4.578223411 | F70: 25974.55 | G70: 118917.2929 | H70: 0.1100461 | I70: 13086.38431
A71: 60 | C71: CARL ALLEN B 7 FT UN | D71: FORT UNION | E71: =IF(LEFT(C71,12)='Ex 1.1 Data'!$C$24,'Ex 1.1 Data'!$D$24,IF(LEFT(C71,13)='Ex 1.1 Data'!$C$25,'Ex 1.1 Data'!$D$24,'Ex 1.1 Data'!$D$26)) -> 4.578223411 | F71: 7434.806 | G71: 34038.20289 | H71: 0.1100461 | I71: 3745.771479
A72: 61 | C72: CARL ALLEN A 8 FT UN | D72: FORT UNION | E72: =IF(LEFT(C72,12)='Ex 1.1 Data'!$C$24,'Ex 1.1 Data'!$D$24,IF(LEFT(C72,13)='Ex 1.1 Data'!$C$25,'Ex 1.1 Data'!$D$24,'Ex 1.1 Data'!$D$26)) -> 4.578223411 | F72: 21456.158 | G72: 98231.08487 | H72: 0.1100461 | I72: 10809.94779
A73: 62 | C73: CARL ALLEN B 10 WAS | D73: WASATCH | E73: =IF(LEFT(C73,12)='Ex 1.1 Data'!$C$24,'Ex 1.1 Data'!$D$24,IF(LEFT(C73,13)='Ex 1.1 Data'!$C$25,'Ex 1.1 Data'!$D$24,'Ex 1.1 Data'!$D$26)) -> 4.578223411 | F73: 2201.13 | G73: 10077.2649 | H73: 0.1100461 | I73: 1108.963701
A74: 63 | C74: CARL ALLEN A 11 FT UN | D74: FORT UNION | E74: =IF(LEFT(C74,12)='Ex 1.1 Data'!$C$24,'Ex 1.1 Data'!$D$24,IF(LEFT(C74,13)='Ex 1.1 Data'!$C$25,'Ex 1.1 Data'!$D$24,'Ex 1.1 Data'!$D$26)) -> 4.578223411 | F74: 2388.305 | G74: 10934.19386 | H74: 0.1100461 | I74: 1203.265391
A75: 64 | C75: CARL ALLEN A 11 LOWER FT UN | D75: FORT UNION | E75: =IF(LEFT(C75,12)='Ex 1.1 Data'!$C$24,'Ex 1.1 Data'!$D$24,IF(LEFT(C75,13)='Ex 1.1 Data'!$C$25,'Ex 1.1 Data'!$D$24,'Ex 1.1 Data'!$D$26)) -> 4.578223411 | F75: 45348.811 | G75: 207616.9882 | H75: 0.110046 | I75: 22847.41908
A76: 65 | C76: CARL ALLEN A 14 WAS | D76: WASATCH | E76: =IF(LEFT(C76,12)='Ex 1.1 Data'!$C$24,'Ex 1.1 Data'!$D$24,IF(LEFT(C76,13)='Ex 1.1 Data'!$C$25,'Ex 1.1 Data'!$D$24,'Ex 1.1 Data'!$D$26)) -> 4.578223411 | F76: 1 | G76: 4.578223411 | H76: 0.1100461 | I76: 0.5038156313
A77: 66 | C77: CARL ALLEN B 15 WAS | D77: WASATCH | E77: =IF(LEFT(C77,12)='Ex 1.1 Data'!$C$24,'Ex 1.1 Data'!$D$24,IF(LEFT(C77,13)='Ex 1.1 Data'!$C$25,'Ex 1.1 Data'!$D$24,'Ex 1.1 Data'!$D$26)) -> 4.578223411 | F77: 6819.806 | G77: =E77*F77 -> 31222.59549 | H77: 0.1100461 | I77: =H77*G77 -> 3435.924865
A78: =A77+1 -> 67 | C78: CARL ALLEN B 17 WAS | D78: WASATCH | E78: =IF(LEFT(C78,12)='Ex 1.1 Data'!$C$24,'Ex 1.1 Data'!$D$24,IF(LEFT(C78,13)='Ex 1.1 Data'!$C$25,'Ex 1.1 Data'!$D$24,'Ex 1.1 Data'!$D$26)) -> 4.578223411 | F78: 11757.489 | G78: 53828.4114 | H78: 0.1100461 | I78: 5923.606743
A79: 68 | C79: CARL ALLEN A 19 FT UN | D79: FORT UNION | E79: =IF(LEFT(C79,12)='Ex 1.1 Data'!$C$24,'Ex 1.1 Data'!$D$24,IF(LEFT(C79,13)='Ex 1.1 Data'!$C$25,'Ex 1.1 Data'!$D$24,'Ex 1.1 Data'!$D$26)) -> 4.578223411 | F79: 67569.224 | G79: 309347.0032 | H79: 0.1100461 | I79: 34042.43125
A80: 69 | C80: CARL ALLEN A 20 FT UN | D80: FORT UNION | E80: =IF(LEFT(C80,12)='Ex 1.1 Data'!$C$24,'Ex 1.1 Data'!$D$24,IF(LEFT(C80,13)='Ex 1.1 Data'!$C$25,'Ex 1.1 Data'!$D$24,'Ex 1.1 Data'!$D$26)) -> 4.578223411 | F80: 24642.207 | G80: 112817.529 | H80: 0.1100461 | I80: 12415.12908
A81: 70 | C81: BW MUSSER A 1 WAS | D81: WASATCH | E81: =IF(LEFT(C81,12)='Ex 1.1 Data'!$C$24,'Ex 1.1 Data'!$D$24,IF(LEFT(C81,13)='Ex 1.1 Data'!$C$25,'Ex 1.1 Data'!$D$24,'Ex 1.1 Data'!$D$26)) -> 4.578223411 | F81: 8504.537 | G81: 38935.67039 | H81: 0.1100461 | I81: 4284.718678
A82: 71 | C82: BW MUSSER B 21 FT UN | D82: FORT UNION | E82: =IF(LEFT(C82,12)='Ex 1.1 Data'!$C$24,'Ex 1.1 Data'!$D$24,IF(LEFT(C82,13)='Ex 1.1 Data'!$C$25,'Ex 1.1 Data'!$D$24,'Ex 1.1 Data'!$D$26)) -> 4.578223411 | F82: 16193.847 | G82: 74139.04945 | H82: 0.1100461 | I82: 8158.71325
A83: 72 | C83: BW MUSSER B 6 WAS | D83: WASATCH | E83: =IF(LEFT(C83,12)='Ex 1.1 Data'!$C$24,'Ex 1.1 Data'!$D$24,IF(LEFT(C83,13)='Ex 1.1 Data'!$C$25,'Ex 1.1 Data'!$D$24,'Ex 1.1 Data'!$D$26)) -> 4.578223411 | F83: 2570.94 | G83: 11770.3377 | H83: 0.1100461 | I83: 1295.279759
A84: 73 | C84: BW MUSSER B 10 FT UN | D84: FORT UNION | E84: =IF(LEFT(C84,12)='Ex 1.1 Data'!$C$24,'Ex 1.1 Data'!$D$24,IF(LEFT(C84,13)='Ex 1.1 Data'!$C$25,'Ex 1.1 Data'!$D$24,'Ex 1.1 Data'!$D$26)) -> 4.578223411 | F84: 11176.52 | G84: 51168.60552 | H84: 0.1100461 | I84: 5630.90548
A85: 74 | C85: BW MUSSER B 11 FT UN | D85: FORT UNION | E85: =IF(LEFT(C85,12)='Ex 1.1 Data'!$C$24,'Ex 1.1 Data'!$D$24,IF(LEFT(C85,13)='Ex 1.1 Data'!$C$25,'Ex 1.1 Data'!$D$24,'Ex 1.1 Data'!$D$26)) -> 4.578223411 | F85: 9824.705 | G85: 44979.69444 | H85: 0.1100461 | I85: 4949.839952
A86: 75 | C86: JC DONNELL B 3 WAS | D86: WASATCH | E86: =IF(LEFT(C86,12)='Ex 1.1 Data'!$C$24,'Ex 1.1 Data'!$D$24,IF(LEFT(C86,13)='Ex 1.1 Data'!$C$25,'Ex 1.1 Data'!$D$24,'Ex 1.1 Data'!$D$26)) -> 4.578223411 | F86: 32879.422 | G86: 150529.3395 | H86: 0.1100461 | I86: 16565.16675
A87: 76 | C87: JC DONNELL B 5 FT UN | D87: FORT UNION | E87: =IF(LEFT(C87,12)='Ex 1.1 Data'!$C$24,'Ex 1.1 Data'!$D$24,IF(LEFT(C87,13)='Ex 1.1 Data'!$C$25,'Ex 1.1 Data'!$D$24,'Ex 1.1 Data'!$D$26)) -> 4.578223411 | F87: 21858.648 | G87: 100073.774 | H87: 0.1100461 | I87: 11012.72854
A88: 77 | C88: JC DONNELL B 9 FT UN | D88: FORT UNION | E88: =IF(LEFT(C88,12)='Ex 1.1 Data'!$C$24,'Ex 1.1 Data'!$D$24,IF(LEFT(C88,13)='Ex 1.1 Data'!$C$25,'Ex 1.1 Data'!$D$24,'Ex 1.1 Data'!$D$26)) -> 4.578223411 | F88: 14919.212 | G88: 68303.48566 | H88: 0.1100461 | I88: 7516.532213
A89: 78 | C89: JC DONNELL B 10 FT UN | D89: FORT UNION | E89: =IF(LEFT(C89,12)='Ex 1.1 Data'!$C$24,'Ex 1.1 Data'!$D$24,IF(LEFT(C89,13)='Ex 1.1 Data'!$C$25,'Ex 1.1 Data'!$D$24,'Ex 1.1 Data'!$D$26)) -> 4.578223411 | F89: 34119.342 | G89: 156205.9703 | H89: 0.1100461 | I89: 17189.85783
A90: 79 | C90: H STEWART A 1 FT UN | D90: FORT UNION | E90: =IF(LEFT(C90,12)='Ex 1.1 Data'!$C$24,'Ex 1.1 Data'!$D$24,IF(LEFT(C90,13)='Ex 1.1 Data'!$C$25,'Ex 1.1 Data'!$D$24,'Ex 1.1 Data'!$D$26)) -> 4.578223411 | F90: 7347.62 | G90: 33639.0459 | H90: 0.1100461 | I90: 3701.845809
A91: 80 | C91: BW MUSSER B 13 FT UN | D91: FORT UNION | E91: =IF(LEFT(C91,12)='Ex 1.1 Data'!$C$24,'Ex 1.1 Data'!$D$24,IF(LEFT(C91,13)='Ex 1.1 Data'!$C$25,'Ex 1.1 Data'!$D$24,'Ex 1.1 Data'!$D$26)) -> 4.578223411 | F91: 28920.425 | G91: 132404.1668 | H91: 0.1100461 | I91: 14570.56218
A92: 81 | C92: BW MUSSER A 14 FT UN | D92: FORT UNION | E92: =IF(LEFT(C92,12)='Ex 1.1 Data'!$C$24,'Ex 1.1 Data'!$D$24,IF(LEFT(C92,13)='Ex 1.1 Data'!$C$25,'Ex 1.1 Data'!$D$24,'Ex 1.1 Data'!$D$26)) -> 4.578223411 | F92: 21258.998 | G92: 97328.44234 | H92: 0.1100461 | I92: 10710.6155
A93: 82 | C93: BW MUSSER 15 UPPER FT UN | D93: FORT UNION | E93: =IF(LEFT(C93,12)='Ex 1.1 Data'!$C$24,'Ex 1.1 Data'!$D$24,IF(LEFT(C93,13)='Ex 1.1 Data'!$C$25,'Ex 1.1 Data'!$D$24,'Ex 1.1 Data'!$D$26)) -> 4.578223411 | F93: 8650.984 | G93: 39606.13748 | H93: 0.1100461 | I93: 4358.500966
A94: 83 | C94: BW MUSSER B 18 FT UN | D94: FORT UNION | E94: =IF(LEFT(C94,12)='Ex 1.1 Data'!$C$24,'Ex 1.1 Data'!$D$24,IF(LEFT(C94,13)='Ex 1.1 Data'!$C$25,'Ex 1.1 Data'!$D$24,'Ex 1.1 Data'!$D$26)) -> 4.578223411 | F94: 33734.507 | G94: 154444.1097 | H94: 0.1100461 | I94: 16995.97194
A95: 84 | C95: BW MUSSER B 19 FT UN | D95: FORT UNION | E95: =IF(LEFT(C95,12)='Ex 1.1 Data'!$C$24,'Ex 1.1 Data'!$D$24,IF(LEFT(C95,13)='Ex 1.1 Data'!$C$25,'Ex 1.1 Data'!$D$24,'Ex 1.1 Data'!$D$26)) -> 4.578223411 | F95: 26256.308 | G95: 120207.244 | H95: 0.1100461 | I95: 13228.33839
A96: 85 | C96: BW MUSSER B 20 FT UN | D96: FORT UNION | E96: =IF(LEFT(C96,12)='Ex 1.1 Data'!$C$24,'Ex 1.1 Data'!$D$24,IF(LEFT(C96,13)='Ex 1.1 Data'!$C$25,'Ex 1.1 Data'!$D$24,'Ex 1.1 Data'!$D$26)) -> 4.578223411 | F96: 3888.619 | G96: 17802.96654 | H96: 0.1100461 | I96: 1959.147036
A97: 86 | C97: POWDER WASH GOVT 1 FT UN | D97: FORT UNION | E97: =IF(LEFT(C97,12)='Ex 1.1 Data'!$C$24,'Ex 1.1 Data'!$D$24,IF(LEFT(C97,13)='Ex 1.1 Data'!$C$25,'Ex 1.1 Data'!$D$24,'Ex 1.1 Data'!$D$26)) -> 4.578223411 | F97: 7932.852 | G97: 36318.36874 | H97: 0.1100461 | I97: 3996.694839
A98: 87 | C98: JC DONNELL A 11 FT UN | D98: FORT UNION | E98: =IF(LEFT(C98,12)='Ex 1.1 Data'!$C$24,'Ex 1.1 Data'!$D$24,IF(LEFT(C98,13)='Ex 1.1 Data'!$C$25,'Ex 1.1 Data'!$D$24,'Ex 1.1 Data'!$D$26)) -> 4.578223411 | F98: 50992.172 | G98: 233453.5556 | H98: 0.1100461 | I98: 25690.65333
A99: 88 | C99: JA LEE 1 FT UN | D99: FORT UNION | E99: =IF(LEFT(C99,12)='Ex 1.1 Data'!$C$24,'Ex 1.1 Data'!$D$24,IF(LEFT(C99,13)='Ex 1.1 Data'!$C$25,'Ex 1.1 Data'!$D$24,'Ex 1.1 Data'!$D$26)) -> 4.578223411 | F99: 18394.848 | G99: 84215.72376 | H99: 0.1100461 | I99: 9267.611958
A100: 89 | C100: JC DONNELL A 1 FT UN | D100: FORT UNION | E100: =IF(LEFT(C100,12)='Ex 1.1 Data'!$C$24,'Ex 1.1 Data'!$D$24,IF(LEFT(C100,13)='Ex 1.1 Data'!$C$25,'Ex 1.1 Data'!$D$24,'Ex 1.1 Data'!$D$26)) -> 4.578223411 | F100: 10153.321 | G100: 46484.1719 | H100: 0.1100461 | I100: 5115.40183
A101: 90 | C101: MFS 20-1 FT UN | D101: FORT UNION | E101: =IF(LEFT(C101,12)='Ex 1.1 Data'!$C$24,'Ex 1.1 Data'!$D$24,IF(LEFT(C101,13)='Ex 1.1 Data'!$C$25,'Ex 1.1 Data'!$D$24,'Ex 1.1 Data'!$D$26)) -> 4.578223411 | F101: 78056.997 | G101: 357362.3711 | H101: 0.125 | I101: 44670.29638
A102: 91 | C102: CARL ALLEN A 16 WAS | D102: WASATCH | E102: =IF(LEFT(C102,12)='Ex 1.1 Data'!$C$24,'Ex 1.1 Data'!$D$24,IF(LEFT(C102,13)='Ex 1.1 Data'!$C$25,'Ex 1.1 Data'!$D$24,'Ex 1.1 Data'!$D$26)) -> 4.578223411 | F102: 11209.812 | G102: 51321.02373 | H102: 0.1100461 | I102: 5647.67851
A103: 92 | C103: H STEWART A 2 FT UN | D103: FORT UNION | E103: =IF(LEFT(C103,12)='Ex 1.1 Data'!$C$24,'Ex 1.1 Data'!$D$24,IF(LEFT(C103,13)='Ex 1.1 Data'!$C$25,'Ex 1.1 Data'!$D$24,'Ex 1.1 Data'!$D$26)) -> 4.578223411 | F103: 105516.803 | G103: 483079.4978 | H103: 0.1100461 | I103: 53161.01472
A104: 93 | C104: CARL ALLEN B 9 UPPER WAS | D104: WASATCH | E104: =IF(LEFT(C104,12)='Ex 1.1 Data'!$C$24,'Ex 1.1 Data'!$D$24,IF(LEFT(C104,13)='Ex 1.1 Data'!$C$25,'Ex 1.1 Data'!$D$24,'Ex 1.1 Data'!$D$26)) -> 4.578223411 | F104: 11603.781 | G104: 53124.70183 | H104: 0.1100461 | I104: 5846.16625
A105: 94 | C105: CARL ALLEN A 2 WAS | D105: WASATCH | E105: =IF(LEFT(C105,12)='Ex 1.1 Data'!$C$24,'Ex 1.1 Data'!$D$24,IF(LEFT(C105,13)='Ex 1.1 Data'!$C$25,'Ex 1.1 Data'!$D$24,'Ex 1.1 Data'!$D$26)) -> 4.578223411 | F105: 23702.597 | G105: 108515.7845 | H105: 0.1100461 | I105: 11941.73887
A106: 95 | C106: BW MUSSER 22 FT UN | D106: FORT UNION | E106: =IF(LEFT(C106,12)='Ex 1.1 Data'!$C$24,'Ex 1.1 Data'!$D$24,IF(LEFT(C106,13)='Ex 1.1 Data'!$C$25,'Ex 1.1 Data'!$D$24,'Ex 1.1 Data'!$D$26)) -> 4.578223411 | F106: 1522.42 | G106: 6969.978886 | H106: 0.1100461 | I106: 767.0189935
A107: 96 | C107: CARL ALLEN 22 FT UN | D107: FORT UNION | E107: =IF(LEFT(C107,12)='Ex 1.1 Data'!$C$24,'Ex 1.1 Data'!$D$24,IF(LEFT(C107,13)='Ex 1.1 Data'!$C$25,'Ex 1.1 Data'!$D$24,'Ex 1.1 Data'!$D$26)) -> 4.578223411 | F107: 145503.637 | G107: 666148.1573 | H107: 0.1100461 | I107: 73307.00674
A108: 97 | C108: JC DONNELL 14-29 FT UN | D108: FORT UNION | E108: =IF(LEFT(C108,12)='Ex 1.1 Data'!$C$24,'Ex 1.1 Data'!$D$24,IF(LEFT(C108,13)='Ex 1.1 Data'!$C$25,'Ex 1.1 Data'!$D$24,'Ex 1.1 Data'!$D$26)) -> 4.578223411 | F108: 170936.935 | G108: 782587.4777 | H108: 0.1100461 | I108: 86120.69983
A109: 98 | C109: CARL ALLEN 23 FT UN | D109: FORT UNION | E109: =IF(LEFT(C109,12)='Ex 1.1 Data'!$C$24,'Ex 1.1 Data'!$D$24,IF(LEFT(C109,13)='Ex 1.1 Data'!$C$25,'Ex 1.1 Data'!$D$24,'Ex 1.1 Data'!$D$26)) -> 4.578223411 | F109: 56919.966 | G109: 260592.3209 | H109: 0.1100461 | I109: 28677.16861
A110: 99 | C110: BW MUSSER 23 FT UN | D110: FORT UNION | E110: =IF(LEFT(C110,12)='Ex 1.1 Data'!$C$24,'Ex 1.1 Data'!$D$24,IF(LEFT(C110,13)='Ex 1.1 Data'!$C$25,'Ex 1.1 Data'!$D$24,'Ex 1.1 Data'!$D$26)) -> 4.578223411 | F110: 118878.315 | G110: 544251.4848 | H110: 0.1100461 | I110: 59892.75332
A111: 100 | C111: BW MUSSER 24 FT UN | D111: FORT UNION | E111: =IF(LEFT(C111,12)='Ex 1.1 Data'!$C$24,'Ex 1.1 Data'!$D$24,IF(LEFT(C111,13)='Ex 1.1 Data'!$C$25,'Ex 1.1 Data'!$D$24,'Ex 1.1 Data'!$D$26)) -> 4.578223411 | F111: 71939.669 | G111: 329355.8768 | H111: 0.1100461 | I111: 36244.32976
A112: 101 | C112: CARL ALLEN 26 FT UN | D112: MESAVERDE | E112: =IF(LEFT(C112,12)='Ex 1.1 Data'!$C$24,'Ex 1.1 Data'!$D$24,IF(LEFT(C112,13)='Ex 1.1 Data'!$C$25,'Ex 1.1 Data'!$D$24,'Ex 1.1 Data'!$D$26)) -> 4.578223411 | F112: 189541.728 | G112: 867764.3765 | H112: 0.1100461 | I112: 95494.08536
A113: 102 | C113: CARL ALLEN 25 FT UN | D113: WASATCH | E113: =IF(LEFT(C113,12)='Ex 1.1 Data'!$C$24,'Ex 1.1 Data'!$D$24,IF(LEFT(C113,13)='Ex 1.1 Data'!$C$25,'Ex 1.1 Data'!$D$24,'Ex 1.1 Data'!$D$26)) -> 4.578223411 | F113: 154683.712 | G113: 708176.5916 | H113: 0.1100461 | I113: 77932.07202
A114: 103 | C114: H STEWART 5 FT UN | D114: FORT UNION | E114: =IF(LEFT(C114,12)='Ex 1.1 Data'!$C$24,'Ex 1.1 Data'!$D$24,IF(LEFT(C114,13)='Ex 1.1 Data'!$C$25,'Ex 1.1 Data'!$D$24,'Ex 1.1 Data'!$D$26)) -> 4.578223411 | F114: 163367.233 | G114: 747931.6907 | H114: 0.1100461 | I114: 82306.96563
A115: 104 | C115: CARL ALLEN 27 FT UN | D115: FORT UNION | E115: =IF(LEFT(C115,12)='Ex 1.1 Data'!$C$24,'Ex 1.1 Data'!$D$24,IF(LEFT(C115,13)='Ex 1.1 Data'!$C$25,'Ex 1.1 Data'!$D$24,'Ex 1.1 Data'!$D$26)) -> 4.578223411 | F115: 249806.343 | G115: 1143669.248 | H115: 0.110046 | I115: 125856.226
A116: 105 | C116: CARL ALLEN 28 FT UN | D116: FORT UNION | E116: =IF(LEFT(C116,12)='Ex 1.1 Data'!$C$24,'Ex 1.1 Data'!$D$24,IF(LEFT(C116,13)='Ex 1.1 Data'!$C$25,'Ex 1.1 Data'!$D$24,'Ex 1.1 Data'!$D$26)) -> 4.578223411 | F116: 87236.741 | G116: 399389.29 | H116: 0.110046 | I116: 43951.1938
A117: 106 | C117: CARL ALLEN 29 FT UN | D117: FORT UNION | E117: =IF(LEFT(C117,12)='Ex 1.1 Data'!$C$24,'Ex 1.1 Data'!$D$24,IF(LEFT(C117,13)='Ex 1.1 Data'!$C$25,'Ex 1.1 Data'!$D$24,'Ex 1.1 Data'!$D$26)) -> 4.578223411 | F117: 72385.966 | G117: 331399.1242 | H117: 0.110046 | I117: 36469.14802
A118: 107 | C118: BW MUSSER 27 FT UN | D118: FORT UNION | E118: =IF(LEFT(C118,12)='Ex 1.1 Data'!$C$24,'Ex 1.1 Data'!$D$24,IF(LEFT(C118,13)='Ex 1.1 Data'!$C$25,'Ex 1.1 Data'!$D$24,'Ex 1.1 Data'!$D$26)) -> 4.578223411 | F118: 132906.809 | G118: 608477.0645 | H118: 0.110046 | I118: 66960.46704
A119: 108 | C119: JC DONNELL 14 FT UN | D119: FORT UNION | E119: =IF(LEFT(C119,12)='Ex 1.1 Data'!$C$24,'Ex 1.1 Data'!$D$24,IF(LEFT(C119,13)='Ex 1.1 Data'!$C$25,'Ex 1.1 Data'!$D$24,'Ex 1.1 Data'!$D$26)) -> 4.578223411 | F119: 46506.429 | G119: 212916.822 | H119: 0.110046 | I119: 23430.6446
A120: 109 | C120: JC DONNELL 15 FT UN | D120: FORT UNION | E120: =IF(LEFT(C120,12)='Ex 1.1 Data'!$C$24,'Ex 1.1 Data'!$D$24,IF(LEFT(C120,13)='Ex 1.1 Data'!$C$25,'Ex 1.1 Data'!$D$24,'Ex 1.1 Data'!$D$26)) -> 4.578223411 | F120: 84135.198 | G120: 385189.7332 | H120: 0.110046 | I120: 42388.58938
A121: 110 | C121: JC DONNELL 16 FT UN | D121: FORT UNION | E121: =IF(LEFT(C121,12)='Ex 1.1 Data'!$C$24,'Ex 1.1 Data'!$D$24,IF(LEFT(C121,13)='Ex 1.1 Data'!$C$25,'Ex 1.1 Data'!$D$24,'Ex 1.1 Data'!$D$26)) -> 4.578223411 | F121: 92462.825 | G121: 423315.4701 | H121: 0.110046 | I121: 46584.17422
A122: 111 | C122: BW MUSSER 28 FT UN | D122: FORT UNION | E122: =IF(LEFT(C122,12)='Ex 1.1 Data'!$C$24,'Ex 1.1 Data'!$D$24,IF(LEFT(C122,13)='Ex 1.1 Data'!$C$25,'Ex 1.1 Data'!$D$24,'Ex 1.1 Data'!$D$26)) -> 4.578223411 | F122: 9288.941 | G122: 42526.84715 | H122: 0.110046 | I122: 4679.909422
A123: 112 | C123: BW MUSSER 29 FT UN | D123: FORT UNION | E123: =IF(LEFT(C123,12)='Ex 1.1 Data'!$C$24,'Ex 1.1 Data'!$D$24,IF(LEFT(C123,13)='Ex 1.1 Data'!$C$25,'Ex 1.1 Data'!$D$24,'Ex 1.1 Data'!$D$26)) -> 4.578223411 | F123: 91381.393 | G123: 418364.4328 | H123: 0.110046 | I123: 46039.33237
A124: 113 | C124: BW MUSSER 26R FT UN | D124: FORT UNION | E124: =IF(LEFT(C124,12)='Ex 1.1 Data'!$C$24,'Ex 1.1 Data'!$D$24,IF(LEFT(C124,13)='Ex 1.1 Data'!$C$25,'Ex 1.1 Data'!$D$24,'Ex 1.1 Data'!$D$26)) -> 4.578223411 | F124: 95758.832 | G124: 438405.3265 | H124: 0.1100461 | I124: 48244.7964
A125: 114 | C125: CARL ALLEN 30 FT UN | D125: FORT UNION | E125: =IF(LEFT(C125,12)='Ex 1.1 Data'!$C$24,'Ex 1.1 Data'!$D$24,IF(LEFT(C125,13)='Ex 1.1 Data'!$C$25,'Ex 1.1 Data'!$D$24,'Ex 1.1 Data'!$D$26)) -> 4.578223411 | F125: 117929.637 | G125: 539908.225 | H125: 0.110046 | I125: 59414.74053
A126: 115 | C126: CARL ALLEN 31 FT UN | D126: FORT UNION | E126: =IF(LEFT(C126,12)='Ex 1.1 Data'!$C$24,'Ex 1.1 Data'!$D$24,IF(LEFT(C126,13)='Ex 1.1 Data'!$C$25,'Ex 1.1 Data'!$D$24,'Ex 1.1 Data'!$D$26)) -> 4.578223411 | F126: 290504.913 | G126: 1329996.394 | H126: 0.110046 | I126: 146360.7831
A127: 116 | C127: CARL ALLEN 32 FT UN | D127: FORT UNION | E127: =IF(LEFT(C127,12)='Ex 1.1 Data'!$C$24,'Ex 1.1 Data'!$D$24,IF(LEFT(C127,13)='Ex 1.1 Data'!$C$25,'Ex 1.1 Data'!$D$24,'Ex 1.1 Data'!$D$26)) -> 4.578223411 | F127: 144852.94 | G127: 663169.1211 | H127: 0.110046 | I127: 72979.1091
A128: 117 | C128: CARL ALLEN 33 FT UN | D128: FORT UNION | E128: =IF(LEFT(C128,12)='Ex 1.1 Data'!$C$24,'Ex 1.1 Data'!$D$24,IF(LEFT(C128,13)='Ex 1.1 Data'!$C$25,'Ex 1.1 Data'!$D$24,'Ex 1.1 Data'!$D$26)) -> 4.578223411 | F128: 10902.946 | G128: 49916.12263 | H128: 0.110046 | I128: 5493.069631
A129: 118 | C129: CARL ALLEN 34 FT UN | D129: FORT UNION | E129: =IF(LEFT(C129,12)='Ex 1.1 Data'!$C$24,'Ex 1.1 Data'!$D$24,IF(LEFT(C129,13)='Ex 1.1 Data'!$C$25,'Ex 1.1 Data'!$D$24,'Ex 1.1 Data'!$D$26)) -> 4.578223411 | F129: 161182.503 | G129: 737929.5087 | H129: 0.110046 | I129: 81206.19072
A130: 119 | C130: JC DONNELL 18 FT UN | D130: FORT UNION | E130: =IF(LEFT(C130,12)='Ex 1.1 Data'!$C$24,'Ex 1.1 Data'!$D$24,IF(LEFT(C130,13)='Ex 1.1 Data'!$C$25,'Ex 1.1 Data'!$D$24,'Ex 1.1 Data'!$D$26)) -> 4.578223411 | F130: 21797.517 | G130: 99793.90264 | H130: 0.110046 | I130: 10981.91981
A131: 120 | C131: BW MUSSER 31 FT UN | D131: FORT UNION | E131: =IF(LEFT(C131,12)='Ex 1.1 Data'!$C$24,'Ex 1.1 Data'!$D$24,IF(LEFT(C131,13)='Ex 1.1 Data'!$C$25,'Ex 1.1 Data'!$D$24,'Ex 1.1 Data'!$D$26)) -> 4.578223411 | F131: 192534.714 | G131: 881466.9351 | H131: 0.110046 | I131: 97001.91034
A132: 121 | C132: BW MUSSER 32 FT UN | D132: FORT UNION | E132: =IF(LEFT(C132,12)='Ex 1.1 Data'!$C$24,'Ex 1.1 Data'!$D$24,IF(LEFT(C132,13)='Ex 1.1 Data'!$C$25,'Ex 1.1 Data'!$D$24,'Ex 1.1 Data'!$D$26)) -> 4.578223411 | F132: 103156.529 | G132: 472273.6361 | H132: 0.110046 | I132: 51971.82456
A133: 122 | C133: BW MUSSER 34 FT UN | D133: FORT UNION | E133: =IF(LEFT(C133,12)='Ex 1.1 Data'!$C$24,'Ex 1.1 Data'!$D$24,IF(LEFT(C133,13)='Ex 1.1 Data'!$C$25,'Ex 1.1 Data'!$D$24,'Ex 1.1 Data'!$D$26)) -> 4.578223411 | F133: 114387.651 | G133: 523692.2218 | H133: 0.110046 | I133: 57630.23424
A134: 123 | C134: BW MUSSER 35 FT UN | D134: FORT UNION | E134: =IF(LEFT(C134,12)='Ex 1.1 Data'!$C$24,'Ex 1.1 Data'!$D$24,IF(LEFT(C134,13)='Ex 1.1 Data'!$C$25,'Ex 1.1 Data'!$D$24,'Ex 1.1 Data'!$D$26)) -> 4.578223411 | F134: 64088.833 | G134: 293412.9956 | H134: 0.110046 | I134: 32288.92652
A135: 124 | C135: BW MUSSER 35 LANCE | D135: LANCE | E135: =IF(LEFT(C135,12)='Ex 1.1 Data'!$C$24,'Ex 1.1 Data'!$D$24,IF(LEFT(C135,13)='Ex 1.1 Data'!$C$25,'Ex 1.1 Data'!$D$24,'Ex 1.1 Data'!$D$26)) -> 4.578223411 | F135: 576.22 | G135: 2638.063894 | H135: 0.12 | I135: 316.5676673
A136: 125 | C136: STEWART 6 FT UN | D136: FORT UNION | E136: =IF(LEFT(C136,12)='Ex 1.1 Data'!$C$24,'Ex 1.1 Data'!$D$24,IF(LEFT(C136,13)='Ex 1.1 Data'!$C$25,'Ex 1.1 Data'!$D$24,'Ex 1.1 Data'!$D$26)) -> 4.578223411 | F136: 131828.647 | G136: 603540.998 | H136: 0.110046 | I136: 66417.27266
A137: 126 | C137: BW MUSSER 36 FT UN | D137: FORT UNION | E137: =IF(LEFT(C137,12)='Ex 1.1 Data'!$C$24,'Ex 1.1 Data'!$D$24,IF(LEFT(C137,13)='Ex 1.1 Data'!$C$25,'Ex 1.1 Data'!$D$24,'Ex 1.1 Data'!$D$26)) -> 4.578223411 | F137: 265889.165 | G137: 1217300 | H137: 0.110046 | I137: 133958.9958
A138: 127 | C138: BW MUSSER 37 FT UN | D138: FORT UNION | E138: =IF(LEFT(C138,12)='Ex 1.1 Data'!$C$24,'Ex 1.1 Data'!$D$24,IF(LEFT(C138,13)='Ex 1.1 Data'!$C$25,'Ex 1.1 Data'!$D$24,'Ex 1.1 Data'!$D$26)) -> 4.578223411 | F138: 140337.414 | G138: 642496.0342 | H138: 0.110046 | I138: 70704.11858
A139: 128 | C139: CARL ALLEN 35 FT UN | D139: FORT UNION | E139: =IF(LEFT(C139,12)='Ex 1.1 Data'!$C$24,'Ex 1.1 Data'!$D$24,IF(LEFT(C139,13)='Ex 1.1 Data'!$C$25,'Ex 1.1 Data'!$D$24,'Ex 1.1 Data'!$D$26)) -> 4.578223411 | F139: 111432.64 | G139: 510163.5212 | H139: 0.110046 | I139: 56141.45486
A140: 129 | C140: CARL ALLEN 36 FT UN | D140: FORT UNION | E140: =IF(LEFT(C140,12)='Ex 1.1 Data'!$C$24,'Ex 1.1 Data'!$D$24,IF(LEFT(C140,13)='Ex 1.1 Data'!$C$25,'Ex 1.1 Data'!$D$24,'Ex 1.1 Data'!$D$26)) -> 4.578223411 | F140: 213366.555 | G140: 976839.7573 | H140: 0.110046 | I140: 107497.3079
A141: 130 | C141: BW MUSSER 38 FT UN | D141: FORT UNION | E141: =IF(LEFT(C141,12)='Ex 1.1 Data'!$C$24,'Ex 1.1 Data'!$D$24,IF(LEFT(C141,13)='Ex 1.1 Data'!$C$25,'Ex 1.1 Data'!$D$24,'Ex 1.1 Data'!$D$26)) -> 4.578223411 | F141: 254480.95 | G141: =E141*F141 -> 1165070.643 | H141: 0.110046 | I141: =H141*G141 -> 128211.364
A142: =A141+1 -> 131 | C142: BW MUSSER 39 FT UN | D142: FORT UNION | E142: =IF(LEFT(C142,12)='Ex 1.1 Data'!$C$24,'Ex 1.1 Data'!$D$24,IF(LEFT(C142,13)='Ex 1.1 Data'!$C$25,'Ex 1.1 Data'!$D$24,'Ex 1.1 Data'!$D$26)) -> 4.578223411 | F142: 211681.54 | G142: 969125.3822 | H142: 0.110046 | I142: 106648.3718
A143: 132 | C143: CARL ALLEN 37 FT UN | D143: FORT UNION | E143: =IF(LEFT(C143,12)='Ex 1.1 Data'!$C$24,'Ex 1.1 Data'!$D$24,IF(LEFT(C143,13)='Ex 1.1 Data'!$C$25,'Ex 1.1 Data'!$D$24,'Ex 1.1 Data'!$D$26)) -> 4.578223411 | F143: 174017.339 | G143: 796690.2554 | H143: 0.1100461 | I143: 87672.65551
A144: 133 | C144: BW MUSSER 42 FT UN | D144: FORT UNION | E144: =IF(LEFT(C144,12)='Ex 1.1 Data'!$C$24,'Ex 1.1 Data'!$D$24,IF(LEFT(C144,13)='Ex 1.1 Data'!$C$25,'Ex 1.1 Data'!$D$24,'Ex 1.1 Data'!$D$26)) -> 4.578223411 | F144: 128286.882 | G144: 587326.0065 | H144: 0.110046 | I144: 64632.87771
A145: 134 | C145: POWDER WASH GOVT 17 FT UN | D145: FORT UNION | E145: =IF(LEFT(C145,12)='Ex 1.1 Data'!$C$24,'Ex 1.1 Data'!$D$24,IF(LEFT(C145,13)='Ex 1.1 Data'!$C$25,'Ex 1.1 Data'!$D$24,'Ex 1.1 Data'!$D$26)) -> 4.578223411 | F145: 63016.858 | G145: 288505.2546 | H145: 0.110046 | I145: 31748.84925
A146: 135 | C146: BW MUSSER 72 FT UN | D146: FORT UNION | E146: =IF(LEFT(C146,12)='Ex 1.1 Data'!$C$24,'Ex 1.1 Data'!$D$24,IF(LEFT(C146,13)='Ex 1.1 Data'!$C$25,'Ex 1.1 Data'!$D$24,'Ex 1.1 Data'!$D$26)) -> 4.578223411 | F146: 20428.882 | G146: 93527.98584 | H146: 0.110046 | I146: 10292.38073
A147: 136 | C147: BW MUSSER 72 LANCE | D147: LANCE | E147: =IF(LEFT(C147,12)='Ex 1.1 Data'!$C$24,'Ex 1.1 Data'!$D$24,IF(LEFT(C147,13)='Ex 1.1 Data'!$C$25,'Ex 1.1 Data'!$D$24,'Ex 1.1 Data'!$D$26)) -> 4.578223411 | F147: 378.076 | G147: 1730.916394 | H147: 0.12 | I147: 207.7099673
A148: 137 | C148: BW MUSSER 73 FT UN | D148: FORT UNION | E148: =IF(LEFT(C148,12)='Ex 1.1 Data'!$C$24,'Ex 1.1 Data'!$D$24,IF(LEFT(C148,13)='Ex 1.1 Data'!$C$25,'Ex 1.1 Data'!$D$24,'Ex 1.1 Data'!$D$26)) -> 4.578223411 | F148: 85183.265 | G148: 389988.0181 | H148: 0.110046 | I148: 42916.62144
A149: 138 | C149: BW MUSSER 73 LANCE | D149: LANCE | E149: =IF(LEFT(C149,12)='Ex 1.1 Data'!$C$24,'Ex 1.1 Data'!$D$24,IF(LEFT(C149,13)='Ex 1.1 Data'!$C$25,'Ex 1.1 Data'!$D$24,'Ex 1.1 Data'!$D$26)) -> 4.578223411 | F149: 506.069 | G149: 2316.896943 | H149: 0.12 | I149: 278.0276332
A150: 139 | C150: CARL ALLEN 40 FT UN | D150: FORT UNION | E150: =IF(LEFT(C150,12)='Ex 1.1 Data'!$C$24,'Ex 1.1 Data'!$D$24,IF(LEFT(C150,13)='Ex 1.1 Data'!$C$25,'Ex 1.1 Data'!$D$24,'Ex 1.1 Data'!$D$26)) -> 4.578223411 | F150: 139261.414 | G150: 637569.8659 | H150: 0.110046 | I150: 70162.01346
A151: 140 | C151: CARL ALLEN 41 FT UN | D151: FORT UNION | E151: =IF(LEFT(C151,12)='Ex 1.1 Data'!$C$24,'Ex 1.1 Data'!$D$24,IF(LEFT(C151,13)='Ex 1.1 Data'!$C$25,'Ex 1.1 Data'!$D$24,'Ex 1.1 Data'!$D$26)) -> 4.578223411 | F151: 166426.354 | G151: 761937.0301 | H151: 0.110046 | I151: 83848.12242
A152: 141 | B152: RABBIT MTN (CO) | C152: MF FEDERAL 8-1 MANCOS B | D152: MANCOS B | E152: =IF(LEFT(C152,12)='Ex 1.1 Data'!$C$24,'Ex 1.1 Data'!$D$24,IF(LEFT(C152,13)='Ex 1.1 Data'!$C$25,'Ex 1.1 Data'!$D$24,'Ex 1.1 Data'!$D$26)) -> 4.578223411 | F152: 37153.773 | G152: 170098.2734 | H152: 0.155 | I152: 26365.23237
A153: 142 | C153: RABBIT MTN FED 7-1 MANCOS B | D153: MANCOS B | E153: =IF(LEFT(C153,12)='Ex 1.1 Data'!$C$24,'Ex 1.1 Data'!$D$24,IF(LEFT(C153,13)='Ex 1.1 Data'!$C$25,'Ex 1.1 Data'!$D$24,'Ex 1.1 Data'!$D$26)) -> 4.578223411 | F153: 47092.925 | G153: 215601.9317 | H153: 0.125 | I153: 26950.24147
A154: 143 | B154: SUGAR LOAF (CO) | C154: SUGARLOAF GOVT 1 MESA | D154: MESAVERDE | E154: =IF(LEFT(C154,12)='Ex 1.1 Data'!$C$24,'Ex 1.1 Data'!$D$24,IF(LEFT(C154,13)='Ex 1.1 Data'!$C$25,'Ex 1.1 Data'!$D$24,'Ex 1.1 Data'!$D$26)) -> 4.578223411 | F154: 77634.285 | G154: 355427.1011 | H154: 0.13375 | I154: 47538.37477
A155: 144 | C155: SUGARLOAF GOVT 2 MESA | D155: MESAVERDE | E155: =IF(LEFT(C155,12)='Ex 1.1 Data'!$C$24,'Ex 1.1 Data'!$D$24,IF(LEFT(C155,13)='Ex 1.1 Data'!$C$25,'Ex 1.1 Data'!$D$24,'Ex 1.1 Data'!$D$26)) -> 4.578223411 | F155: 109032.702 | G155: 499176.0689 | H155: 0.13375 | I155: 66764.79921
A156: 145 | C156: SUGARLOAF GOVT 3 FT UN | D156: FORT UNION | E156: =IF(LEFT(C156,12)='Ex 1.1 Data'!$C$24,'Ex 1.1 Data'!$D$24,IF(LEFT(C156,13)='Ex 1.1 Data'!$C$25,'Ex 1.1 Data'!$D$24,'Ex 1.1 Data'!$D$26)) -> 4.578223411 | F156: 61930.626 | G156: 283532.2418 | H156: 0.13375 | I156: 37922.43734
A157: 146 | C157: SUGARLOAF GOVT 4 MESA | D157: MESAVERDE | E157: =IF(LEFT(C157,12)='Ex 1.1 Data'!$C$24,'Ex 1.1 Data'!$D$24,IF(LEFT(C157,13)='Ex 1.1 Data'!$C$25,'Ex 1.1 Data'!$D$24,'Ex 1.1 Data'!$D$26)) -> 4.578223411 | F157: 16868.746 | G157: 77228.88786 | H157: 0.13375 | I157: 10329.36375
A158: 147 | C158: SUGARLOAF GOVT 6 MESA | D158: MESAVERDE | E158: =IF(LEFT(C158,12)='Ex 1.1 Data'!$C$24,'Ex 1.1 Data'!$D$24,IF(LEFT(C158,13)='Ex 1.1 Data'!$C$25,'Ex 1.1 Data'!$D$24,'Ex 1.1 Data'!$D$26)) -> 4.578223411 | F158: 65182.965 | G158: 298422.1764 | H158: 0.13375 | I158: 39913.96609
A159: 148 | C159: SUGARLOAF GOVT 8 MESA | D159: MESAVERDE | E159: =IF(LEFT(C159,12)='Ex 1.1 Data'!$C$24,'Ex 1.1 Data'!$D$24,IF(LEFT(C159,13)='Ex 1.1 Data'!$C$25,'Ex 1.1 Data'!$D$24,'Ex 1.1 Data'!$D$26)) -> 4.578223411 | F159: 6684.424 | G159: 30602.78645 | H159: 0.13375 | I159: 4093.122687
A160: 149 | C160: SUGARLOAF GOVT 10 MESA | D160: MESAVERDE | E160: =IF(LEFT(C160,12)='Ex 1.1 Data'!$C$24,'Ex 1.1 Data'!$D$24,IF(LEFT(C160,13)='Ex 1.1 Data'!$C$25,'Ex 1.1 Data'!$D$24,'Ex 1.1 Data'!$D$26)) -> 4.578223411 | F160: 84697.438 | G160: 387763.7935 | H160: 0.13375 | I160: 51863.40738
A161: 150 | C161: SUGARLOAF GOVT 12 MESA | D161: MESAVERDE | E161: =IF(LEFT(C161,12)='Ex 1.1 Data'!$C$24,'Ex 1.1 Data'!$D$24,IF(LEFT(C161,13)='Ex 1.1 Data'!$C$25,'Ex 1.1 Data'!$D$24,'Ex 1.1 Data'!$D$26)) -> 4.578223411 | F161: 4169.827 | G161: 19090.39959 | H161: 0.13375 | I161: 2553.340945
A162: 151 | C162: SUGARLOAF GOVT 14 MESA | D162: MESAVERDE | E162: =IF(LEFT(C162,12)='Ex 1.1 Data'!$C$24,'Ex 1.1 Data'!$D$24,IF(LEFT(C162,13)='Ex 1.1 Data'!$C$25,'Ex 1.1 Data'!$D$24,'Ex 1.1 Data'!$D$26)) -> 4.578223411 | F162: 19140.704 | G162: 87630.41916 | H162: 0.13375 | I162: 11720.56856
A163: 152 | C163: SUGARLOAF GOVT 15 MESA | D163: MESAVERDE | E163: =IF(LEFT(C163,12)='Ex 1.1 Data'!$C$24,'Ex 1.1 Data'!$D$24,IF(LEFT(C163,13)='Ex 1.1 Data'!$C$25,'Ex 1.1 Data'!$D$24,'Ex 1.1 Data'!$D$26)) -> 4.578223411 | F163: 7578.215 | G163: 34694.76133 | H163: 0.13375 | I163: 4640.424328
A164: 153 | C164: SUGARLOAF GOVT 17 ALMOND | D164: ALMOND | E164: =IF(LEFT(C164,12)='Ex 1.1 Data'!$C$24,'Ex 1.1 Data'!$D$24,IF(LEFT(C164,13)='Ex 1.1 Data'!$C$25,'Ex 1.1 Data'!$D$24,'Ex 1.1 Data'!$D$26)) -> 4.578223411 | F164: 258340.044 | G164: 1182738.437 | H164: 0.20375 | I164: 240982.9566
A165: 154 | B165: W HIAW (CO) | C165: WB LASHER A 2 WAS | D165: WASATCH | E165: =IF(LEFT(C165,12)='Ex 1.1 Data'!$C$24,'Ex 1.1 Data'!$D$24,IF(LEFT(C165,13)='Ex 1.1 Data'!$C$25,'Ex 1.1 Data'!$D$24,'Ex 1.1 Data'!$D$26)) -> 4.578223411 | F165: 13192.922 | G165: 60400.14436 | H165: 0.1925 | I165: 11627.02779
A166: 155 | C166: WB LASHER A 4 FT UN | D166: FORT UNION | E166: =IF(LEFT(C166,12)='Ex 1.1 Data'!$C$24,'Ex 1.1 Data'!$D$24,IF(LEFT(C166,13)='Ex 1.1 Data'!$C$25,'Ex 1.1 Data'!$D$24,'Ex 1.1 Data'!$D$26)) -> 4.578223411 | F166: 26596.044 | G166: 121762.6313 | H166: 0.1925 | I166: 23439.30652
A167: 156 | C167: WM WHEELER A 2 WAS | D167: WASATCH | E167: =IF(LEFT(C167,12)='Ex 1.1 Data'!$C$24,'Ex 1.1 Data'!$D$24,IF(LEFT(C167,13)='Ex 1.1 Data'!$C$25,'Ex 1.1 Data'!$D$24,'Ex 1.1 Data'!$D$26)) -> 4.578223411 | F167: 26361.587 | G167: 120689.2348 | H167: 0.1925 | I167: 23232.67769
A168: 157 | C168: WM WHEELER A 2 FT UN | D168: FORT UNION | E168: =IF(LEFT(C168,12)='Ex 1.1 Data'!$C$24,'Ex 1.1 Data'!$D$24,IF(LEFT(C168,13)='Ex 1.1 Data'!$C$25,'Ex 1.1 Data'!$D$24,'Ex 1.1 Data'!$D$26)) -> 4.578223411 | F168: 6873.266 | G168: 31467.34731 | H168: 0.1925 | I168: 6057.464358
A169: 158 | C169: WM WHEELER A 3 FT UN | D169: FORT UNION | E169: =IF(LEFT(C169,12)='Ex 1.1 Data'!$C$24,'Ex 1.1 Data'!$D$24,IF(LEFT(C169,13)='Ex 1.1 Data'!$C$25,'Ex 1.1 Data'!$D$24,'Ex 1.1 Data'!$D$26)) -> 4.578223411 | F169: 21319.194 | G169: 97604.03308 | H169: 0.1925 | I169: 18788.77637
A170: 159 | C170: WB LASHER A 5 FT UN | D170: FORT UNION | E170: =IF(LEFT(C170,12)='Ex 1.1 Data'!$C$24,'Ex 1.1 Data'!$D$24,IF(LEFT(C170,13)='Ex 1.1 Data'!$C$25,'Ex 1.1 Data'!$D$24,'Ex 1.1 Data'!$D$26)) -> 4.578223411 | F170: 17264.37 | G170: 79040.14291 | H170: 0.1840625 | I170: 14548.32631
A171: 160 | C171: WB LASHER A 6 LEW/LNC/FT UN | D171: LANCE/LEWIS | E171: =IF(LEFT(C171,12)='Ex 1.1 Data'!$C$24,'Ex 1.1 Data'!$D$24,IF(LEFT(C171,13)='Ex 1.1 Data'!$C$25,'Ex 1.1 Data'!$D$24,'Ex 1.1 Data'!$D$26)) -> 4.578223411 | F171: 66038.7 | G171: 302339.9224 | H171: 0.1925 | I171: 58200.43506
A172: 161 | C172: WM WHEELER A 4 LEW/LNC/FT UN | D172: LANCE/LEWIS | E172: =IF(LEFT(C172,12)='Ex 1.1 Data'!$C$24,'Ex 1.1 Data'!$D$24,IF(LEFT(C172,13)='Ex 1.1 Data'!$C$25,'Ex 1.1 Data'!$D$24,'Ex 1.1 Data'!$D$26)) -> 4.578223411 | F172: 75088.787 | G172: 343773.2426 | H172: 0.1925 | I172: 66176.34919
A173: 162 | C173: LASHER 7 LEWIS | D173: LEWIS | E173: =IF(LEFT(C173,12)='Ex 1.1 Data'!$C$24,'Ex 1.1 Data'!$D$24,IF(LEFT(C173,13)='Ex 1.1 Data'!$C$25,'Ex 1.1 Data'!$D$24,'Ex 1.1 Data'!$D$26)) -> 4.578223411 | F173: 94474.967 | G173: 432527.5057 | H173: 0.1925 | I173: 83261.54485
A174: 163 | C174: LASHER 8 LEWIS | D174: LEWIS | E174: =IF(LEFT(C174,12)='Ex 1.1 Data'!$C$24,'Ex 1.1 Data'!$D$24,IF(LEFT(C174,13)='Ex 1.1 Data'!$C$25,'Ex 1.1 Data'!$D$24,'Ex 1.1 Data'!$D$26)) -> 4.578223411 | F174: 41009.02 | G174: 187748.4554 | H174: 0.1840625 | I174: 34557.45008
A175: 164 | C175: LASHER 9 LEWIS | D175: LEWIS | E175: =IF(LEFT(C175,12)='Ex 1.1 Data'!$C$24,'Ex 1.1 Data'!$D$24,IF(LEFT(C175,13)='Ex 1.1 Data'!$C$25,'Ex 1.1 Data'!$D$24,'Ex 1.1 Data'!$D$26)) -> 4.578223411 | F175: 56992.355 | G175: 260923.7339 | H175: 0.1840625 | I175: 48026.27477
A176: 165 | C176: LASHER 10 MESA | D176: MESAVERDE | E176: =IF(LEFT(C176,12)='Ex 1.1 Data'!$C$24,'Ex 1.1 Data'!$D$24,IF(LEFT(C176,13)='Ex 1.1 Data'!$C$25,'Ex 1.1 Data'!$D$24,'Ex 1.1 Data'!$D$26)) -> 4.578223411 | F176: 8657.712 | G176: 39636.93977 | H176: 0.2540625 | I176: 10070.26001
A177: 166 | C177: LASHER 10 FT UN | D177: FORT UNION | E177: =IF(LEFT(C177,12)='Ex 1.1 Data'!$C$24,'Ex 1.1 Data'!$D$24,IF(LEFT(C177,13)='Ex 1.1 Data'!$C$25,'Ex 1.1 Data'!$D$24,'Ex 1.1 Data'!$D$26)) -> 4.578223411 | F177: 8404.766 | G177: 38478.89647 | H177: 0.1840625 | I177: 7082.521881
A178: 167 | C178: LASHER 10 LEWIS | D178: LEWIS | E178: =IF(LEFT(C178,12)='Ex 1.1 Data'!$C$24,'Ex 1.1 Data'!$D$24,IF(LEFT(C178,13)='Ex 1.1 Data'!$C$25,'Ex 1.1 Data'!$D$24,'Ex 1.1 Data'!$D$26)) -> 4.578223411 | F178: 8404.766 | G178: 38478.89647 | H178: 0.1840625 | I178: 7082.521881
A179: 168 | C179: LASHER 11 MESA | D179: MESAVERDE | E179: =IF(LEFT(C179,12)='Ex 1.1 Data'!$C$24,'Ex 1.1 Data'!$D$24,IF(LEFT(C179,13)='Ex 1.1 Data'!$C$25,'Ex 1.1 Data'!$D$24,'Ex 1.1 Data'!$D$26)) -> 4.578223411 | F179: 25145.691 | G179: 115122.5912 | H179: 0.2540625 | I179: 29248.33333
A180: 169 | C180: LASHER 11 FT UN | D180: FORT UNION | E180: =IF(LEFT(C180,12)='Ex 1.1 Data'!$C$24,'Ex 1.1 Data'!$D$24,IF(LEFT(C180,13)='Ex 1.1 Data'!$C$25,'Ex 1.1 Data'!$D$24,'Ex 1.1 Data'!$D$26)) -> 4.578223411 | F180: 25154.552 | G180: 115163.1589 | H180: 0.1840625 | I180: 21197.21893
A181: 170 | C181: LASHER 11 LEWIS | D181: LEWIS | E181: =IF(LEFT(C181,12)='Ex 1.1 Data'!$C$24,'Ex 1.1 Data'!$D$24,IF(LEFT(C181,13)='Ex 1.1 Data'!$C$25,'Ex 1.1 Data'!$D$24,'Ex 1.1 Data'!$D$26)) -> 4.578223411 | F181: 25154.552 | G181: 115163.1589 | H181: 0.1840625 | I181: 21197.21893
A182: 171 | C182: LASHER 11 LANCE | D182: LANCE | E182: =IF(LEFT(C182,12)='Ex 1.1 Data'!$C$24,'Ex 1.1 Data'!$D$24,IF(LEFT(C182,13)='Ex 1.1 Data'!$C$25,'Ex 1.1 Data'!$D$24,'Ex 1.1 Data'!$D$26)) -> 4.578223411 | F182: 25154.552 | G182: 115163.1589 | H182: 0.1840625 | I182: 21197.21893
A183: 172 | C183: LASHER 12 MESA | D183: MESAVERDE | E183: =IF(LEFT(C183,12)='Ex 1.1 Data'!$C$24,'Ex 1.1 Data'!$D$24,IF(LEFT(C183,13)='Ex 1.1 Data'!$C$25,'Ex 1.1 Data'!$D$24,'Ex 1.1 Data'!$D$26)) -> 4.578223411 | F183: 13784.069 | G183: 63106.5474 | H183: 0.2540625 | I183: 16033.0072
A184: 173 | C184: LASHER 12 FT UN | D184: FORT UNION | E184: =IF(LEFT(C184,12)='Ex 1.1 Data'!$C$24,'Ex 1.1 Data'!$D$24,IF(LEFT(C184,13)='Ex 1.1 Data'!$C$25,'Ex 1.1 Data'!$D$24,'Ex 1.1 Data'!$D$26)) -> 4.578223411 | F184: 13789.114 | G184: 63129.64453 | H184: 0.1840625 | I184: 11619.8002
A185: 174 | C185: LASHER 12 LEWIS | D185: LEWIS | E185: =IF(LEFT(C185,12)='Ex 1.1 Data'!$C$24,'Ex 1.1 Data'!$D$24,IF(LEFT(C185,13)='Ex 1.1 Data'!$C$25,'Ex 1.1 Data'!$D$24,'Ex 1.1 Data'!$D$26)) -> 4.578223411 | F185: 13789.114 | G185: 63129.64453 | H185: 0.1840625 | I185: 11619.8002
A186: 175 | C186: LASHER 12 LANCE | D186: LANCE | E186: =IF(LEFT(C186,12)='Ex 1.1 Data'!$C$24,'Ex 1.1 Data'!$D$24,IF(LEFT(C186,13)='Ex 1.1 Data'!$C$25,'Ex 1.1 Data'!$D$24,'Ex 1.1 Data'!$D$26)) -> 4.578223411 | F186: 13789.114 | G186: 63129.64453 | H186: 0.1840625 | I186: 11619.8002
A187: 176 | C187: WHEELER 6 MESA | D187: MESAVERDE | E187: =IF(LEFT(C187,12)='Ex 1.1 Data'!$C$24,'Ex 1.1 Data'!$D$24,IF(LEFT(C187,13)='Ex 1.1 Data'!$C$25,'Ex 1.1 Data'!$D$24,'Ex 1.1 Data'!$D$26)) -> 4.578223411 | F187: 19605.733 | G187: 89759.42581 | H187: 0.2625 | I187: 23561.84928
A188: 177 | C188: WHEELER 6 LEW/LAN/FT UN | D188: LANCE/LEWIS | E188: =IF(LEFT(C188,12)='Ex 1.1 Data'!$C$24,'Ex 1.1 Data'!$D$24,IF(LEFT(C188,13)='Ex 1.1 Data'!$C$25,'Ex 1.1 Data'!$D$24,'Ex 1.1 Data'!$D$26)) -> 4.578223411 | F188: 27186.332 | G188: 124465.1016 | H188: 0.1925 | I188: 23959.53206
A189: 178 | C189: WHEELER 5 MESA | D189: MESAVERDE | E189: =IF(LEFT(C189,12)='Ex 1.1 Data'!$C$24,'Ex 1.1 Data'!$D$24,IF(LEFT(C189,13)='Ex 1.1 Data'!$C$25,'Ex 1.1 Data'!$D$24,'Ex 1.1 Data'!$D$26)) -> 4.578223411 | F189: 2631.355 | G189: 12046.93106 | H189: 0.2625 | I189: 3162.319404
A190: 179 | C190: WHEELER 5 LEW/LAN/FT UN | D190: LANCE/LEWIS | E190: =IF(LEFT(C190,12)='Ex 1.1 Data'!$C$24,'Ex 1.1 Data'!$D$24,IF(LEFT(C190,13)='Ex 1.1 Data'!$C$25,'Ex 1.1 Data'!$D$24,'Ex 1.1 Data'!$D$26)) -> 4.578223411 | F190: 55819.507 | G190: 255554.1738 | H190: 0.1925 | I190: 49194.17845
A191: 180 | C191: WHEELER 7 MESA | D191: MESAVERDE | E191: =IF(LEFT(C191,12)='Ex 1.1 Data'!$C$24,'Ex 1.1 Data'!$D$24,IF(LEFT(C191,13)='Ex 1.1 Data'!$C$25,'Ex 1.1 Data'!$D$24,'Ex 1.1 Data'!$D$26)) -> 4.578223411 | F191: 6449.58 | G191: 29527.61815 | H191: 0.2625 | I191: 7750.999764
A192: 181 | C192: WHEELER 7 LEW/LAN/FT UN | D192: LANCE/LEWIS | E192: =IF(LEFT(C192,12)='Ex 1.1 Data'!$C$24,'Ex 1.1 Data'!$D$24,IF(LEFT(C192,13)='Ex 1.1 Data'!$C$25,'Ex 1.1 Data'!$D$24,'Ex 1.1 Data'!$D$26)) -> 4.578223411 | F192: 14625.155 | G192: 66957.22701 | H192: 0.1925 | I192: 12889.2662
A193: 182 | C193: WHEELER 8 MESA | D193: MESAVERDE | E193: =IF(LEFT(C193,12)='Ex 1.1 Data'!$C$24,'Ex 1.1 Data'!$D$24,IF(LEFT(C193,13)='Ex 1.1 Data'!$C$25,'Ex 1.1 Data'!$D$24,'Ex 1.1 Data'!$D$26)) -> 4.578223411 | F193: 3 | G193: 13.73467023 | H193: 0.2625 | I193: 3.605350936
A194: 183 | C194: WHEELER 8 LEW/LAN/FT UN | D194: LANCE/LEWIS | E194: =IF(LEFT(C194,12)='Ex 1.1 Data'!$C$24,'Ex 1.1 Data'!$D$24,IF(LEFT(C194,13)='Ex 1.1 Data'!$C$25,'Ex 1.1 Data'!$D$24,'Ex 1.1 Data'!$D$26)) -> 4.578223411 | F194: 30.99 | G194: 141.8791435 | H194: 0.1925 | I194: 27.31173513
A195: 184 | C195: WHEELER 9 MESA | D195: MESAVERDE | E195: =IF(LEFT(C195,12)='Ex 1.1 Data'!$C$24,'Ex 1.1 Data'!$D$24,IF(LEFT(C195,13)='Ex 1.1 Data'!$C$25,'Ex 1.1 Data'!$D$24,'Ex 1.1 Data'!$D$26)) -> 4.578223411 | F195: 8367.252 | G195: 38307.14899 | H195: 0.2625 | I195: 10055.62661
A196: 185 | C196: WHEELER 9 LEW/LAN/FT UN | D196: LANCE/LEWIS | E196: =IF(LEFT(C196,12)='Ex 1.1 Data'!$C$24,'Ex 1.1 Data'!$D$24,IF(LEFT(C196,13)='Ex 1.1 Data'!$C$25,'Ex 1.1 Data'!$D$24,'Ex 1.1 Data'!$D$26)) -> 4.578223411 | F196: 73659.054 | G196: 337227.6055 | H196: 0.1925 | I196: 64916.31405
A197: 186 | B197: CLAY BASIN (UT) | C197: CLAY BASIN UNIT 7 FR | D197: FRONTIER | E197: =IF(LEFT(C197,12)='Ex 1.1 Data'!$C$24,'Ex 1.1 Data'!$D$24,IF(LEFT(C197,13)='Ex 1.1 Data'!$C$25,'Ex 1.1 Data'!$D$24,'Ex 1.1 Data'!$D$26)) -> 4.578223411 | F197: 13457.989 | G197: 61613.68031 | H197: 0.1549177 | I197: 9545.049642
A198: 187 | C198: CLAY BASIN UNIT 8 FR | D198: FRONTIER | E198: =IF(LEFT(C198,12)='Ex 1.1 Data'!$C$24,'Ex 1.1 Data'!$D$24,IF(LEFT(C198,13)='Ex 1.1 Data'!$C$25,'Ex 1.1 Data'!$D$24,'Ex 1.1 Data'!$D$26)) -> 4.578223411 | F198: 30121.642 | G198: 137903.6066 | H198: 0.1549177 | I198: 21363.70955
A199: 188 | C199: CLAY BASIN UNIT 9 FR | D199: FRONTIER | E199: =IF(LEFT(C199,12)='Ex 1.1 Data'!$C$24,'Ex 1.1 Data'!$D$24,IF(LEFT(C199,13)='Ex 1.1 Data'!$C$25,'Ex 1.1 Data'!$D$24,'Ex 1.1 Data'!$D$26)) -> 4.578223411 | F199: 40141.703 | G199: 183777.6844 | H199: 0.1549177 | I199: 28470.41618
A200: 189 | C200: CLAY BASIN UNIT 12 FR | D200: FRONTIER | E200: =IF(LEFT(C200,12)='Ex 1.1 Data'!$C$24,'Ex 1.1 Data'!$D$24,IF(LEFT(C200,13)='Ex 1.1 Data'!$C$25,'Ex 1.1 Data'!$D$24,'Ex 1.1 Data'!$D$26)) -> 4.578223411 | F200: 39558.238 | G200: 181106.4513 | H200: 0.1549177 | I200: 28056.59489
A201: 190 | C201: CLAY BASIN UNIT 13 FR | D201: FRONTIER | E201: =IF(LEFT(C201,12)='Ex 1.1 Data'!$C$24,'Ex 1.1 Data'!$D$24,IF(LEFT(C201,13)='Ex 1.1 Data'!$C$25,'Ex 1.1 Data'!$D$24,'Ex 1.1 Data'!$D$26)) -> 4.578223411 | F201: 37707.037 | G201: 172631.2396 | H201: 0.1549177 | I201: 26743.63458
A202: 191 | C202: CLAY BASIN UNIT 14 FR | D202: FRONTIER | E202: =IF(LEFT(C202,12)='Ex 1.1 Data'!$C$24,'Ex 1.1 Data'!$D$24,IF(LEFT(C202,13)='Ex 1.1 Data'!$C$25,'Ex 1.1 Data'!$D$24,'Ex 1.1 Data'!$D$26)) -> 4.578223411 | F202: 19910.023 | G202: 91152.53342 | H202: 0.1549177 | I202: 14121.14083
... 1326 more rows

Sheet Ut 1.2
I1: ='Control Panel'!$F$32 -> Questar Gas Company
I2: ='Control Panel'!$F$33 -> Docket No. 14-057-09
I3: Exhibit 1.2
B8: TEST YEAR PURCHASED GAS COSTS
D11: (A) | E11: (B) | F11: (C) | G11: (D)
F12: Cost
C13: Component | E13: Dth | F13: per Dth | G13: Total Cost
B15: 1 | C15: Current Contracts | G15: =ROUND(Calculations!$P$183+Calculations!$P$186-G16,0) -> 95684681
B16: =B15+1 -> 2 | C16: Stabilization Costs | G16: ='Monthly Inputs'!S103 -> 0
B17: =B16+1 -> 3 | D17: Total Current Contracts | E17: =Calculations!$P$182+Calculations!$P$185 -> 18530000 | F17: =G17/E17 -> 5.163771236 | G17: =G15+G16 -> 95684681
B19: =B17+1 -> 4 | C19: Forecast Spot | E19: =Calculations!$P$179 -> 23899544 | F19: =G19/E19 -> 4.644575311 | G19: =ROUND(Calculations!P180,0) -> 111003232
B21: =B19+1 -> 5 | C21: Future Contracts | E21: =Calculations!P188 -> 4.656612873e-10 | F21: =G21/E21 -> 0 | G21: =ROUND(Calculations!P189,0) -> 0
B24: =B21+1 -> 6 | C24: Total Gas Purchased | E24: =E17+E19+E21 -> 42429544 | F24: =G24/E24 -> 4.87132063 | G24: =G17+G19+G21 -> 206687913

Sheet Ut 1.3 p1
N1: ='Control Panel'!$F$32 -> Questar Gas Company
N2: ='Control Panel'!$F$33 -> Docket No. 14-057-09
N3: Exhibit 1.3
N4: Page 1 of 2
B8: TEST YEAR TRANSPORTATION, GATHERING AND PROCESSING CHARGES
B11: (A) | D11: (B) | F11: (C) | H11: (D) | J11: (E) | L11: (F) | M11: (G)
D12: Fctr | F12: Dth | H12: Months/Days | J12: Rate | M12: Total Costs
B14: TRANSPORTATION DEMAND
B16: QPC Demand
A17: 1 | B17: T-1 Transportation - Yearly | F17: ='Other Inputs'!D22+'Other Inputs'!D23+'Other Inputs'!D24 -> 840902 | G17: x | H17: ='Other Inputs'!E22 -> 12 | I17: x | J17: ='Other Inputs'!F22 -> 5.28804 | K17: = | L17: =ROUND(F17*H17*J17,0) -> 53360681 | Q17: =L17*'Ut 1.5'!$G$51 -> 51973303.29
A18: =A17+1 -> 2 | B18: T-1 Transportation Nov-Mar | F18: ='Other Inputs'!D25 -> 75000 | G18: x | H18: ='Other Inputs'!E25 -> 5 | I18: x | J18: ='Other Inputs'!F25 -> 6.80887 | K18: = | L18: =ROUND(F18*H18*J18,0) -> 2553326 | Q18: =L18*'Ut 1.5'!$G$51 -> 2486939.524
A19: =A18+1 -> 3 | B19: No-Notice Transportation | F19: ='Other Inputs'!D30 -> 203542 | G19: x | H19: ='Other Inputs'!E30 -> 12 | I19: x | J19: ='Other Inputs'!F30 -> 0.86753 | K19: = | L19: =ROUND(F19*H19*J19,0) -> 2118945 | Q19: =L19*'Ut 1.5'!$G$51 -> 2063852.43
A20: =A19+1 -> 4 | B20: Capacity Release Credits | L20: =-ROUND('Other Inputs'!E295,0) -> -200098 | Q20: =L20*'Ut 1.5'!$G$51 -> -194895.452
A21: =A20+1 -> 5 | C21: Total | L21: =SUM(L17:L20) -> 57832854 | Q21: =L21*'Ut 1.5'!$G$51 -> 56329199.8
Q22: =L22*'Ut 1.5'!$G$51 -> 0
B23: Kern River Demand | Q23: =L23*'Ut 1.5'!$G$51 -> 0
A24: =A21+1 -> 6 | B24: January - December | F24: ='Other Inputs'!D56 -> 1885 | G24: x | H24: ='Other Inputs'!E56 -> 12 | I24: x | J24: ='Other Inputs'!F56 -> 17.74204167 | K24: = | L24: =ROUND(F24*H24*J24,0) -> 401325
A25: =A24+1 -> 7 | B25: January - December | F25: ='Other Inputs'!D54 -> 3000 | G25: x | H25: ='Other Inputs'!E54 -> 12 | I25: x | J25: ='Other Inputs'!F54 -> 14.34754167 | K25: = | L25: =ROUND(F25*H25*J25,0) -> 516512 | Q25: =L25*'Ut 1.5'!$G$51 -> 503082.688
A26: =A25+1 -> 8 | B26: November - March | F26: ='Other Inputs'!D55 -> 50000 | G26: x | H26: ='Other Inputs'!E55 -> 5 | I26: x | J26: =J25 -> 14.34754167 | K26: = | L26: =ROUND(F26*H26*J26,0) -> 3586885 | Q26: =L26*'Ut 1.5'!$G$51 -> 3493625.99
A27: =A26+1 -> 9 | C27: Total | L27: =SUM(L24:L26) -> 4504722 | Q27: =L27*'Ut 1.5'!$G$51 -> 4387599.228
Q28: =L28*'Ut 1.5'!$G$51 -> 0
A29: =A27+1 -> 10 | B29: Total Transportation Demand (SNG) | M29: =L21+L27 -> 62337576 | Q29: =M29*'Ut 1.5'!$G$51 -> 60716799.02
B32: TRANSPORTATION COMMODITY
B34: QPC Commodity
A35: =A29+1 -> 11 | B35: QPC Commodity (SNG) | F35: =F36-(D40*F40*H40)-(D41*F41*H41) -> 119748571.1 | I35: x | J35: ='Other Inputs'!F38 -> 0.00267 | K35: = | L35: =ROUND(F35*J35,0) -> 319729
A36: =A35+1 -> 12 | B36: QPC ACA | F36: =Calculations!$P$172 -> 128953919.1 | I36: x | J36: ='Other Inputs'!F39 -> 0.0012 | K36: = | L36: =ROUND(F36*J36,0) -> 154745
A37: =A36+1 -> 13 | C37: Total | L37: =SUM(L35:L36) -> 474474
B39: Kern River Commodity
A40: =A37+1 -> 14 | B40: January - December | D40: ='Other Inputs'!C60 -> 0.9863198695 | E40: x | F40: ='Other Inputs'!D60 -> 4885 | G40: x | H40: ='Other Inputs'!E60 -> 365 | I40: x | J40: ='Other Inputs'!F60 -> 0.0044 | K40: = | L40: =ROUND(D40*F40*H40*J40,0) -> 7738
A41: =A40+1 -> 15 | B41: November - March | D41: ='Other Inputs'!C61 -> 0.9863198695 | E41: x | F41: ='Other Inputs'!D61 -> 50000 | G41: x | H41: ='Other Inputs'!E61 -> 151 | I41: x | J41: ='Other Inputs'!F61 -> 0.0044 | K41: = | L41: =ROUND(D41*F41*H41*J41,0) -> 32766
A42: =A41+1 -> 16 | C42: Total (SNG) | L42: =SUM(L40:L41) -> 40504
A44: =A42+1 -> 17 | B44: Total Transportation Commodity | M44: =L37+L42 -> 514978
B47: OTHER CHARGES
A49: =A44+1 -> 18 | B49: QEP Field Services Demand | H49: 12 | I49: x | J49: ='Other Inputs'!E177 -> 745178 | K49: = | L49: =ROUND(H49*J49,0) -> 8942136
A50: =A49+1 -> 19 | B50: QEP Field Services Commodity | F50: ='Other Inputs'!D178 -> 42871719.79 | I50: x | J50: ='Other Inputs'!D177 -> 0.12579 | K50: = | L50: =ROUND(F50*J50,0) -> 5392834
A51: =A50+1 -> 20 | C51: Total QEP Field Services (SNG) | M51: =L49+L50 -> 14334970 | N51: 1/
A53: =A51+1 -> 21 | B53: Wexpro II Gathering | F53: ='Other Inputs'!D181 -> 4617812.277 | I53: x | J53: ='Other Inputs'!D180 -> 0.51124 | K53: = | L53: =ROUND(F53*J53,0) -> 2360810
A54: =A53+1 -> 22 | B54: Other Wexpro I Gathering Charges | L54: =ROUND('Other Inputs'!D169,0) -> 2414086
A55: =A54+1 -> 23 | B55: Other Transportation Charges | L55: =ROUND('Other Inputs'!$D$171,0) -> 3045913
A56: =A55+1 -> 24 | C56: Total Wexpro II Gathering, Other Gathering & Transportation | M56: =SUM(L53:L55) -> 7820809
A61: =A56+1 -> 25 | B61: TOTAL TRANSPORTATION AND OTHER CHARGES | M61: =SUM(M13:M59) -> 85008333
A66: 1/ | B66: See paragraph 7c in application.

Sheet Ut 1.3 p2
L1: ='Control Panel'!$F$32 -> Questar Gas Company
L2: ='Control Panel'!$F$33 -> Docket No. 14-057-09
L3: Exhibit 1.3
L4: Page 2 of 2
B7: TEST YEAR STORAGE AND WORKING GAS CHARGES
B10: (A) | D10: (B) | F10: (C) | H10: (D) | J10: (E) | K10: (F)
B12: STORAGE CHARGES 1/
B14: Component | D14: Dth | F14: Months | H14: Rate | K14: Total Costs
B15: Storage Demand
A16: 1 | B16: Peaking Demand | D16: ='Other Inputs'!E155 -> 184625 | E16: x | F16: 12 | G16: x | H16: ='Other Inputs'!E14 -> 2.87375 | I16: = | J16: =ROUND(D16*F16*H16,0) -> 6366793
A17: =A16+1 -> 2 | B17: Ryckman Demand | D17: ='Other Inputs'!E156 -> 2500000 | E17: x | F17: 12 | G17: x | H17: ='Other Inputs'!E15 -> 0.09 | I17: = | J17: =ROUND(D17*F17*H17,0) -> 2700000
A18: =A17+1 -> 3 | B18: Clay Basin Demand | D18: ='Other Inputs'!E157 -> 111827 | E18: x | F18: 12 | G18: x | H18: ='Other Inputs'!E16 -> 2.85338 | I18: = | J18: =ROUND(D18*F18*H18,0) -> 3829019
A19: 4 | B19: Clay Basin Capacity | D19: ='Other Inputs'!E158 -> 13419000 | E19: x | F19: 12 | G19: x | H19: ='Other Inputs'!E17 -> 0.02378 | I19: = | J19: =ROUND(D19*F19*H19,0) -> 3829246
A20: 5 | C20: Total Demand Charges (SNG) | J20: =SUM(J16:J19) -> 16725058
B22: Storage Commodity 2/
A23: =A20+1 -> 6 | B23: Peaking Injections | D23: =(+'Monthly Inputs'!S33+'Monthly Inputs'!S35+'Monthly Inputs'!S36) -> 1974795 | F23: x | H23: ='Other Inputs'!E6 -> 0.03872 | I23: = | J23: =ROUND(D23*H23,0) -> 76464
A24: =A23+1 -> 7 | B24: Peaking Withdrawals | D24: =(+'Monthly Inputs'!S41+'Monthly Inputs'!S43+'Monthly Inputs'!S44) -> 1974274 | F24: x | H24: ='Other Inputs'!E7 -> 0.03872 | I24: = | J24: =ROUND(D24*H24,0) -> 76444
A25: =A24+1 -> 8 | B25: Ryckman Injections | D25: ='Monthly Inputs'!S37 -> 1457744 | F25: x | H25: ='Other Inputs'!E8 -> 0.015 | I25: = | J25: =ROUND(D25*H25,0) -> 21866
A26: =A25+1 -> 9 | B26: Ryckman Withdrawals | D26: ='Monthly Inputs'!S45 -> 1992000 | F26: x | H26: ='Other Inputs'!E9 -> 0.01 | I26: = | J26: 19920
A27: =A26+1 -> 10 | B27: Clay Basin Injections | D27: ='Monthly Inputs'!S34 -> 13818049 | F27: x | H27: ='Other Inputs'!E10 -> 0.01049 | I27: = | J27: =ROUND(D27*H27,0) -> 144951
A28: =A27+1 -> 11 | B28: Clay Basin Withdrawals | D28: ='Monthly Inputs'!S42 -> 12947300 | F28: x | H28: ='Other Inputs'!E11 -> 0.01781 | I28: = | J28: =ROUND(D28*H28,0) -> 230591
A29: 12 | C29: Total Commodity Charges | J29: =SUM(J23:J28) -> 570236
A31: 13 | B31: Total Storage Charges | K31: =J20+J29 -> 17295294
B34: WORKING GAS CHARGES - QGC Account 164
C36: Month | D36: Amount | H36: Pre-Tax Return %
A38: =A31+1 -> 14 | C38: =+'Rate Base'!H8 -> 2013-03-31 | D38: =+'Rate Base'!H216 -> 9537533.75
A39: =A38+1 -> 15 | C39: =+'Rate Base'!I8 -> 2013-04-30 | D39: =+'Rate Base'!I216 -> 8232525.14
A40: 16 | C40: =+'Rate Base'!J8 -> 2013-05-31 | D40: =+'Rate Base'!J216 -> 12269219.92
A41: 17 | C41: =+'Rate Base'!K8 -> 2013-06-30 | D41: =+'Rate Base'!K216 -> 19135966.09
A42: 18 | C42: =+'Rate Base'!L8 -> 2013-07-31 | D42: =+'Rate Base'!L216 -> 32164740.16
A43: 19 | C43: =+'Rate Base'!M8 -> 2013-08-31 | D43: =+'Rate Base'!M216 -> 46052383.98
A44: 20 | C44: =+'Rate Base'!N8 -> 2013-09-30 | D44: =+'Rate Base'!N216 -> 56496783.48
A45: 21 | C45: =+'Rate Base'!O8 -> 2013-10-31 | D45: =+'Rate Base'!O216 -> 64325936.47
A46: 22 | C46: =+'Rate Base'!P8 -> 2013-11-30 | D46: =+'Rate Base'!P216 -> 58898100.36
A47: 23 | C47: =+'Rate Base'!Q8 -> 2013-12-31 | D47: =+'Rate Base'!Q216 -> 39172683.37
A48: 24 | C48: =+'Rate Base'!R8 -> 2014-01-31 | D48: =+'Rate Base'!R216 -> 29848683.37
A49: 25 | C49: =+'Rate Base'!S8 -> 2014-02-28 | D49: =+'Rate Base'!S216 -> 18583033.52
A50: 26 | C50: =+'Rate Base'!T8 -> 2014-03-31 | D50: =+'Rate Base'!T216 -> 6166884.89
A53: =A50+1 -> 27 | B53: 13-Month Average 3/ | D53: =(SUM(D39:D49)+D38/2+D50/2)/12 -> 32752688.76 | F53: x | H53: ='Other Inputs'!E285 -> 0.1079 | J53: = | K53: =D53*H53 -> 3534015.118
A56: =A53+1 -> 28 | B56: TOTAL FIRM STORAGE AND WORKING GAS CHARGES | K56: =K53+K31 -> 20829309.12
A60: 1/ | B60: =CONCATENATE("Exhibit 1.9 - ",'Other Inputs'!G22) -> Exhibit 1.9 - 1/1/2014
A61: 2/ | B61: Questar Gas planned volumes.
A62: 3/ | B62: (½ of Line 14 + sum of Lines 15 through 25 + ½ of Line 26) / 12

Sheet Ut 1.4 p1
G1: ='Control Panel'!$F$32 -> Questar Gas Company
G2: ='Control Panel'!$F$33 -> Docket No. 14-057-09
G3: Exhibit 1.4
G4: Page 1 of 3
B8: SUMMARY OF TEST-YEAR GAS RELATED COSTS AND REVENUES CREDITS
B11: (A) | E11: (B) | F11: (C) | G11: (D)
B12: Component | E12: Costs | F12: Dth | G12: $ per Dth
B14: WEXPRO I
A15: 1 | C15: Questar Gas Production 1/ | E15: ='Other Inputs'!D188 -> 366539229
A16: =A15+1 -> 2 | C16: Wexpro I Revenue Sharing Credits 2/ | E16: =-'Ut 1.4 p3'!H28 -> -33804782
A17: =A16+1 -> 3 | D17: Net Questar Gas Production Costs | E17: =E15+E16 -> 332734447 | F17: =F22 -> 69816646 | G17: =E17/F22 -> 4.765832592
A19: =A17+1 -> 4 | D19: Gathering 3/ | E19: ='Ut 1.3 p1'!L54+'Ut 1.3 p1'!M51 -> 16749056
A22: =A19+1 -> 5 | B22: Total Wexpro I Cost of Production | E22: =SUM(E17:E19) -> 349483503 | F22: ='Monthly Inputs'!S16 -> 69816646 | G22: =E22/F22 -> 5.005733203
B24: WEXPRO II
A25: =A22+1 -> 6 | C25: Wexpro II Production 4/ | E25: ='Other Inputs'!D209 -> 25814280.06
A26: =A25+1 -> 7 | C26: Wexpro II Revenue Sharing Credits 5/ | E26: =-'Ut 1.4 p3'!H44 -> -3242787
A27: =A26+1 -> 8 | D27: Net Cost of Wexpro II Production | E27: =E25+E26 -> 22571493.06 | F27: =F32 -> 4617812 | G27: =E27/F32 -> 4.887919444
A29: =A27+1 -> 9 | D29: Gathering 6/ | E29: ='Ut 1.3 p1'!L53 -> 2360810
A32: =A29+1 -> 10 | B32: Total Wexpro II Cost of Production | E32: =SUM(E27:E29) -> 24932303.06 | F32: ='Monthly Inputs'!S22 -> 4617812 | G32: =E32/F32 -> 5.399159399
A34: =A32+1 -> 11 | B34: Sales of Cost-of-Service Gas 7/ | E34: =-'Other Inputs'!E227 -> -4214101.025 | F34: ='Other Inputs'!F227 -> 924183.99 | G34: ='Other Inputs'!G227 -> 4.55980743
A37: =A34+1 -> 12 | B37: Total Cost of Service Production | E37: =E22+E32+E34 -> 370201705 | F37: =F22+F32 -> 74434458 | G37: =E37/F37 -> 4.973525904
A39: =A37+1 -> 13 | B39: Questar Gas Contract Gas 8/ | E39: ='Ut 1.2'!G24 -> 206687913 | F39: ='Ut 1.2'!E24 -> 42429544 | G39: =E39/F39 -> 4.87132063
A41: =A39+1 -> 14 | B41: Injection / Withdrawal Adjustment 9/ | E41: ='Ut 1.4 p2'!H23 -> -3032087.086
A43: =A41+1 -> 15 | B43: Transportation & Other Costs 10/ | E43: ='Ut 1.3 p1'!M29+'Ut 1.3 p1'!M44+'Ut 1.3 p1'!L55 -> 65898467 | F43: ='Ut 1.3 p1'!F35 -> 119748571.1 | G43: =E43/F43 -> 0.5503069172
A45: =A43+1 -> 16 | B45: Storage & Working Gas 11/ | E45: ='Ut 1.3 p2'!K56 -> 20829309.12
B47: Gas Management Costs | E47: ='Ut 1.3 p1'!M58 -> 0
A50: =A45+1 -> 17 | B50: Questar Gas - Related Gas Costs for Rate Purposes 12/ | E50: =E37+E39+E41+E43+E45+E47 -> 660585307.1 | F50: ='Ut 1.6 p1'!H23 -> 110787566 | G50: =E50/F50 -> 5.962630383
A53: 1/ | B53: Exhibit 1.1, Page 19, Line 1429, Column H.
A54: 2/ | B54: Exhibit 1.4, Page 3, Line 8.
A55: 3/ | B55: Exhibit 1.3, Page 1, Lines 20 + 22.
A56: 4/ | B56: Exhibit 1.1, Page 20, Line 1509, Column H.
A57: 5/ | B57: Exhibit 1.4, Page 3, Line 16.
A58: 6/ | B58: Exhibit 1.3, Page 1, Line 21.
A59: 7/ | B59: Exhibit 1.4, Page 3, Line 17.
A60: 8/ | B60: Exhibit 1.2, Line 6.
A61: 9/ | B61: Exhibit 1.4, Page 2, Line 6.
A62: 10/ | B62: Exhibit 1.3, Page 1, Lines 10 + 17 + 23.
A63: 11/ | B63: Exhibit 1.3, Page 2, Line 28.
A64: 12/ | B64: Exhibit 1.6, Page 1, Line 6.

Sheet Ut 1.4 p2
J1: ='Control Panel'!$F$32 -> Questar Gas Company
J2: ='Control Panel'!$F$33 -> Docket No. 14-057-09
J3: Exhibit 1.4
J4: Page 2 of 3
B8: ANNUALIZED UNIT COST OF STORAGE GAS
C11: (A) | E11: (B) | F11: (C) | H11: (D)
F12: Average
E13: Dth | F13: Rate | H13: Total Costs
B15: 1 | C15: Company Production 1/ | E15: ='Ut 1.4 p1'!F37 -> 74434458 | F15: =H15/E15 -> 4.973525904 | H15: ='Ut 1.4 p1'!E37 -> 370201705
B16: =B15+1 -> 2 | C16: Purchased Gas 2/ | E16: ='Ut 1.2'!E24 -> 42429544 | F16: =H16/E16 -> 4.87132063 | H16: ='Ut 1.2'!G24 -> 206687913
B17: =B16+1 -> 3 | C17: Average Price | E17: =SUM(E15:E16) -> 116864002 | F17: =(+H15+H16)/(+E15+E16) -> 4.936418471 | H17: =SUM(H15:H16) -> 576889618
C20: Storage 3/
B21: =B17+1 -> 4 | C21: Withdrawals | E21: ='Monthly Inputs'!S46 -> 16913574 | F21: ='Ut Storage'!L27 -> 4.863857445 | H21: =E21*F21 -> 82265212.83
B22: =B21+1 -> 5 | C22: Injections | E22: =-'Monthly Inputs'!S38 -> -17250588 | F22: ='Ut Storage'!K27 -> 4.944602463 | H22: =E22*F22 -> -85297299.92
B23: =B22+1 -> 6 | C23: Storage Adjustment | H23: =H21+H22 -> -3032087.086
B29: 1/ | C29: Exhibit 1.4, Page 1, line 12.
B30: 2/ | C30: Exhibit 1.2, Line 6.
B31: 3/ | C31: Questar Gas Company planned volumes.

Sheet Ut 1.4 p3
K1: ='Control Panel'!$F$32 -> Questar Gas Company
K2: ='Control Panel'!$F$33 -> Docket No. 14-057-09
K3: Exhibit 1.4
K4: Page 3 of 3
D8: OTHER REVENUES 1/
C11: (A) | E11: (B) | F11: (C) | G11: (D)
C12: Account | G12: =Expenses!S8 -> 12 Months Ending
C13: Number | E13: Account Name | G13: ='Control Panel'!F7 -> 2015-05-31
C14: WEXPRO I
B15: 1 | D15: 483 | E15: Sales for Resale | H15: ='Other Inputs'!F195 -> 4562669
B17: =B15+1 -> 2 | D17: 490 | E17: Plant By-Product | H17: ='Other Inputs'!F196 -> 6127680
B19: =B17+1 -> 3 | D19: 492 | E19: Gasoline and Oil Sales | F19: ='Other Inputs'!F197 -> 1296259
B20: =B19+1 -> 4 | D20: 758-1 | E20: Gasoline and Oil Cost | F20: ='Other Inputs'!F200 -> -194441
B21: =B20+1 -> 5 | E21: Net Gasoline and Oil Sales | H21: =F19+F20 -> 1101818
B23: =B21+1 -> 6 | D23: 495-1 | E23: Overriding Royalty Revenue from Questar E & P | H23: ='Other Inputs'!F198 -> 22012615
B25: =B23+1 -> 7 | D25: 495-2 | E25: Oil Revenue Received from Wexpro | H25: ='Other Inputs'!F199 -> 0
B28: =B25+1 -> 8 | E28: Total Wexpro I | H28: =SUM(H15:H25) -> 33804782
C30: WEXPRO II
B31: =B28+1 -> 9 | D31: 483 | E31: Sales for Resale | H31: ='Other Inputs'!E216 -> 0
B33: =B31+1 -> 10 | D33: 490 | E33: Plant By-Product | H33: ='Other Inputs'!E217 -> 1963385
B35: =B33+1 -> 11 | D35: 492 | E35: Gasoline and Oil Sales | F35: ='Other Inputs'!E218 -> 1505180
B36: =B35+1 -> 12 | D36: 758-1 | E36: Gasoline and Oil Cost | F36: ='Other Inputs'!E221 -> -225778
B37: =B36+1 -> 13 | E37: Net Gasoline and Oil Sales | H37: =F35+F36 -> 1279402
B39: =B37+1 -> 14 | D39: 495-1 | E39: Overriding Royalty Revenue from Questar E & P | H39: ='Other Inputs'!E219 -> 0
B41: =B39+1 -> 15 | D41: 495-2 | E41: Oil Revenue Received from Wexpro | H41: ='Other Inputs'!E220 -> 0
B44: =B41+1 -> 16 | E44: Total Wexpro II | H44: =SUM(H31:H41) -> 3242787
B46: 17 | E46: Sales of Cost-of-Service Gas | H46: ='Other Inputs'!E227 -> 4214101.025
B49: 18 | E49: Grand Total (Line 8 + Line 16 + Line 17) | H49: =H28+H44+H46 -> 41261670.02
B53: 1/ | D53: Forecasted 12-month test year.

Sheet Ut 1.5
H1: ='Control Panel'!$F$32 -> Questar Gas Company
H2: ='Control Panel'!$F$33 -> Docket No. 14-057-09
H3: Exhibit 1.5
B8: TEST-YEAR GAS COST ALLOCATION
B11: (A) | D11: (B) | E11: (C) | F11: (D) | G11: (E)
D12: Allocation
D13: Factor 1/ | E13: System | F13: Wyoming | G13: Utah
A15: 1 | B15: Questar Gas Production (Exhibit 1.1) | D15: 2 | E15: ='Ut 1.4 p1'!E15+'Ut 1.4 p1'!E25 -> 392353509 | F15: =CHOOSE($D15,F$51,F$54)*$E15 -> 14246598.43 | G15: =CHOOSE($D15,G$51,G$54)*$E15 -> 378106910.6
A16: =A15+1 -> 2 | B16: Other Revenue's Credit (Exhibit 1.4, p 3) | D16: 2 | E16: ='Ut 1.4 p1'!E16+'Ut 1.4 p1'!E26+'Ut 1.4 p1'!E34 -> -41261670.02 | F16: -1498236.743 | G16: -39763433.28
A17: =A16+1 -> 3 | B17: Gathering (Exhibit 1.3, p 1) | C17: - Demand | D17: 1 | E17: ='Ut 1.3 p1'!L49 -> 8942136 | F17: 232495.536 | G17: 8709640.464
A18: =A17+1 -> 4 | B18: Gathering | C18: - Commodity | D18: 2 | E18: ='Ut 1.3 p1'!L54+'Ut 1.3 p1'!L50+'Ut 1.3 p1'!L53 -> 10167730 | F18: 369196.561 | G18: 9798533.439
A19: =A18+1 -> 5 | B19: Net Cost of Questar Gas Production | E19: =SUM(E15:E18) -> 370201705 | F19: =SUM(F15:F18) -> 13350053.78 | G19: =SUM(G15:G18) -> 356851651.2
A21: =A19+1 -> 6 | B21: Questar Gas Contract Gas (Exhibit 1.2) | D21: 2 | E21: ='Ut 1.4 p1'!E39 -> 206687913 | F21: =CHOOSE($D21,F$51,F$54)*$E21 -> 7504965.876 | G21: =CHOOSE($D21,G$51,G$54)*$E21 -> 199182947.1
A24: =A21+1 -> 7 | B24: Injection / Withdrawal Adjustment (Exhibit 1.4, p 1) | D24: 2 | E24: ='Ut 1.4 p1'!E41 -> -3032087.086 | F24: =CHOOSE($D24,F$51,F$54)*$E24 -> -110096.9563 | G24: =CHOOSE($D24,G$51,G$54)*$E24 -> -2921990.13
A27: =A24+1 -> 8 | B27: Transportation (Exhibit 1.3, p 1) | C27: - Demand | D27: 1 | E27: ='Ut 1.3 p1'!M29 -> 62337576 | F27: =CHOOSE($D27,F$51,F$54)*$E27 -> 1620776.976 | G27: =CHOOSE($D27,G$51,G$54)*$E27 -> 60716799.02
A28: =A27+1 -> 9 | B28: Transportation | C28: - Commodity | D28: 2 | E28: ='Ut 1.3 p1'!M44 -> 514978 | F28: =CHOOSE($D28,F$51,F$54)*$E28 -> 18699.16949 | G28: =CHOOSE($D28,G$51,G$54)*$E28 -> 496278.8305
A31: =A28+1 -> 10 | B31: Storage (Exhibit 1.3, p 2) | C31: - Demand | D31: 1 | E31: ='Ut 1.3 p2'!J20 -> 16725058 | F31: =CHOOSE($D31,F$51,F$54)*$E31 -> 434851.508 | G31: =CHOOSE($D31,G$51,G$54)*$E31 -> 16290206.49
A32: =A31+1 -> 11 | B32: Storage | C32: - Commodity | D32: 2 | E32: ='Ut 1.3 p2'!J29 -> 570236 | F32: =CHOOSE($D32,F$51,F$54)*$E32 -> 20705.62163 | G32: =CHOOSE($D32,G$51,G$54)*$E32 -> 549530.3784
A35: =A32+1 -> 12 | B35: Other Transportation - Commodity (Exhibit 1.3, p 1) | D35: 2 | E35: ='Ut 1.3 p1'!L55 -> 3045913 | F35: =CHOOSE($D35,F$51,F$54)*$E35 -> 110598.9837 | G35: =CHOOSE($D35,G$51,G$54)*$E35 -> 2935314.016
A38: =A35+1 -> 13 | B38: Working Gas Costs (Exhibit 1.3, p 2) | D38: 2 | E38: ='Ut 1.3 p2'!K53 -> 3534015.118 | F38: =CHOOSE($D38,F$51,F$54)*$E38 -> 128322.2733 | G38: =CHOOSE($D38,G$51,G$54)*$E38 -> 3405692.844
A41: =A38+1 -> 14 | B41: Totals | E41: =SUM(E19:E38) -> 660585307.1 | F41: =SUM(F19:F38) -> 23078877.24 | G41: =SUM(G19:G38) -> 637506429.8
A48: 1/ | B48: Allocation Factors | E48: Total | F48: Wyoming | G48: Utah
B50: #1 Peak Day Demand | D50: Dth- | E50: =SUM(F50:G50) -> 1274607.806 | F50: ='Other Inputs'!$E$134 -> 33139.80297 | G50: ='Other Inputs'!$E$133 -> 1241468.003
D51: Percent- | E51: =F51+G51 -> 1 | F51: =F50/E50 -> 0.026 | G51: =G50/E50 -> 0.974
B53: #2 Commodity Sales - All | D53: Dth- | E53: =F53+G53 -> 110787566 | F53: ='Ut 1.6 p1'!H22 -> 4022765 | G53: ='Ut 1.6 p1'!H21 -> 106764801
D54: Percent- | E54: =F54+G54 -> 1 | F54: =F53/E53 -> 0.03631061811 | G54: =G53/E53 -> 0.9636893819

Sheet Ut 1.6 p1
J1: ='Control Panel'!$F$32 -> Questar Gas Company
J2: ='Control Panel'!$F$33 -> Docket No. 14-057-09
J3: Exhibit 1.6
J4: Page 1 of 3
B8: TEST-YEAR GAS COST CHANGE
B11: (A) | C11: (B) | D11: (C) | F11: (D) | H11: (E) | J11: (F)
F12: Average Rate | H12: x Dth | I12: = | J12: Total
A13: 1 | B13: Utah Allocation of Questar Gas-Related Gas Costs (Exhibit 1.5) 1/ | J13: ='Ut 1.5'!G41 -> 637506429.8
B14: Less:
A15: =A13+1 -> 2 | B15: IS Class Commodity Credit 2/ | F15: =Calculations!P234 -> 4.789169306 | H15: ='RevRun Fcst'!T93+'RevRun Fcst'!T111 -> 2631447 | J15: =-H15*F15 -> -12602445.2
A16: =A15+1 -> 3 | B16: Net Utah Gas Costs (for Firm Sales) | J16: =J13+J15 -> 624903984.6
H18: Total
B19: Test-Year Sales: 2/ | D19: Firm | F19: + Interruptible | H19: = Sales Dth
A21: =A16+1 -> 4 | B21: Utah | D21: =Calculations!P13 -> 104133354 | F21: =Calculations!P17 -> 2631447 | H21: =D21+F21 -> 106764801
A22: =A21+1 -> 5 | B22: Wyoming | D22: =Calculations!P32 -> 3877748 | F22: =Calculations!P36 -> 145017 | H22: =D22+F22 -> 4022765
A23: =A22+1 -> 6 | B23: Total Dth | H23: =SUM(H21:H22) -> 110787566
A25: =A23+1 -> 7 | B25: Supplier Non-Gas Costs 3/ | J25: =(-'Ut 1.6 p2'!F14) -> -98797646.15
A28: =A25+1 -> 8 | B28: Commodity Portion of Test-Year Gas Cost (Lines 3 + 7) | J28: =J16+J25+J26 -> 526106338.5
F31: Current Case | H31: Prior Case
B32: FIRM CUSTOMER RATES | F32: ='Control Panel'!F5 -> 14-057-09 | H32: ='Control Panel'!F9 -> 13-057-07 | J32: Difference
A34: =A28+1 -> 9 | B34: Firm Gas Cost (line 8/ Firm Sales, line 4) | F34: =ROUND((J28)/D21,5) -> 5.05224 | H34: ='Other Inputs'!F109 -> 4.39979 | J34: =F34-H34 -> 0.65245 | M34: =J34*D21 -> 67941806.82
A35: =A34+1 -> 10 | B35: 191 Account Amortization (Commodity Portion) 4/ | F35: =D55/D21 -> 0.2236448756 | H35: ='Other Inputs'!F110 -> 0.02986 | J35: =F35-H35 -> 0.1937848756 | M35: =J35*D21 -> 20179469.05
A36: =A35+1 -> 11 | B36: Total Firm Sales Unit Commodity Cost (Lines 9 + 10) | F36: =F34+F35 -> 5.275884876 | H36: =H34+H35 -> 4.42965 | J36: =J34+J35 -> 0.8462348756 | M36: =SUM(M34:M35) -> 88121275.87
A46: 1/ | B46: Exhibit 1.5, Line 14, Column E.
A48: 2/ | B48: ="Revrun.exe - "&'RevRun Fcst'!D4 -> Revrun.exe - 04/23/2014 | D48: Dth | E48: x | F48: est. Com. Rate | G48: = | H48: Com. Revenues
C49: IS | D49: =H15 -> 2631447 | F49: =F15 -> 4.789169306 | H49: =D49*F49 -> 12602445.2
A51: 3/ | B51: Test Year Estimate of Transportation, Gathering, and Storage billings.
A53: 4/ | B53: 191 Account (March 2014) actual | D53: ='Other Inputs'!E127 -> -2607447
B54: Less: Supplier Non-Gas balance actual | D54: ='Other Inputs'!E128 -> -25896338
B55: 191 Account Commodity Portion | D55: =D53-D54 -> 23288891 | F55: =D21 -> 104133354 | H55: =D55/F55 -> 0.2236448756

Sheet Ut 1.6 p2
E1: Questar Gas Company
G2: ='Control Panel'!$F$33 -> Docket No. 14-057-09
G3: Exhibit 1.6
G4: Page 2 of 3
C8: TEST-YEAR SUPPLIER NON-GAS COST CHANGE
C11: (A) | D11: (B) | E11: (C) | F11: (D)
D12: Dth | E12: Average Rate | F12: Total
B14: 1 | C14: Supplier Non-Gas (SNG) Costs 1/ | F14: ='Ut 1.5'!G27+'Ut 1.5'!G31+'Ut 1.5'!G17+(+'Ut 1.3 p1'!L35+'Ut 1.3 p1'!L42+'Ut 1.3 p1'!L54+'Ut 1.3 p1'!L55+'Ut 1.3 p1'!L50+'Ut 1.3 p1'!L53)*'Ut 1.5'!G54 -> 98797646.15
B15: =B14+1 -> 2 | C15: 191 Account Balance for SNG Costs 2/ | F15: =E49 -> -5896338
B16: =1+B15 -> 3 | C16: Total | F16: =SUM(F14:F15) -> 92901308.15
B19: =B16+1 -> 4 | C19: SNG Costs Recovered at Current Rates 3/ | F19: ='Other Inputs'!E233-(D29*('Other Inputs'!G83-'Other Inputs'!F234)) -> 97172322.02
B22: =1+B19 -> 5 | C22: SNG Costs Adjustment to Current Rates (Line 3 - Line 4) | F22: =F16-F19 -> -4271013.866
B28: 6a | C28: Adjustment for SNG contributions from:
B29: 6b | C29: IS SNG current rate | D29: ='Ut 1.6 p1'!$H$15 -> 2631447 | E29: ='Ut 1.6 p3'!E24 -> 0.1793 | F29: =D29*E29 -> 471818.4471
B30: 6c | C30: IS SNG new rate | D30: ='Ut 1.6 p1'!$H$15 -> 2631447 | E30: ='Ut 1.6 p3'!I24 -> 0.1786 | F30: =D30*E30 -> 469976.4342
B35: =2+B22 -> 7 | C35: Percent Change to Current Rates | F35: =(((+F16-F30)-(F19-F29))/(F19-F29))*100 -> -4.414839319 | G35: %
C36: ((ln 3-ln 6c)-(ln 4-ln 6b))/(ln 4-ln 6b)
B42: 1/ | C42: Exhibit 1.6, Page 1, Line 7.
E43: SNG Balance
B44: 2/ | C44: March 2014 SNG Balance - Actual | E44: ='Other Inputs'!E128 -> -25896338
C45: Expected March 2014 SNG balance | E45: -20000000
B46: 2/ | C46: The Company is proposing to amortize the SNG Account
C47: 191 balance only in the fall pass-throughs. As of July 31, 2009 the SNG Account 191 balance is ($19,007,538).
C49: SNG Amortization | E49: =SUM(E44-E45) -> -5896338
B51: 3/ | C51: ="Output of Revrun.Exe computer program dated "&'RevRun Fcst'!D4 -> Output of Revrun.Exe computer program dated 04/23/2014

Sheet Ut 1.6 p3
I1: ='Control Panel'!$F$32 -> Questar Gas Company
I2: ='Control Panel'!$F$33 -> Docket No. 14-057-09
I3: Exhibit 1.6
I4: Page 3 of 3
F8: TEST YEAR CHANGE IN SUPPLIER NON-GAS COSTS
F9: BY RATE CLASS
C12: (A) | D12: (B) | E12: (C) | F12: (D) | G12: (E) | H12: (F) | I12: (G)
G13: Rate per Dth
C14: Rate Class | D14: Season | E14: Current total 1/ | F14: Curr. Base 1/ | G14: Calc. Base 2/ | H14: Amortization 3/ | I14: Total 4/ | K14: CHECK !! | M14: Current Amort.
B16: 1 | C16: GS | D16: Winter | E16: ='Other Inputs'!G73 -> 1.10168 | F16: ='Other Inputs'!E73 -> 1.10168 | G16: =ROUND(E16*('Ut 1.6 p2'!$F$14-'Ut 1.6 p2'!$F$30)/('Ut 1.6 p2'!$F$19-'Ut 1.6 p2'!$F$29),5) -> 1.12022 | H16: =I16-G16 -> -0.06718 | I16: =ROUND(E16*ROUND(1+'Ut 1.6 p2'!$F$35/100,7),5)+M16 -> 1.05304 | K16: =ROUND(G16*('Ut 1.6 p2'!$F$15)/('Ut 1.6 p2'!$F$14-'Ut 1.6 p2'!$F$30),5)-H16 -> 0 | M16: 0
B17: =B16+1 -> 2 | D17: Summer | E17: ='Other Inputs'!G74 -> 0.51725 | F17: ='Other Inputs'!E74 -> 0.51725 | G17: =ROUND(E17*('Ut 1.6 p2'!$F$14-'Ut 1.6 p2'!$F$30)/('Ut 1.6 p2'!$F$19-'Ut 1.6 p2'!$F$29),5) -> 0.52595 | H17: =I17-G17 -> -0.03154 | I17: =ROUND(E17*ROUND(1+'Ut 1.6 p2'!$F$35/100,7),5)+M17 -> 0.49441 | K17: =ROUND(G17*('Ut 1.6 p2'!$F$15)/('Ut 1.6 p2'!$F$14-'Ut 1.6 p2'!$F$30),5)-H17 -> 0 | M17: 0
B19: =B17+1 -> 3 | C19: FS | D19: Winter | E19: ='Other Inputs'!G76 -> 1.07299 | F19: ='Other Inputs'!E76 -> 1.07299 | G19: =ROUND(E19*('Ut 1.6 p2'!$F$14-'Ut 1.6 p2'!$F$30)/('Ut 1.6 p2'!$F$19-'Ut 1.6 p2'!$F$29),5) -> 1.09105 | H19: =I19-G19 -> -0.06543 | I19: =ROUND(E19*ROUND(1+'Ut 1.6 p2'!$F$35/100,7),5)+M19 -> 1.02562 | K19: =ROUND(G19*('Ut 1.6 p2'!$F$15)/('Ut 1.6 p2'!$F$14-'Ut 1.6 p2'!$F$30),5)-H19 -> 0 | M19: 0
B20: =B19+1 -> 4 | D20: Summer | E20: ='Other Inputs'!G77 -> 0.51723 | F20: ='Other Inputs'!E77 -> 0.51723 | G20: =ROUND(E20*('Ut 1.6 p2'!$F$14-'Ut 1.6 p2'!$F$30)/('Ut 1.6 p2'!$F$19-'Ut 1.6 p2'!$F$29),5) -> 0.52593 | H20: =I20-G20 -> -0.03153 | I20: =ROUND(E20*ROUND(1+'Ut 1.6 p2'!$F$35/100,7),5)+M20 -> 0.4944 | K20: =ROUND(G20*('Ut 1.6 p2'!$F$15)/('Ut 1.6 p2'!$F$14-'Ut 1.6 p2'!$F$30),5)-H20 -> -1e-05 | M20: 0
B22: =B20+1 -> 5 | C22: NGV | E22: ='Other Inputs'!G81 -> 0.795 | F22: ='Other Inputs'!E81 -> 0.795 | G22: =ROUND(E22*('Ut 1.6 p2'!$F$14-'Ut 1.6 p2'!$F$30)/('Ut 1.6 p2'!$F$19-'Ut 1.6 p2'!$F$29),5) -> 0.80838 | H22: =I22-G22 -> -0.04848 | I22: =ROUND(E22*ROUND(1+'Ut 1.6 p2'!$F$35/100,7),5)+M22 -> 0.7599 | K22: =ROUND(G22*('Ut 1.6 p2'!$F$15)/('Ut 1.6 p2'!$F$14-'Ut 1.6 p2'!$F$30),5)-H22 -> 0 | M22: 0
B24: =B22+1 -> 6 | C24: IS 5/ | E24: ='Other Inputs'!F234 -> 0.1793 | F24: ='Other Inputs'!F234 -> 0.1793 | G24: ='Other Inputs'!$F$48 -> 0.1786 | H24: =I24-G24 -> 0 | I24: ='Other Inputs'!$F$48 -> 0.1786
B31: 1/ | C31: Current Questar Gas Tariff (excluding bad debt surcharge).
B33: 2/ | C33: Exhibit 1.6 page 2 (line 1 - line 6c)/(line 4 - line 6b)*Exhibit 1.6 page 3 column C. (N.A. to line 6)
B35: 3/ | C35: Column G - Column E
B37: 4/ | C37: (Current Questar Gas rates) x (1+Exhibit 1.6, Page 2, Line 7, % change).
C38: ="(except ln. 6, which is calculated by adding QPC T-2 and ACA rates, then adjusting for distr. loss of "&TEXT('Other Inputs'!E287,"0.000%") -> (except ln. 6, which is calculated by adding QPC T-2 and ACA rates, then adjusting for distr. loss of 0.494%
C39: ="= ("&TEXT('Other Inputs'!$F$42,"$0.00000")&" + "&TEXT('Other Inputs'!$F$44,"$0.00000")&") / ( 1 - "&TEXT('Other Inputs'!$E$287,"0.00000")&" ) = "&TEXT(('Other Inputs'!F42+'Other Inputs'!F44)/(1-('Other Inputs'!$E$287)),("$0.00000")) -> = ($0.17652 + $0.00120) / ( 1 - 0.00494 ) = $0.17860
B41: 5/ | C41: ="IS Tariff rate has an adjustment for bad debt of "&TEXT('Other Inputs'!$E$298,"0.0%")&" = "&TEXT($I$24,"$0.00000")&" / ( 1 - "&TEXT('Other Inputs'!$E$298,"0.00000")&" ) = "&TEXT($I$24/(1-('Other Inputs'!$E$298)),("$0.00000")) -> IS Tariff rate has an adjustment for bad debt of 0.3% = $0.17860 / ( 1 - 0.00250 ) = $0.17905

Sheet Ut 1.7
L1: ='Control Panel'!$F$32 -> Questar Gas Company
L2: ='Control Panel'!$F$33 -> Docket No. 14-057-09
L3: Exhibit 1.7
C7: EFFECT ON GS TYPICAL CUSTOMER
C8: 80 DTHS - ANNUAL CONSUMPTION
C11: (A) | D11: (B) | E11: (C) | F11: (D) | H11: (E) | J11: (F)
F12: Billed at Current | H12: Billed at
C13: Rate | E13: Usage | F13: Rates Effective | H13: Proposed Rates
C14: Schedule | D14: Month | E14: In Dth | F14: ='Other Inputs'!J90 -> 2014-03-01 | H14: ='Control Panel'!F5 -> 14-057-09 | J14: Change
B16: 1 | C16: GS | D16: Jan | E16: ='Monthly Inputs'!G125 -> 14.9 | F16: =ROUND((+E16*'Other Inputs'!$G$92)+'Other Inputs'!$G$94,2) -> 130.7 | H16: =ROUND((+E16*'Ut 1.8'!$F$10)+'Ut 1.8'!$C$12,2) -> 142.59 | J16: =H16-F16 -> 11.89
B17: =B16+1 -> 2 | D17: Feb | E17: ='Monthly Inputs'!G126 -> 12.5 | F17: =ROUND((+E17*'Other Inputs'!$G$92)+'Other Inputs'!$G$94,2) -> 110.74 | H17: =ROUND((+E17*'Ut 1.8'!$F$10)+'Ut 1.8'!$C$12,2) -> 120.71 | J17: 9.97
B18: =B17+1 -> 3 | D18: Mar | E18: ='Monthly Inputs'!G127 -> 10.1 | F18: =ROUND((+E18*'Other Inputs'!$G$92)+'Other Inputs'!$G$94,2) -> 90.77 | H18: =ROUND((+E18*'Ut 1.8'!$F$10)+'Ut 1.8'!$C$12,2) -> 98.83 | J18: 8.06
B19: 4 | D19: Apr | E19: ='Monthly Inputs'!G128 -> 8.3 | F19: =ROUND((+E19*'Other Inputs'!$G$90)+'Other Inputs'!$G$94,2) -> 65.66 | H19: =ROUND((+E19*'Ut 1.8'!$C$10)+'Ut 1.8'!$C$12,2) -> 72.49 | J19: 6.83
B20: 5 | D20: May | E20: ='Monthly Inputs'!G129 -> 4.4 | F20: =ROUND((+E20*'Other Inputs'!$G$90)+'Other Inputs'!$G$94,2) -> 37.98 | H20: =ROUND((+E20*'Ut 1.8'!$C$10)+'Ut 1.8'!$C$12,2) -> 41.6 | J20: 3.62
B21: 6 | D21: Jun | E21: ='Monthly Inputs'!G130 -> 3.1 | F21: =ROUND((+E21*'Other Inputs'!$G$90)+'Other Inputs'!$G$94,2) -> 28.75 | H21: =ROUND((+E21*'Ut 1.8'!$C$10)+'Ut 1.8'!$C$12,2) -> 31.3 | J21: 2.55
B22: 7 | D22: Jul | E22: ='Monthly Inputs'!G131 -> 2 | F22: =ROUND((+E22*'Other Inputs'!$G$90)+'Other Inputs'!$G$94,2) -> 20.94 | H22: =ROUND((+E22*'Ut 1.8'!$C$10)+'Ut 1.8'!$C$12,2) -> 22.59 | J22: 1.65
B23: 8 | D23: Aug | E23: ='Monthly Inputs'!G132 -> 1.8 | F23: =ROUND((+E23*'Other Inputs'!$G$90)+'Other Inputs'!$G$94,2) -> 19.53 | H23: =ROUND((+E23*'Ut 1.8'!$C$10)+'Ut 1.8'!$C$12,2) -> 21.01 | J23: 1.48
B24: 9 | D24: Sep | E24: ='Monthly Inputs'!G133 -> 2 | F24: =ROUND((+E24*'Other Inputs'!$G$90)+'Other Inputs'!$G$94,2) -> 20.94 | H24: =ROUND((+E24*'Ut 1.8'!$C$10)+'Ut 1.8'!$C$12,2) -> 22.59 | J24: 1.65
B25: 10 | D25: Oct | E25: ='Monthly Inputs'!G134 -> 3.1 | F25: =ROUND((+E25*'Other Inputs'!$G$90)+'Other Inputs'!$G$94,2) -> 28.75 | H25: =ROUND((+E25*'Ut 1.8'!$C$10)+'Ut 1.8'!$C$12,2) -> 31.3 | J25: 2.55
B26: 11 | D26: Nov | E26: ='Monthly Inputs'!G135 -> 6.3 | F26: =ROUND((+E26*'Other Inputs'!$G$92)+'Other Inputs'!$G$94,2) -> 59.16 | H26: =ROUND((+E26*'Ut 1.8'!$F$10)+'Ut 1.8'!$C$12,2) -> 64.18 | J26: 5.02
B27: 12 | D27: Dec | E27: ='Monthly Inputs'!G136 -> 11.5 | F27: =ROUND((+E27*'Other Inputs'!$G$92)+'Other Inputs'!$G$94,2) -> 102.42 | H27: =ROUND((+E27*'Ut 1.8'!$F$10)+'Ut 1.8'!$C$12,2) -> 111.59 | J27: 9.17
B30: =B27+1 -> 13 | D30: Total | E30: =SUM(E16:E27) -> 80 | F30: =SUM(F16:F27) -> 716.34 | H30: =SUM(H16:H27) -> 780.78 | J30: =H30-F30 -> 64.44
H32: Percent Change: | J32: =ROUND(J30/F30,4)*100 -> 9 | K32: %

Sheet Ut 1.8 p1
F1: ='Control Panel'!F36 -> Questar Gas Company
F2: ='Control Panel'!F33 -> Docket No. 14-057-09
F3: Exhibit 1.8
F4: Page 1 of 8
A15: QUESTAR GAS COMPANY
A16: 333 South State Street
A17: P.O. Box 45433
A18: Salt Lake City, Utah 84145-0433
A29: PROPOSED RATE SCHEDULES
A31: P.S.C. Utah No. 400
A32: Affecting All Firm Sales Rate Schedules
A33: and Classes of Service In
A34: Questar Gas Company's
A35: Utah Service Area
A39: Date Issued: May 5, 2014
A40: To Become Effective June 1, 2014

Sheet Ut 1.8
A1: SUMMARY OF PROPOSED RATES
A3: UTAH RATE CLASSES | C3: Rates per Dth Used Each Month
C4: All Season Rates or Summer Rates: Apr. 1 - Oct. 31 | F4: Winter Rates: Nov. 1 - Mar. 31
A5: UT GS | C5: First 45 Dth | D5: All Over 45 Dth | F5: First 45 Dth | G5: All Over 45 Dth
B6: Distribution Non-Gas Cost | C6: ='Other Inputs'!F243 -> 2.15053 | D6: ='Other Inputs'!F244 -> 1.1412 | F6: ='Other Inputs'!F245 -> 2.78758 | G6: ='Other Inputs'!F246 -> 1.77727
B7: Supplier Non-Gas Cost | C7: ='Ut 1.6 p3'!I17 -> 0.49441 | D7: =C7 -> 0.49441 | F7: ='Ut 1.6 p3'!I16 -> 1.05304 | G7: =F7 -> 1.05304
B8: Commodity Cost | C8: =('Ut 1.6 p1'!$F$36) -> 5.275884876 | D8: =C8 -> 5.275884876 | F8: =D8 -> 5.275884876 | G8: =F8 -> 5.275884876
B10: Total Rate | C10: =SUM(C6:C9) -> 7.920824876 | D10: =SUM(D6:D9) -> 6.911494876 | F10: =SUM(F6:F9) -> 9.116504876 | G10: =SUM(G6:G9) -> 8.106194876
B12: BSF Category 1 | C12: 6.75
B13: BSF Category 2 | C13: 18.25
B14: BSF Category 3 | C14: 63.5
B15: BSF Category 4 | C15: 420.25
A18: UT FS | C18: First 200 Dth | D18: Next 1,800 Dth | E18: All Over 2,000 Dth | F18: First 200 Dth | G18: Next 1,800 Dth | H18: All Over 2,000 Dth
B19: Distribution Non-Gas Cost | C19: 0.83259 | D19: 0.45259 | E19: 0.05259 | F19: 1.26434 | G19: 0.88434 | H19: 0.48434
B20: Supplier Non-Gas Cost | C20: ='Ut 1.6 p3'!$I$20 -> 0.4944 | D20: =C20 -> 0.4944 | E20: =D20 -> 0.4944 | F20: ='Ut 1.6 p3'!$I$19 -> 1.02562 | G20: =F20 -> 1.02562 | H20: =G20 -> 1.02562
B21: Commodity Cost | C21: =('Ut 1.6 p1'!$F$36) -> 5.275884876 | D21: =C21 -> 5.275884876 | E21: =D21 -> 5.275884876 | F21: =E21 -> 5.275884876 | G21: =F21 -> 5.275884876 | H21: =G21 -> 5.275884876
B23: Total Rate | C23: =SUM(C19:C22) -> 6.602874876 | D23: =SUM(D19:D22) -> 6.222874876 | E23: 5.822874876 | F23: 7.565844876 | G23: 7.185844876 | H23: 6.785844876
B25: Minimum Monthly DNG Charge: | C25: =ROUND(C19*175,0) -> 146 | F25: =ROUND(F19*175,0) -> 221
B27: BSF Category 1 | C27: =C12 -> 6.75
B28: BSF Category 2 | C28: =C13 -> 18.25
B29: BSF Category 3 | C29: =C14 -> 63.5
B30: BSF Category 4 | C30: =C15 -> 420.25
A33: UT Future Rate Class
C34: First 10,000 Dth | D34: All Over 10,000 Dth
B35: Distribution Non-Gas Cost
B36: Supplier Non-Gas Cost
B37: Commodity Cost
B39: Total Rate | C39: =SUM(C35:C38) -> 0 | D39: =SUM(D35:D38) -> 0
B41: Minimum Yearly Distribution Non-Gas Charge | D41: =ROUND(((10000*C35))*12,-2) -> 0
B44: BSF Category 1 | C44: =C12 -> 6.75
B45: BSF Category 2 | C45: =C13 -> 18.25
B46: BSF Category 3 | C46: =C14 -> 63.5
B47: BSF Category 4 | C47: =C15 -> 420.25
A51: UT NGV
B52: Distribution Non-Gas Cost | C52: =5.45472+0.02679 -> 5.48151
B53: Supplier Non-Gas Cost | C53: ='Ut 1.6 p3'!I22 -> 0.7599
B54: Commodity Cost | C54: ='Ut 1.6 p1'!F36 -> 5.275884876
B56: Total Rate | C56: =SUM(C52:C55) -> 11.51729488
A59: UT IS | C59: First 2,000 Dth | D59: Next 18,000 Dth | E59: All Over 20,000
B60: Distribution Non-Gas Cost | C60: =0.42429+0.00657 -> 0.43086 | D60: =0.06407+0.00657 -> 0.07064 | E60: =0.03771+0.00657 -> 0.04428
B61: Supplier Non-Gas Cost | C61: ='Ut 1.6 p3'!$I$24/(1-'Other Inputs'!$E$298) -> 0.179047619 | D61: =C61 -> 0.179047619 | E61: =D61 -> 0.179047619
B62: Commodity Cost | C62: Determined Monthly
B64: Total Rate | C64: Determined Monthly
B66: BSF Category 1 | C66: =C12 -> 6.75
B67: BSF Category 2 | C67: =C13 -> 18.25
B68: BSF Category 3 | C68: 63.5
B69: BSF Category 4 | C69: 420.25

Sheet Ut 1.9
D1: ='Control Panel'!$F$32 -> Questar Gas Company
D2: ='Control Panel'!$F$33 -> Docket No. 14-057-09
D3: Exhibit 1.9
D4: Page 1 of 2
D6: ='Control Panel'!$F$32 -> Questar Gas Company
D7: ='Control Panel'!$F$33 -> Docket No. 14-057-09
D8: Exhibit 1.9
D9: Page 2 of 2

Sheet Ut 1.10
P17: Exhibit 1.10 | Q17: =CONCATENATE("Docket No. ",'Control Panel'!F5) -> Docket No. 14-057-09 | R17: Questar Gas Company

Sheet Ut 1.11
F1: ='Control Panel'!F36 -> Questar Gas Company
F2: ='Control Panel'!F33 -> Docket No. 14-057-09
F3: Exhibit 1.11
F4: Page 1 of 3
A17: QUESTAR GAS COMPANY
A18: 333 South State Street
A19: P.O. Box 45433
A20: Salt Lake City, Utah 84145-0433
A31: Proposed Final Tariff Sheet
A32: P.S.C. Utah Tariff

Sheet Ut Storage
A1: Storage Injection / Withdrawal adjustment
C3: (A) | D3: (B) | E3: (C) | F3: (D) | G3: (E) | H3: (F) | I3: (G) | K3: (H) | L3: (I) | M3: (J)
G4: Injections | I4: (J) / (C)
E5: Storage | G5: ------------------------------------------------------------- | I5: Storage | M5: Storage
C6: Injection Dth | D6: Withdrawal Dth | E6: Inventory Dth | F6: % that is | G6: Co. Prod. | H6: Purchased | I6: Inventory | M6: Inventory
A7: Line | B7: Month | C7: Per IRPs | D7: Per IRPs | E7: Balance | F7: Co. Prod. (1) | G7: $/Dth (2) | H7: $/Dth (3) | I7: Average $/Dth | K7: Injection (4) | L7: Withdrawal (5) | M7: Balance
B8: Mar14 | E8: =-1*'Other Inputs'!D238 -> 1353916 | I8: =M8/E8 -> 4.554850441 | M8: ='Other Inputs'!E238 -> 6166884.89
B9: Apr14 | C9: ='Monthly Inputs'!E38 -> 470850 | D9: =-'Monthly Inputs'!E46 -> -252680 | E9: =E8+C9+D9 -> 1572086 | F9: =F21 -> 0.6024880797 | G9: ='Other Inputs'!F106 -> 4.49164 | H9: ='Monthly Inputs'!E88 -> 4.28 | I9: =M9/E9 -> 4.510721192 | K9: =(+F9*C9*G9)+((1-F9)*C9*H9) -> 2075276.355 | L9: =D9*I8 -> -1150919.609 | M9: =M8+L9+K9 -> 7091241.636
B10: May14 | C10: ='Monthly Inputs'!F38 -> 2185040 | D10: =-'Monthly Inputs'!F46 -> -145370 | E10: =E9+C10+D10 -> 3611756 | F10: =F22 -> 1 | G10: =G9 -> 4.49164 | H10: ='Monthly Inputs'!F88 -> 4.81 | I10: =M10/E10 -> 4.499177453 | K10: =(+F10*C10*G10)+((1-F10)*C10*H10) -> 9814413.066 | L10: =D10*I9 -> -655723.5397 | M10: =M9+L10+K10 -> 16249931.16
A11: 1. | B11: ='Monthly Inputs'!G3 -> Jun14 | C11: ='Monthly Inputs'!G38 -> 2898201 | D11: =-'Monthly Inputs'!G46 -> 0 | E11: =E10+C11+D11 -> 6509957 | F11: =Calculations!D176 -> 1 | G11: ='Ut 1.4 p2'!$F$15 -> 4.973525904 | H11: =Calculations!D194 -> 0 | I11: =M11/E11 -> 4.710355062 | K11: 14414277.75 | L11: =D11*I10 -> 0 | M11: =M10+L11+K11 -> 30664208.91
A12: 2. | B12: ='Monthly Inputs'!H3 -> Jul14 | C12: ='Monthly Inputs'!H38 -> 3362632 | D12: =-'Monthly Inputs'!H46 -> 0 | E12: 9872589 | F12: =Calculations!E176 -> 1 | G12: ='Ut 1.4 p2'!$F$15 -> 4.973525904 | H12: =Calculations!E194 -> 0 | I12: =M12/E12 -> 4.799991802 | K12: 16724137.36 | L12: =D12*I11 -> 0 | M12: =M11+L12+K12 -> 47388346.27
A13: 3. | B13: ='Monthly Inputs'!I3 -> Aug14 | C13: ='Monthly Inputs'!I38 -> 3223612 | D13: =-'Monthly Inputs'!I46 -> 0 | E13: 13096201 | F13: =Calculations!F176 -> 1 | G13: ='Ut 1.4 p2'!$F$15 -> 4.973525904 | H13: =Calculations!F194 -> 0 | I13: 4.842706985 | K13: 16032717.79 | L13: =D13*I12 -> 0 | M13: 63421064.06
A14: 4. | B14: ='Monthly Inputs'!J3 -> Sep14 | C14: ='Monthly Inputs'!J38 -> 3315129 | D14: =-'Monthly Inputs'!J46 -> 0 | E14: 16411330 | F14: =Calculations!G176 -> 0.8045662714 | G14: ='Ut 1.4 p2'!$F$15 -> 4.973525904 | H14: =Calculations!G194 -> 4.72 | I14: 4.859124009 | K14: 16323623.56 | L14: 0 | M14: 79744687.62
A15: 5. | B15: ='Monthly Inputs'!K3 -> Oct14 | C15: ='Monthly Inputs'!K38 -> 2621636 | D15: =-'Monthly Inputs'!K46 -> -6880 | E15: 19026086 | F15: =Calculations!H176 -> 0.6404039178 | G15: ='Ut 1.4 p2'!$F$15 -> 4.973525904 | H15: =Calculations!H194 -> 4.72 | I15: 4.862325594 | K15: 12799768.07 | L15: -33430.77318 | M15: 92511024.92
A16: 6. | B16: ='Monthly Inputs'!L3 -> Nov14 | C16: ='Monthly Inputs'!L38 -> 391525 | D16: =-'Monthly Inputs'!L46 -> -498000 | E16: 18919611 | F16: =Calculations!I176 -> 0.5247827512 | G16: ='Ut 1.4 p2'!$F$15 -> 4.973525904 | H16: =Calculations!I194 -> 4.9188 | I16: 4.864088602 | K16: 1937077.459 | L16: -2421438.146 | M16: 92026664.23
A17: 7. | B17: ='Monthly Inputs'!M3 -> Dec14 | C17: ='Monthly Inputs'!M38 -> 0 | D17: =-'Monthly Inputs'!M46 -> -4075920 | E17: 14843691 | F17: =Calculations!J176 -> 0.451139087 | G17: ='Ut 1.4 p2'!$F$15 -> 4.973525904 | H17: =Calculations!J194 -> 5.17164 | I17: 4.864088602 | K17: 0 | L17: -19825636.02 | M17: 72201028.21
A18: 8. | B18: ='Monthly Inputs'!N3 -> Jan15 | C18: ='Monthly Inputs'!N38 -> 0 | D18: =-'Monthly Inputs'!N46 -> -7562534 | E18: 7281157 | F18: =Calculations!K176 -> 0.482690861 | G18: ='Ut 1.4 p2'!$F$15 -> 4.973525904 | H18: =Calculations!K194 -> 5.15202 | I18: 4.864088602 | K18: 0 | L18: -36784835.44 | M18: 35416192.78
A19: 9. | B19: ='Monthly Inputs'!O3 -> Feb15 | C19: ='Monthly Inputs'!O38 -> 0 | D19: =-'Monthly Inputs'!O46 -> -4032290 | E19: 3248867 | F19: =Calculations!L176 -> 0.4431124685 | G19: ='Ut 1.4 p2'!$F$15 -> 4.973525904 | H19: =Calculations!L194 -> 4.99775 | I19: 4.864088602 | K19: 0 | L19: -19613415.83 | M19: =M18+L19+K19 -> 15802776.95
A20: 10. | B20: ='Monthly Inputs'!P3 -> Mar15 | C20: ='Monthly Inputs'!P38 -> 0 | D20: =-'Monthly Inputs'!P46 -> -314840 | E20: 2934027 | F20: =Calculations!M176 -> 0.4840491302 | G20: ='Ut 1.4 p2'!$F$15 -> 4.973525904 | H20: =Calculations!M194 -> 4.56456 | I20: 4.864088602 | K20: 0 | L20: -1531409.656 | M20: =M19+L20+K20 -> 14271367.29
A21: 11. | B21: ='Monthly Inputs'!Q3 -> Apr15 | C21: ='Monthly Inputs'!Q38 -> 269360 | D21: =-'Monthly Inputs'!Q46 -> -265940 | E21: 2937447 | F21: =Calculations!N176 -> 0.6024880797 | G21: ='Ut 1.4 p2'!$F$15 -> 4.973525904 | H21: =Calculations!N194 -> 4.175 | I21: 4.845016537 | K21: 1254167.726 | L21: -1293555.723 | M21: =M20+L21+K21 -> 14231979.29
A22: 12. | B22: ='Monthly Inputs'!R3 -> May15 | C22: ='Monthly Inputs'!R38 -> 1168493 | D22: =-'Monthly Inputs'!R46 -> -157170 | E22: 3948770 | F22: =Calculations!O176 -> 1 | G22: ='Ut 1.4 p2'!$F$15 -> 4.973525904 | H22: =Calculations!O194 -> 0 | I22: 4.88304415 | K22: 5811530.204 | L22: -761491.2492 | M22: =M21+L22+K22 -> 19282018.25
M25: Inj./With. Adj.
A26: 14. | B26: Total | C26: =SUM(C11:C22) -> 17250588 | D26: =SUM(D11:D22) -> -16913574 | K26: =SUM(K11:K22) -> 85297299.92 | L26: =SUM(L11:L22) -> -82265212.83 | M26: =L26+K26 -> 3032087.086
A27: 15. | B27: Average $ /Dth | K27: =K26/C26 -> 4.944602463 | L27: =L26/D26 -> 4.863857445
A31: ___________________________________________________________________

Sheet Ex 1.1 Data
A1: QEPFS gathered | B1: 47824263.82 | C1: Adjusted test year-> | D1: -0.103557141 | E1: 42871719.79 | H1: Samson Gathered | I1: 7008198.662 | J1: Adjusted test year-> | K1: -0.3410842787 | L1: 4617812.277
A2: Birch Creek | B2: 1947523.849 | C2: Adjusted test year-> | D2: -0.103557141 | E2: 1745843.847
A3: Other | B3: 28110082.09
C4: WEXPRO I | J4: WEXPRO II
A5: Input Operator Service Fee > | C5: ='Monthly Inputs'!S116 -> 313759807 | H5: Input Operator Service Fee > | J5: ='Monthly Inputs'!S118 -> 22641900
A7: do not change the order of the months below!!!!! | H7: do not change the order of the months below!!!!!
A8: \/ | C8: 2014-06-01 | H8: \/ | J8: 2014-06-01
A9: \/ | B9: Company | C9: Average Index | D9: Church Buttes | H9: \/ | I9: Company | J9: Average Index | K9: Church Buttes
A10: \/ | B10: Production | C10: Spot Prices | D10: & Canyon Cr | H10: \/ | I10: Production | J10: Spot Prices | K10: & Canyon Cr
A11: January | B11: =[8]Inputs!$B18 -> 5864966 | C11: ='Graph (Ex 1.10) Inputs'!F10 -> 4.875 | D11: =C11+0.1 -> 4.975 | E11: =B11*D11 -> 29178205.85 | H11: January | I11: =[8]Inputs!$I18 -> 380935 | J11: ='Graph (Ex 1.10) Inputs'!F10 -> 4.875 | K11: =J11+0.1 -> 4.975 | L11: =I11*K11 -> 1895151.625
A12: February | B12: =[8]Inputs!$B19 -> 5177612 | C12: ='Graph (Ex 1.10) Inputs'!F11 -> 4.78 | D12: =C12+0.1 -> 4.88 | E12: =B12*D12 -> 25266746.56 | H12: February | I12: =[8]Inputs!$I19 -> 338735 | J12: ='Graph (Ex 1.10) Inputs'!F11 -> 4.78 | K12: =J12+0.1 -> 4.88 | L12: =I12*K12 -> 1653026.8
A13: March | B13: =[8]Inputs!$B20 -> 5613942 | C13: ='Graph (Ex 1.10) Inputs'!F12 -> 4.525 | D13: 4.625 | E13: 25964481.75 | H13: March | I13: =[8]Inputs!$I20 -> 369368 | J13: ='Graph (Ex 1.10) Inputs'!F12 -> 4.525 | K13: 4.625 | L13: 1708327
A14: April | B14: =[8]Inputs!$B21 -> 5413002 | C14: ='Graph (Ex 1.10) Inputs'!F13 -> 4.175 | D14: 4.275 | E14: 23140583.55 | H14: April | I14: =[8]Inputs!$I21 -> 352198 | J14: ='Graph (Ex 1.10) Inputs'!F13 -> 4.175 | K14: 4.275 | L14: 1505646.45
A15: May | B15: =[8]Inputs!$B22 -> 5568254 | C15: ='Graph (Ex 1.10) Inputs'!F14 -> 4.055 | D15: 4.155 | E15: 23136095.37 | H15: May | I15: =[8]Inputs!$I22 -> 358722 | J15: ='Graph (Ex 1.10) Inputs'!F14 -> 4.055 | K15: 4.155 | L15: 1490489.91
A16: June | B16: =[8]Inputs!$B11 -> 6164492 | C16: ='Graph (Ex 1.10) Inputs'!F3 -> 4.69 | D16: 4.79 | E16: 29527916.68 | H16: June | I16: =[8]Inputs!$I11 -> 417332 | J16: ='Graph (Ex 1.10) Inputs'!F3 -> 4.69 | K16: 4.79 | L16: 1999020.28
A17: July | B17: =[8]Inputs!$B12 -> 6201349 | C17: ='Graph (Ex 1.10) Inputs'!F4 -> 4.905 | D17: 5.005 | E17: 31037751.74 | H17: July | I17: =[8]Inputs!$I12 -> 422879 | J17: ='Graph (Ex 1.10) Inputs'!F4 -> 4.905 | K17: 5.005 | L17: 2116509.395
A18: August | B18: =[8]Inputs!$B13 -> 6051447 | C18: ='Graph (Ex 1.10) Inputs'!F5 -> 4.815 | D18: 4.915 | E18: 29742862 | H18: August | I18: =[8]Inputs!$I13 -> 414971 | J18: ='Graph (Ex 1.10) Inputs'!F5 -> 4.815 | K18: 4.915 | L18: 2039582.465
A19: September | B19: =[8]Inputs!$B14 -> 5847084 | C19: ='Graph (Ex 1.10) Inputs'!F6 -> 4.72 | D19: 4.82 | E19: 28182944.88 | H19: September | I19: =[8]Inputs!$I14 -> 394330 | J19: ='Graph (Ex 1.10) Inputs'!F6 -> 4.72 | K19: 4.82 | L19: 1900670.6
A20: October | B20: =[8]Inputs!$B15 -> 5899016 | C20: ='Graph (Ex 1.10) Inputs'!F7 -> 4.72 | D20: 4.82 | E20: 28433257.12 | H20: October | I20: =[8]Inputs!$I15 -> 400353 | J20: ='Graph (Ex 1.10) Inputs'!F7 -> 4.72 | K20: 4.82 | L20: 1929701.46
A21: November | B21: =[8]Inputs!$B16 -> 5998134 | C21: ='Graph (Ex 1.10) Inputs'!F8 -> 4.82 | D21: 4.92 | E21: 29510819.28 | H21: November | I21: =[8]Inputs!$I16 -> 380879 | J21: ='Graph (Ex 1.10) Inputs'!F8 -> 4.82 | K21: 4.92 | L21: 1873924.68
A22: December | B22: =[8]Inputs!$B17 -> 6017348 | C22: ='Graph (Ex 1.10) Inputs'!F9 -> 4.965 | D22: 5.065 | E22: 30477867.62 | H22: December | I22: =[8]Inputs!$I17 -> 387110 | J22: ='Graph (Ex 1.10) Inputs'!F9 -> 4.965 | K22: 5.065 | L22: 1960712.15
B24: =SUM(B11:B22) -> 69816646 | C24: CANYON CREEK | D24: =E24/B24 -> 4.778223411 | E24: =SUM(E11:E22) -> 333599532.4 | I24: =SUM(I11:I22) -> 4617812 | J24: CANYON CREEK | K24: =L24/I24 -> 4.779918025 | L24: =SUM(L11:L22) -> 22072762.81
C25: CHURCH BUTTES | J25: CHURCH BUTTES
C26: All Others -> | D26: =D24-0.2 -> 4.578223411 | J26: All Others -> | K26: =K24-0.2 -> 4.579918025
A29: Make sure all spot pricing is only 2 decimals | H29: Make sure all spot pricing is only 2 decimals

Sheet Expenses
A1: %,LACTUALS
S7: Historical
S8: 12 Months Ending
C9: FERC Acct | E9: Description | G9: 2013-04-01 | H9: 2013-05-01 | I9: 2013-06-01 | J9: 2013-07-01 | K9: 2013-08-01 | L9: 2013-09-01 | M9: 2013-10-01 | N9: 2013-11-01 | O9: 2013-12-01 | P9: 2014-01-01 | Q9: 2014-02-01 | R9: 2014-03-01 | S9: 2014-03-01
B11: 497 | C11: UTILITY OPERATING EXPENSES
B12: 498 | C12: GAS PURCHASE EXPENSES
B13: 499
B14: 500 | D14: Utah % of Sales Dth from 191 Acct ===> | G14: 0.95687 | H14: 0.95271 | I14: 0.97235 | J14: 0.97081 | K14: 0.97081 | L14: 0.9663 | M14: 0.95749 | N14: 0.96026 | O14: 0.9703 | P14: 0.96769 | Q14: 0.96192 | R14: 0.96045
B15: 501
A16: %,FACCOUNT,TQGCACCTS,V758000 | B16: 502 | C16: 758 | D16: Gas Well Royalties
B17: 503 | E17: Utah | G17: 2994472.956 | H17: 2981394.592 | I17: 3896942.694 | J17: 3871733.504 | K17: 3306493.458 | L17: 3453403.476 | M17: 3568125.876 | N17: 3420595.901 | O17: 4405716.061 | P17: 4885178.976 | Q17: 5410851.213 | R17: 6288880.833 | S17: 48483789.54
B18: 504 | E18: Wyoming | G18: 134973.0043 | H18: 147988.5277 | I18: 110814.486 | J18: 116414.0264 | K18: 99418.57216 | L18: 120438.4737 | M18: 158415.2639 | N18: 141560.0786 | O18: 134854.9593 | P18: 163110.2241 | Q18: 214202.0274 | R18: 258967.3975 | S18: 1801157.041
B19: 505 | E19: Total | G19: 3129445.96 | H19: 3129383.12 | I19: 4007757.18 | J19: 3988147.53 | K19: 3405912.03 | L19: 3573841.95 | M19: 3726541.14 | N19: 3562155.98 | O19: 4540571.02 | P19: 5048289.2 | Q19: 5625053.24 | R19: 6547848.23 | S19: 50284946.58
B20: 506
A21: %,FACCOUNT,TQGCACCTS,V758001,V758002,V758003,V758004 | B21: 507 | C21: 758.1 | D21: Gas Well Royalties - Other
B22: 508 | E22: Utah | G22: 13087.04 | H22: 8649.37 | I22: 17711.14 | J22: 9577.64 | K22: 14577.83 | L22: 16274.63 | M22: 10695.31 | N22: 7621.21 | O22: 17353.49 | P22: 20538.29 | Q22: 18198.9 | R22: 13823.09 | S22: 168107.94
B23: 509 | E23: Wyoming | G23: 0 | H23: 0 | I23: 0 | J23: 0 | K23: 0 | L23: 0 | M23: 0 | N23: 0 | O23: 0 | P23: 0 | Q23: 0 | R23: 0 | S23: 0
B24: 510 | E24: Total | G24: 13087.04 | H24: 8649.37 | I24: 17711.14 | J24: 9577.64 | K24: 14577.83 | L24: 16274.63 | M24: 10695.31 | N24: 7621.21 | O24: 17353.49 | P24: 20538.29 | Q24: 18198.9 | R24: 13823.09 | S24: 168107.94
B25: 511
A26: %,FACCOUNT,TQGCACCTS,V759000,V759001,V759002,V759003,V759004 | B26: 512 | C26: 759 | D26: Gathering by Others, GRI & ACA - Gas Cost
B27: 513 | E27: Utah | G27: 1532956.78 | H27: 1546640.11 | I27: 1457357.37 | J27: 1468644.46 | K27: 1474063.99 | L27: 1560183.41 | M27: 1506403.61 | N27: 1676394.15 | O27: 1962550.47 | P27: 1647225.97 | Q27: 1715910.91 | R27: 1544058.35 | S27: 19092389.58
B28: 514 | E28: Wyoming | G28: 0 | H28: 0 | I28: 0 | J28: 0 | K28: 0 | L28: 0 | M28: 0 | N28: 0 | O28: 0 | P28: 0 | Q28: 0 | R28: 0 | S28: 0
B29: 515 | E29: Total | G29: 1532956.78 | H29: 1546640.11 | I29: 1457357.37 | J29: 1468644.46 | K29: 1474063.99 | L29: 1560183.41 | M29: 1506403.61 | N29: 1676394.15 | O29: 1962550.47 | P29: 1647225.97 | Q29: 1715910.91 | R29: 1544058.35 | S29: 19092389.58
B30: 516
A31: %,FACCOUNT,TQGCACCTS,V759005 | B31: 517 | C31: 759 | D31: Gathering by Others - SNG Cost
B32: 518 | E32: Utah | G32: 0 | H32: 0 | I32: 0 | J32: 0 | K32: 0 | L32: 0 | M32: 0 | N32: 0 | O32: 0 | P32: 0 | Q32: 0 | R32: 0 | S32: 0
B33: 519 | E33: Wyoming | G33: 0 | H33: 0 | I33: 0 | J33: 0 | K33: 0 | L33: 0 | M33: 0 | N33: 0 | O33: 0 | P33: 0 | Q33: 0 | R33: 0 | S33: 0
B34: 520 | E34: Total | G34: 0 | H34: 0 | I34: 0 | J34: 0 | K34: 0 | L34: 0 | M34: 0 | N34: 0 | O34: 0 | P34: 0 | Q34: 0 | R34: 0 | S34: 0
B35: 521
A36: %,FACCOUNT,TQGCACCTS,V800000,V800005,V800002 | B36: 522 | C36: 800 | D36: Natural Gas Well Head Purchases
B37: 523 | E37: Utah | G37: 9149.208192 | H37: 5671.911349 | I37: 11030.95098 | J37: 12398.87466 | K37: 9671.36455 | L37: 12034.18424 | M37: 14767.3587 | N37: 10766.75201 | O37: 11532.87907 | P37: 11964.41271 | Q37: 3711.904992 | R37: 15492.56754 | S37: 128192.369
B38: 524 | E38: Wyoming | G38: 412.391808 | H38: 281.5386505 | I38: 313.6790195 | J38: 372.8053392 | K38: 290.7954504 | L38: 419.695756 | M38: 655.6313049 | N38: 445.5779942 | O38: 353.010933 | P38: 399.4772859 | Q38: 146.945008 | R38: 637.9624615 | S38: 4729.511011
B39: 525 | E39: Total | G39: 9561.6 | H39: 5953.45 | I39: 11344.63 | J39: 12771.68 | K39: 9962.16 | L39: 12453.88 | M39: 15422.99 | N39: 11212.33 | O39: 11885.89 | P39: 12363.89 | Q39: 3858.85 | R39: 16130.53 | S39: 132921.88
B40: 526
A41: %,FACCOUNT,TQGCACCTS,V801000 | B41: 527 | C41: 801 | D41: Natural Gas Field Line Purchases
B42: 528 | E42: Utah | G42: 0 | H42: 0 | I42: 0 | J42: 0 | K42: 0 | L42: 0 | M42: 0 | N42: 0 | O42: 0 | P42: 0 | Q42: 0 | R42: 0 | S42: 0
B43: 529 | E43: Wyoming | G43: 0 | H43: 0 | I43: 0 | J43: 0 | K43: 0 | L43: 0 | M43: 0 | N43: 0 | O43: 0 | P43: 0 | Q43: 0 | R43: 0 | S43: 0
B44: 530 | E44: Total | G44: 0 | H44: 0 | I44: 0 | J44: 0 | K44: 0 | L44: 0 | M44: 0 | N44: 0 | O44: 0 | P44: 0 | Q44: 0 | R44: 0 | S44: 0
B45: 531
A46: %,FACCOUNT,TQGCACCTS,V802000 | B46: 532 | C46: 802 | D46: Natural Gas Gasoline Plant Outlet Purchase
B47: 533 | E47: Utah | G47: 0 | H47: 0 | I47: 0 | J47: 0 | K47: 0 | L47: 0 | M47: 0 | N47: 0 | O47: 0 | P47: 0 | Q47: 0 | R47: 0 | S47: 0
B48: 534 | E48: Wyoming | G48: 0 | H48: 0 | I48: 0 | J48: 0 | K48: 0 | L48: 0 | M48: 0 | N48: 0 | O48: 0 | P48: 0 | Q48: 0 | R48: 0 | S48: 0
B49: 535 | E49: Total | G49: 0 | H49: 0 | I49: 0 | J49: 0 | K49: 0 | L49: 0 | M49: 0 | N49: 0 | O49: 0 | P49: 0 | Q49: 0 | R49: 0 | S49: 0
B50: 536
A51: %,FACCOUNT,TQGCACCTS,V803000,V803002 | B51: 537 | C51: 803 | D51: Natural Gas Transmission Line - Purchases
B52: 538 | E52: Utah | G52: 9597938.254 | H52: -2303986.467 | I52: -61676.45221 | J52: 0 | K52: 0 | L52: 0 | M52: 9808527.56 | N52: 13509379.61 | O52: 44504029.17 | P52: 46457618.97 | Q52: 32757433.61 | R52: 9646664.495 | S52: 163915928.7
B53: 539 | E53: Wyoming | G53: 432617.8863 | H53: -114363.7833 | I53: -1753.847795 | J53: 0 | K53: 0 | L53: 0 | M53: 435472.44 | N53: 559080.6091 | O53: 1362227.833 | P53: 1551163.77 | Q53: 1296784.631 | R53: 397236.2755 | S53: 5918465.814
B54: 540 | E54: Total | G54: 10030556.14 | H54: -2418350.25 | I54: -63430.3 | J54: 0 | K54: 0 | L54: 0 | M54: 10244000 | N54: 14068460.22 | O54: 45866257 | P54: 48008782.74 | Q54: 34054218.24 | R54: 10043900.77 | S54: 169834394.6
B55: 541
A56: %,FACCOUNT,V804000,FAFFILIATE,V09 | B56: 542 | C56: 804 | D56: Natural Gas City Gate Purchases - Resources
B57: 543 | E57: Utah | G57: 0 | H57: 0 | I57: 0 | J57: 0 | K57: 0 | L57: 0 | M57: 0 | N57: 0 | O57: 0 | P57: 0 | Q57: 0 | R57: 0 | S57: 0
B58: 544 | E58: Wyoming | G58: 0 | H58: 0 | I58: 0 | J58: 0 | K58: 0 | L58: 0 | M58: 0 | N58: 0 | O58: 0 | P58: 0 | Q58: 0 | R58: 0 | S58: 0
B59: 545 | E59: Total | G59: 0 | H59: 0 | I59: 0 | J59: 0 | K59: 0 | L59: 0 | M59: 0 | N59: 0 | O59: 0 | P59: 0 | Q59: 0 | R59: 0 | S59: 0
B60: 546
A61: %,FACCOUNT,V804000,FAFFILIATE,V | B61: 547 | C61: 804.1 | D61: Natural Gas City Gate Purchases - Other
B62: 548 | E62: Utah | G62: 0 | H62: 2590217.03 | I62: 61676.1605 | J62: 0 | K62: 0 | L62: 0 | M62: 0 | N62: 29383.956 | O62: 2606898.742 | P62: 6096.766338 | Q62: 496839.8563 | R62: 45168.0426 | S62: 5836280.554
B63: 549 | E63: Wyoming | G63: 0 | H63: 128571.5101 | I63: 1753.8395 | J63: 0 | K63: 0 | L63: 0 | M63: 0 | N63: 1216.044 | O63: 79794.79814 | P63: 203.5636623 | Q63: 19668.64368 | R63: 1859.9574 | S63: 233068.3564
B64: 550 | E64: Total | G64: 0 | H64: 2718788.54 | I64: 63430 | J64: 0 | K64: 0 | L64: 0 | M64: 0 | N64: 30600 | O64: 2686693.54 | P64: 6300.33 | Q64: 516508.5 | R64: 47028 | S64: 6069348.91
B65: 551
B66: 552 | C66: 805 | D66: Purchased Gas Cost Adjustments - Other
B67: 553 | E67: Utah | G67: 0 | H67: 0 | I67: 0 | J67: 0 | K67: 0 | L67: 0 | M67: 0 | N67: 0 | O67: 0 | P67: 0 | Q67: 0 | R67: 0 | S67: 0
B68: 554 | E68: Wyoming | G68: 0 | H68: 0 | I68: 0 | J68: 0 | K68: 0 | L68: 0 | M68: 0 | N68: 0 | O68: 0 | P68: 0 | Q68: 0 | R68: 0 | S68: 0
B69: 555 | E69: Total | G69: 0 | H69: 0 | I69: 0 | J69: 0 | K69: 0 | L69: 0 | M69: 0 | N69: 0 | O69: 0 | P69: 0 | Q69: 0 | R69: 0 | S69: 0
B70: 556
A71: %,FACCOUNT,TQGCACCTS,V805100 | B71: 557 | C71: 805.1 | D71: Purchased Gas Cost Adjustments - Utah
B72: 558 | E72: Utah | G72: -4497313.879 | H72: -8766696.419 | I72: -11508977.69 | J72: -6029294.141 | K72: -1651123.553 | L72: -7719302.045 | M72: 878699.1054 | N72: 4067926.392 | O72: 11386926.54 | P72: 8844729.178 | Q72: -13565366.18 | R72: -643376.6415 | S72: -29203169.33
B73: 559 | E73: Wyoming | G73: -202712.1214 | H73: -435155.5811 | I73: -327272.3125 | J73: -181286.8594 | K73: -49645.44711 | L73: -269212.9555 | M73: 39011.89461 | N73: 168349.6082 | O73: 348543.459 | P73: 295314.8216 | Q73: -537018.8208 | R73: -26493.3585 | S73: -1177577.673
B74: 560 | E74: Total | G74: -4700026 | H74: -9201852 | I74: -11836250 | J74: -6210581 | K74: -1700769 | L74: -7988515 | M74: 917711 | N74: 4236276 | O74: 11735470 | P74: 9140044 | Q74: -14102385 | R74: -669870 | S74: -30380747
B75: 561
A76: %,FACCOUNT,TQGCACCTS,V806000 | B76: 562 | C76: 806 | D76: Exchange Gas
B77: 563 | E77: Utah | G77: 0 | H77: 0 | I77: 0 | J77: 0 | K77: 0 | L77: 0 | M77: 0 | N77: 0 | O77: 0 | P77: 0 | Q77: 0 | R77: 0 | S77: 0
B78: 564 | E78: Wyoming | G78: 0 | H78: 0 | I78: 0 | J78: 0 | K78: 0 | L78: 0 | M78: 0 | N78: 0 | O78: 0 | P78: 0 | Q78: 0 | R78: 0 | S78: 0
B79: 565 | E79: Total | G79: 0 | H79: 0 | I79: 0 | J79: 0 | K79: 0 | L79: 0 | M79: 0 | N79: 0 | O79: 0 | P79: 0 | Q79: 0 | R79: 0 | S79: 0
B80: 566
A81: %,FACCOUNT,TQGCACCTS,V808100 | B81: 567 | C81: 808.1 | D81: Gas Withdrawn from Underground Storage
B82: 568 | E82: Utah | G82: 3278505.845 | H82: 1574083.668 | I82: 492724.7885 | J82: 44973.34603 | K82: -384924.0292 | L82: 329656.3951 | M82: 366742.0232 | N82: 8293649.707 | O82: 25044531.93 | P82: 10157841.93 | Q82: 11387479.63 | R82: 12230981.47 | S82: 72816246.71
B83: 569 | E83: Wyoming | G83: 147775.5151 | H83: 78133.3424 | I83: 14011.25151 | J83: 1352.243972 | K83: -11573.77078 | L83: 11496.86486 | M83: 16282.36682 | N83: 343229.583 | O83: 766590.3311 | P83: 339158.07 | Q83: 450801.7553 | R83: 503654.8672 | S83: 2660912.421
B84: 570 | E84: Total | G84: 3426281.36 | H84: 1652217.01 | I84: 506736.04 | J84: 46325.59 | K84: -396497.8 | L84: 341153.26 | M84: 383024.39 | N84: 8636879.29 | O84: 25811122.26 | P84: 10497000 | Q84: 11838281.39 | R84: 12734636.34 | S84: 75477159.13
B85: 571
A86: %,FACCOUNT,TQGCACCTS,V808200 | B86: 572 | C86: 808.2 | D86: Gas Delivered to Underground Storage
B87: 573 | E87: Utah | G87: -2029782.256 | H87: -5419883.151 | I87: -7169605.427 | J87: -12693437.5 | K87: -13097339.47 | L87: -10422079.63 | M87: -7863077.72 | N87: -3081515.804 | O87: -5904959.823 | P87: -1135100.37 | Q87: -550825.731 | R87: -305891.5211 | S87: -69673498.4
B88: 574 | E88: Wyoming | G88: -91490.49371 | H88: -269028.6385 | I88: -203876.7831 | J88: -381662.1591 | K88: -393806.5523 | L88: -363473.128 | M88: -349099.6604 | N88: -127527.376 | O88: -180745.4465 | P88: -37899.63 | Q88: -21805.80904 | R88: -12596.18893 | S88: -2433011.866
B89: 575 | E89: Total | G89: -2121272.75 | H89: -5688911.79 | I89: -7373482.21 | J89: -13075099.66 | K89: -13491146.02 | L89: -10785552.76 | M89: -8212177.38 | N89: -3209043.18 | O89: -6085705.27 | P89: -1173000 | Q89: -572631.54 | R89: -318487.71 | S89: -72106510.27
B90: 576
A91: %,FACCOUNT,TQGCACCTS,V808300 | B91: 577 | C91: 808.3 | D91: Exchange Gas
B92: 578 | E92: Utah | G92: 325330.0588 | H92: 320356.3592 | I92: 321286.8041 | J92: 312899.8295 | K92: 307803.077 | L92: 304132.2957 | M92: 300136.7304 | N92: 301309.4225 | O92: 305566.876 | P92: 306699.6686 | Q92: 308184.7392 | R92: 282947.6095 | S92: 3696653.47
B93: 579 | E93: Wyoming | G93: 14663.94122 | H93: 15901.64082 | I93: 9136.19595 | J93: 9408.17052 | K93: 9254.92302 | L93: 10606.7043 | M93: 13325.26962 | N93: 12469.57746 | O93: 9353.124 | P93: 10240.3314 | Q93: 12200.2608 | R93: 11651.39045 | S93: 138211.5296
B94: 580 | E94: Total | G94: 339994 | H94: 336258 | I94: 330423 | J94: 322308 | K94: 317058 | L94: 314739 | M94: 313462 | N94: 313779 | O94: 314920 | P94: 316940 | Q94: 320385 | R94: 294599 | S94: 3834865
B95: 581
A96: %,FACCOUNT,TQGCACCTS,V813000,V813001,V813002,V813003,V813004 | B96: 582 | C96: 813 | D96: Other Gas Supply Expenses - Gas Cost
B97: 583 | E97: Utah | G97: 24633688.61 | H97: 25145694.52 | I97: 25431586.49 | J97: 25173874.83 | K97: 21589519.69 | L97: 23671683.33 | M97: 26000393.5 | N97: 27610124.93 | O97: 27585741.56 | P97: 28414879.89 | Q97: 29983757.97 | R97: 31505267.91 | S97: 316746213.2
B98: 584 | E98: Wyoming | G98: 1110339.952 | H98: 1248165.647 | I98: 723179.2733 | J98: 756919.8982 | K98: 649146.671 | L98: 825556.9991 | M98: 1154348.064 | N98: 1142634.667 | O98: 844374.4455 | P98: 948738.5105 | Q98: 1186981.769 | R98: 1297343.272 | S98: 11887729.17
B99: 585 | E99: Total | G99: 25744028.56 | H99: 26393860.17 | I99: 26154765.76 | J99: 25930794.73 | K99: 22238666.36 | L99: 24497240.33 | M99: 27154741.56 | N99: 28752759.6 | O99: 28430116.01 | P99: 29363618.4 | Q99: 31170739.74 | R99: 32802611.18 | S99: 328633942.4
B100: 586
B101: 587 | C101: 813 | D101: Other Gas Supply Expenses - SNG Cost
B102: 588 | E102: Utah | S102: 0
B103: 589 | E103: Wyoming | S103: 0
B104: 590 | E104: Total | G104: 0 | H104: 0 | I104: 0 | J104: 0 | K104: 0 | L104: 0 | M104: 0 | N104: 0 | O104: 0 | P104: 0 | Q104: 0 | R104: 0 | S104: 0
B105: 591
B106: 592 | C106: 813.5 | D106: CO2 Processing Expenses
A107: %,FACCOUNT,TQGCACCTS,V813005,V813007,V813008 | B107: 593 | E107: Utah | G107: 0 | H107: 0 | I107: 0 | J107: 0 | K107: 0 | L107: 0 | M107: 0 | N107: 0 | O107: 0 | P107: 0 | Q107: 0 | R107: 0 | S107: 0
A108: %,FACCOUNT,TQGCACCTS,V813006 | B108: 594 | E108: Wyoming | G108: 0 | H108: 0 | I108: 0 | J108: 0 | K108: 0 | L108: 0 | M108: 0 | N108: 0 | O108: 0 | P108: 0 | Q108: 0 | R108: 0 | S108: 0
B109: 595 | E109: Total | G109: 0 | H109: 0 | I109: 0 | J109: 0 | K109: 0 | L109: 0 | M109: 0 | N109: 0 | O109: 0 | P109: 0 | Q109: 0 | R109: 0 | S109: 0
B110: 596
A111: %,FACCOUNT,TQGCACCTS,V858000 | B111: 597 | C111: 858 | D111: Transportation GRI & ACA - Gas Cost
B112: 598 | E112: Utah | G112: 4546674.515 | H112: 4557523.385 | I112: 4635992.791 | J112: 4623829.01 | K112: 4624310.978 | L112: 4575676.095 | M112: 4563040.608 | N112: 5757943.219 | O112: 5961285.748 | P112: 5886670.93 | Q112: 5852465.385 | R112: 5710067.004 | S112: 61295479.67
B113: 599 | E113: Wyoming | G113: 204937.0049 | H113: 226223.3848 | I113: 131830.3087 | J113: 139027.79 | K113: 139042.2817 | L113: 159578.0652 | M113: 202586.822 | N113: 238290.3209 | O113: 182469.5318 | P113: 196548.8304 | Q113: 231684.4248 | R113: 235132.6462 | S113: 2287351.411
B114: 600 | E114: Total | G114: 4751611.52 | H114: 4783746.77 | I114: 4767823.1 | J114: 4762856.8 | K114: 4763353.26 | L114: 4735254.16 | M114: 4765627.43 | N114: 5996233.54 | O114: 6143755.28 | P114: 6083219.76 | Q114: 6084149.81 | R114: 5945199.65 | S114: 63582831.08
B115: 601
A116: %,FACCOUNT,TQGCACCTS,V858001 | B116: 602 | C116: 858 | D116: Trans & Comp of Gas by Others - SNG Cost
B117: 603 | E117: Utah | G117: 0 | H117: 0 | I117: 0 | J117: 0 | K117: 0 | L117: 0 | M117: 0 | N117: 0 | O117: 0 | P117: 0 | Q117: 0 | R117: 0 | S117: 0
B118: 604 | E118: Wyoming | G118: 0 | H118: 0 | I118: 0 | J118: 0 | K118: 0 | L118: 0 | M118: 0 | N118: 0 | O118: 0 | P118: 0 | Q118: 0 | R118: 0 | S118: 0
B119: 605 | E119: Total | G119: 0 | H119: 0 | I119: 0 | J119: 0 | K119: 0 | L119: 0 | M119: 0 | N119: 0 | O119: 0 | P119: 0 | Q119: 0 | R119: 0 | S119: 0
B120: 606
B121: 607 | C121: System Total Gas Purchase Expenses
B122: 608 | D122: Utah Gas Purchase Expenses | G122: 40404707.13 | H122: 22239664.91 | I122: 17586049.62 | J122: 16795199.85 | K122: 16193053.34 | L122: 15781662.14 | M122: 39154453.96 | N122: 61603579.45 | O122: 117887173.6 | P122: 105504344.6 | Q122: 73818642.21 | R122: 66334083.21 | S122: 593302614.1
B123: 609 | D123: Wyoming Gas Purchase Expenses | G123: 1751517.08 | H123: 1026717.589 | I123: 458136.0906 | J123: 460545.9159 | K123: 442127.4731 | L123: 495410.7194 | M123: 1670998.092 | N123: 2479748.69 | O123: 3547816.046 | P123: 3466977.969 | Q123: 2853645.827 | R123: 2667394.221 | S123: 21321035.71
B124: 610
B125: 611
B126: 612 | D126: System Total Gas Purchase Expenses | G126: 42156224.21 | H126: 23266382.5 | I126: 18044185.71 | J126: 17255745.77 | K126: 16635180.81 | L126: 16277072.86 | M126: 40825452.05 | N126: 64083328.14 | O126: 121434989.7 | P126: 108971322.6 | Q126: 76672288.04 | R126: 69001477.43 | S126: 614623649.8
B127: 613
B128: 614
B129: 615 | C129: OPERATION AND MAINTENANCE EXPENSES
B130: 616
B131: 617 | C131: Production Expenses
B132: 618
A133: %,FACCOUNT,TQGCACCTS,V810000,V810001 | B133: 619 | C133: 810 | D133: Gas Used for Compressor Station Fuel | G133: -2104.22 | H133: -3103.39 | I133: -2979 | J133: -3086 | K133: -3420 | L133: -3532.86 | M133: -3851.56 | N133: -4007.24 | O133: -3617.18 | P133: -3350.33 | Q133: -3256.53 | R133: -3231.39 | S133: -39539.7
A134: %,FACCOUNT,TQGCACCTS,V812000,V812001 | B134: 620 | C134: 812 | D134: Gas Used for Other Utility Operations | G134: -95546.68 | H134: -88304.01 | I134: -82405.28 | J134: -84254.94 | K134: -88081.44 | L134: -66650.75 | M134: -78001.5 | N134: -89296.14 | O134: -110918.29 | P134: -183038.13 | Q134: -128145.35 | R134: -104358.43 | S134: -1199000.94
B135: 621
B136: 622 | D136: Total Production Expenses | G136: -97650.9 | H136: -91407.4 | I136: -85384.28 | J136: -87340.94 | K136: -91501.44 | L136: -70183.61 | M136: -81853.06 | N136: -93303.38 | O136: -114535.47 | P136: -186388.46 | Q136: -131401.88 | R136: -107589.82 | S136: -1238540.64
B137: 623
B138: 624 | C138: Distribution Operations & Maintenance Expenses
B139: 625
B140: 626 | C140: 870 | D140: Operation Supervision & Engineering
B141: 627 | E141: Utah | G141: 876635.95 | H141: 889732.88 | I141: 792262.62 | J141: 914510.75 | K141: 1043579.09 | L141: 957757.54 | M141: 715499.5 | N141: 825667.3 | O141: 1177798.32 | P141: 1003847.52 | Q141: 821717.22 | R141: 851647.68 | S141: 10870656.37
B142: 628 | E142: Wyoming | G142: 38056.42 | H142: 34575.57 | I142: 34398.56 | J142: 38723.73 | K142: 51052.74 | L142: 43531.36 | M142: 35275.45 | N142: 50506.44 | O142: 67340.05 | P142: 47241.6 | Q142: 39962.79 | R142: 40492.93 | S142: 521157.64
A143: %,FACCOUNT,TQGCACCTS,N870 | B143: 629 | E143: Total | G143: 914692.37 | H143: 924308.45 | I143: 826661.18 | J143: 953234.48 | K143: 1094631.83 | L143: 1001288.9 | M143: 750774.95 | N143: 876173.74 | O143: 1245138.37 | P143: 1051089.12 | Q143: 861680.01 | R143: 892140.61 | S143: 11391814.01
B144: 630
B145: 631 | C145: 871 | D145: Distribution Load Dispatching
B146: 632 | E146: Utah | G146: 160692.8 | H146: 180601.03 | I146: 151388.26 | J146: 161699.28 | K146: 158539.62 | L146: 152596.58 | M146: 165930.18 | N146: 179398.43 | O146: 187605.69 | P146: 151325.98 | Q146: 163157.43 | R146: 149112.85 | S146: 1962048.13
B147: 633 | E147: Wyoming | G147: 4391.23 | H147: 5068.79 | I147: 4360.97 | J147: 4521.19 | K147: 5988.83 | L147: 5698.63 | M147: 6214.42 | N147: 6680.22 | O147: 7006.02 | P147: 5391.07 | Q147: 5830.07 | R147: 5264.25 | S147: 66415.69
A148: %,FACCOUNT,TQGCACCTS,N871 | B148: 634 | E148: Total | G148: 165084.03 | H148: 185669.82 | I148: 155749.23 | J148: 166220.47 | K148: 164528.45 | L148: 158295.21 | M148: 172144.6 | N148: 186078.65 | O148: 194611.71 | P148: 156717.05 | Q148: 168987.5 | R148: 154377.1 | S148: 2028463.82
B149: 635
B150: 636 | C150: 872 | D150: Compressor Station Labor & Expenses
B151: 637 | E151: Utah | G151: 0 | H151: 0 | I151: 0 | J151: 0 | K151: 0 | L151: 0 | M151: 0 | N151: 1056.74 | O151: 85.22 | P151: 0 | Q151: 0 | R151: 439.62 | S151: 1581.58
B152: 638 | E152: Wyoming | G152: 0 | H152: 0 | I152: 0 | J152: 0 | K152: 0 | L152: 0 | M152: 0 | N152: 0 | O152: 0 | P152: 0 | Q152: 0 | R152: 0 | S152: 0
A153: %,FACCOUNT,TQGCACCTS,N872 | B153: 639 | E153: Total | G153: 0 | H153: 0 | I153: 0 | J153: 0 | K153: 0 | L153: 0 | M153: 0 | N153: 1056.74 | O153: 85.22 | P153: 0 | Q153: 0 | R153: 439.62 | S153: 1581.58
B154: 640
B155: 641 | C155: 873 | D155: Compressor Station Fuel & Power
B156: 642 | E156: Utah | G156: 2139.33 | H156: 3121.3 | I156: 2979 | J156: 3086 | K156: 3420 | L156: 3537.08 | M156: 3884.4 | N156: 4030.83 | O156: 3663.57 | P156: 3418.99 | Q156: 3316.48 | R156: 3276.41 | S156: 39873.39
B157: 643 | E157: Wyoming | G157: 0 | H157: 0 | I157: 0 | J157: 0 | K157: 0 | L157: 0 | M157: 0 | N157: 0 | O157: 0 | P157: 0 | Q157: 0 | R157: 0 | S157: 0
A158: %,FACCOUNT,TQGCACCTS,N873 | B158: 644 | E158: Total | G158: 2139.33 | H158: 3121.3 | I158: 2979 | J158: 3086 | K158: 3420 | L158: 3537.08 | M158: 3884.4 | N158: 4030.83 | O158: 3663.57 | P158: 3418.99 | Q158: 3316.48 | R158: 3276.41 | S158: 39873.39
B159: 645
B160: 646 | C160: 874 | D160: Mains & Service Expenses
B161: 647 | E161: Utah | G161: 642444.26 | H161: 763648.36 | I161: 829519.27 | J161: 739366.41 | K161: 704374.12 | L161: 625711.76 | M161: 665914.48 | N161: 690226.99 | O161: 832748.29 | P161: 605886.16 | Q161: 718132.64 | R161: 594387.93 | S161: 8412360.67
B162: 648 | E162: Wyoming | G162: 46331.66 | H162: 58793.54 | I162: 54884.22 | J162: 65325.71 | K162: 58778.07 | L162: 51922.09 | M162: 51869.93 | N162: 58432.22 | O162: 61020.54 | P162: 40024.22 | Q162: 40010.78 | R162: 38379.51 | S162: 625772.49
A163: %,FACCOUNT,TQGCACCTS,N874 | B163: 649 | E163: Total | G163: 688775.92 | H163: 822441.9 | I163: 884403.49 | J163: 804692.12 | K163: 763152.19 | L163: 677633.85 | M163: 717784.41 | N163: 748659.21 | O163: 893768.83 | P163: 645910.38 | Q163: 758143.42 | R163: 632767.44 | S163: 9038133.16
B164: 650
B165: 651 | C165: 875 | D165: Measuring & Regulating Station Expenses
B166: 652 | E166: Utah | G166: 120355.28 | H166: 160421.47 | I166: 153112.5 | J166: 148636.74 | K166: 158025.49 | L166: 142853.72 | M166: 297690.4 | N166: 222341.51 | O166: 243621.97 | P166: 208653.38 | Q166: 184616.16 | R166: 304084.17 | S166: 2344412.79
B167: 653 | E167: Wyoming | G167: 3411.33 | H167: 5319.91 | I167: 4411.05 | J167: 4153.34 | K167: 5973.48 | L167: 5541.88 | M167: 11169.44 | N167: 8355.42 | O167: 9143.96 | P167: 7656.29 | Q167: 6741.62 | R167: 10879.63 | S167: 82757.35
A168: %,FACCOUNT,TQGCACCTS,N875 | B168: 654 | E168: Total | G168: 123766.61 | H168: 165741.38 | I168: 157523.55 | J168: 152790.08 | K168: 163998.97 | L168: 148395.6 | M168: 308859.84 | N168: 230696.93 | O168: 252765.93 | P168: 216309.67 | Q168: 191357.78 | R168: 314963.8 | S168: 2427170.14
B169: 655
B170: 656 | C170: 878 | D170: Meter & House Regulator Expenses
B171: 657 | E171: Utah | G171: 363297.62 | H171: 315847.88 | I171: 333830.71 | J171: 358554.44 | K171: 310950.97 | L171: 357558.74 | M171: 402091.08 | N171: 445042.53 | O171: 415401.06 | P171: 263804.05 | Q171: 284511.19 | R171: 296458.77 | S171: 4147349.04
B172: 658 | E172: Wyoming | G172: 11469.65 | H172: 7178.33 | I172: 5738.46 | J172: 10089.55 | K172: 6645.55 | L172: 8375.05 | M172: 16433.58 | N172: 14078.44 | O172: 10289.61 | P172: 9728.02 | Q172: 17877.08 | R172: 14655.01 | S172: 132558.33
A173: %,FACCOUNT,TQGCACCTS,N878 | B173: 659 | E173: Total | G173: 374767.27 | H173: 323026.21 | I173: 339569.17 | J173: 368643.99 | K173: 317596.52 | L173: 365933.79 | M173: 418524.66 | N173: 459120.97 | O173: 425690.67 | P173: 273532.07 | Q173: 302388.27 | R173: 311113.78 | S173: 4279907.37
B174: 660
B175: 661 | C175: 879 | D175: Customer Installations Expenses
B176: 662 | E176: Utah | G176: 237181.09 | H176: 259967.16 | I176: 232218.37 | J176: 231044.1 | K176: 235202.66 | L176: 234854.69 | M176: 267950.94 | N176: 298692.97 | O176: 381492.04 | P176: 291353.51 | Q176: 270820.27 | R176: 272771.97 | S176: 3213549.77
B177: 663 | E177: Wyoming | G177: 11632.48 | H177: 10469.89 | I177: 8240.46 | J177: 9531.82 | K177: 12194.81 | L177: 7304.21 | M177: 15181.33 | N177: 16074.76 | O177: 18755.8 | P177: 14944.64 | Q177: 14591.92 | R177: 17646.95 | S177: 156569.07
A178: %,FACCOUNT,TQGCACCTS,N879 | B178: 664 | E178: Total | G178: 248813.57 | H178: 270437.05 | I178: 240458.83 | J178: 240575.92 | K178: 247397.47 | L178: 242158.9 | M178: 283132.27 | N178: 314767.73 | O178: 400247.84 | P178: 306298.15 | Q178: 285412.19 | R178: 290418.92 | S178: 3370118.84
B179: 665
B180: 666 | C180: 880 | D180: Other Expenses
B181: 667 | E181: Utah | G181: 697428.08 | H181: 904249.69 | I181: 615886.2 | J181: 649803.14 | K181: 690217.78 | L181: 701400.45 | M181: 706212.1 | N181: 962913.05 | O181: 928064.87 | P181: 749029.75 | Q181: 1130762.74 | R181: 740441.54 | S181: 9476409.39
B182: 668 | E182: Wyoming | G182: 74093.32 | H182: 62038.43 | I182: 58814.76 | J182: 55318.64 | K182: 48531.67 | L182: 46533.37 | M182: 52797.45 | N182: 80853.53 | O182: 95061.78 | P182: 74263.47 | Q182: 106425.73 | R182: 89479.19 | S182: 844211.34
A183: %,FACCOUNT,TQGCACCTS,N880 | B183: 669 | E183: Total | G183: 771521.4 | H183: 966288.12 | I183: 674700.96 | J183: 705121.78 | K183: 738749.45 | L183: 747933.82 | M183: 759009.55 | N183: 1043766.58 | O183: 1023126.65 | P183: 823293.22 | Q183: 1237188.47 | R183: 829920.73 | S183: 10320620.73
B184: 670
B185: 671 | C185: 881 | D185: Rents
B186: 672 | E186: Utah | G186: 6392.7 | H186: 6383.86 | I186: 6284.27 | J186: 6218.72 | K186: 6198.18 | L186: 6066.08 | M186: 6008.61 | N186: 5976.21 | O186: 6089.58 | P186: 6183.64 | Q186: 7761.55 | R186: 6923.79 | S186: 76487.19
B187: 673 | E187: Wyoming | G187: 174.69 | H187: 179.17 | I187: 181.03 | J187: 173.88 | K187: 234.14 | L187: 226.53 | M187: 225.03 | N187: 222.54 | O187: 227.41 | P187: 220.3 | Q187: 277.34 | R187: 244.44 | S187: 2586.5
A188: %,FACCOUNT,TQGCACCTS,N881 | B188: 674 | E188: Total | G188: 6567.39 | H188: 6563.03 | I188: 6465.3 | J188: 6392.6 | K188: 6432.32 | L188: 6292.61 | M188: 6233.64 | N188: 6198.75 | O188: 6316.99 | P188: 6403.94 | Q188: 8038.89 | R188: 7168.23 | S188: 79073.69
B189: 675
B190: 676 | C190: 885 | D190: Maintenance Supervision & Engineering
B191: 677 | E191: Utah | G191: 57843.97 | H191: 42024.39 | I191: 40705.72 | J191: 47173.93 | K191: 48646.12 | L191: 46863.37 | M191: 47806.59 | N191: 55877.31 | O191: 72576.32 | P191: 52222.46 | Q191: 42702.93 | R191: 44451.6 | S191: 598894.71
B192: 678 | E192: Wyoming | G192: 1462.23 | H192: 1097.43 | I192: 1081.65 | J192: 1209.81 | K192: 1746.62 | L192: 1633.58 | M192: 1651.29 | N192: 1989.93 | O192: 2478.12 | P192: 1732.35 | Q192: 1359.35 | R192: 1423.66 | S192: 18866.02
A193: %,FACCOUNT,TQGCACCTS,N885 | B193: 679 | E193: Total | G193: 59306.2 | H193: 43121.82 | I193: 41787.37 | J193: 48383.74 | K193: 50392.74 | L193: 48496.95 | M193: 49457.88 | N193: 57867.24 | O193: 75054.44 | P193: 53954.81 | Q193: 44062.28 | R193: 45875.26 | S193: 617760.73
B194: 680
B195: 681 | C195: 886 | D195: Maintenance of Structures & Improvements
B196: 682 | E196: Utah | G196: 4665.41 | H196: 4966.47 | I196: 8047.72 | J196: 4610.83 | K196: 5095.13 | L196: 5548.84 | M196: 4952.84 | N196: 4814.75 | O196: 6810.96 | P196: 3805.01 | Q196: 5581.12 | R196: 5822.13 | S196: 64721.21
B197: 683 | E197: Wyoming | G197: 127.49 | H197: 139.39 | I197: 135.18 | J197: 128.92 | K197: 192.48 | L197: 207.22 | M197: 185.49 | N197: 179.29 | O197: 254.35 | P197: 135.55 | Q197: 199.43 | R197: 205.54 | S197: 2090.33
A198: %,FACCOUNT,TQGCACCTS,N886 | B198: 684 | E198: Total | G198: 4792.9 | H198: 5105.86 | I198: 8182.9 | J198: 4739.75 | K198: 5287.61 | L198: 5756.06 | M198: 5138.33 | N198: 4994.04 | O198: 7065.31 | P198: 3940.56 | Q198: 5780.55 | R198: 6027.67 | S198: 66811.54
B199: 685
B200: 686 | C200: 887 | D200: Maintenance of Mains
B201: 687 | E201: Utah | G201: 549462.9 | H201: 570455.08 | I201: 522540.7 | J201: 561660.29 | K201: 544124.99 | L201: 541343.68 | M201: 496514.63 | N201: 527276.68 | O201: 550475.28 | P201: 644086.99 | Q201: 580291.35 | R201: 797268.29 | S201: 6885500.86
B202: 688 | E202: Wyoming | G202: 25655.86 | H202: -42521.43 | I202: 12669.61 | J202: 24319.94 | K202: 19859.24 | L202: 10246.84 | M202: 10599.85 | N202: 15631.5 | O202: 28083.19 | P202: 29364 | Q202: 20829.56 | R202: 24930.76 | S202: 179668.92
A203: %,FACCOUNT,TQGCACCTS,N887 | B203: 689 | E203: Total | G203: 575118.76 | H203: 527933.65 | I203: 535210.31 | J203: 585980.23 | K203: 563984.23 | L203: 551590.52 | M203: 507114.48 | N203: 542908.18 | O203: 578558.47 | P203: 673450.99 | Q203: 601120.91 | R203: 822199.05 | S203: 7065169.78
B204: 690
B205: 691 | C205: 888 | D205: Maint of Compressor Station Equipment
B206: 692 | E206: Utah | G206: 65376.36 | H206: 238012.81 | I206: 173773.2 | J206: 72076.68 | K206: 168821.92 | L206: 219792.48 | M206: 78999.48 | N206: -36000.83 | O206: 58109.47 | P206: 220918.81 | Q206: 194821.75 | R206: 142405.87 | S206: 1597108
... 843 more rows

Sheet Rate Base
A1: %,LACTUALS
C2: Company: | F2: Company:
C3: Period Ended: | F3: Period Ended:
C4: Date,Time, Stamp: | F4: Date,Time, Stamp:
U5: Historical
U6: 13-Month Avg
U7: Period Ended
G8: =+H8-30 -> 2013-03-01 | H8: =EOMONTH(I8,-1) -> 2013-03-31 | I8: 2013-04-30 | J8: 2013-05-31 | K8: 2013-06-30 | L8: 2013-07-31 | M8: 2013-08-31 | N8: 2013-09-30 | O8: 2013-10-31 | P8: 2013-11-30 | Q8: 2013-12-31 | R8: 2014-01-31 | S8: =EOMONTH(T8,-1) -> 2014-02-28 | T8: =EOMONTH(U8,0) -> 2014-03-31 | U8: 2014-03-31
C10: UTILITY RATE BASE
D11: NET UTILITY PLANT
D13: Intangible Plant
C14: 101 | D14: Gas Plant In Service
E15: Intangible Plant
B16: 1 | D16: 302 | E16: Franchises & Consents
B17: =+B16+1 -> 2 | E17: Distribution - Wyoming | H17: 10883.08 | I17: 10883.08 | J17: 10883.08 | K17: 10883.08 | L17: 10883.08 | M17: 10883.08 | N17: 10883.08 | O17: 10883.08 | P17: 10883.08 | Q17: 10883.08 | R17: 10883.08 | S17: 10883.08 | T17: 10883.08 | U17: 10883.08
B18: 3 | E18: Distribution - Utah | H18: 58742.88 | I18: 58742.88 | J18: 58742.88 | K18: 58742.88 | L18: 58742.88 | M18: 58742.88 | N18: 58742.88 | O18: 58742.88 | P18: 58742.88 | Q18: 58742.88 | R18: 58742.88 | S18: 58742.88 | T18: 58742.88 | U18: 58742.88
B19: 4
A20: ="%,FACCOUNT,TQGCACCTS,N"&(D16) -> %,FACCOUNT,TQGCACCTS,N302 | B20: 5 | E20: Total Intangible Plant | H20: 69625.96 | I20: 69625.96 | J20: 69625.96 | K20: 69625.96 | L20: 69625.96 | M20: 69625.96 | N20: 69625.96 | O20: 69625.96 | P20: 69625.96 | Q20: 69625.96 | R20: 69625.96 | S20: 69625.96 | T20: 69625.96 | U20: 69625.96
B21: 6
B22: 7 | E22: Production & Gathering Plant
A23: ="%,FACCOUNT,TQGCACCTS,N"&(D23) -> %,FACCOUNT,TQGCACCTS,N325 | B23: 8 | D23: 325 | E23: Land & Land Rights | H23: 6266900.69 | I23: 6266900.69 | J23: 6266900.69 | K23: 6266900.69 | L23: 6266900.69 | M23: 6266900.69 | N23: 6266900.69 | O23: 6266900.69 | P23: 6266900.69 | Q23: 6266900.69 | R23: 6266900.69 | S23: 6266900.69 | T23: 6266900.69 | U23: 6266900.69
A24: %,FACCOUNT,TQGCACCTS,N326,N327,N328,N329 | B24: 9 | D24: 326...9 | E24: Structures | H24: 1443936.84 | I24: 1443936.84 | J24: 1443936.84 | K24: 1443936.84 | L24: 1443936.84 | M24: 1443936.84 | N24: 1443936.84 | O24: 1443936.84 | P24: 1443936.84 | Q24: 1443936.84 | R24: 1443936.84 | S24: 1443936.84 | T24: 1443936.84 | U24: 1443936.84
A25: ="%,FACCOUNT,TQGCACCTS,N"&(D25) -> %,FACCOUNT,TQGCACCTS,N330 | B25: 10 | D25: 330 | E25: Gas Wells - Construction | H25: 52986090.91 | I25: 52986090.91 | J25: 52986090.91 | K25: 52986090.91 | L25: 52986090.91 | M25: 52986090.91 | N25: 52986090.91 | O25: 52986090.91 | P25: 52986090.91 | Q25: 52986090.91 | R25: 52986090.91 | S25: 52986090.91 | T25: 52986090.91 | U25: 52986090.91
A26: ="%,FACCOUNT,TQGCACCTS,N"&(D26) -> %,FACCOUNT,TQGCACCTS,N331 | B26: 11 | D26: 331 | E26: Gas Wells - Equipment | H26: 17432452.88 | I26: 17432452.88 | J26: 17432452.88 | K26: 17432452.88 | L26: 17432452.88 | M26: 17432452.88 | N26: 17432452.88 | O26: 17432452.88 | P26: 17432452.88 | Q26: 17432452.88 | R26: 17432452.88 | S26: 17432452.88 | T26: 17432452.88 | U26: 17432452.88
A27: %,FACCOUNT,TQGCACCTS,N332,N333,N334 | B27: 12 | D27: 332...4 | E27: Field Lines & Comp, Meas & Reg St Eqpt | H27: 2872306.78 | I27: 2872306.78 | J27: 2872306.78 | K27: 2872306.78 | L27: 2872306.78 | M27: 2872306.78 | N27: 2872306.78 | O27: 2872306.78 | P27: 2872306.78 | Q27: 2872306.78 | R27: 2872306.78 | S27: 2872306.78 | T27: 2872306.78 | U27: 2872306.78
A28: ="%,FACCOUNT,TQGCACCTS,N"&(D28) -> %,FACCOUNT,TQGCACCTS,N336 | B28: 13 | D28: 336 | E28: Purification Equipment | H28: 57014.71 | I28: 57014.71 | J28: 57014.71 | K28: 57014.71 | L28: 57014.71 | M28: 57014.71 | N28: 57014.71 | O28: 57014.71 | P28: 57014.71 | Q28: 57014.71 | R28: 57014.71 | S28: 57014.71 | T28: 57014.71 | U28: 57014.71
A29: ="%,FACCOUNT,TQGCACCTS,N"&(D29) -> %,FACCOUNT,TQGCACCTS,N337 | B29: 14 | D29: 337 | E29: Other Equipment | H29: 121186.63 | I29: 121186.63 | J29: 121186.63 | K29: 121186.63 | L29: 121186.63 | M29: 121186.63 | N29: 121186.63 | O29: 121186.63 | P29: 121186.63 | Q29: 121186.63 | R29: 121186.63 | S29: 121186.63 | T29: 121186.63 | U29: 121186.63
B30: 15
B31: 16 | E31: Total Production & Gathering Plant | H31: 81179889.44 | I31: 81179889.44 | J31: 81179889.44 | K31: 81179889.44 | L31: 81179889.44 | M31: 81179889.44 | N31: 81179889.44 | O31: 81179889.44 | P31: 81179889.44 | Q31: 81179889.44 | R31: 81179889.44 | S31: 81179889.44 | T31: 81179889.44 | U31: 81179889.44
B32: 17
B33: 18 | E33: Distribution Plant
B34: 19 | D34: 374 | E34: Land & Land Rights
B35: 20 | F35: Wyoming | H35: 361464.44 | I35: 361464.44 | J35: 361364.44 | K35: 361364.44 | L35: 361364.44 | M35: 361364.44 | N35: 361364.44 | O35: 361364.44 | P35: 361364.44 | Q35: 361364.44 | R35: 361364.44 | S35: 361364.44 | T35: 361364.44 | U35: 361376.94
A36: ="%,FACCOUNT,TQGCACCTS,N"&(D34) -> %,FACCOUNT,TQGCACCTS,N374 | B36: 21 | F36: Utah | H36: 10942320.86 | I36: 10942311.86 | J36: 11163592.87 | K36: 11178818.44 | L36: 11178964.44 | M36: 11304884.27 | N36: 11374163.2 | O36: 11374133.9 | P36: 11362796.27 | Q36: 12682662.82 | R36: 12719174.25 | S36: 12723425.03 | T36: 13822319.81 | U36: 11698937.31
B37: 22 | F37: Total | H37: 11303785.3 | I37: 11303776.3 | J37: 11524957.31 | K37: 11540182.88 | L37: 11540328.88 | M37: 11666248.71 | N37: 11735527.64 | O37: 11735498.34 | P37: 11724160.71 | Q37: 13044027.26 | R37: 13080538.69 | S37: 13084789.47 | T37: 14183684.25 | U37: 12060314.25
B38: 23
B39: 24 | D39: 375 | E39: Structures & Improvements
B40: 25 | F40: Wyoming | H40: 715861.07 | I40: 718898.81 | J40: 717151.71 | K40: 722751.71 | L40: 722751.71 | M40: 721780.23 | N40: 721780.23 | O40: 721780.23 | P40: 721780.23 | Q40: 721780.23 | R40: 721780.23 | S40: 721780.23 | T40: 721780.23 | U40: 721069.6833
A41: ="%,FACCOUNT,TQGCACCTS,N"&(D39) -> %,FACCOUNT,TQGCACCTS,N375 | B41: 26 | F41: Utah | H41: 7843489.81 | I41: 7845682.2 | J41: 7893095.69 | K41: 7898082.32 | L41: 7903319.9 | M41: 7967628.55 | N41: 8028725.48 | O41: 7861314.04 | P41: 7992053.84 | Q41: 10431061.42 | R41: 10869211.09 | S41: 10869211.09 | T41: 10424265.45 | U41: 8724438.604
B42: 27 | F42: Total | H42: 8559350.88 | I42: 8564581.01 | J42: 8610247.4 | K42: 8620834.03 | L42: 8626071.61 | M42: 8689408.78 | N42: 8750505.71 | O42: 8583094.27 | P42: 8713834.07 | Q42: 11152841.65 | R42: 11590991.32 | S42: 11590991.32 | T42: 11146045.68 | U42: 9445508.287
B43: 28
B44: 29 | D44: 376 | E44: Mains
B45: 30 | F45: Dist - Wy - Mains - SD
B46: 31 | F46: Dist - Wy - Mains - LD
B47: 32 | F47: Dist - Wy - Mains - Feeders
B48: 33 | F48: Wyoming | H48: 30736385.25 | I48: 30714746.32 | J48: 30779715.59 | K48: 30799687.3 | L48: 30873380.67 | M48: 31342733.28 | N48: 31428057.86 | O48: 31497595.25 | P48: 31836391.17 | Q48: 32596637.96 | R48: 32906200.59 | S48: 32917901.63 | T48: 32634970.48 | U48: 31614893.79
B49: 34 | F49: Dist - Ut - Mains - SD
B50: 35 | F50: Dist - Ut - Mains - LD
B51: 36 | F51: Dist - Ut - Mains - Feeders
A52: ="%,FACCOUNT,TQGCACCTS,N"&(D44) -> %,FACCOUNT,TQGCACCTS,N376 | B52: 37 | F52: Utah | H52: 991559686.3 | I52: 992584209.1 | J52: 992254720.4 | K52: 1006150582 | L52: 1010703415 | M52: 1032250371 | N52: 1034630713 | O52: 1058234825 | P52: 1062122870 | Q52: 1070052390 | R52: 1070819313 | S52: 1075865883 | T52: 1091106215 | U52: 1037250187
B53: 38 | F53: Total | H53: 1022296072 | I53: 1023298955 | J53: 1023034436 | K53: 1036950269 | L53: 1041576795 | M53: 1063593104 | N53: 1066058770 | O53: 1089732420 | P53: 1093959261 | Q53: 1102649028 | R53: 1103725513 | S53: 1108783785 | T53: 1123741186 | U53: 1068865081
B54: 39
B55: 40 | D55: 377 | E55: Compressor Station Equipment
B56: 41 | F56: Wyoming | H56: 0 | I56: 0 | J56: 0 | K56: 0 | L56: 0 | M56: 0 | N56: 0 | O56: 0 | P56: 0 | Q56: 0 | R56: 0 | S56: 0 | T56: 0 | U56: 0
A57: ="%,FACCOUNT,TQGCACCTS,N"&(D55) -> %,FACCOUNT,TQGCACCTS,N377 | B57: 42 | F57: Utah | H57: 4935431.81 | I57: 4935431.81 | J57: 4935431.81 | K57: 4935431.81 | L57: 4935431.81 | M57: 4935431.81 | N57: 4935431.81 | O57: 4935431.81 | P57: 4935431.81 | Q57: 15526458.51 | R57: 15526458.51 | S57: 17607328.49 | T57: 17745410.74 | U57: 8290343.439
B58: 43 | F58: Total | H58: 4935431.81 | I58: 4935431.81 | J58: 4935431.81 | K58: 4935431.81 | L58: 4935431.81 | M58: 4935431.81 | N58: 4935431.81 | O58: 4935431.81 | P58: 4935431.81 | Q58: 15526458.51 | R58: 15526458.51 | S58: 17607328.49 | T58: 17745410.74 | U58: 8290343.439
B59: 44
B60: 45 | D60: 378 | E60: Measuring & Regulation Station Equip
B61: 46 | F61: Wyoming | H61: 4996874.29 | I61: 4995962.77 | J61: 4902044.76 | K61: 5141389.47 | L61: 5141389.47 | M61: 5118051.17 | N61: 5151142.9 | O61: 5151339.12 | P61: 5202137.88 | Q61: 5205353.01 | R61: 5213964.07 | S61: 5213964.07 | T61: 5229532.83 | U61: 5129161.854
A62: ="%,FACCOUNT,TQGCACCTS,N"&(D60) -> %,FACCOUNT,TQGCACCTS,N378 | B62: 47 | F62: Utah | H62: 50695135.33 | I62: 50795958.56 | J62: 51719592.62 | K62: 52043575.65 | L62: 52829717.81 | M62: 53062841.49 | N62: 53061002.14 | O62: 53178864.78 | P62: 53877433.67 | Q62: 67419147.85 | R62: 68674592.95 | S62: 70038338.6 | T62: 70715627.58 | U62: 57283870.63
B63: 48 | F63: Total | H63: 55692009.62 | I63: 55791921.33 | J63: 56621637.38 | K63: 57184965.12 | L63: 57971107.28 | M63: 58180892.66 | N63: 58212145.04 | O63: 58330203.9 | P63: 59079571.55 | Q63: 72624500.86 | R63: 73888557.02 | S63: 75252302.67 | T63: 75945160.41 | U63: 62413032.49
B64: 49
B65: 50 | D65: 380 | E65: Services
B66: 51 | F66: Wyoming | H66: 15609098.76 | I66: 15598097.72 | J66: 15635702.93 | K66: 15671227.67 | L66: 15737787.08 | M66: 15798067.92 | N66: 15883445.09 | O66: 15905162.82 | P66: 15924270.88 | Q66: 16001293.81 | R66: 16065442.71 | S66: 16068526.31 | T66: 16037533.31 | U66: 15842695.08
A67: ="%,FACCOUNT,TQGCACCTS,N"&(D65) -> %,FACCOUNT,TQGCACCTS,N380 | B67: 52 | F67: Utah | H67: 312069161.1 | I67: 312406691.7 | J67: 313646755.2 | K67: 314872697.1 | L67: 315980102.7 | M67: 317490392.2 | N67: 317835450.2 | O67: 318683600.1 | P67: 319073127.8 | Q67: 319702762.7 | R67: 319874205 | S67: 319896475.4 | T67: 324057092.9 | U67: 317293782.3
B68: 53 | F68: Total | H68: 327678259.9 | I68: 328004789.4 | J68: 329282458.2 | K68: 330543924.8 | L68: 331717889.8 | M68: 333288460.1 | N68: 333718895.3 | O68: 334588763 | P68: 334997398.7 | Q68: 335704056.5 | R68: 335939647.7 | S68: 335965001.8 | T68: 340094626.2 | U68: 333136477.3
B69: 54
B70: 55 | D70: 381...2 | E70: Meters & Meter Installation
B71: 56 | F71: Wyoming | H71: 7707080.21 | I71: 7886363.78 | J71: 7886363.78 | K71: 8037083 | L71: 8037083 | M71: 8037083 | N71: 8160238.44 | O71: 8157663.56 | P71: 8156922.81 | Q71: 8295686.77 | R71: 8295686.77 | S71: 8294992.424 | T71: 8448181.574 | U71: 8110233.185
A72: %,FACCOUNT,TQGCACCTS,N381,N382 | B72: 57 | F72: Utah | H72: 257217315.7 | I72: 257041682.9 | J72: 257015760 | K72: 259978984.2 | L72: 259982011 | M72: 260002813.9 | N72: 263431020.5 | O72: 263011982.3 | P72: 261247313.8 | Q72: 264249726.2 | R72: 264249726.2 | S72: 264205376 | T72: 267672350.6 | U72: 261405102.5
B73: 58 | F73: Total | H73: 264924395.9 | I73: 264928046.7 | J73: 264902123.8 | K73: 268016067.2 | L73: 268019094 | M73: 268039896.9 | N73: 271591259 | O73: 271169645.8 | P73: 269404236.6 | Q73: 272545413 | R73: 272545413 | S73: 272500368.4 | T73: 276120532.2 | U73: 269515335.7
B74: 59
B75: 60 | D75: 383...4 | E75: House Regulators & Reg Installations
B76: 61 | F76: Wyoming | H76: 931101.69 | I76: 931101.69 | J76: 931101.69 | K76: 931101.69 | L76: 931101.69 | M76: 931101.69 | N76: 930272.46 | O76: 930272.46 | P76: 930272.46 | Q76: 906588.31 | R76: 906588.31 | S76: 906588.31 | T76: 900429.84 | U76: 923488.0438
A77: %,FACCOUNT,TQGCACCTS,N383,N384 | B77: 62 | F77: Utah | H77: 14195092.81 | I77: 14195092.81 | J77: 14195092.81 | K77: 14194939.55 | L77: 14194289.18 | M77: 14194289.18 | N77: 14184308.81 | O77: 14184308.81 | P77: 14184308.81 | Q77: 14080756.83 | R77: 14082787.11 | S77: 14082787.11 | T77: 14078914.27 | U77: 14159163.71
B78: 63 | F78: Total | H78: 15126194.5 | I78: 15126194.5 | J78: 15126194.5 | K78: 15126041.24 | L78: 15125390.87 | M78: 15125390.87 | N78: 15114581.27 | O78: 15114581.27 | P78: 15114581.27 | Q78: 14987345.14 | R78: 14989375.42 | S78: 14989375.42 | T78: 14979344.11 | U78: 15082651.76
B79: 64
B80: 65 | D80: 387 | E80: Other Equipment
B81: =+B80+1 -> 66 | F81: Wyoming | H81: 52618.85 | I81: 52618.85 | J81: 52618.85 | K81: 52618.85 | L81: 52618.85 | M81: 52618.85 | N81: 52618.85 | O81: 52618.85 | P81: 52618.85 | Q81: 52618.85 | R81: 52618.85 | S81: 52618.85 | T81: 48746.01 | U81: 52457.48167
A82: ="%,FACCOUNT,TQGCACCTS,N"&(D80) -> %,FACCOUNT,TQGCACCTS,N387 | B82: 67 | F82: Utah | H82: 1147883.93 | I82: 1147883.93 | J82: 1147883.93 | K82: 1147883.93 | L82: 1147883.93 | M82: 1143414.51 | N82: 1169301.5 | O82: 1170476.38 | P82: 1192859.3 | Q82: 1193080.95 | R82: 1193080.95 | S82: 1193080.95 | T82: 1517090.11 | U82: 1181609.773
B83: 68 | F83: Total | H83: 1200502.78 | I83: 1200502.78 | J83: 1200502.78 | K83: 1200502.78 | L83: 1200502.78 | M83: 1196033.36 | N83: 1221920.35 | O83: 1223095.23 | P83: 1245478.15 | Q83: 1245699.8 | R83: 1245699.8 | S83: 1245699.8 | T83: 1565836.12 | U83: 1234067.255
B84: =+B83+1 -> 69
B85: =+B84+1 -> 70 | D85: 388 | E85: Other Equipment
B86: =+B85+1 -> 71 | F86: Wyoming | H86: 0 | I86: 7220 | J86: 7220 | K86: 7220 | L86: 7220 | M86: 7220 | N86: 7220 | O86: 7220 | P86: 7220 | Q86: 7220 | R86: 7220 | S86: 7220 | T86: 7220 | U86: 6919.166667
A87: ="%,FACCOUNT,TQGCACCTS,N"&(D85) -> %,FACCOUNT,TQGCACCTS,N388 | B87: =+B86+1 -> 72 | F87: Utah | H87: 317168 | I87: 309948 | J87: 309948 | K87: 309948 | L87: 309948 | M87: 309948 | N87: 309948 | O87: 309948 | P87: 309948 | Q87: 309948 | R87: 309948 | S87: 309948 | T87: 319038 | U87: 310627.5833
B88: =+B87+1 -> 73 | F88: Total | H88: 317168 | I88: 317168 | J88: 317168 | K88: 317168 | L88: 317168 | M88: 317168 | N88: 317168 | O88: 317168 | P88: 317168 | Q88: 317168 | R88: 317168 | S88: 317168 | T88: 326258 | U88: 317546.75
B89: =+B83+1 -> 69
B90: 70 | E90: Total Distribution Plant | H90: 1712033170 | I90: 1713471367 | J90: 1715555157 | K90: 1734435387 | L90: 1741029780 | M90: 1765032035 | N90: 1771656205 | O90: 1795729902 | P90: 1799491122 | Q90: 1839796539 | R90: 1842849363 | S90: 1851336810 | T90: 1875848083 | U90: 1780360358
B91: 71
B92: 72 | C92: General Plant
B93: 73 | D93: 389 | E93: Land & Land Rights
B94: 74 | F94: Distribution - Wyoming | H94: 11584.02 | I94: 11584.02 | J94: 11584.02 | K94: 11584.02 | L94: 11584.02 | M94: 11584.02 | N94: 11584.02 | O94: 11584.02 | P94: 11584.02 | Q94: 11584.02 | R94: 11584.02 | S94: 11584.02 | T94: 11584.02 | U94: 11584.02
A95: ="%,FACCOUNT,TQGCACCTS,N"&(D93) -> %,FACCOUNT,TQGCACCTS,N389 | B95: 75 | F95: Distribution - Utah | H95: 2707795.83 | I95: 2707795.83 | J95: 2707795.83 | K95: 2707795.83 | L95: 2707795.83 | M95: 2707795.83 | N95: 2707795.83 | O95: 2707795.83 | P95: 2707795.83 | Q95: 2707795.83 | R95: 2707795.83 | S95: 2707795.83 | T95: 2707795.83 | U95: 2707795.83
B96: 76 | F96: Total | H96: 2719379.85 | I96: 2719379.85 | J96: 2719379.85 | K96: 2719379.85 | L96: 2719379.85 | M96: 2719379.85 | N96: 2719379.85 | O96: 2719379.85 | P96: 2719379.85 | Q96: 2719379.85 | R96: 2719379.85 | S96: 2719379.85 | T96: 2719379.85 | U96: 2719379.85
B97: 77
B98: 78 | D98: 390 | E98: Structures & Improvements
B99: 79 | F99: Distribution - Wyoming | H99: 179167.56 | I99: 179167.56 | J99: 179167.56 | K99: 179167.56 | L99: 179167.56 | M99: 179167.56 | N99: 179167.56 | O99: 179167.56 | P99: 179167.56 | Q99: 179167.56 | R99: 179167.56 | S99: 179167.56 | T99: 179167.56 | U99: 179167.56
A100: ="%,FACCOUNT,TQGCACCTS,N"&(D98) -> %,FACCOUNT,TQGCACCTS,N390 | B100: 80 | F100: Distribution - Utah | H100: 14628913.3 | I100: 14934328.63 | J100: 14939420.33 | K100: 15399974.03 | L100: 15599183.05 | M100: 15622992.28 | N100: 15636843.41 | O100: 15665602.31 | P100: 15667394.78 | Q100: 21286539.42 | R100: 21286539.42 | S100: 21408966.85 | T100: 22234215.81 | U100: 17156612.42
B101: 81 | F101: General | H101: 42822338.5 | I101: 42516591.65 | J101: 42516591.65 | K101: 42516591.65 | L101: 42773953.27 | M101: 42810241.45 | N101: 42850462.45 | O101: 42869960.03 | P101: 42872245.23 | Q101: 42872200.82 | R101: 42872200.82 | S101: 42944487.36 | T101: 46174639.3 | U101: 42909501.27
B102: 82 | F102: Total | H102: 57630419.36 | I102: 57630087.84 | J102: 57635179.54 | K102: 58095733.24 | L102: 58552303.88 | M102: 58612401.29 | N102: 58666473.42 | O102: 58714729.9 | P102: 58718807.57 | Q102: 64337907.8 | R102: 64337907.8 | S102: 64532621.77 | T102: 68588022.67 | U102: 60245281.26
B103: 83
B104: 84 | D104: 391 | E104: Office Furniture & Equipment
B105: 85 | F105: Distribution - Wyoming | H105: 1673029.64 | I105: 1700299.39 | J105: 1700299.39 | K105: 1700299.39 | L105: 1700299.39 | M105: 1700299.39 | N105: 1700299.39 | O105: 1700299.39 | P105: 1700299.39 | Q105: 1700299.39 | R105: 1700299.39 | S105: 1700299.39 | T105: 276913.08 | U105: 1639855.388
A106: ="%,FACCOUNT,TQGCACCTS,N"&(D104) -> %,FACCOUNT,TQGCACCTS,N391 | B106: 86 | F106: Distribution - Utah | H106: 11341053.1 | I106: 12509666.62 | J106: 12530882 | K106: 12547221.18 | L106: 12817642.78 | M106: 12814365.32 | N106: 12854541.36 | O106: 12252501.53 | P106: 12252950.59 | Q106: 12340583.68 | R106: 12374367.16 | S106: 12612256.85 | T106: 13910555.65 | U106: 12544398.62
B107: 87 | F107: General | H107: 44724232.97 | I107: 43612805.49 | J107: 44974394.35 | K107: 44778909.37 | L107: 44406520.96 | M107: 44406520.96 | N107: 44381845.27 | O107: 44545663.94 | P107: 44539711.16 | Q107: 44987390.69 | R107: 45020422.25 | S107: 45011718.16 | T107: 44951845.03 | U107: 44625328.47
B108: 88 | F108: Total | H108: 57738315.71 | I108: 57822771.5 | J108: 59205575.74 | K108: 59026429.94 | L108: 58924463.13 | M108: 58921185.67 | N108: 58936686.02 | O108: 58498464.86 | P108: 58492961.14 | Q108: 59028273.76 | R108: 59095088.8 | S108: 59324274.4 | T108: 59139313.76 | U108: 58809582.47
B109: 89
B110: 90 | D110: 392 | E110: Transportation Equipment
B111: 91 | F111: Distribution - Wyoming | H111: 1515033 | I111: 1518356.12 | J111: 1518356.12 | K111: 1568863.75 | L111: 1578432.75 | M111: 1578432.75 | N111: 1578432.75 | O111: 1578432.75 | P111: 1578432.75 | Q111: 1648729.47 | R111: 1648729.47 | S111: 1648729.47 | T111: 1648729.47 | U111: 1585484.115
A112: ="%,FACCOUNT,TQGCACCTS,N"&(D110) -> %,FACCOUNT,TQGCACCTS,N392 | B112: 92 | F112: Distribution - Utah | H112: 39297350.68 | I112: 38755801.73 | J112: 38853153.49 | K112: 39359945.66 | L112: 39311613.19 | M112: 39806418.98 | N112: 39721430.54 | O112: 39839619.5 | P112: 40100181.19 | Q112: 40674446.29 | R112: 41021862.06 | S112: 41201980.19 | T112: 41243150.36 | U112: 39909725.28
B113: 93 | F113: General | H113: 0 | I113: 0 | J113: 0 | K113: 0 | L113: 0 | M113: 0 | N113: 0 | O113: 0 | P113: 0 | Q113: 0 | R113: 0 | S113: 0 | T113: 0 | U113: 0
B114: 94 | F114: Total | H114: 40812383.68 | I114: 40274157.85 | J114: 40371509.61 | K114: 40928809.41 | L114: 40890045.94 | M114: 41384851.73 | N114: 41299863.29 | O114: 41418052.25 | P114: 41678613.94 | Q114: 42323175.76 | R114: 42670591.53 | S114: 42850709.66 | T114: 42891879.83 | U114: 41495209.39
B115: 95
B116: 96 | D116: 393 | E116: Stores Equipment
B117: 97 | F117: Distribution - Wyoming | H117: 12371.89 | I117: 12371.89 | J117: 12371.89 | K117: 12371.89 | L117: 12371.89 | M117: 12371.89 | N117: 12371.89 | O117: 12371.89 | P117: 12371.89 | Q117: 12371.89 | R117: 12371.89 | S117: 12371.89 | T117: 12371.89 | U117: 12371.89
A118: ="%,FACCOUNT,TQGCACCTS,N"&(D116) -> %,FACCOUNT,TQGCACCTS,N393 | B118: 98 | F118: Distribution - Utah | H118: 23956.59 | I118: 44735.85 | J118: 45026.02 | K118: 45026.02 | L118: 45026.02 | M118: 45026.02 | N118: 45026.02 | O118: 45026.02 | P118: 45026.02 | Q118: 45026.02 | R118: 45026.02 | S118: 45026.02 | T118: 45026.02 | U118: 44123.94625
B119: 99 | F119: Total | H119: 36328.48 | I119: 57107.74 | J119: 57397.91 | K119: 57397.91 | L119: 57397.91 | M119: 57397.91 | N119: 57397.91 | O119: 57397.91 | P119: 57397.91 | Q119: 57397.91 | R119: 57397.91 | S119: 57397.91 | T119: 57397.91 | U119: 56495.83625
B120: 100
B121: 101 | D121: 394 | E121: Tools, Shop & Garage Equipment
B122: 102 | F122: Distribution - Wyoming | H122: 1788666.85 | I122: 1819760.85 | J122: 1842692.05 | K122: 1856892.81 | L122: 1871616.68 | M122: 1871272.84 | N122: 1890921.99 | O122: 1814499.61 | P122: 1813665.39 | Q122: 1846562.78 | R122: 1884125.36 | S122: 1890575.38 | T122: 1874367.71 | U122: 1852841.918
A123: ="%,FACCOUNT,TQGCACCTS,N"&(D121) -> %,FACCOUNT,TQGCACCTS,N394 | B123: 103 | F123: Distribution - Utah | H123: 22611545.25 | I123: 23036229.44 | J123: 22368764.31 | K123: 22394573.73 | L123: 22616647.81 | M123: 22750630.13 | N123: 22870960.44 | O123: 22900428.33 | P123: 22557254.64 | Q123: 22628433.74 | R123: 23108977.43 | S123: 23220723.13 | T123: 23153472.59 | U123: 22778011
B124: 104 | F124: General | H124: 0 | I124: 0 | J124: 0 | K124: 0 | L124: 0 | M124: 0 | N124: 0 | O124: 0 | P124: 0 | Q124: 0 | R124: 0 | S124: 0 | T124: 0 | U124: 0
B125: 105 | F125: Total | H125: 24400212.1 | I125: 24855990.29 | J125: 24211456.36 | K125: 24251466.54 | L125: 24488264.49 | M125: 24621902.97 | N125: 24761882.43 | O125: 24714927.94 | P125: 24370920.03 | Q125: 24474996.52 | R125: 24993102.79 | S125: 25111298.51 | T125: 25027840.3 | U125: 24630852.92
B126: 106
B127: 107 | D127: 395 | E127: Laboratory Equipment
B128: 108 | F128: Distribution - Wyoming | H128: 0 | I128: 0 | J128: 0 | K128: 0 | L128: 0 | M128: 0 | N128: 0 | O128: 0 | P128: 0 | Q128: 0 | R128: 0 | S128: 0 | T128: 0 | U128: 0
A129: ="%,FACCOUNT,TQGCACCTS,N"&(D127) -> %,FACCOUNT,TQGCACCTS,N395 | B129: 109 | F129: Distribution - Utah | H129: 76245.36 | I129: 76245.36 | J129: 76245.36 | K129: 76245.36 | L129: 76245.36 | M129: 76245.36 | N129: 76245.36 | O129: 76245.36 | P129: 76245.36 | Q129: 76245.36 | R129: 76245.36 | S129: 76245.36 | T129: 76245.36 | U129: 76245.36
B130: 110 | F130: General | H130: 0 | I130: 0 | J130: 0 | K130: 0 | L130: 0 | M130: 0 | N130: 0 | O130: 0 | P130: 0 | Q130: 0 | R130: 0 | S130: 0 | T130: 0 | U130: 0
B131: 111 | F131: Total | H131: 76245.36 | I131: 76245.36 | J131: 76245.36 | K131: 76245.36 | L131: 76245.36 | M131: 76245.36 | N131: 76245.36 | O131: 76245.36 | P131: 76245.36 | Q131: 76245.36 | R131: 76245.36 | S131: 76245.36 | T131: 76245.36 | U131: 76245.36
B132: 112
B133: 113 | D133: 396 | E133: Power Operated Equipment
B134: 114 | F134: Distribution - Wyoming | H134: 695559.31 | I134: 695559.31 | J134: 695559.31 | K134: 695559.31 | L134: 695559.31 | M134: 695559.31 | N134: 695559.31 | O134: 695559.31 | P134: 695559.31 | Q134: 695559.31 | R134: 695559.31 | S134: 695559.31 | T134: 695559.31 | U134: 695559.31
A135: ="%,FACCOUNT,TQGCACCTS,N"&(D133) -> %,FACCOUNT,TQGCACCTS,N396 | B135: 115 | F135: Distribution - Utah | H135: 9883042.27 | I135: 9774474.56 | J135: 9774474.56 | K135: 9774474.56 | L135: 9785545.93 | M135: 9785545.93 | N135: 9787145.78 | O135: 9787145.78 | P135: 9787145.78 | Q135: 9787145.78 | R135: 9898076.23 | S135: 9859961.9 | T135: 9860222.17 | U135: 9806064.084
B136: 116 | F136: General | H136: 0 | I136: 0 | J136: 0 | K136: 0 | L136: 0 | M136: 0 | N136: 0 | O136: 0 | P136: 0 | Q136: 0 | R136: 0 | S136: 0 | T136: 0 | U136: 0
B137: 117 | F137: Total | H137: 10578601.58 | I137: 10470033.87 | J137: 10470033.87 | K137: 10470033.87 | L137: 10481105.24 | M137: 10481105.24 | N137: 10482705.09 | O137: 10482705.09 | P137: 10482705.09 | Q137: 10482705.09 | R137: 10593635.54 | S137: 10555521.21 | T137: 10555781.48 | U137: 10501623.39
B138: 118
B139: 119 | D139: 397 | E139: Communication Equipment
B140: 120 | F140: Distribution - Wyoming | H140: 73309.11 | I140: 73309.11 | J140: 73309.11 | K140: 73309.11 | L140: 73309.11 | M140: 73309.11 | N140: 73309.11 | O140: 73309.11 | P140: 73309.11 | Q140: 73309.11 | R140: 73309.11 | S140: 73309.11 | T140: 73309.11 | U140: 73309.11
A141: ="%,FACCOUNT,TQGCACCTS,N"&(D139) -> %,FACCOUNT,TQGCACCTS,N397 | B141: 121 | F141: Distribution - Utah | H141: 3553143.83 | I141: 3569087.08 | J141: 3735038.7 | K141: 3735038.7 | L141: 3726641.2 | M141: 3726641.2 | N141: 3741631.01 | O141: 3742204.79 | P141: 3742204.79 | Q141: 3720830.98 | R141: 3720830.98 | S141: 3720830.98 | T141: 3788202.29 | U141: 3712637.789
B142: 122 | F142: Total | H142: 3626452.94 | I142: 3642396.19 | J142: 3808347.81 | K142: 3808347.81 | L142: 3799950.31 | M142: 3799950.31 | N142: 3814940.12 | O142: 3815513.9 | P142: 3815513.9 | Q142: 3794140.09 | R142: 3794140.09 | S142: 3794140.09 | T142: 3861511.4 | U142: 3785946.899
B143: 123
B144: 124 | D144: 398 | E144: Miscellaneous Equipment
B145: =+B144+1 -> 125 | F145: Distribution - Wyoming | H145: 3863.92 | I145: 3863.92 | J145: 3863.92 | K145: 3863.92 | L145: 3863.92 | M145: 3863.92 | N145: 3863.92 | O145: 3863.92 | P145: 3863.92 | Q145: 3863.92 | R145: 3863.92 | S145: 3863.92 | T145: 3863.92 | U145: 3863.92
A146: ="%,FACCOUNT,TQGCACCTS,N"&(D144) -> %,FACCOUNT,TQGCACCTS,N398 | B146: 126 | F146: Distribution - Utah | H146: 208719.24 | I146: 208719.24 | J146: 208719.24 | K146: 208719.24 | L146: 209290.24 | M146: 209290.24 | N146: 209290.24 | O146: 213212.48 | P146: 213212.48 | Q146: 213212.48 | R146: 213212.48 | S146: 219291.02 | T146: 242323.33 | U146: 212640.8888
B147: 127 | F147: General | H147: 0 | I147: 0 | J147: 0 | K147: 0 | L147: 0 | M147: 0 | N147: 0 | O147: 0 | P147: 0 | Q147: 0 | R147: 0 | S147: 0 | T147: 0 | U147: 0
B148: 128 | F148: Total | H148: 212583.16 | I148: 212583.16 | J148: 212583.16 | K148: 212583.16 | L148: 213154.16 | M148: 213154.16 | N148: 213154.16 | O148: 217076.4 | P148: 217076.4 | Q148: 217076.4 | R148: 217076.4 | S148: 223154.94 | T148: 246187.25 | U148: 216504.8088
B149: 129
B150: 130 | D150: 399 | E150: Communication Equipment
B151: =+B150+1 -> 131 | F151: Distribution - Wyoming | H151: 0 | I151: 0 | J151: 0 | K151: 0 | L151: 0 | M151: 0 | N151: 0 | O151: 0 | P151: 0 | Q151: 0 | R151: 0 | S151: 0 | T151: 0 | U151: 0
A152: ="%,FACCOUNT,TQGCACCTS,N"&(D150) -> %,FACCOUNT,TQGCACCTS,N399 | B152: =+B151+1 -> 132 | F152: Distribution - Utah | H152: 52300 | I152: 52300 | J152: 52300 | K152: 52300 | L152: 52300 | M152: 52300 | N152: 52300 | O152: 52300 | P152: 52300 | Q152: 52300 | R152: 52300 | S152: 52300 | T152: 52300 | U152: 52300
B153: =+B152+1 -> 133 | F153: Total | H153: 52300 | I153: 52300 | J153: 52300 | K153: 52300 | L153: 52300 | M153: 52300 | N153: 52300 | O153: 52300 | P153: 52300 | Q153: 52300 | R153: 52300 | S153: 52300 | T153: 52300 | U153: 52300
B154: =+B148+1 -> 129
B155: 130 | E155: Total General Plant | H155: 197883222.2 | I155: 197813053.7 | J155: 198820009.2 | K155: 199698727.1 | L155: 200254610.3 | M155: 200939874.5 | N155: 201081027.7 | O155: 200766793.5 | P155: 200681921.2 | Q155: 207563598.5 | R155: 208606866.1 | S155: 209297043.7 | T155: 213215859.8 | U155: 202589422.2
B156: 131
B157: 132 | C157: 101 | D157: Gas Plant in Service
B158: 133 | E158: Production | H158: 81179889.44 | I158: 81179889.44 | J158: 81179889.44 | K158: 81179889.44 | L158: 81179889.44 | M158: 81179889.44 | N158: 81179889.44 | O158: 81179889.44 | P158: 81179889.44 | Q158: 81179889.44 | R158: 81179889.44 | S158: 81179889.44 | T158: 81179889.44 | U158: 81179889.44
B159: 134 | E159: Distribution - Wyoming | H159: 61121367.64 | I159: 61277357.46 | J159: 61284166.83 | K159: 61735327.21 | L159: 61875579.99 | M159: 62380903.66 | N159: 62707023.35 | O159: 62795899.81 | P159: 63203861.8 | Q159: 64159426.46 | R159: 64541749.05 | S159: 64555839.34 | T159: 64400641.79 | U159: 62773178.31
B160: 135 | E160: Distribution - Utah | H160: 1650981429 | I160: 1652263636 | J160: 1654340616 | K160: 1672769686 | L160: 1679223826 | M160: 1702720757 | N160: 1709018807 | O160: 1733003628 | P160: 1736356886 | Q160: 1775706738 | R160: 1778377240 | S160: 1786850597 | T160: 1811517068 | U160: 1717656805
B161: 136 | E161: General | H161: 197883222.2 | I161: 197813053.7 | J161: 198820009.2 | K161: 199698727.1 | L161: 200254610.3 | M161: 200939874.5 | N161: 201081027.7 | O161: 200766793.5 | P161: 200681921.2 | Q161: 207563598.5 | R161: 208606866.1 | S161: 209297043.7 | T161: 213215859.8 | U161: 202589422.2
B162: 137 | E162: Total | H162: 1991165908 | I162: 1992533936 | J162: 1995624682 | K162: 2015383629 | L162: 2022533906 | M162: 2047221425 | N162: 2053986748 | O162: 2077746211 | P162: 2081422559 | Q162: 2128609653 | R162: 2132705744 | S162: 2141883369 | T162: 2170313459 | U162: 2064199295
B163: 138
B164: 139 | C164: 105 | D164: Gas Plant Held for Future Use
B165: 140 | E165: Distribution - Utah | H165: 5036.83 | I165: 5036.83 | J165: 5036.83 | K165: 5036.83 | L165: 5036.83 | M165: 5036.83 | N165: 5036.83 | O165: 5036.83 | P165: 5036.83 | Q165: 5036.83 | R165: 5036.83 | S165: 5036.83 | T165: 5036.83 | U165: 5036.83
A166: %,FACCOUNT,TQGCACCTS,N105 | B166: 141 | E166: Total | H166: 5036.83 | I166: 5036.83 | J166: 5036.83 | K166: 5036.83 | L166: 5036.83 | M166: 5036.83 | N166: 5036.83 | O166: 5036.83 | P166: 5036.83 | Q166: 5036.83 | R166: 5036.83 | S166: 5036.83 | T166: 5036.83 | U166: 5036.83
B167: 142
B168: 143 | C168: 106 | D168: Completed Construction Not Classified - Gas
B169: 144 | E169: Production | H169: 0 | I169: 0 | J169: 0 | K169: 0 | L169: 0 | M169: 0 | N169: 0 | O169: 0 | P169: 0 | Q169: 0 | R169: 0 | S169: 0 | T169: 0 | U169: 0
B170: 145 | E170: Distribution - Wyoming | H170: 648616.4 | I170: 355643.44 | J170: 408191.73 | K170: 607270.05 | L170: 623360.33 | M170: 356415.99 | N170: 478009.18 | O170: 859781.71 | P170: 829818.92 | Q170: 588806.42 | R170: 372748.65 | S170: 122300.15 | T170: 0 | U170: 493887.8975
B171: 146 | E171: Distribution - Utah | H171: 5687874.86 | I171: 10961847.94 | J171: 21370335.88 | K171: 9795937.43 | L171: 10324664.48 | M171: 8990157.77 | N171: 6575876.81 | O171: 4740448.28 | P171: 11902427.02 | Q171: 21120262.76 | R171: 18164179.37 | S171: 27058670.75 | T171: 39379731.47 | U171: 14461550.97
B172: 147 | E172: General | H172: 934005.64 | I172: 1506535.69 | J172: 505141.21 | K172: 474595.31 | L172: 612025.77 | M172: 225792.01 | N172: 95039.52 | O172: -2311.12 | P172: 556793.46 | Q172: 1331892.69 | R172: 314778.99 | S172: 1096445.15 | T172: 9836452.77 | U172: 1008496.49
